Workbook

Sheet Cap Exp Analysis
D2: Plant Life | E2: ='Theoretical Depreciation'!E18 -> 15
D4: Historic Growth | E4: =Summary!D5 -> 0.12 | F4: 12
D5: Modelled Growth | E5: =Summary!D6 -> 0.09 | R5: =D4&" "&TEXT(E4,"##.00%") -> Historic Growth 12.00%
D6: Terminal Growth | E6: =Summary!D7 -> 0.03 | R6: =D5&" "&TEXT(E5,"##.00%") -> Modelled Growth 9.00%
R7: =D6&" "&TEXT(E6,"##.00%") -> Terminal Growth 3.00%
E8: Cap Exp to Dep | G8: Percent Difference
E9: Ratio | F9: Value | G9: from True Value
D10: Theoretically Correct Value | F10: ='Theoretical Depreciation'!E86 -> 844.5955851
D11: No Stable Value Adjustment | E11: ='Theoretical Depreciation'!E91 -> 1.709852148 | F11: ='Theoretical Depreciation'!E96 -> 452.5601384 | G11: =F11/$F$10-1 -> -0.4641694245
D12: Simple Stable Value Adjustment | E12: ='Theoretical Depreciation'!E102 -> 1.219901657 | F12: ='Theoretical Depreciation'!E104 -> 797.3360415 | G12: =F12/$F$10-1 -> -0.05595523406
D13: Adjustment with Historic Growth | E13: ='Theoretical Depreciation'!E112 -> 1.151269019 | F13: ='Theoretical Depreciation'!E114 -> 845.6325125 | G13: =F13/$F$10-1 -> 0.001227720527
E18: Value
D33: =D10 -> Theoretically Correct Value | E33: =F10 -> 844.5955851
D34: =D11 -> No Stable Value Adjustment | E34: =F11 -> 452.5601384
D35: =D12 -> Simple Stable Value Adjustment | E35: =F12 -> 797.3360415
D36: =D13 -> Adjustment with Historic Growth | E36: =F13 -> 845.6325125

Sheet Theoretical Depreciation
A1: Timing | D1: Sheet | E1: =sheet_name(E2) -> Theoretical Depreciation
D2: Period | E2: Test | F2: Growth | G2: 0 | H2: =G2+1 -> 1 | I2: =H2+1 -> 2 | J2: 3 | K2: 4 | L2: 5 | M2: 6 | N2: 7 | O2: 8 | P2: 9 | Q2: 10 | R2: 11 | S2: 12 | T2: 13 | U2: 14 | V2: 15 | W2: 16 | X2: 17 | Y2: 18 | Z2: 19 | AA2: 20 | AB2: 21 | AC2: 22 | AD2: 23 | AE2: 24 | AF2: 25 | AG2: 26 | AH2: 27 | AI2: 28 | AJ2: 29 | AK2: 30 | AL2: 31 | AM2: 32 | AN2: 33 | AO2: 34 | AP2: 35 | AQ2: 36 | AR2: 37 | AS2: 38 | AT2: 39 | AU2: 40 | AV2: 41 | AW2: 42 | AX2: 43 | AY2: 44 | AZ2: 45 | BA2: 46 | BB2: 47 | BC2: 48 | BD2: 49 | BE2: 50 | BF2: 51 | BG2: 52 | BH2: 53 | BI2: 54 | BJ2: 55 | BK2: 56 | BL2: 57 | BM2: 58 | BN2: 59 | BO2: 60 | BP2: 61 | BQ2: 62 | BR2: 63 | BS2: 64 | BT2: 65 | BU2: =BT2+1 -> 66 | BV2: 67 | BW2: 68 | BX2: 69 | BY2: 70 | BZ2: 71 | CA2: 72 | CB2: 73 | CC2: 74 | CD2: 75 | CE2: 76 | CF2: 77 | CG2: 78 | CH2: 79 | CI2: 80 | CJ2: 81 | CK2: 82 | CL2: 83 | CM2: 84 | CN2: 85 | CO2: 86 | CP2: 87 | CQ2: 88 | CR2: 89 | CS2: 90 | CT2: 91 | CU2: 92 | CV2: 93 | CW2: 94 | CX2: 95 | CY2: 96 | CZ2: 97 | DA2: 98 | DB2: 99 | DC2: 100 | DD2: 101 | DE2: 102 | DF2: 103 | DG2: 104 | DH2: 105 | DI2: 106 | DJ2: 107 | DK2: 108 | DL2: 109 | DM2: 110 | DN2: 111 | DO2: 112 | DP2: 113 | DQ2: 114 | DR2: 115 | DS2: 116 | DT2: 117 | DU2: 118 | DV2: 119 | DW2: 120 | DX2: 121 | DY2: 122 | DZ2: 123 | EA2: 124 | EB2: 125 | EC2: 126 | ED2: 127 | EE2: 128 | EF2: 129 | EG2: =EF2+1 -> 130 | EH2: 131 | EI2: 132 | EJ2: 133 | EK2: 134 | EL2: 135 | EM2: 136 | EN2: 137 | EO2: 138 | EP2: 139 | EQ2: 140 | ER2: 141 | ES2: 142 | ET2: 143 | EU2: 144 | EV2: 145 | EW2: 146 | EX2: 147 | EY2: 148 | EZ2: 149 | FA2: 150 | FB2: 151 | FC2: 152 | FD2: 153 | FE2: 154 | FF2: 155 | FG2: 156 | FH2: 157 | FI2: 158 | FJ2: 159 | FK2: 160 | FL2: 161 | FM2: 162 | FN2: 163 | FO2: 164 | FP2: 165 | FQ2: 166 | FR2: 167 | FS2: 168 | FT2: 169 | FU2: 170 | FV2: 171 | FW2: 172 | FX2: 173 | FY2: 174 | FZ2: 175 | GA2: 176 | GB2: 177 | GC2: 178 | GD2: 179 | GE2: 180 | GF2: 181 | GG2: 182 | GH2: 183 | GI2: 184 | GJ2: 185 | GK2: 186 | GL2: 187 | GM2: 188 | GN2: 189 | GO2: 190 | GP2: 191 | GQ2: 192 | GR2: 193 | GS2: =GR2+1 -> 194 | GT2: 195 | GU2: 196 | GV2: 197 | GW2: 198 | GX2: 199 | GY2: 200 | GZ2: 201 | HA2: 202 | HB2: 203 | HC2: 204 | HD2: 205 | HE2: 206 | HF2: 207 | HG2: 208 | HH2: 209 | HI2: 210 | HJ2: 211 | HK2: 212 | HL2: 213 | HM2: 214 | HN2: 215 | HO2: 216 | HP2: 217 | HQ2: 218 | HR2: 219 | HS2: 220 | HT2: 221 | HU2: 222 | HV2: 223 | HW2: 224 | HX2: 225 | HY2: 226 | HZ2: 227 | IA2: 228 | IB2: 229 | IC2: 230 | ID2: 231 | IE2: 232 | IF2: 233 | IG2: 234 | IH2: 235 | II2: 236 | IJ2: 237 | IK2: 238 | IL2: 239 | IM2: 240 | IN2: 241 | IO2: 242 | IP2: 243 | IQ2: 244 | IR2: 245 | IS2: 246 | IT2: 247 | IU2: 248 | IV2: 249 | IW2: 250 | IX2: 251 | IY2: 252 | IZ2: 253 | JA2: 254 | JB2: 255 | JC2: 256 | JD2: 257 | JE2: =JD2+1 -> 258 | JF2: 259 | JG2: 260 | JH2: 261 | JI2: 262 | JJ2: 263 | JK2: 264 | JL2: 265 | JM2: 266 | JN2: 267 | JO2: 268 | JP2: 269 | JQ2: 270 | JR2: 271 | JS2: 272 | JT2: 273 | JU2: 274 | JV2: 275 | JW2: 276 | JX2: 277 | JY2: 278 | JZ2: 279 | KA2: 280 | KB2: 281 | KC2: 282 | KD2: 283 | KE2: 284 | KF2: 285 | KG2: 286 | KH2: 287 | KI2: 288 | KJ2: 289 | KK2: 290 | KL2: 291 | KM2: 292 | KN2: 293 | KO2: 294 | KP2: 295 | KQ2: 296 | KR2: 297 | KS2: 298 | KT2: 299 | KU2: 300
D3: Historic Period | E3: =COUNTIF(H3:KU3,TRUE) -> 12 | F3: =F13 -> 0.12 | H3: =H2<=$E$13 -> TRUE | I3: TRUE | J3: TRUE | K3: TRUE | L3: TRUE | M3: TRUE | N3: TRUE | O3: TRUE | P3: TRUE | Q3: TRUE | R3: TRUE | S3: TRUE | T3: FALSE | U3: FALSE | V3: FALSE | W3: FALSE | X3: FALSE | Y3: FALSE | Z3: FALSE | AA3: FALSE | AB3: FALSE | AC3: FALSE | AD3: FALSE | AE3: FALSE | AF3: FALSE | AG3: FALSE | AH3: FALSE | AI3: FALSE | AJ3: FALSE | AK3: FALSE | AL3: FALSE | AM3: FALSE | AN3: FALSE | AO3: FALSE | AP3: FALSE | AQ3: FALSE | AR3: FALSE | AS3: FALSE | AT3: FALSE | AU3: FALSE | AV3: FALSE | AW3: FALSE | AX3: FALSE | AY3: FALSE | AZ3: FALSE | BA3: FALSE | BB3: FALSE | BC3: FALSE | BD3: FALSE | BE3: FALSE | BF3: FALSE | BG3: FALSE | BH3: FALSE | BI3: FALSE | BJ3: FALSE | BK3: FALSE | BL3: FALSE | BM3: FALSE | BN3: FALSE | BO3: FALSE | BP3: FALSE | BQ3: FALSE | BR3: FALSE | BS3: FALSE | BT3: =BT2<=$E$13 -> FALSE | BU3: FALSE | BV3: FALSE | BW3: FALSE | BX3: FALSE | BY3: FALSE | BZ3: FALSE | CA3: FALSE | CB3: FALSE | CC3: FALSE | CD3: FALSE | CE3: FALSE | CF3: FALSE | CG3: FALSE | CH3: FALSE | CI3: FALSE | CJ3: FALSE | CK3: FALSE | CL3: FALSE | CM3: FALSE | CN3: FALSE | CO3: FALSE | CP3: FALSE | CQ3: FALSE | CR3: FALSE | CS3: FALSE | CT3: FALSE | CU3: FALSE | CV3: FALSE | CW3: FALSE | CX3: FALSE | CY3: FALSE | CZ3: FALSE | DA3: FALSE | DB3: FALSE | DC3: FALSE | DD3: FALSE | DE3: FALSE | DF3: FALSE | DG3: FALSE | DH3: FALSE | DI3: FALSE | DJ3: FALSE | DK3: FALSE | DL3: FALSE | DM3: FALSE | DN3: FALSE | DO3: FALSE | DP3: FALSE | DQ3: FALSE | DR3: FALSE | DS3: FALSE | DT3: FALSE | DU3: FALSE | DV3: FALSE | DW3: FALSE | DX3: FALSE | DY3: FALSE | DZ3: FALSE | EA3: FALSE | EB3: FALSE | EC3: FALSE | ED3: FALSE | EE3: FALSE | EF3: =EF2<=$E$13 -> FALSE | EG3: FALSE | EH3: FALSE | EI3: FALSE | EJ3: FALSE | EK3: FALSE | EL3: FALSE | EM3: FALSE | EN3: FALSE | EO3: FALSE | EP3: FALSE | EQ3: FALSE | ER3: FALSE | ES3: FALSE | ET3: FALSE | EU3: FALSE | EV3: FALSE | EW3: FALSE | EX3: FALSE | EY3: FALSE | EZ3: FALSE | FA3: FALSE | FB3: FALSE | FC3: FALSE | FD3: FALSE | FE3: FALSE | FF3: FALSE | FG3: FALSE | FH3: FALSE | FI3: FALSE | FJ3: FALSE | FK3: FALSE | FL3: FALSE | FM3: FALSE | FN3: FALSE | FO3: FALSE | FP3: FALSE | FQ3: FALSE | FR3: FALSE | FS3: FALSE | FT3: FALSE | FU3: FALSE | FV3: FALSE | FW3: FALSE | FX3: FALSE | FY3: FALSE | FZ3: FALSE | GA3: FALSE | GB3: FALSE | GC3: FALSE | GD3: FALSE | GE3: FALSE | GF3: FALSE | GG3: FALSE | GH3: FALSE | GI3: FALSE | GJ3: FALSE | GK3: FALSE | GL3: FALSE | GM3: FALSE | GN3: FALSE | GO3: FALSE | GP3: FALSE | GQ3: FALSE | GR3: =GR2<=$E$13 -> FALSE | GS3: FALSE | GT3: FALSE | GU3: FALSE | GV3: FALSE | GW3: FALSE | GX3: FALSE | GY3: FALSE | GZ3: FALSE | HA3: FALSE | HB3: FALSE | HC3: FALSE | HD3: FALSE | HE3: FALSE | HF3: FALSE | HG3: FALSE | HH3: FALSE | HI3: FALSE | HJ3: FALSE | HK3: FALSE | HL3: FALSE | HM3: FALSE | HN3: FALSE | HO3: FALSE | HP3: FALSE | HQ3: FALSE | HR3: FALSE | HS3: FALSE | HT3: FALSE | HU3: FALSE | HV3: FALSE | HW3: FALSE | HX3: FALSE | HY3: FALSE | HZ3: FALSE | IA3: FALSE | IB3: FALSE | IC3: FALSE | ID3: FALSE | IE3: FALSE | IF3: FALSE | IG3: FALSE | IH3: FALSE | II3: FALSE | IJ3: FALSE | IK3: FALSE | IL3: FALSE | IM3: FALSE | IN3: FALSE | IO3: FALSE | IP3: FALSE | IQ3: FALSE | IR3: FALSE | IS3: FALSE | IT3: FALSE | IU3: FALSE | IV3: FALSE | IW3: FALSE | IX3: FALSE | IY3: FALSE | IZ3: FALSE | JA3: FALSE | JB3: FALSE | JC3: FALSE | JD3: =JD2<=$E$13 -> FALSE | JE3: FALSE | JF3: FALSE | JG3: FALSE | JH3: FALSE | JI3: FALSE | JJ3: FALSE | JK3: FALSE | JL3: FALSE | JM3: FALSE | JN3: FALSE | JO3: FALSE | JP3: FALSE | JQ3: FALSE | JR3: FALSE | JS3: FALSE | JT3: FALSE | JU3: FALSE | JV3: FALSE | JW3: FALSE | JX3: FALSE | JY3: FALSE | JZ3: FALSE | KA3: FALSE | KB3: FALSE | KC3: FALSE | KD3: FALSE | KE3: FALSE | KF3: FALSE | KG3: FALSE | KH3: FALSE | KI3: FALSE | KJ3: FALSE | KK3: FALSE | KL3: FALSE | KM3: FALSE | KN3: FALSE | KO3: FALSE | KP3: FALSE | KQ3: FALSE | KR3: FALSE | KS3: FALSE | KT3: FALSE | KU3: FALSE
D4: Modelled Period | E4: =COUNTIF(H4:KU4,TRUE) -> 10 | F4: =F14 -> 0.09 | H4: =AND(H2>$E$13,H2<=$E$13+$E$14) -> FALSE | I4: FALSE | J4: FALSE | K4: FALSE | L4: FALSE | M4: FALSE | N4: FALSE | O4: FALSE | P4: FALSE | Q4: FALSE | R4: FALSE | S4: FALSE | T4: TRUE | U4: TRUE | V4: TRUE | W4: TRUE | X4: TRUE | Y4: TRUE | Z4: TRUE | AA4: TRUE | AB4: TRUE | AC4: TRUE | AD4: FALSE | AE4: FALSE | AF4: FALSE | AG4: FALSE | AH4: FALSE | AI4: FALSE | AJ4: FALSE | AK4: FALSE | AL4: FALSE | AM4: FALSE | AN4: FALSE | AO4: FALSE | AP4: FALSE | AQ4: FALSE | AR4: FALSE | AS4: FALSE | AT4: FALSE | AU4: FALSE | AV4: FALSE | AW4: FALSE | AX4: FALSE | AY4: FALSE | AZ4: FALSE | BA4: FALSE | BB4: FALSE | BC4: FALSE | BD4: FALSE | BE4: FALSE | BF4: FALSE | BG4: FALSE | BH4: FALSE | BI4: FALSE | BJ4: FALSE | BK4: FALSE | BL4: FALSE | BM4: FALSE | BN4: FALSE | BO4: FALSE | BP4: FALSE | BQ4: FALSE | BR4: FALSE | BS4: FALSE | BT4: =AND(BT2>$E$13,BT2<=$E$13+$E$14) -> FALSE | BU4: FALSE | BV4: FALSE | BW4: FALSE | BX4: FALSE | BY4: FALSE | BZ4: FALSE | CA4: FALSE | CB4: FALSE | CC4: FALSE | CD4: FALSE | CE4: FALSE | CF4: FALSE | CG4: FALSE | CH4: FALSE | CI4: FALSE | CJ4: FALSE | CK4: FALSE | CL4: FALSE | CM4: FALSE | CN4: FALSE | CO4: FALSE | CP4: FALSE | CQ4: FALSE | CR4: FALSE | CS4: FALSE | CT4: FALSE | CU4: FALSE | CV4: FALSE | CW4: FALSE | CX4: FALSE | CY4: FALSE | CZ4: FALSE | DA4: FALSE | DB4: FALSE | DC4: FALSE | DD4: FALSE | DE4: FALSE | DF4: FALSE | DG4: FALSE | DH4: FALSE | DI4: FALSE | DJ4: FALSE | DK4: FALSE | DL4: FALSE | DM4: FALSE | DN4: FALSE | DO4: FALSE | DP4: FALSE | DQ4: FALSE | DR4: FALSE | DS4: FALSE | DT4: FALSE | DU4: FALSE | DV4: FALSE | DW4: FALSE | DX4: FALSE | DY4: FALSE | DZ4: FALSE | EA4: FALSE | EB4: FALSE | EC4: FALSE | ED4: FALSE | EE4: FALSE | EF4: =AND(EF2>$E$13,EF2<=$E$13+$E$14) -> FALSE | EG4: FALSE | EH4: FALSE | EI4: FALSE | EJ4: FALSE | EK4: FALSE | EL4: FALSE | EM4: FALSE | EN4: FALSE | EO4: FALSE | EP4: FALSE | EQ4: FALSE | ER4: FALSE | ES4: FALSE | ET4: FALSE | EU4: FALSE | EV4: FALSE | EW4: FALSE | EX4: FALSE | EY4: FALSE | EZ4: FALSE | FA4: FALSE | FB4: FALSE | FC4: FALSE | FD4: FALSE | FE4: FALSE | FF4: FALSE | FG4: FALSE | FH4: FALSE | FI4: FALSE | FJ4: FALSE | FK4: FALSE | FL4: FALSE | FM4: FALSE | FN4: FALSE | FO4: FALSE | FP4: FALSE | FQ4: FALSE | FR4: FALSE | FS4: FALSE | FT4: FALSE | FU4: FALSE | FV4: FALSE | FW4: FALSE | FX4: FALSE | FY4: FALSE | FZ4: FALSE | GA4: FALSE | GB4: FALSE | GC4: FALSE | GD4: FALSE | GE4: FALSE | GF4: FALSE | GG4: FALSE | GH4: FALSE | GI4: FALSE | GJ4: FALSE | GK4: FALSE | GL4: FALSE | GM4: FALSE | GN4: FALSE | GO4: FALSE | GP4: FALSE | GQ4: FALSE | GR4: =AND(GR2>$E$13,GR2<=$E$13+$E$14) -> FALSE | GS4: FALSE | GT4: FALSE | GU4: FALSE | GV4: FALSE | GW4: FALSE | GX4: FALSE | GY4: FALSE | GZ4: FALSE | HA4: FALSE | HB4: FALSE | HC4: FALSE | HD4: FALSE | HE4: FALSE | HF4: FALSE | HG4: FALSE | HH4: FALSE | HI4: FALSE | HJ4: FALSE | HK4: FALSE | HL4: FALSE | HM4: FALSE | HN4: FALSE | HO4: FALSE | HP4: FALSE | HQ4: FALSE | HR4: FALSE | HS4: FALSE | HT4: FALSE | HU4: FALSE | HV4: FALSE | HW4: FALSE | HX4: FALSE | HY4: FALSE | HZ4: FALSE | IA4: FALSE | IB4: FALSE | IC4: FALSE | ID4: FALSE | IE4: FALSE | IF4: FALSE | IG4: FALSE | IH4: FALSE | II4: FALSE | IJ4: FALSE | IK4: FALSE | IL4: FALSE | IM4: FALSE | IN4: FALSE | IO4: FALSE | IP4: FALSE | IQ4: FALSE | IR4: FALSE | IS4: FALSE | IT4: FALSE | IU4: FALSE | IV4: FALSE | IW4: FALSE | IX4: FALSE | IY4: FALSE | IZ4: FALSE | JA4: FALSE | JB4: FALSE | JC4: FALSE | JD4: =AND(JD2>$E$13,JD2<=$E$13+$E$14) -> FALSE | JE4: FALSE | JF4: FALSE | JG4: FALSE | JH4: FALSE | JI4: FALSE | JJ4: FALSE | JK4: FALSE | JL4: FALSE | JM4: FALSE | JN4: FALSE | JO4: FALSE | JP4: FALSE | JQ4: FALSE | JR4: FALSE | JS4: FALSE | JT4: FALSE | JU4: FALSE | JV4: FALSE | JW4: FALSE | JX4: FALSE | JY4: FALSE | JZ4: FALSE | KA4: FALSE | KB4: FALSE | KC4: FALSE | KD4: FALSE | KE4: FALSE | KF4: FALSE | KG4: FALSE | KH4: FALSE | KI4: FALSE | KJ4: FALSE | KK4: FALSE | KL4: FALSE | KM4: FALSE | KN4: FALSE | KO4: FALSE | KP4: FALSE | KQ4: FALSE | KR4: FALSE | KS4: FALSE | KT4: FALSE | KU4: FALSE
D5: Long-term Period | E5: =COUNTIF(H5:KU5,TRUE) -> 278 | F5: =F15 -> 0.03 | H5: =H2>$E$13+$E$14 -> FALSE | I5: FALSE | J5: FALSE | K5: FALSE | L5: FALSE | M5: FALSE | N5: FALSE | O5: FALSE | P5: FALSE | Q5: FALSE | R5: FALSE | S5: FALSE | T5: FALSE | U5: FALSE | V5: FALSE | W5: FALSE | X5: FALSE | Y5: FALSE | Z5: FALSE | AA5: FALSE | AB5: FALSE | AC5: FALSE | AD5: TRUE | AE5: TRUE | AF5: TRUE | AG5: TRUE | AH5: TRUE | AI5: TRUE | AJ5: TRUE | AK5: TRUE | AL5: TRUE | AM5: TRUE | AN5: TRUE | AO5: TRUE | AP5: TRUE | AQ5: TRUE | AR5: TRUE | AS5: TRUE | AT5: TRUE | AU5: TRUE | AV5: TRUE | AW5: TRUE | AX5: TRUE | AY5: TRUE | AZ5: TRUE | BA5: TRUE | BB5: TRUE | BC5: TRUE | BD5: TRUE | BE5: TRUE | BF5: TRUE | BG5: TRUE | BH5: TRUE | BI5: TRUE | BJ5: TRUE | BK5: TRUE | BL5: TRUE | BM5: TRUE | BN5: TRUE | BO5: TRUE | BP5: TRUE | BQ5: TRUE | BR5: TRUE | BS5: TRUE | BT5: =BT2>$E$13+$E$14 -> TRUE | BU5: TRUE | BV5: TRUE | BW5: TRUE | BX5: TRUE | BY5: TRUE | BZ5: TRUE | CA5: TRUE | CB5: TRUE | CC5: TRUE | CD5: TRUE | CE5: TRUE | CF5: TRUE | CG5: TRUE | CH5: TRUE | CI5: TRUE | CJ5: TRUE | CK5: TRUE | CL5: TRUE | CM5: TRUE | CN5: TRUE | CO5: TRUE | CP5: TRUE | CQ5: TRUE | CR5: TRUE | CS5: TRUE | CT5: TRUE | CU5: TRUE | CV5: TRUE | CW5: TRUE | CX5: TRUE | CY5: TRUE | CZ5: TRUE | DA5: TRUE | DB5: TRUE | DC5: TRUE | DD5: TRUE | DE5: TRUE | DF5: TRUE | DG5: TRUE | DH5: TRUE | DI5: TRUE | DJ5: TRUE | DK5: TRUE | DL5: TRUE | DM5: TRUE | DN5: TRUE | DO5: TRUE | DP5: TRUE | DQ5: TRUE | DR5: TRUE | DS5: TRUE | DT5: TRUE | DU5: TRUE | DV5: TRUE | DW5: TRUE | DX5: TRUE | DY5: TRUE | DZ5: TRUE | EA5: TRUE | EB5: TRUE | EC5: TRUE | ED5: TRUE | EE5: TRUE | EF5: =EF2>$E$13+$E$14 -> TRUE | EG5: TRUE | EH5: TRUE | EI5: TRUE | EJ5: TRUE | EK5: TRUE | EL5: TRUE | EM5: TRUE | EN5: TRUE | EO5: TRUE | EP5: TRUE | EQ5: TRUE | ER5: TRUE | ES5: TRUE | ET5: TRUE | EU5: TRUE | EV5: TRUE | EW5: TRUE | EX5: TRUE | EY5: TRUE | EZ5: TRUE | FA5: TRUE | FB5: TRUE | FC5: TRUE | FD5: TRUE | FE5: TRUE | FF5: TRUE | FG5: TRUE | FH5: TRUE | FI5: TRUE | FJ5: TRUE | FK5: TRUE | FL5: TRUE | FM5: TRUE | FN5: TRUE | FO5: TRUE | FP5: TRUE | FQ5: TRUE | FR5: TRUE | FS5: TRUE | FT5: TRUE | FU5: TRUE | FV5: TRUE | FW5: TRUE | FX5: TRUE | FY5: TRUE | FZ5: TRUE | GA5: TRUE | GB5: TRUE | GC5: TRUE | GD5: TRUE | GE5: TRUE | GF5: TRUE | GG5: TRUE | GH5: TRUE | GI5: TRUE | GJ5: TRUE | GK5: TRUE | GL5: TRUE | GM5: TRUE | GN5: TRUE | GO5: TRUE | GP5: TRUE | GQ5: TRUE | GR5: =GR2>$E$13+$E$14 -> TRUE | GS5: TRUE | GT5: TRUE | GU5: TRUE | GV5: TRUE | GW5: TRUE | GX5: TRUE | GY5: TRUE | GZ5: TRUE | HA5: TRUE | HB5: TRUE | HC5: TRUE | HD5: TRUE | HE5: TRUE | HF5: TRUE | HG5: TRUE | HH5: TRUE | HI5: TRUE | HJ5: TRUE | HK5: TRUE | HL5: TRUE | HM5: TRUE | HN5: TRUE | HO5: TRUE | HP5: TRUE | HQ5: TRUE | HR5: TRUE | HS5: TRUE | HT5: TRUE | HU5: TRUE | HV5: TRUE | HW5: TRUE | HX5: TRUE | HY5: TRUE | HZ5: TRUE | IA5: TRUE | IB5: TRUE | IC5: TRUE | ID5: TRUE | IE5: TRUE | IF5: TRUE | IG5: TRUE | IH5: TRUE | II5: TRUE | IJ5: TRUE | IK5: TRUE | IL5: TRUE | IM5: TRUE | IN5: TRUE | IO5: TRUE | IP5: TRUE | IQ5: TRUE | IR5: TRUE | IS5: TRUE | IT5: TRUE | IU5: TRUE | IV5: TRUE | IW5: TRUE | IX5: TRUE | IY5: TRUE | IZ5: TRUE | JA5: TRUE | JB5: TRUE | JC5: TRUE | JD5: =JD2>$E$13+$E$14 -> TRUE | JE5: TRUE | JF5: TRUE | JG5: TRUE | JH5: TRUE | JI5: TRUE | JJ5: TRUE | JK5: TRUE | JL5: TRUE | JM5: TRUE | JN5: TRUE | JO5: TRUE | JP5: TRUE | JQ5: TRUE | JR5: TRUE | JS5: TRUE | JT5: TRUE | JU5: TRUE | JV5: TRUE | JW5: TRUE | JX5: TRUE | JY5: TRUE | JZ5: TRUE | KA5: TRUE | KB5: TRUE | KC5: TRUE | KD5: TRUE | KE5: TRUE | KF5: TRUE | KG5: TRUE | KH5: TRUE | KI5: TRUE | KJ5: TRUE | KK5: TRUE | KL5: TRUE | KM5: TRUE | KN5: TRUE | KO5: TRUE | KP5: TRUE | KQ5: TRUE | KR5: TRUE | KS5: TRUE | KT5: TRUE | KU5: TRUE
D6: Terminal Period | E6: =COUNTIF(H6:KU6,TRUE) -> 1 | H6: =H2=($E$3+$E$4) -> FALSE | I6: =I2=($E$3+$E$4) -> FALSE | J6: FALSE | K6: FALSE | L6: FALSE | M6: FALSE | N6: FALSE | O6: FALSE | P6: FALSE | Q6: FALSE | R6: FALSE | S6: FALSE | T6: FALSE | U6: FALSE | V6: FALSE | W6: FALSE | X6: FALSE | Y6: FALSE | Z6: FALSE | AA6: FALSE | AB6: FALSE | AC6: TRUE | AD6: FALSE | AE6: FALSE | AF6: FALSE | AG6: FALSE | AH6: FALSE | AI6: FALSE | AJ6: FALSE | AK6: FALSE | AL6: FALSE | AM6: FALSE | AN6: FALSE | AO6: FALSE | AP6: FALSE | AQ6: FALSE | AR6: FALSE | AS6: FALSE | AT6: FALSE | AU6: FALSE | AV6: FALSE | AW6: FALSE | AX6: FALSE | AY6: FALSE | AZ6: FALSE | BA6: FALSE | BB6: FALSE | BC6: FALSE | BD6: FALSE | BE6: FALSE | BF6: FALSE | BG6: FALSE | BH6: FALSE | BI6: FALSE | BJ6: FALSE | BK6: FALSE | BL6: FALSE | BM6: FALSE | BN6: FALSE | BO6: FALSE | BP6: FALSE | BQ6: FALSE | BR6: FALSE | BS6: FALSE | BT6: FALSE | BU6: =BU2=($E$3+$E$4) -> FALSE | BV6: FALSE | BW6: FALSE | BX6: FALSE | BY6: FALSE | BZ6: FALSE | CA6: FALSE | CB6: FALSE | CC6: FALSE | CD6: FALSE | CE6: FALSE | CF6: FALSE | CG6: FALSE | CH6: FALSE | CI6: FALSE | CJ6: FALSE | CK6: FALSE | CL6: FALSE | CM6: FALSE | CN6: FALSE | CO6: FALSE | CP6: FALSE | CQ6: FALSE | CR6: FALSE | CS6: FALSE | CT6: FALSE | CU6: FALSE | CV6: FALSE | CW6: FALSE | CX6: FALSE | CY6: FALSE | CZ6: FALSE | DA6: FALSE | DB6: FALSE | DC6: FALSE | DD6: FALSE | DE6: FALSE | DF6: FALSE | DG6: FALSE | DH6: FALSE | DI6: FALSE | DJ6: FALSE | DK6: FALSE | DL6: FALSE | DM6: FALSE | DN6: FALSE | DO6: FALSE | DP6: FALSE | DQ6: FALSE | DR6: FALSE | DS6: FALSE | DT6: FALSE | DU6: FALSE | DV6: FALSE | DW6: FALSE | DX6: FALSE | DY6: FALSE | DZ6: FALSE | EA6: FALSE | EB6: FALSE | EC6: FALSE | ED6: FALSE | EE6: FALSE | EF6: FALSE | EG6: =EG2=($E$3+$E$4) -> FALSE | EH6: FALSE | EI6: FALSE | EJ6: FALSE | EK6: FALSE | EL6: FALSE | EM6: FALSE | EN6: FALSE | EO6: FALSE | EP6: FALSE | EQ6: FALSE | ER6: FALSE | ES6: FALSE | ET6: FALSE | EU6: FALSE | EV6: FALSE | EW6: FALSE | EX6: FALSE | EY6: FALSE | EZ6: FALSE | FA6: FALSE | FB6: FALSE | FC6: FALSE | FD6: FALSE | FE6: FALSE | FF6: FALSE | FG6: FALSE | FH6: FALSE | FI6: FALSE | FJ6: FALSE | FK6: FALSE | FL6: FALSE | FM6: FALSE | FN6: FALSE | FO6: FALSE | FP6: FALSE | FQ6: FALSE | FR6: FALSE | FS6: FALSE | FT6: FALSE | FU6: FALSE | FV6: FALSE | FW6: FALSE | FX6: FALSE | FY6: FALSE | FZ6: FALSE | GA6: FALSE | GB6: FALSE | GC6: FALSE | GD6: FALSE | GE6: FALSE | GF6: FALSE | GG6: FALSE | GH6: FALSE | GI6: FALSE | GJ6: FALSE | GK6: FALSE | GL6: FALSE | GM6: FALSE | GN6: FALSE | GO6: FALSE | GP6: FALSE | GQ6: FALSE | GR6: FALSE | GS6: =GS2=($E$3+$E$4) -> FALSE | GT6: FALSE | GU6: FALSE | GV6: FALSE | GW6: FALSE | GX6: FALSE | GY6: FALSE | GZ6: FALSE | HA6: FALSE | HB6: FALSE | HC6: FALSE | HD6: FALSE | HE6: FALSE | HF6: FALSE | HG6: FALSE | HH6: FALSE | HI6: FALSE | HJ6: FALSE | HK6: FALSE | HL6: FALSE | HM6: FALSE | HN6: FALSE | HO6: FALSE | HP6: FALSE | HQ6: FALSE | HR6: FALSE | HS6: FALSE | HT6: FALSE | HU6: FALSE | HV6: FALSE | HW6: FALSE | HX6: FALSE | HY6: FALSE | HZ6: FALSE | IA6: FALSE | IB6: FALSE | IC6: FALSE | ID6: FALSE | IE6: FALSE | IF6: FALSE | IG6: FALSE | IH6: FALSE | II6: FALSE | IJ6: FALSE | IK6: FALSE | IL6: FALSE | IM6: FALSE | IN6: FALSE | IO6: FALSE | IP6: FALSE | IQ6: FALSE | IR6: FALSE | IS6: FALSE | IT6: FALSE | IU6: FALSE | IV6: FALSE | IW6: FALSE | IX6: FALSE | IY6: FALSE | IZ6: FALSE | JA6: FALSE | JB6: FALSE | JC6: FALSE | JD6: FALSE | JE6: =JE2=($E$3+$E$4) -> FALSE | JF6: FALSE | JG6: FALSE | JH6: FALSE | JI6: FALSE | JJ6: FALSE | JK6: FALSE | JL6: FALSE | JM6: FALSE | JN6: FALSE | JO6: FALSE | JP6: FALSE | JQ6: FALSE | JR6: FALSE | JS6: FALSE | JT6: FALSE | JU6: FALSE | JV6: FALSE | JW6: FALSE | JX6: FALSE | JY6: FALSE | JZ6: FALSE | KA6: FALSE | KB6: FALSE | KC6: FALSE | KD6: FALSE | KE6: FALSE | KF6: FALSE | KG6: FALSE | KH6: FALSE | KI6: FALSE | KJ6: FALSE | KK6: FALSE | KL6: FALSE | KM6: FALSE | KN6: FALSE | KO6: FALSE | KP6: FALSE | KQ6: FALSE | KR6: FALSE | KS6: FALSE | KT6: FALSE | KU6: FALSE
D7: Test | E7: =AND(H7:KU7) -> TRUE | H7: =SUMPRODUCT(H3:H5*1)=1 -> TRUE | I7: =SUMPRODUCT(I3:I5*1)=1 -> TRUE | J7: TRUE | K7: TRUE | L7: TRUE | M7: TRUE | N7: TRUE | O7: TRUE | P7: TRUE | Q7: TRUE | R7: TRUE | S7: TRUE | T7: TRUE | U7: TRUE | V7: TRUE | W7: TRUE | X7: TRUE | Y7: TRUE | Z7: TRUE | AA7: TRUE | AB7: TRUE | AC7: TRUE | AD7: TRUE | AE7: TRUE | AF7: TRUE | AG7: TRUE | AH7: TRUE | AI7: TRUE | AJ7: TRUE | AK7: TRUE | AL7: TRUE | AM7: TRUE | AN7: TRUE | AO7: TRUE | AP7: TRUE | AQ7: TRUE | AR7: TRUE | AS7: TRUE | AT7: TRUE | AU7: TRUE | AV7: TRUE | AW7: TRUE | AX7: TRUE | AY7: TRUE | AZ7: TRUE | BA7: TRUE | BB7: TRUE | BC7: TRUE | BD7: TRUE | BE7: TRUE | BF7: TRUE | BG7: TRUE | BH7: TRUE | BI7: TRUE | BJ7: TRUE | BK7: TRUE | BL7: TRUE | BM7: TRUE | BN7: TRUE | BO7: TRUE | BP7: TRUE | BQ7: TRUE | BR7: TRUE | BS7: TRUE | BT7: TRUE | BU7: =SUMPRODUCT(BU3:BU5*1)=1 -> TRUE | BV7: TRUE | BW7: TRUE | BX7: TRUE | BY7: TRUE | BZ7: TRUE | CA7: TRUE | CB7: TRUE | CC7: TRUE | CD7: TRUE | CE7: TRUE | CF7: TRUE | CG7: TRUE | CH7: TRUE | CI7: TRUE | CJ7: TRUE | CK7: TRUE | CL7: TRUE | CM7: TRUE | CN7: TRUE | CO7: TRUE | CP7: TRUE | CQ7: TRUE | CR7: TRUE | CS7: TRUE | CT7: TRUE | CU7: TRUE | CV7: TRUE | CW7: TRUE | CX7: TRUE | CY7: TRUE | CZ7: TRUE | DA7: TRUE | DB7: TRUE | DC7: TRUE | DD7: TRUE | DE7: TRUE | DF7: TRUE | DG7: TRUE | DH7: TRUE | DI7: TRUE | DJ7: TRUE | DK7: TRUE | DL7: TRUE | DM7: TRUE | DN7: TRUE | DO7: TRUE | DP7: TRUE | DQ7: TRUE | DR7: TRUE | DS7: TRUE | DT7: TRUE | DU7: TRUE | DV7: TRUE | DW7: TRUE | DX7: TRUE | DY7: TRUE | DZ7: TRUE | EA7: TRUE | EB7: TRUE | EC7: TRUE | ED7: TRUE | EE7: TRUE | EF7: TRUE | EG7: =SUMPRODUCT(EG3:EG5*1)=1 -> TRUE | EH7: TRUE | EI7: TRUE | EJ7: TRUE | EK7: TRUE | EL7: TRUE | EM7: TRUE | EN7: TRUE | EO7: TRUE | EP7: TRUE | EQ7: TRUE | ER7: TRUE | ES7: TRUE | ET7: TRUE | EU7: TRUE | EV7: TRUE | EW7: TRUE | EX7: TRUE | EY7: TRUE | EZ7: TRUE | FA7: TRUE | FB7: TRUE | FC7: TRUE | FD7: TRUE | FE7: TRUE | FF7: TRUE | FG7: TRUE | FH7: TRUE | FI7: TRUE | FJ7: TRUE | FK7: TRUE | FL7: TRUE | FM7: TRUE | FN7: TRUE | FO7: TRUE | FP7: TRUE | FQ7: TRUE | FR7: TRUE | FS7: TRUE | FT7: TRUE | FU7: TRUE | FV7: TRUE | FW7: TRUE | FX7: TRUE | FY7: TRUE | FZ7: TRUE | GA7: TRUE | GB7: TRUE | GC7: TRUE | GD7: TRUE | GE7: TRUE | GF7: TRUE | GG7: TRUE | GH7: TRUE | GI7: TRUE | GJ7: TRUE | GK7: TRUE | GL7: TRUE | GM7: TRUE | GN7: TRUE | GO7: TRUE | GP7: TRUE | GQ7: TRUE | GR7: TRUE | GS7: =SUMPRODUCT(GS3:GS5*1)=1 -> TRUE | GT7: TRUE | GU7: TRUE | GV7: TRUE | GW7: TRUE | GX7: TRUE | GY7: TRUE | GZ7: TRUE | HA7: TRUE | HB7: TRUE | HC7: TRUE | HD7: TRUE | HE7: TRUE | HF7: TRUE | HG7: TRUE | HH7: TRUE | HI7: TRUE | HJ7: TRUE | HK7: TRUE | HL7: TRUE | HM7: TRUE | HN7: TRUE | HO7: TRUE | HP7: TRUE | HQ7: TRUE | HR7: TRUE | HS7: TRUE | HT7: TRUE | HU7: TRUE | HV7: TRUE | HW7: TRUE | HX7: TRUE | HY7: TRUE | HZ7: TRUE | IA7: TRUE | IB7: TRUE | IC7: TRUE | ID7: TRUE | IE7: TRUE | IF7: TRUE | IG7: TRUE | IH7: TRUE | II7: TRUE | IJ7: TRUE | IK7: TRUE | IL7: TRUE | IM7: TRUE | IN7: TRUE | IO7: TRUE | IP7: TRUE | IQ7: TRUE | IR7: TRUE | IS7: TRUE | IT7: TRUE | IU7: TRUE | IV7: TRUE | IW7: TRUE | IX7: TRUE | IY7: TRUE | IZ7: TRUE | JA7: TRUE | JB7: TRUE | JC7: TRUE | JD7: TRUE | JE7: =SUMPRODUCT(JE3:JE5*1)=1 -> TRUE | JF7: TRUE | JG7: TRUE | JH7: TRUE | JI7: TRUE | JJ7: TRUE | JK7: TRUE | JL7: TRUE | JM7: TRUE | JN7: TRUE | JO7: TRUE | JP7: TRUE | JQ7: TRUE | JR7: TRUE | JS7: TRUE | JT7: TRUE | JU7: TRUE | JV7: TRUE | JW7: TRUE | JX7: TRUE | JY7: TRUE | JZ7: TRUE | KA7: TRUE | KB7: TRUE | KC7: TRUE | KD7: TRUE | KE7: TRUE | KF7: TRUE | KG7: TRUE | KH7: TRUE | KI7: TRUE | KJ7: TRUE | KK7: TRUE | KL7: TRUE | KM7: TRUE | KN7: TRUE | KO7: TRUE | KP7: TRUE | KQ7: TRUE | KR7: TRUE | KS7: TRUE | KT7: TRUE | KU7: TRUE
D8: Last Historic Period | H8: =H2=$E$3 -> FALSE | I8: =I2=$E$3 -> FALSE | J8: FALSE | K8: FALSE | L8: FALSE | M8: FALSE | N8: FALSE | O8: FALSE | P8: FALSE | Q8: FALSE | R8: FALSE | S8: TRUE | T8: FALSE | U8: FALSE | V8: FALSE | W8: FALSE | X8: FALSE | Y8: FALSE | Z8: FALSE | AA8: FALSE | AB8: FALSE | AC8: FALSE | AD8: FALSE | AE8: FALSE | AF8: FALSE | AG8: FALSE | AH8: FALSE | AI8: FALSE | AJ8: FALSE | AK8: FALSE | AL8: FALSE | AM8: FALSE | AN8: FALSE | AO8: FALSE | AP8: FALSE | AQ8: FALSE | AR8: FALSE | AS8: FALSE | AT8: FALSE | AU8: FALSE | AV8: FALSE | AW8: FALSE | AX8: FALSE | AY8: FALSE | AZ8: FALSE | BA8: FALSE | BB8: FALSE | BC8: FALSE | BD8: FALSE | BE8: FALSE | BF8: FALSE | BG8: FALSE | BH8: FALSE | BI8: FALSE | BJ8: FALSE | BK8: FALSE | BL8: FALSE | BM8: FALSE | BN8: FALSE | BO8: FALSE | BP8: FALSE | BQ8: FALSE | BR8: FALSE | BS8: FALSE | BT8: FALSE | BU8: =BU2=$E$3 -> FALSE | BV8: FALSE | BW8: FALSE | BX8: FALSE | BY8: FALSE | BZ8: FALSE | CA8: FALSE | CB8: FALSE | CC8: FALSE | CD8: FALSE | CE8: FALSE | CF8: FALSE | CG8: FALSE | CH8: FALSE | CI8: FALSE | CJ8: FALSE | CK8: FALSE | CL8: FALSE | CM8: FALSE | CN8: FALSE | CO8: FALSE | CP8: FALSE | CQ8: FALSE | CR8: FALSE | CS8: FALSE | CT8: FALSE | CU8: FALSE | CV8: FALSE | CW8: FALSE | CX8: FALSE | CY8: FALSE | CZ8: FALSE | DA8: FALSE | DB8: FALSE | DC8: FALSE | DD8: FALSE | DE8: FALSE | DF8: FALSE | DG8: FALSE | DH8: FALSE | DI8: FALSE | DJ8: FALSE | DK8: FALSE | DL8: FALSE | DM8: FALSE | DN8: FALSE | DO8: FALSE | DP8: FALSE | DQ8: FALSE | DR8: FALSE | DS8: FALSE | DT8: FALSE | DU8: FALSE | DV8: FALSE | DW8: FALSE | DX8: FALSE | DY8: FALSE | DZ8: FALSE | EA8: FALSE | EB8: FALSE | EC8: FALSE | ED8: FALSE | EE8: FALSE | EF8: FALSE | EG8: =EG2=$E$3 -> FALSE | EH8: FALSE | EI8: FALSE | EJ8: FALSE | EK8: FALSE | EL8: FALSE | EM8: FALSE | EN8: FALSE | EO8: FALSE | EP8: FALSE | EQ8: FALSE | ER8: FALSE | ES8: FALSE | ET8: FALSE | EU8: FALSE | EV8: FALSE | EW8: FALSE | EX8: FALSE | EY8: FALSE | EZ8: FALSE | FA8: FALSE | FB8: FALSE | FC8: FALSE | FD8: FALSE | FE8: FALSE | FF8: FALSE | FG8: FALSE | FH8: FALSE | FI8: FALSE | FJ8: FALSE | FK8: FALSE | FL8: FALSE | FM8: FALSE | FN8: FALSE | FO8: FALSE | FP8: FALSE | FQ8: FALSE | FR8: FALSE | FS8: FALSE | FT8: FALSE | FU8: FALSE | FV8: FALSE | FW8: FALSE | FX8: FALSE | FY8: FALSE | FZ8: FALSE | GA8: FALSE | GB8: FALSE | GC8: FALSE | GD8: FALSE | GE8: FALSE | GF8: FALSE | GG8: FALSE | GH8: FALSE | GI8: FALSE | GJ8: FALSE | GK8: FALSE | GL8: FALSE | GM8: FALSE | GN8: FALSE | GO8: FALSE | GP8: FALSE | GQ8: FALSE | GR8: FALSE | GS8: =GS2=$E$3 -> FALSE | GT8: FALSE | GU8: FALSE | GV8: FALSE | GW8: FALSE | GX8: FALSE | GY8: FALSE | GZ8: FALSE | HA8: FALSE | HB8: FALSE | HC8: FALSE | HD8: FALSE | HE8: FALSE | HF8: FALSE | HG8: FALSE | HH8: FALSE | HI8: FALSE | HJ8: FALSE | HK8: FALSE | HL8: FALSE | HM8: FALSE | HN8: FALSE | HO8: FALSE | HP8: FALSE | HQ8: FALSE | HR8: FALSE | HS8: FALSE | HT8: FALSE | HU8: FALSE | HV8: FALSE | HW8: FALSE | HX8: FALSE | HY8: FALSE | HZ8: FALSE | IA8: FALSE | IB8: FALSE | IC8: FALSE | ID8: FALSE | IE8: FALSE | IF8: FALSE | IG8: FALSE | IH8: FALSE | II8: FALSE | IJ8: FALSE | IK8: FALSE | IL8: FALSE | IM8: FALSE | IN8: FALSE | IO8: FALSE | IP8: FALSE | IQ8: FALSE | IR8: FALSE | IS8: FALSE | IT8: FALSE | IU8: FALSE | IV8: FALSE | IW8: FALSE | IX8: FALSE | IY8: FALSE | IZ8: FALSE | JA8: FALSE | JB8: FALSE | JC8: FALSE | JD8: FALSE | JE8: =JE2=$E$3 -> FALSE | JF8: FALSE | JG8: FALSE | JH8: FALSE | JI8: FALSE | JJ8: FALSE | JK8: FALSE | JL8: FALSE | JM8: FALSE | JN8: FALSE | JO8: FALSE | JP8: FALSE | JQ8: FALSE | JR8: FALSE | JS8: FALSE | JT8: FALSE | JU8: FALSE | JV8: FALSE | JW8: FALSE | JX8: FALSE | JY8: FALSE | JZ8: FALSE | KA8: FALSE | KB8: FALSE | KC8: FALSE | KD8: FALSE | KE8: FALSE | KF8: FALSE | KG8: FALSE | KH8: FALSE | KI8: FALSE | KJ8: FALSE | KK8: FALSE | KL8: FALSE | KM8: FALSE | KN8: FALSE | KO8: FALSE | KP8: FALSE | KQ8: FALSE | KR8: FALSE | KS8: FALSE | KT8: FALSE | KU8: FALSE
D9: First Modelled Period | H9: =H2=$E$3+1 -> FALSE | I9: =I2=$E$3+1 -> FALSE | J9: FALSE | K9: FALSE | L9: FALSE | M9: FALSE | N9: FALSE | O9: FALSE | P9: FALSE | Q9: FALSE | R9: FALSE | S9: FALSE | T9: TRUE | U9: FALSE | V9: FALSE | W9: FALSE | X9: FALSE | Y9: FALSE | Z9: FALSE | AA9: FALSE | AB9: FALSE | AC9: FALSE | AD9: FALSE | AE9: FALSE | AF9: FALSE | AG9: FALSE | AH9: FALSE | AI9: FALSE | AJ9: FALSE | AK9: FALSE | AL9: FALSE | AM9: FALSE | AN9: FALSE | AO9: FALSE | AP9: FALSE | AQ9: FALSE | AR9: FALSE | AS9: FALSE | AT9: FALSE | AU9: FALSE | AV9: FALSE | AW9: FALSE | AX9: FALSE | AY9: FALSE | AZ9: FALSE | BA9: FALSE | BB9: FALSE | BC9: FALSE | BD9: FALSE | BE9: FALSE | BF9: FALSE | BG9: FALSE | BH9: FALSE | BI9: FALSE | BJ9: FALSE | BK9: FALSE | BL9: FALSE | BM9: FALSE | BN9: FALSE | BO9: FALSE | BP9: FALSE | BQ9: FALSE | BR9: FALSE | BS9: FALSE | BT9: FALSE | BU9: =BU2=$E$3+1 -> FALSE | BV9: FALSE | BW9: FALSE | BX9: FALSE | BY9: FALSE | BZ9: FALSE | CA9: FALSE | CB9: FALSE | CC9: FALSE | CD9: FALSE | CE9: FALSE | CF9: FALSE | CG9: FALSE | CH9: FALSE | CI9: FALSE | CJ9: FALSE | CK9: FALSE | CL9: FALSE | CM9: FALSE | CN9: FALSE | CO9: FALSE | CP9: FALSE | CQ9: FALSE | CR9: FALSE | CS9: FALSE | CT9: FALSE | CU9: FALSE | CV9: FALSE | CW9: FALSE | CX9: FALSE | CY9: FALSE | CZ9: FALSE | DA9: FALSE | DB9: FALSE | DC9: FALSE | DD9: FALSE | DE9: FALSE | DF9: FALSE | DG9: FALSE | DH9: FALSE | DI9: FALSE | DJ9: FALSE | DK9: FALSE | DL9: FALSE | DM9: FALSE | DN9: FALSE | DO9: FALSE | DP9: FALSE | DQ9: FALSE | DR9: FALSE | DS9: FALSE | DT9: FALSE | DU9: FALSE | DV9: FALSE | DW9: FALSE | DX9: FALSE | DY9: FALSE | DZ9: FALSE | EA9: FALSE | EB9: FALSE | EC9: FALSE | ED9: FALSE | EE9: FALSE | EF9: FALSE | EG9: =EG2=$E$3+1 -> FALSE | EH9: FALSE | EI9: FALSE | EJ9: FALSE | EK9: FALSE | EL9: FALSE | EM9: FALSE | EN9: FALSE | EO9: FALSE | EP9: FALSE | EQ9: FALSE | ER9: FALSE | ES9: FALSE | ET9: FALSE | EU9: FALSE | EV9: FALSE | EW9: FALSE | EX9: FALSE | EY9: FALSE | EZ9: FALSE | FA9: FALSE | FB9: FALSE | FC9: FALSE | FD9: FALSE | FE9: FALSE | FF9: FALSE | FG9: FALSE | FH9: FALSE | FI9: FALSE | FJ9: FALSE | FK9: FALSE | FL9: FALSE | FM9: FALSE | FN9: FALSE | FO9: FALSE | FP9: FALSE | FQ9: FALSE | FR9: FALSE | FS9: FALSE | FT9: FALSE | FU9: FALSE | FV9: FALSE | FW9: FALSE | FX9: FALSE | FY9: FALSE | FZ9: FALSE | GA9: FALSE | GB9: FALSE | GC9: FALSE | GD9: FALSE | GE9: FALSE | GF9: FALSE | GG9: FALSE | GH9: FALSE | GI9: FALSE | GJ9: FALSE | GK9: FALSE | GL9: FALSE | GM9: FALSE | GN9: FALSE | GO9: FALSE | GP9: FALSE | GQ9: FALSE | GR9: FALSE | GS9: =GS2=$E$3+1 -> FALSE | GT9: FALSE | GU9: FALSE | GV9: FALSE | GW9: FALSE | GX9: FALSE | GY9: FALSE | GZ9: FALSE | HA9: FALSE | HB9: FALSE | HC9: FALSE | HD9: FALSE | HE9: FALSE | HF9: FALSE | HG9: FALSE | HH9: FALSE | HI9: FALSE | HJ9: FALSE | HK9: FALSE | HL9: FALSE | HM9: FALSE | HN9: FALSE | HO9: FALSE | HP9: FALSE | HQ9: FALSE | HR9: FALSE | HS9: FALSE | HT9: FALSE | HU9: FALSE | HV9: FALSE | HW9: FALSE | HX9: FALSE | HY9: FALSE | HZ9: FALSE | IA9: FALSE | IB9: FALSE | IC9: FALSE | ID9: FALSE | IE9: FALSE | IF9: FALSE | IG9: FALSE | IH9: FALSE | II9: FALSE | IJ9: FALSE | IK9: FALSE | IL9: FALSE | IM9: FALSE | IN9: FALSE | IO9: FALSE | IP9: FALSE | IQ9: FALSE | IR9: FALSE | IS9: FALSE | IT9: FALSE | IU9: FALSE | IV9: FALSE | IW9: FALSE | IX9: FALSE | IY9: FALSE | IZ9: FALSE | JA9: FALSE | JB9: FALSE | JC9: FALSE | JD9: FALSE | JE9: =JE2=$E$3+1 -> FALSE | JF9: FALSE | JG9: FALSE | JH9: FALSE | JI9: FALSE | JJ9: FALSE | JK9: FALSE | JL9: FALSE | JM9: FALSE | JN9: FALSE | JO9: FALSE | JP9: FALSE | JQ9: FALSE | JR9: FALSE | JS9: FALSE | JT9: FALSE | JU9: FALSE | JV9: FALSE | JW9: FALSE | JX9: FALSE | JY9: FALSE | JZ9: FALSE | KA9: FALSE | KB9: FALSE | KC9: FALSE | KD9: FALSE | KE9: FALSE | KF9: FALSE | KG9: FALSE | KH9: FALSE | KI9: FALSE | KJ9: FALSE | KK9: FALSE | KL9: FALSE | KM9: FALSE | KN9: FALSE | KO9: FALSE | KP9: FALSE | KQ9: FALSE | KR9: FALSE | KS9: FALSE | KT9: FALSE | KU9: FALSE
L11: Historic | M11: Modelled | N11: Long-term
C12: Periods | E12: Period | F12: Growth | K12: Accumulated Depreciation to Gross Plant | L12: =INDEX(70:70,MATCH($E$13,$2:$2)) -> 0.3986847165 | M12: =INDEX(70:70,MATCH($E$13+$E$14,$2:$2)) -> 0.4359164636 | N12: =AVERAGE(OFFSET(H70,0,E13+E14,1,100)) -> 0.4965626658
D13: Historic Period | E13: 12 | F13: =G13/100 -> 0.12 | G13: 12 | K13: Net Plant Depreciation Rate | L13: 0.1241721877 | M13: 0.1290089383 | N13: =INDEX(71:71,MATCH(300,$2:$2)) -> 0.1364264425
D14: Modelled Period | E14: 10 | F14: =G14/100 -> 0.09 | G14: 9 | K14: Capital Expenditures to Depreciation | L14: 1.966396067 | M14: 1.709852148 | N14: =INDEX(72:72,MATCH(300,$2:$2)) -> 1.219874348
D15: Long-term Period | F15: =G15/100 -> 0.03 | G15: 3 | K15: Retirements as Percent of Depreciation | L15: 0.3592532095 | M15: 0.4713200381 | N15: =INDEX(73:73,MATCH(300,$2:$2)) -> 0.7829811442
K16: Retirements as Percent of Gross Plant | L16: 0.02395021397 | M16: 0.03142133587 | N16: =INDEX(74:74,MATCH(300,$2:$2)) -> 0.05219874295
C17: Initial Gross Plant | E17: 100 | K17: Retirements as Percent of Net Plant | L17: 0.03982971101 | M17: 0.05570333797 | N17: =INDEX(75:75,MATCH(300,$2:$2)) -> 0.1037084241
C18: Plant Life | E18: 15 | K18: Gross Plant Depreciation Rate | L18: =1/$E$18 -> 0.06666666667 | M18: =1/$E$18 -> 0.06666666667 | N18: =1/$E$18 -> 0.06666666667
C19: Accumulated Depreciation | E19: =Fixed*E17 -> 39.86784168
C20: Random Factor | E20: 0 | K20: Implied Growth from User Function | L20: =Growth_Find(L12,E18,3) -> 0.1200022504 | M20: =Growth_Find(M12,E18,3) -> 0.08345701467 | N20: =Growth_Find(N12,E18,3) -> 0.03008933924 | P20: =show_formulaR(N20) -> < ---- =Growth_Find(N12,E18,3)
C21: Compound Growth | E21: =(INDEX(27:27,MATCH(E13,2:2))/H27)^(1/(E13-1))-1 -> 0.12 | K21: Input Growth | L21: =F13 -> 0.12 | M21: =F14 -> 0.09 | N21: =F15 -> 0.03
C22: Return | E22: 0.15
C23: WACC | E23: 0.12
A25: Analysis
D26: Growth Rate | H26: =IF(H3,SUMPRODUCT(H3:H5*$F$3:$F$5)+(RAND()-0.5)*$E$20,SUMPRODUCT(H3:H5*$F$3:$F$5)) -> 0.12 | I26: =IF(I3,SUMPRODUCT(I3:I5*$F$3:$F$5)+(RAND()-0.5)*$E$20,SUMPRODUCT(I3:I5*$F$3:$F$5)) -> 0.12 | J26: 0.12 | K26: 0.12 | L26: 0.12 | M26: 0.12 | N26: 0.12 | O26: 0.12 | P26: 0.12 | Q26: 0.12 | R26: 0.12 | S26: 0.12 | T26: 0.09 | U26: 0.09 | V26: 0.09 | W26: 0.09 | X26: 0.09 | Y26: 0.09 | Z26: 0.09 | AA26: 0.09 | AB26: 0.09 | AC26: 0.09 | AD26: 0.03 | AE26: 0.03 | AF26: 0.03 | AG26: 0.03 | AH26: 0.03 | AI26: 0.03 | AJ26: 0.03 | AK26: 0.03 | AL26: 0.03 | AM26: 0.03 | AN26: 0.03 | AO26: =IF(AO3,SUMPRODUCT(AO3:AO5*$F$3:$F$5)+(RAND()-0.5)*$E$20,SUMPRODUCT(AO3:AO5*$F$3:$F$5)) -> 0.03 | AP26: 0.03 | AQ26: 0.03 | AR26: 0.03 | AS26: 0.03 | AT26: 0.03 | AU26: 0.03 | AV26: 0.03 | AW26: 0.03 | AX26: 0.03 | AY26: 0.03 | AZ26: 0.03 | BA26: 0.03 | BB26: 0.03 | BC26: 0.03 | BD26: 0.03 | BE26: 0.03 | BF26: 0.03 | BG26: 0.03 | BH26: 0.03 | BI26: 0.03 | BJ26: 0.03 | BK26: 0.03 | BL26: 0.03 | BM26: 0.03 | BN26: 0.03 | BO26: 0.03 | BP26: 0.03 | BQ26: 0.03 | BR26: 0.03 | BS26: 0.03 | BT26: 0.03 | BU26: =IF(BU3,SUMPRODUCT(BU3:BU5*$F$3:$F$5)+(RAND()-0.5)*$E$20,SUMPRODUCT(BU3:BU5*$F$3:$F$5)) -> 0.03 | BV26: 0.03 | BW26: 0.03 | BX26: 0.03 | BY26: 0.03 | BZ26: 0.03 | CA26: 0.03 | CB26: 0.03 | CC26: 0.03 | CD26: 0.03 | CE26: 0.03 | CF26: 0.03 | CG26: 0.03 | CH26: 0.03 | CI26: 0.03 | CJ26: 0.03 | CK26: 0.03 | CL26: 0.03 | CM26: 0.03 | CN26: 0.03 | CO26: 0.03 | CP26: 0.03 | CQ26: 0.03 | CR26: 0.03 | CS26: 0.03 | CT26: 0.03 | CU26: 0.03 | CV26: 0.03 | CW26: 0.03 | CX26: 0.03 | CY26: 0.03 | CZ26: 0.03 | DA26: 0.03 | DB26: 0.03 | DC26: 0.03 | DD26: 0.03 | DE26: 0.03 | DF26: 0.03 | DG26: 0.03 | DH26: 0.03 | DI26: 0.03 | DJ26: 0.03 | DK26: 0.03 | DL26: 0.03 | DM26: 0.03 | DN26: 0.03 | DO26: 0.03 | DP26: 0.03 | DQ26: 0.03 | DR26: 0.03 | DS26: 0.03 | DT26: 0.03 | DU26: 0.03 | DV26: 0.03 | DW26: 0.03 | DX26: 0.03 | DY26: 0.03 | DZ26: 0.03 | EA26: 0.03 | EB26: 0.03 | EC26: 0.03 | ED26: 0.03 | EE26: 0.03 | EF26: 0.03 | EG26: =IF(EG3,SUMPRODUCT(EG3:EG5*$F$3:$F$5)+(RAND()-0.5)*$E$20,SUMPRODUCT(EG3:EG5*$F$3:$F$5)) -> 0.03 | EH26: 0.03 | EI26: 0.03 | EJ26: 0.03 | EK26: 0.03 | EL26: 0.03 | EM26: 0.03 | EN26: 0.03 | EO26: 0.03 | EP26: 0.03 | EQ26: 0.03 | ER26: 0.03 | ES26: 0.03 | ET26: 0.03 | EU26: 0.03 | EV26: 0.03 | EW26: 0.03 | EX26: 0.03 | EY26: 0.03 | EZ26: 0.03 | FA26: 0.03 | FB26: 0.03 | FC26: 0.03 | FD26: 0.03 | FE26: 0.03 | FF26: 0.03 | FG26: 0.03 | FH26: 0.03 | FI26: 0.03 | FJ26: 0.03 | FK26: 0.03 | FL26: 0.03 | FM26: 0.03 | FN26: 0.03 | FO26: 0.03 | FP26: 0.03 | FQ26: 0.03 | FR26: 0.03 | FS26: 0.03 | FT26: 0.03 | FU26: 0.03 | FV26: 0.03 | FW26: 0.03 | FX26: 0.03 | FY26: 0.03 | FZ26: 0.03 | GA26: 0.03 | GB26: 0.03 | GC26: 0.03 | GD26: 0.03 | GE26: 0.03 | GF26: 0.03 | GG26: 0.03 | GH26: 0.03 | GI26: 0.03 | GJ26: 0.03 | GK26: 0.03 | GL26: 0.03 | GM26: 0.03 | GN26: 0.03 | GO26: 0.03 | GP26: 0.03 | GQ26: 0.03 | GR26: 0.03 | GS26: =IF(GS3,SUMPRODUCT(GS3:GS5*$F$3:$F$5)+(RAND()-0.5)*$E$20,SUMPRODUCT(GS3:GS5*$F$3:$F$5)) -> 0.03 | GT26: 0.03 | GU26: 0.03 | GV26: 0.03 | GW26: 0.03 | GX26: 0.03 | GY26: 0.03 | GZ26: 0.03 | HA26: 0.03 | HB26: 0.03 | HC26: 0.03 | HD26: 0.03 | HE26: 0.03 | HF26: 0.03 | HG26: 0.03 | HH26: 0.03 | HI26: 0.03 | HJ26: 0.03 | HK26: 0.03 | HL26: 0.03 | HM26: 0.03 | HN26: 0.03 | HO26: 0.03 | HP26: 0.03 | HQ26: 0.03 | HR26: 0.03 | HS26: 0.03 | HT26: 0.03 | HU26: 0.03 | HV26: 0.03 | HW26: 0.03 | HX26: 0.03 | HY26: 0.03 | HZ26: 0.03 | IA26: 0.03 | IB26: 0.03 | IC26: 0.03 | ID26: 0.03 | IE26: 0.03 | IF26: 0.03 | IG26: 0.03 | IH26: 0.03 | II26: 0.03 | IJ26: 0.03 | IK26: 0.03 | IL26: 0.03 | IM26: 0.03 | IN26: 0.03 | IO26: 0.03 | IP26: 0.03 | IQ26: 0.03 | IR26: 0.03 | IS26: 0.03 | IT26: 0.03 | IU26: 0.03 | IV26: 0.03 | IW26: 0.03 | IX26: 0.03 | IY26: 0.03 | IZ26: 0.03 | JA26: 0.03 | JB26: 0.03 | JC26: 0.03 | JD26: 0.03 | JE26: =IF(JE3,SUMPRODUCT(JE3:JE5*$F$3:$F$5)+(RAND()-0.5)*$E$20,SUMPRODUCT(JE3:JE5*$F$3:$F$5)) -> 0.03 | JF26: 0.03 | JG26: 0.03 | JH26: 0.03 | JI26: 0.03 | JJ26: 0.03 | JK26: 0.03 | JL26: 0.03 | JM26: 0.03 | JN26: 0.03 | JO26: 0.03 | JP26: 0.03 | JQ26: 0.03 | JR26: 0.03 | JS26: 0.03 | JT26: 0.03 | JU26: 0.03 | JV26: 0.03 | JW26: 0.03 | JX26: 0.03 | JY26: 0.03 | JZ26: 0.03 | KA26: 0.03 | KB26: 0.03 | KC26: 0.03 | KD26: 0.03 | KE26: 0.03 | KF26: 0.03 | KG26: 0.03 | KH26: 0.03 | KI26: 0.03 | KJ26: 0.03 | KK26: 0.03 | KL26: 0.03 | KM26: 0.03 | KN26: 0.03 | KO26: 0.03 | KP26: 0.03 | KQ26: 0.03 | KR26: 0.03 | KS26: 0.03 | KT26: 0.03 | KU26: 0.03
D27: Gross Plant | G27: =E17 -> 100 | H27: =G27*(1+H26) -> 112 | I27: =H27*(1+I26) -> 125.44 | J27: 140.4928 | K27: 157.351936 | L27: 176.2341683 | M27: 197.3822685 | N27: 221.0681407 | O27: 247.5963176 | P27: 277.3078757 | Q27: 310.5848208 | R27: 347.8549993 | S27: 389.5975993 | T27: 424.6613832 | U27: 462.8809077 | V27: 504.5401894 | W27: 549.9488064 | X27: 599.444199 | Y27: 653.3941769 | Z27: 712.1996528 | AA27: 776.2976216 | AB27: 846.1644075 | AC27: 922.3192042 | AD27: 949.9887803 | AE27: 978.4884437 | AF27: 1007.843097 | AG27: 1038.07839 | AH27: 1069.220742 | AI27: 1101.297364 | AJ27: 1134.336285 | AK27: 1168.366373 | AL27: 1203.417365 | AM27: 1239.519885 | AN27: 1276.705482 | AO27: 1315.006647 | AP27: 1354.456846 | AQ27: 1395.090551 | AR27: 1436.943268 | AS27: 1480.051566 | AT27: 1524.453113 | AU27: 1570.186706 | AV27: 1617.292307 | AW27: 1665.811077 | AX27: 1715.785409 | AY27: 1767.258971 | AZ27: 1820.27674 | BA27: 1874.885043 | BB27: 1931.131594 | BC27: 1989.065542 | BD27: 2048.737508 | BE27: 2110.199633 | BF27: 2173.505622 | BG27: 2238.710791 | BH27: 2305.872114 | BI27: 2375.048278 | BJ27: 2446.299726 | BK27: 2519.688718 | BL27: 2595.27938 | BM27: 2673.137761 | BN27: 2753.331894 | BO27: 2835.931851 | BP27: 2921.009806 | BQ27: 3008.6401 | BR27: 3098.899303 | BS27: 3191.866282 | BT27: 3287.622271 | BU27: =BT27*(1+BU26) -> 3386.250939 | BV27: 3487.838467 | BW27: 3592.473621 | BX27: 3700.24783 | BY27: 3811.255265 | BZ27: 3925.592923 | CA27: 4043.36071 | CB27: 4164.661532 | CC27: 4289.601378 | CD27: 4418.289419 | CE27: 4550.838102 | CF27: 4687.363245 | CG27: 4827.984142 | CH27: 4972.823666 | CI27: 5122.008376 | CJ27: 5275.668627 | CK27: 5433.938686 | CL27: 5596.956847 | CM27: 5764.865552 | CN27: 5937.811519 | CO27: 6115.945864 | CP27: 6299.42424 | CQ27: 6488.406968 | CR27: 6683.059177 | CS27: 6883.550952 | CT27: 7090.05748 | CU27: 7302.759205 | CV27: 7521.841981 | CW27: 7747.49724 | CX27: 7979.922158 | CY27: 8219.319822 | CZ27: 8465.899417 | DA27: 8719.8764 | DB27: 8981.472692 | DC27: 9250.916872 | DD27: 9528.444378 | DE27: 9814.29771 | DF27: 10108.72664 | DG27: 10411.98844 | DH27: 10724.34809 | DI27: 11046.07854 | DJ27: 11377.46089 | DK27: 11718.78472 | DL27: 12070.34826 | DM27: 12432.45871 | DN27: 12805.43247 | DO27: 13189.59544 | DP27: 13585.28331 | DQ27: 13992.84181 | DR27: 14412.62706 | DS27: 14845.00587 | DT27: 15290.35605 | DU27: 15749.06673 | DV27: 16221.53873 | DW27: 16708.18489 | DX27: 17209.43044 | DY27: 17725.71335 | DZ27: 18257.48475 | EA27: 18805.2093 | EB27: 19369.36558 | EC27: 19950.44654 | ED27: 20548.95994 | EE27: 21165.42874 | EF27: 21800.3916 | EG27: =EF27*(1+EG26) -> 22454.40335 | EH27: 23128.03545 | EI27: 23821.87651 | EJ27: 24536.53281 | EK27: 25272.62879 | EL27: 26030.80766 | EM27: 26811.73189 | EN27: 27616.08384 | EO27: 28444.56636 | EP27: 29297.90335 | EQ27: 30176.84045 | ER27: 31082.14566 | ES27: 32014.61003 | ET27: 32975.04833 | EU27: 33964.29978 | EV27: 34983.22878 | EW27: 36032.72564 | EX27: 37113.70741 | EY27: 38227.11863 | EZ27: 39373.93219 | FA27: 40555.15015 | FB27: 41771.80466 | FC27: 43024.9588 | FD27: 44315.70756 | FE27: 45645.17879 | FF27: 47014.53415 | FG27: 48424.97018 | FH27: 49877.71928 | FI27: 51374.05086 | FJ27: 52915.27239 | FK27: 54502.73056 | FL27: 56137.81248 | FM27: 57821.94685 | FN27: 59556.60526 | FO27: 61343.30341 | FP27: 63183.60252 | FQ27: 65079.11059 | FR27: 67031.48391 | FS27: 69042.42843 | FT27: 71113.70128 | FU27: 73247.11232 | FV27: 75444.52569 | FW27: 77707.86146 | FX27: 80039.0973 | FY27: 82440.27022 | FZ27: 84913.47833 | GA27: 87460.88268 | GB27: 90084.70916 | GC27: 92787.25043 | GD27: 95570.86795 | GE27: 98437.99398 | GF27: 101391.1338 | GG27: 104432.8678 | GH27: 107565.8539 | GI27: 110792.8295 | GJ27: 114116.6144 | GK27: 117540.1128 | GL27: 121066.3162 | GM27: 124698.3057 | GN27: 128439.2548 | GO27: 132292.4325 | GP27: 136261.2054 | GQ27: 140349.0416 | GR27: 144559.5129 | GS27: =GR27*(1+GS26) -> 148896.2982 | GT27: 153363.1872 | GU27: 157964.0828 | GV27: 162703.0053 | GW27: 167584.0954 | GX27: 172611.6183 | GY27: 177789.9669 | GZ27: 183123.6659 | HA27: 188617.3758 | HB27: 194275.8971 | HC27: 200104.174 | HD27: 206107.2992 | HE27: 212290.5182 | HF27: 218659.2338 | HG27: 225219.0108 | HH27: 231975.5811 | HI27: 238934.8485 | HJ27: 246102.894 | HK27: 253485.9808 | HL27: 261090.5602 | HM27: 268923.277 | HN27: 276990.9754 | HO27: 285300.7046 | HP27: 293859.7258 | HQ27: 302675.5175 | HR27: 311755.7831 | HS27: 321108.4565 | HT27: 330741.7102 | HU27: 340663.9616 | HV27: 350883.8804 | HW27: 361410.3968 | HX27: 372252.7087 | HY27: 383420.29 | HZ27: 394922.8987 | IA27: 406770.5856 | IB27: 418973.7032 | IC27: 431542.9143 | ID27: 444489.2017 | IE27: 457823.8778 | IF27: 471558.5941 | IG27: 485705.3519 | IH27: 500276.5125 | II27: 515284.8079 | IJ27: 530743.3521 | IK27: 546665.6527 | IL27: 563065.6222 | IM27: 579957.5909 | IN27: 597356.3186 | IO27: 615277.0082 | IP27: 633735.3184 | IQ27: 652747.378 | IR27: 672329.7993 | IS27: 692499.6933 | IT27: 713274.6841 | IU27: 734672.9246 | IV27: 756713.1124 | IW27: 779414.5058 | IX27: 802796.9409 | IY27: 826880.8492 | IZ27: 851687.2746 | JA27: 877237.8929 | JB27: 903555.0297 | JC27: 930661.6805 | JD27: 958581.531 | JE27: =JD27*(1+JE26) -> 987338.9769 | JF27: 1016959.146 | JG27: 1047467.921 | JH27: 1078891.958 | JI27: 1111258.717 | JJ27: 1144596.478 | JK27: 1178934.373 | JL27: 1214302.404 | JM27: 1250731.476 | JN27: 1288253.42 | JO27: 1326901.023 | JP27: 1366708.054 | JQ27: 1407709.295 | JR27: 1449940.574 | JS27: 1493438.791 | JT27: 1538241.955 | JU27: 1584389.214 | JV27: 1631920.89 | JW27: 1680878.517 | JX27: 1731304.872 | JY27: 1783244.019 | JZ27: 1836741.339 | KA27: 1891843.579 | KB27: 1948598.887 | KC27: 2007056.853 | KD27: 2067268.559 | KE27: 2129286.616 | KF27: 2193165.214 | KG27: 2258960.171 | KH27: 2326728.976 | KI27: 2396530.845 | KJ27: 2468426.77 | KK27: 2542479.573 | KL27: 2618753.961 | KM27: 2697316.579 | KN27: 2778236.077 | KO27: 2861583.159 | KP27: 2947430.654 | KQ27: 3035853.574 | KR27: 3126929.181 | KS27: 3220737.056 | KT27: 3317359.168 | KU27: 3416879.943
D28: Change in Plant | H28: =H27-G27 -> 12 | I28: =I27-H27 -> 13.44 | J28: =J27-I27 -> 15.0528 | K28: 16.859136 | L28: 18.88223232 | M28: 21.1481002 | N28: 23.68587222 | O28: 26.52817689 | P28: 29.71155812 | Q28: 33.27694509 | R28: 37.2701785 | S28: 41.74259992 | T28: 35.06378393 | U28: 38.21952449 | V28: 41.65928169 | W28: 45.40861704 | X28: 49.49539258 | Y28: 53.94997791 | Z28: 58.80547592 | AA28: 64.09796875 | AB28: 69.86678594 | AC28: 76.15479668 | AD28: 27.66957613 | AE28: 28.49966341 | AF28: 29.35465331 | AG28: 30.23529291 | AH28: 31.1423517 | AI28: 32.07662225 | AJ28: 33.03892092 | AK28: 34.03008854 | AL28: 35.0509912 | AM28: 36.10252094 | AN28: 37.18559656 | AO28: =AO27-AN27 -> 38.30116446 | AP28: 39.4501994 | AQ28: 40.63370538 | AR28: 41.85271654 | AS28: 43.10829803 | AT28: 44.40154698 | AU28: 45.73359339 | AV28: 47.10560119 | AW28: 48.51876922 | AX28: 49.9743323 | AY28: 51.47356227 | AZ28: 53.01776914 | BA28: 54.60830221 | BB28: 56.24655128 | BC28: 57.93394781 | BD28: 59.67196625 | BE28: 61.46212524 | BF28: 63.30598899 | BG28: 65.20516866 | BH28: 67.16132372 | BI28: 69.17616343 | BJ28: 71.25144834 | BK28: 73.38899179 | BL28: 75.59066154 | BM28: 77.85838139 | BN28: 80.19413283 | BO28: 82.59995681 | BP28: 85.07795552 | BQ28: 87.63029418 | BR28: 90.25920301 | BS28: 92.9669791 | BT28: 95.75598847 | BU28: =BU27-BT27 -> 98.62866813 | BV28: 101.5875282 | BW28: 104.635154 | BX28: 107.7742086 | BY28: 111.0074349 | BZ28: 114.3376579 | CA28: 117.7677877 | CB28: 121.3008213 | CC28: 124.939846 | CD28: 128.6880413 | CE28: 132.5486826 | CF28: 136.525143 | CG28: 140.6208973 | CH28: 144.8395243 | CI28: 149.18471 | CJ28: 153.6602513 | CK28: 158.2700588 | CL28: 163.0181606 | CM28: 167.9087054 | CN28: 172.9459666 | CO28: 178.1343456 | CP28: 183.4783759 | CQ28: 188.9827272 | CR28: 194.652209 | CS28: 200.4917753 | CT28: 206.5065286 | CU28: 212.7017244 | CV28: 219.0827761 | CW28: 225.6552594 | CX28: 232.4249172 | CY28: 239.3976647 | CZ28: 246.5795947 | DA28: 253.9769825 | DB28: 261.596292 | DC28: 269.4441807 | DD28: 277.5275062 | DE28: 285.8533314 | DF28: 294.4289313 | DG28: 303.2617992 | DH28: 312.3596532 | DI28: 321.7304428 | DJ28: 331.3823561 | DK28: 341.3238268 | DL28: 351.5635416 | DM28: 362.1104478 | DN28: 372.9737613 | DO28: 384.1629741 | DP28: 395.6878633 | DQ28: 407.5584992 | DR28: 419.7852542 | DS28: 432.3788118 | DT28: 445.3501762 | DU28: 458.7106815 | DV28: 472.4720019 | DW28: 486.646162 | DX28: 501.2455468 | DY28: 516.2829132 | DZ28: 531.7714006 | EA28: 547.7245426 | EB28: 564.1562789 | EC28: 581.0809673 | ED28: 598.5133963 | EE28: 616.4687982 | EF28: 634.9628621 | EG28: =EG27-EF27 -> 654.011748 | EH28: 673.6321004 | EI28: 693.8410635 | EJ28: 714.6562954 | EK28: 736.0959842 | EL28: 758.1788638 | EM28: 780.9242297 | EN28: 804.3519566 | EO28: 828.4825153 | EP28: 853.3369907 | EQ28: 878.9371004 | ER28: 905.3052134 | ES28: 932.4643698 | ET28: 960.4383009 | EU28: 989.25145 | EV28: 1018.928993 | EW28: 1049.496863 | EX28: 1080.981769 | EY28: 1113.411222 | EZ28: 1146.813559 | FA28: 1181.217966 | FB28: 1216.654505 | FC28: 1253.15414 | FD28: 1290.748764 | FE28: 1329.471227 | FF28: 1369.355364 | FG28: 1410.436025 | FH28: 1452.749105 | FI28: 1496.331579 | FJ28: 1541.221526 | FK28: 1587.458172 | FL28: 1635.081917 | FM28: 1684.134374 | FN28: 1734.658406 | FO28: 1786.698158 | FP28: 1840.299102 | FQ28: 1895.508076 | FR28: 1952.373318 | FS28: 2010.944517 | FT28: 2071.272853 | FU28: 2133.411038 | FV28: 2197.41337 | FW28: 2263.335771 | FX28: 2331.235844 | FY28: 2401.172919 | FZ28: 2473.208107 | GA28: 2547.40435 | GB28: 2623.82648 | GC28: 2702.541275 | GD28: 2783.617513 | GE28: 2867.126038 | GF28: 2953.13982 | GG28: 3041.734014 | GH28: 3132.986035 | GI28: 3226.975616 | GJ28: 3323.784884 | GK28: 3423.498431 | GL28: 3526.203383 | GM28: 3631.989485 | GN28: 3740.94917 | GO28: 3853.177645 | GP28: 3968.772974 | GQ28: 4087.836163 | GR28: 4210.471248 | GS28: =GS27-GR27 -> 4336.785386 | GT28: 4466.888947 | GU28: 4600.895616 | GV28: 4738.922484 | GW28: 4881.090158 | GX28: 5027.522863 | GY28: 5178.348549 | GZ28: 5333.699006 | HA28: 5493.709976 | HB28: 5658.521275 | HC28: 5828.276913 | HD28: 6003.125221 | HE28: 6183.218977 | HF28: 6368.715547 | HG28: 6559.777013 | HH28: 6756.570323 | HI28: 6959.267433 | HJ28: 7168.045456 | HK28: 7383.08682 | HL28: 7604.579424 | HM28: 7832.716807 | HN28: 8067.698311 | HO28: 8309.729261 | HP28: 8559.021139 | HQ28: 8815.791773 | HR28: 9080.265526 | HS28: 9352.673492 | HT28: 9633.253696 | HU28: 9922.251307 | HV28: 10219.91885 | HW28: 10526.51641 | HX28: 10842.3119 | HY28: 11167.58126 | HZ28: 11502.6087 | IA28: 11847.68696 | IB28: 12203.11757 | IC28: 12569.2111 | ID28: 12946.28743 | IE28: 13334.67605 | IF28: 13734.71633 | IG28: 14146.75782 | IH28: 14571.16056 | II28: 15008.29537 | IJ28: 15458.54424 | IK28: 15922.30056 | IL28: 16399.96958 | IM28: 16891.96867 | IN28: 17398.72773 | IO28: 17920.68956 | IP28: 18458.31025 | IQ28: 19012.05955 | IR28: 19582.42134 | IS28: 20169.89398 | IT28: 20774.9908 | IU28: 21398.24052 | IV28: 22040.18774 | IW28: 22701.39337 | IX28: 23382.43517 | IY28: 24083.90823 | IZ28: 24806.42547 | JA28: 25550.61824 | JB28: 26317.13679 | JC28: 27106.65089 | JD28: 27919.85042 | JE28: =JE27-JD27 -> 28757.44593 | JF28: 29620.16931 | JG28: 30508.77439 | JH28: 31424.03762 | JI28: 32366.75875 | JJ28: 33337.76151 | JK28: 34337.89435 | JL28: 35368.03118 | JM28: 36429.07212 | JN28: 37521.94428 | JO28: 38647.60261 | JP28: 39807.03069 | JQ28: 41001.24161 | JR28: 42231.27886 | JS28: 43498.21723 | JT28: 44803.16374 | JU28: 46147.25865 | JV28: 47531.67641 | JW28: 48957.62671 | JX28: 50426.35551 | JY28: 51939.14617 | JZ28: 53497.32056 | KA28: 55102.24017 | KB28: 56755.30738 | KC28: 58457.9666 | KD28: 60211.7056 | KE28: 62018.05677 | KF28: 63878.59847 | KG28: 65794.95642 | KH28: 67768.80512 | KI28: 69801.86927 | KJ28: 71895.92535 | KK28: 74052.80311 | KL28: 76274.3872 | KM28: 78562.61882 | KN28: 80919.49738 | KO28: 83347.0823 | KP28: 85847.49477 | KQ28: 88422.91962 | KR28: 91075.60721 | KS28: 93807.87542 | KT28: 96622.11168 | KU28: 99520.77503
D30: Capital Expenditures | H30: =H28+H35 -> 14.68242396 | I30: =I28+I35 -> 16.44431484 | J30: 18.41763262 | K30: 20.62774854 | L30: 23.10307836 | M30: 25.87544776 | N30: 28.98050149 | O30: 32.45816167 | P30: 36.35314107 | Q30: 40.715518 | R30: 45.60138016 | S30: 51.07354578 | T30: 45.5144433 | U30: 49.92426298 | V30: 54.7685888 | W30: 60.09104101 | X30: 65.93970742 | Y30: 72.36761053 | Z30: 79.43322446 | AA30: 87.20104711 | AB30: 95.7422337 | AC30: 105.1352982 | AD30: 60.1277378 | AE30: 64.85280448 | AF30: 70.07017132 | AG30: 75.83667308 | AH30: 82.21589748 | AI30: 77.59106555 | AJ30: 82.9631839 | AK30: 88.79867735 | AL30: 95.14203221 | AM30: 102.0422284 | AN30: 109.5532071 | AO30: =AO28+AO35 -> 117.7343889 | AP30: 126.6512465 | AQ30: 136.3759391 | AR30: 146.9880147 | AS30: 103.2360358 | AT30: 109.2543515 | AU30: 115.8037647 | AV30: 122.9422743 | AW30: 130.7346667 | AX30: 127.5653978 | AY30: 134.4367462 | AZ30: 141.8164465 | BA30: 149.7503344 | BB30: 158.2887796 | BC30: 167.4871549 | BD30: 177.4063552 | BE30: 188.1133717 | BF30: 199.6819281 | BG30: 212.1931834 | BH30: 170.3973596 | BI30: 178.4305149 | BJ30: 187.055213 | BK30: 196.331266 | BL30: 206.3253282 | BM30: 205.4237792 | BN30: 214.630879 | BO30: 224.4164033 | BP30: 234.8282899 | BQ30: 245.9190738 | BR30: 257.7463579 | BS30: 270.3733343 | BT30: 283.8693602 | BU30: =BU28+BU35 -> 298.3105962 | BV30: 313.7807115 | BW30: 275.0325136 | BX30: 286.2047235 | BY30: 298.0626479 | BZ30: 310.668924 | CA30: 324.0931159 | CB30: 326.7246005 | CC30: 339.5707249 | CD30: 353.1044446 | CE30: 367.3769725 | CF30: 382.4442169 | CG30: 398.3672553 | CH30: 415.2128585 | CI30: 433.0540702 | CJ30: 451.9708475 | CK30: 472.0507704 | CL30: 438.0506742 | CM30: 454.1134289 | CN30: 471.0086145 | CO30: 488.8032696 | CP30: 507.5714919 | CQ30: 515.7073278 | CR30: 534.222934 | CS30: 553.5962199 | CT30: 573.8835011 | CU30: 595.1459413 | CV30: 617.4500314 | CW30: 640.868118 | CX30: 665.4789874 | CY30: 691.3685122 | CZ30: 718.630365 | DA30: 692.0276567 | DB30: 715.7097209 | DC30: 740.4527952 | DD30: 766.3307757 | DE30: 793.4248232 | DF30: 810.1362591 | DG30: 837.4847332 | DH30: 865.9558731 | DI30: 895.6139439 | DJ30: 926.5282974 | DK30: 958.7738582 | DL30: 992.4316595 | DM30: 1027.589435 | DN30: 1064.342273 | DO30: 1102.793339 | DP30: 1087.71552 | DQ30: 1123.26822 | DR30: 1160.238049 | DS30: 1198.709588 | DT30: 1238.774999 | DU30: 1268.846941 | DV30: 1309.956735 | DW30: 1352.602035 | DX30: 1396.859491 | DY30: 1442.811211 | DZ30: 1490.545259 | EA30: 1540.156202 | EB30: 1591.745714 | EC30: 1645.423241 | ED30: 1701.306735 | EE30: 1704.184318 | EF30: 1758.231082 | EG30: =EG28+EG35 -> 1814.249797 | EH30: 1872.341688 | EI30: 1932.616063 | EJ30: 1983.503236 | EK30: 2046.052719 | EL30: 2110.780899 | EM30: 2177.78372 | EN30: 2247.163167 | EO30: 2319.027774 | EP30: 2393.493193 | EQ30: 2470.682815 | ER30: 2550.728454 | ES30: 2633.771105 | ET30: 2664.622619 | EU30: 2747.482532 | EV30: 2833.178791 | EW30: 2921.838551 | EX30: 3013.597832 | EY30: 3096.914458 | EZ30: 3192.866278 | FA30: 3291.998865 | FB30: 3394.438225 | FC30: 3500.317307 | FD30: 3609.776538 | FE30: 3722.96442 | FF30: 3840.038178 | FG30: 3961.164479 | FH30: 4086.520211 | FI30: 4160.954198 | FJ30: 4288.704058 | FK30: 4420.636963 | FL30: 4556.920468 | FM30: 4697.732206 | FN30: 4831.572864 | FO30: 4979.564436 | FP30: 5132.297967 | FQ30: 5289.946301 | FR30: 5452.690625 | FS30: 5620.721055 | FT30: 5794.237273 | FU30: 5973.449217 | FV30: 6158.577848 | FW30: 6349.855981 | FX30: 6492.190041 | FY30: 6689.876977 | FZ30: 6893.845069 | GA30: 7104.324818 | GB30: 7321.558687 | GC30: 7534.114138 | GD30: 7763.181949 | GE30: 7999.424005 | GF30: 8243.08612 | GG30: 8494.424639 | GH30: 8753.70709 | GI30: 9021.212888 | GJ30: 9297.234101 | GK30: 9582.076279 | GL30: 9876.059365 | GM30: 10124.17953 | GN30: 10430.82615 | GO30: 10747.02271 | GP30: 11073.09779 | GQ30: 11409.39485 | GR30: 11744.58539 | GS30: =GS28+GS35 -> 12099.96733 | GT30: 12466.31295 | GU30: 12843.98174 | GV30: 13233.34712 | GW30: 13634.79725 | GX30: 14048.73575 | GY30: 14475.58265 | GZ30: 14915.77528 | HA30: 15369.76934 | HB30: 15782.7008 | HC30: 16259.10306 | HD30: 16750.14793 | HE30: 17256.31677 | HF30: 17778.1104 | HG30: 18304.3624 | HH30: 18856.53766 | HI30: 19425.58039 | HJ30: 20012.02719 | HK30: 20616.43394 | HL30: 21239.37667 | HM30: 21881.45256 | HN30: 22543.28096 | HO30: 23225.50455 | HP30: 23928.79048 | HQ30: 24598.49257 | HR30: 25339.36859 | HS30: 26102.82143 | HT30: 26889.57047 | HU30: 27700.3617 | HV30: 28524.28125 | HW30: 29383.05407 | HX30: 30267.89229 | HY30: 31179.60845 | HZ30: 32119.04264 | IA30: 33087.06363 | IB30: 34084.57013 | IC30: 35112.49206 | ID30: 36171.79197 | IE30: 37263.46653 | IF30: 38333.20891 | IG30: 39486.12641 | IH30: 40673.98198 | II30: 41897.86584 | IJ30: 43158.90594 | IK30: 44446.58181 | IL30: 45783.02365 | IM30: 47159.86096 | IN30: 48578.33618 | IO30: 50039.7322 | IP30: 51545.37388 | IQ30: 53096.62968 | IR30: 54694.9134 | IS30: 56341.68595 | IT30: 58038.45733 | IU30: 59731.44943 | IV30: 61526.31415 | IW30: 63375.37536 | IX30: 65280.30101 | IY30: 67242.81417 | IZ30: 69253.00728 | JA30: 71333.64189 | JB30: 73476.99774 | JC30: 75684.98707 | JD30: 77959.58262 | JE30: =JE28+JE35 -> 80302.81981 | JF30: 82716.79899 | JG30: 85203.68778 | JH30: 87765.72357 | JI30: 90405.21608 | JJ30: 93069.21094 | JK30: 95864.2085 | JL30: 98743.40654 | JM30: 101709.3731 | JN30: 104764.7585 | JO30: 107900.6099 | JP30: 111140.6726 | JQ30: 114478.2394 | JR30: 117916.2659 | JS30: 121457.7998 | JT30: 125105.9835 | JU30: 128864.0576 | JV30: 132735.3642 | JW30: 136723.3503 | JX30: 140831.5716 | JY30: 145008.3571 | JZ30: 149361.5291 | KA30: 153845.6467 | KB30: 158464.6805 | KC30: 163222.7251 | KD30: 168112.3155 | KE30: 173158.7293 | KF30: 178356.8378 | KG30: 183711.2224 | KH30: 189226.605 | KI30: 194907.8528 | KJ30: 200759.983 | KK30: 206788.1673 | KL30: 212997.7375 | KM30: 219394.1904 | KN30: 225927.8545 | KO30: 232708.6114 | KP30: 239693.1415 | KQ30: 246887.6001 | KR30: 254298.3323 | KS30: 261920.1909 | KT30: 269780.841 | KU30: 277877.6129
D31: Capital Expenditure Growth | I31: =I30/H30-1 -> 0.12 | J31: =J30/I30-1 -> 0.12 | K31: 0.12 | L31: 0.12 | M31: 0.12 | N31: 0.12 | O31: 0.12 | P31: 0.12 | Q31: 0.12 | R31: 0.12 | S31: 0.12 | T31: -0.1088450468 | U31: 0.09688835803 | V31: 0.09703349702 | W31: 0.09718074398 | X31: 0.09733008967 | Y31: 0.09748152311 | Z31: 0.0976350314 | AA31: 0.09779059972 | AB31: 0.09794821133 | AC31: 0.09810784753 | AD31: -0.4280918127 | AE31: 0.07858380936 | AF31: 0.08044936334 | AG31: 0.08229609906 | AH31: 0.08411793593 | AI31: -0.056252283 | AJ31: 0.06923630069 | AK31: 0.07033834981 | AL31: 0.07143524039 | AM31: 0.07252521294 | AN31: 0.0736065731 | AO31: 0.07467770265 | AP31: 0.07573706946 | AQ31: 0.07678323618 | AR31: 0.07781486748 | AS31: -0.2976567781 | AT31: 0.05829665559 | AU31: 0.05994647493 | AV31: 0.06164315625 | AW31: 0.06338253046 | AX31: -0.02424199285 | AY31: 0.05386529914 | AZ31: 0.05489347614 | BA31: 0.05594476616 | BB31: 0.05701787075 | BC31: 0.05811135382 | BD31: 0.05922364771 | BE31: 0.06035306102 | BF31: 0.0614977884 | BG31: 0.06265592194 | BH31: -0.1969706244 | BI31: 0.0471436609 | BJ31: 0.0483364527 | BK31: 0.04958991979 | BL31: 0.05090407859 | BM31: -0.004369550832 | BN31: 0.04482002907 | BO31: 0.04559234137 | BP31: 0.04639539039 | BQ31: 0.04722933459 | BR31: 0.04809421214 | BS31: 0.04898993123 | BT31: 0.04991626111 | BU31: 0.05087282394 | BV31: =BV30/BU30-1 -> 0.0518590876 | BW31: -0.1234881449 | BX31: 0.04062141531 | BY31: 0.0414316167 | BZ31: 0.0422940484 | CA31: 0.04321060427 | CB31: 0.008119532602 | CC31: 0.03931789762 | CD31: 0.03985537824 | CE31: 0.04042013092 | CF31: 0.04101303425 | CG31: 0.04163493052 | CH31: 0.0422866163 | CI31: 0.04296883228 | CJ31: 0.0436822526 | CK31: 0.04442747357 | CL31: -0.07202635466 | CM31: 0.03666871374 | CN31: 0.03720476975 | CO31: 0.03777989299 | CP31: 0.03839626997 | CQ31: 0.01602894573 | CR31: 0.03590332193 | CS31: 0.03626442206 | CT31: 0.03664635055 | CU31: 0.03705009845 | CV31: 0.0374766735 | CW31: 0.0379270959 | CX31: 0.03840239321 | CY31: 0.03890359469 | CZ31: 0.03943172467 | DA31: -0.03701862551 | DB31: 0.0342212685 | DC31: 0.03457138223 | DD31: 0.03494885919 | DE31: 0.03535555186 | DF31: 0.0210624061 | DG31: 0.03375786955 | DH31: 0.03399601067 | DI31: 0.03424893999 | DJ31: 0.03451749909 | DK31: 0.03480256448 | DL31: 0.035105047 | DM31: 0.03542589091 | DN31: 0.03576607249 | DO31: 0.0361265982 | DP31: -0.01367238866 | DQ31: 0.03268566045 | DR31: 0.03291273503 | DS31: 0.03315831447 | DT31: 0.03342378526 | DU31: 0.02427554733 | DV31: 0.03239933303 | DW31: 0.03255473929 | DX31: 0.03272023437 | DY31: 0.03289645108 | DZ31: 0.03308405691 | EA31: 0.03328375511 | EB31: 0.03349628558 | EC31: 0.03372242571 | ED31: 0.03396299098 | EE31: 0.001691395612 | EF31: 0.03171415411 | EG31: 0.03186083771 | EH31: =EH30/EG30-1 -> 0.03201978615 | EI31: 0.03219197395 | EJ31: 0.02633072032 | EK31: 0.03153485325 | EL31: 0.03163563622 | EM31: 0.03174314376 | EN31: 0.03185782231 | EO31: 0.03198014633 | EP31: 0.03211061966 | EQ31: 0.032249777 | ER31: 0.03239818529 | ES31: 0.03255644518 | ET31: 0.01171381742 | EU31: 0.03109630329 | EV31: 0.0311908293 | EW31: 0.031293387 | EX31: 0.03140463757 | EY31: 0.02764689608 | EZ31: 0.03098303858 | FA31: 0.03104814848 | FB31: 0.03111767795 | FC31: 0.03119193071 | FD31: 0.03127123101 | FE31: 0.03135592482 | FF31: 0.03144638125 | FG31: 0.03154299382 | FH31: 0.03164618195 | FI31: 0.01821451581 | FJ31: 0.03070205881 | FK31: 0.03076288376 | FL31: 0.03082892955 | FM31: 0.03090063547 | FN31: 0.02849048253 | FO31: 0.03063010255 | FP31: 0.0306720664 | FQ31: 0.03071690977 | FR31: 0.03076483483 | FS31: 0.03081605802 | FT31: 0.03087081098 | FU31: 0.03092934163 | FV31: 0.03099191522 | FW31: 0.03105881546 | FX31: 0.022415321 | FY31: 0.03044996134 | FZ31: 0.0304890647 | GA31: 0.03053154612 | GB31: 0.03057769377 | GC31: 0.0290314482 | GD31: 0.0304040802 | GE31: 0.03043108586 | GF31: 0.03045995743 | GG31: 0.03049082772 | GH31: 0.03052383912 | GI31: 0.03055914432 | GJ31: 0.03059690709 | GK31: 0.030637303 | GL31: 0.0306805203 | GM31: 0.02512339714 | GN31: 0.03028854037 | GO31: 0.03031366477 | GP31: 0.03034096854 | GQ31: 0.03037063921 | GR31: 0.02937846757 | GS31: 0.03025921616 | GT31: =GT30/GS30-1 -> 0.03027657909 | GU31: 0.03029514697 | GV31: 0.0303150063 | GW31: 0.03033624992 | GX31: 0.03035897751 | GY31: 0.03038329612 | GZ31: 0.03040932067 | HA31: 0.03043717456 | HB31: 0.02686647091 | HC31: 0.03018509092 | HD31: 0.03020122775 | HE31: 0.03021876802 | HF31: 0.03023783315 | HG31: 0.02960112134 | HH31: 0.03016632026 | HI31: 0.0301774768 | HJ31: 0.03018940976 | HK31: 0.03020217518 | HL31: 0.03021583325 | HM31: 0.03023044865 | HN31: 0.03024609088 | HO31: 0.03026283464 | HP31: 0.03028076021 | HQ31: 0.02798729404 | HR31: 0.03011875665 | HS31: 0.03012911856 | HT31: 0.03014038316 | HU31: 0.03015262885 | HV31: 0.02974399941 | HW31: 0.03010672964 | HX31: 0.03011389551 | HY31: 0.03012156098 | HZ31: 0.03012976222 | IA31: 0.03013853812 | IB31: 0.03014793049 | IC31: 0.03015798427 | ID31: 0.03016874778 | IE31: 0.030180273 | IF31: 0.02870753787 | IG31: 0.03007620637 | IH31: 0.03008285904 | II31: 0.03009009191 | IJ31: 0.03009795545 | IK31: 0.02983569303 | IL31: 0.0300684954 | IM31: 0.03007309692 | IN31: 0.03007801962 | IO31: 0.03008328682 | IP31: 0.03008892358 | IQ31: 0.03009495684 | IR31: 0.03010141559 | IS31: 0.03010833101 | IT31: 0.03011573664 | IU31: 0.02917017747 | IV31: 0.03004890614 | IW31: 0.03005317697 | IX31: 0.03005782051 | IY31: 0.03006286926 | IZ31: 0.02989454176 | JA31: 0.03004396035 | JB31: 0.03004691472 | JC31: 0.03005007546 | JD31: 0.03005345757 | JE31: 0.03005707716 | JF31: =JF30/JE30-1 -> 0.0300609516 | JG31: 0.03006509954 | JH31: 0.03006954106 | JI31: 0.03007429777 | JJ31: 0.02946726946 | JK31: 0.03003138777 | JL31: 0.03003412935 | JM31: 0.03003711029 | JN31: 0.03004035148 | JO31: 0.02993231208 | JP31: 0.03002821473 | JQ31: 0.03003011137 | JR31: 0.03003214056 | JS31: 0.03003431193 | JT31: 0.03003663587 | JU31: 0.03003912351 | JV31: 0.03004178687 | JW31: 0.03004463886 | JX31: 0.03004769337 | JY31: 0.02965801973 | JZ31: 0.03002014528 | KA31: 0.03002190512 | KB31: 0.03002381866 | KC31: 0.0300258993 | KD31: 0.0299565544 | KE31: 0.03001810924 | KF31: 0.03001932676 | KG31: 0.0300206294 | KH31: 0.03002202334 | KI31: 0.03002351526 | KJ31: 0.03002511231 | KK31: 0.03002682221 | KL31: 0.03002865326 | KM31: 0.0300306144 | KN31: 0.02978047906 | KO31: 0.03001292994 | KP31: 0.03001405957 | KQ31: 0.03001528787 | KR31: 0.03001662345 | KS31: 0.02997211421 | KT31: 0.03001162334 | KU31: 0.03001240488
D33: Retirements - Base | E33: =find_base(F13,E18) -> 0.02682423964 | H33: =E33*$E$17 -> 2.682423964 | I33: =IF(I2<=$E$18,H33*(1+$F$13)) -> 3.00431484 | J33: 3.364832621 | K33: 3.768612536 | L33: 4.22084604 | M33: 4.727347565 | N33: 5.294629272 | O33: 5.929984785 | P33: 6.641582959 | Q33: 7.438572914 | R33: 8.331201664 | S33: 9.330945864 | T33: 10.45065937 | U33: 11.70473849 | V33: 13.10930711 | W33: FALSE | X33: FALSE | Y33: FALSE | Z33: FALSE | AA33: FALSE | AB33: FALSE | AC33: FALSE | AD33: FALSE | AE33: FALSE | AF33: FALSE | AG33: FALSE | AH33: FALSE | AI33: FALSE | AJ33: FALSE | AK33: FALSE | AL33: FALSE | AM33: FALSE | AN33: FALSE | AO33: FALSE | AP33: FALSE | AQ33: FALSE | AR33: FALSE | AS33: FALSE | AT33: FALSE | AU33: FALSE | AV33: FALSE | AW33: FALSE | AX33: FALSE | AY33: FALSE | AZ33: FALSE | BA33: FALSE | BB33: FALSE | BC33: FALSE | BD33: FALSE | BE33: FALSE | BF33: FALSE | BG33: FALSE | BH33: FALSE | BI33: FALSE | BJ33: FALSE | BK33: FALSE | BL33: FALSE | BM33: FALSE | BN33: FALSE | BO33: FALSE | BP33: FALSE | BQ33: FALSE | BR33: FALSE | BS33: FALSE | BT33: FALSE | BU33: =IF(BU2<=$E$18,BT33*(1+$F$13)) -> FALSE | BV33: FALSE | BW33: FALSE | BX33: FALSE | BY33: FALSE | BZ33: FALSE | CA33: FALSE | CB33: FALSE | CC33: FALSE | CD33: FALSE | CE33: FALSE | CF33: FALSE | CG33: FALSE | CH33: FALSE | CI33: FALSE | CJ33: FALSE | CK33: FALSE | CL33: FALSE | CM33: FALSE | CN33: FALSE | CO33: FALSE | CP33: FALSE | CQ33: FALSE | CR33: FALSE | CS33: FALSE | CT33: FALSE | CU33: FALSE | CV33: FALSE | CW33: FALSE | CX33: FALSE | CY33: FALSE | CZ33: FALSE | DA33: FALSE | DB33: FALSE | DC33: FALSE | DD33: FALSE | DE33: FALSE | DF33: FALSE | DG33: FALSE | DH33: FALSE | DI33: FALSE | DJ33: FALSE | DK33: FALSE | DL33: FALSE | DM33: FALSE | DN33: FALSE | DO33: FALSE | DP33: FALSE | DQ33: FALSE | DR33: FALSE | DS33: FALSE | DT33: FALSE | DU33: FALSE | DV33: FALSE | DW33: FALSE | DX33: FALSE | DY33: FALSE | DZ33: FALSE | EA33: FALSE | EB33: FALSE | EC33: FALSE | ED33: FALSE | EE33: FALSE | EF33: FALSE | EG33: =IF(EG2<=$E$18,EF33*(1+$F$13)) -> FALSE | EH33: FALSE | EI33: FALSE | EJ33: FALSE | EK33: FALSE | EL33: FALSE | EM33: FALSE | EN33: FALSE | EO33: FALSE | EP33: FALSE | EQ33: FALSE | ER33: FALSE | ES33: FALSE | ET33: FALSE | EU33: FALSE | EV33: FALSE | EW33: FALSE | EX33: FALSE | EY33: FALSE | EZ33: FALSE | FA33: FALSE | FB33: FALSE | FC33: FALSE | FD33: FALSE | FE33: FALSE | FF33: FALSE | FG33: FALSE | FH33: FALSE | FI33: FALSE | FJ33: FALSE | FK33: FALSE | FL33: FALSE | FM33: FALSE | FN33: FALSE | FO33: FALSE | FP33: FALSE | FQ33: FALSE | FR33: FALSE | FS33: FALSE | FT33: FALSE | FU33: FALSE | FV33: FALSE | FW33: FALSE | FX33: FALSE | FY33: FALSE | FZ33: FALSE | GA33: FALSE | GB33: FALSE | GC33: FALSE | GD33: FALSE | GE33: FALSE | GF33: FALSE | GG33: FALSE | GH33: FALSE | GI33: FALSE | GJ33: FALSE | GK33: FALSE | GL33: FALSE | GM33: FALSE | GN33: FALSE | GO33: FALSE | GP33: FALSE | GQ33: FALSE | GR33: FALSE | GS33: =IF(GS2<=$E$18,GR33*(1+$F$13)) -> FALSE | GT33: FALSE | GU33: FALSE | GV33: FALSE | GW33: FALSE | GX33: FALSE | GY33: FALSE | GZ33: FALSE | HA33: FALSE | HB33: FALSE | HC33: FALSE | HD33: FALSE | HE33: FALSE | HF33: FALSE | HG33: FALSE | HH33: FALSE | HI33: FALSE | HJ33: FALSE | HK33: FALSE | HL33: FALSE | HM33: FALSE | HN33: FALSE | HO33: FALSE | HP33: FALSE | HQ33: FALSE | HR33: FALSE | HS33: FALSE | HT33: FALSE | HU33: FALSE | HV33: FALSE | HW33: FALSE | HX33: FALSE | HY33: FALSE | HZ33: FALSE | IA33: FALSE | IB33: FALSE | IC33: FALSE | ID33: FALSE | IE33: FALSE | IF33: FALSE | IG33: FALSE | IH33: FALSE | II33: FALSE | IJ33: FALSE | IK33: FALSE | IL33: FALSE | IM33: FALSE | IN33: FALSE | IO33: FALSE | IP33: FALSE | IQ33: FALSE | IR33: FALSE | IS33: FALSE | IT33: FALSE | IU33: FALSE | IV33: FALSE | IW33: FALSE | IX33: FALSE | IY33: FALSE | IZ33: FALSE | JA33: FALSE | JB33: FALSE | JC33: FALSE | JD33: FALSE | JE33: =IF(JE2<=$E$18,JD33*(1+$F$13)) -> FALSE | JF33: FALSE | JG33: FALSE | JH33: FALSE | JI33: FALSE | JJ33: FALSE | JK33: FALSE | JL33: FALSE | JM33: FALSE | JN33: FALSE | JO33: FALSE | JP33: FALSE | JQ33: FALSE | JR33: FALSE | JS33: FALSE | JT33: FALSE | JU33: FALSE | JV33: FALSE | JW33: FALSE | JX33: FALSE | JY33: FALSE | JZ33: FALSE | KA33: FALSE | KB33: FALSE | KC33: FALSE | KD33: FALSE | KE33: FALSE | KF33: FALSE | KG33: FALSE | KH33: FALSE | KI33: FALSE | KJ33: FALSE | KK33: FALSE | KL33: FALSE | KM33: FALSE | KN33: FALSE | KO33: FALSE | KP33: FALSE | KQ33: FALSE | KR33: FALSE | KS33: FALSE | KT33: FALSE | KU33: FALSE
D34: Retirements -Simulated | H34: =IF(H2>=$E$18,OFFSET(H30,0,-$E$18)) -> FALSE | I34: FALSE | J34: FALSE | K34: FALSE | L34: FALSE | M34: FALSE | N34: FALSE | O34: FALSE | P34: FALSE | Q34: FALSE | R34: FALSE | S34: FALSE | T34: FALSE | U34: FALSE | V34: 0 | W34: 14.68242396 | X34: =IF(X2>=$E$18,OFFSET(X30,0,-$E$18)) -> 16.44431484 | Y34: 18.41763262 | Z34: 20.62774854 | AA34: 23.10307836 | AB34: 25.87544776 | AC34: 28.98050149 | AD34: 32.45816167 | AE34: 36.35314107 | AF34: 40.715518 | AG34: 45.60138016 | AH34: 51.07354578 | AI34: 45.5144433 | AJ34: 49.92426298 | AK34: 54.7685888 | AL34: 60.09104101 | AM34: 65.93970742 | AN34: 72.36761053 | AO34: 79.43322446 | AP34: 87.20104711 | AQ34: 95.7422337 | AR34: 105.1352982 | AS34: 60.1277378 | AT34: 64.85280448 | AU34: 70.07017132 | AV34: 75.83667308 | AW34: 82.21589748 | AX34: 77.59106555 | AY34: 82.9631839 | AZ34: 88.79867735 | BA34: 95.14203221 | BB34: 102.0422284 | BC34: 109.5532071 | BD34: 117.7343889 | BE34: 126.6512465 | BF34: 136.3759391 | BG34: 146.9880147 | BH34: 103.2360358 | BI34: 109.2543515 | BJ34: 115.8037647 | BK34: 122.9422743 | BL34: 130.7346667 | BM34: 127.5653978 | BN34: 134.4367462 | BO34: 141.8164465 | BP34: 149.7503344 | BQ34: 158.2887796 | BR34: 167.4871549 | BS34: 177.4063552 | BT34: =IF(BT2>=$E$18,OFFSET(BT30,0,-$E$18)) -> 188.1133717 | BU34: 199.6819281 | BV34: 212.1931834 | BW34: 170.3973596 | BX34: 178.4305149 | BY34: 187.055213 | BZ34: 196.331266 | CA34: 206.3253282 | CB34: 205.4237792 | CC34: 214.630879 | CD34: 224.4164033 | CE34: 234.8282899 | CF34: 245.9190738 | CG34: 257.7463579 | CH34: 270.3733343 | CI34: 283.8693602 | CJ34: 298.3105962 | CK34: 313.7807115 | CL34: 275.0325136 | CM34: 286.2047235 | CN34: 298.0626479 | CO34: 310.668924 | CP34: 324.0931159 | CQ34: 326.7246005 | CR34: 339.5707249 | CS34: 353.1044446 | CT34: 367.3769725 | CU34: 382.4442169 | CV34: 398.3672553 | CW34: 415.2128585 | CX34: 433.0540702 | CY34: 451.9708475 | CZ34: 472.0507704 | DA34: 438.0506742 | DB34: 454.1134289 | DC34: 471.0086145 | DD34: 488.8032696 | DE34: 507.5714919 | DF34: 515.7073278 | DG34: 534.222934 | DH34: 553.5962199 | DI34: 573.8835011 | DJ34: 595.1459413 | DK34: 617.4500314 | DL34: 640.868118 | DM34: 665.4789874 | DN34: 691.3685122 | DO34: 718.630365 | DP34: 692.0276567 | DQ34: 715.7097209 | DR34: 740.4527952 | DS34: 766.3307757 | DT34: 793.4248232 | DU34: 810.1362591 | DV34: 837.4847332 | DW34: 865.9558731 | DX34: 895.6139439 | DY34: 926.5282974 | DZ34: 958.7738582 | EA34: 992.4316595 | EB34: 1027.589435 | EC34: 1064.342273 | ED34: 1102.793339 | EE34: 1087.71552 | EF34: =IF(EF2>=$E$18,OFFSET(EF30,0,-$E$18)) -> 1123.26822 | EG34: 1160.238049 | EH34: 1198.709588 | EI34: 1238.774999 | EJ34: 1268.846941 | EK34: 1309.956735 | EL34: 1352.602035 | EM34: 1396.859491 | EN34: 1442.811211 | EO34: 1490.545259 | EP34: 1540.156202 | EQ34: 1591.745714 | ER34: 1645.423241 | ES34: 1701.306735 | ET34: 1704.184318 | EU34: 1758.231082 | EV34: 1814.249797 | EW34: 1872.341688 | EX34: 1932.616063 | EY34: 1983.503236 | EZ34: 2046.052719 | FA34: 2110.780899 | FB34: 2177.78372 | FC34: 2247.163167 | FD34: 2319.027774 | FE34: 2393.493193 | FF34: 2470.682815 | FG34: 2550.728454 | FH34: 2633.771105 | FI34: 2664.622619 | FJ34: 2747.482532 | FK34: 2833.178791 | FL34: 2921.838551 | FM34: 3013.597832 | FN34: 3096.914458 | FO34: 3192.866278 | FP34: 3291.998865 | FQ34: 3394.438225 | FR34: 3500.317307 | FS34: 3609.776538 | FT34: 3722.96442 | FU34: 3840.038178 | FV34: 3961.164479 | FW34: 4086.520211 | FX34: 4160.954198 | FY34: 4288.704058 | FZ34: 4420.636963 | GA34: 4556.920468 | GB34: 4697.732206 | GC34: 4831.572864 | GD34: 4979.564436 | GE34: 5132.297967 | GF34: 5289.946301 | GG34: 5452.690625 | GH34: 5620.721055 | GI34: 5794.237273 | GJ34: 5973.449217 | GK34: 6158.577848 | GL34: 6349.855981 | GM34: 6492.190041 | GN34: 6689.876977 | GO34: 6893.845069 | GP34: 7104.324818 | GQ34: 7321.558687 | GR34: =IF(GR2>=$E$18,OFFSET(GR30,0,-$E$18)) -> 7534.114138 | GS34: 7763.181949 | GT34: 7999.424005 | GU34: 8243.08612 | GV34: 8494.424639 | GW34: 8753.70709 | GX34: 9021.212888 | GY34: 9297.234101 | GZ34: 9582.076279 | HA34: 9876.059365 | HB34: 10124.17953 | HC34: 10430.82615 | HD34: 10747.02271 | HE34: 11073.09779 | HF34: 11409.39485 | HG34: 11744.58539 | HH34: 12099.96733 | HI34: 12466.31295 | HJ34: 12843.98174 | HK34: 13233.34712 | HL34: 13634.79725 | HM34: 14048.73575 | HN34: 14475.58265 | HO34: 14915.77528 | HP34: 15369.76934 | HQ34: 15782.7008 | HR34: 16259.10306 | HS34: 16750.14793 | HT34: 17256.31677 | HU34: 17778.1104 | HV34: 18304.3624 | HW34: 18856.53766 | HX34: 19425.58039 | HY34: 20012.02719 | HZ34: 20616.43394 | IA34: 21239.37667 | IB34: 21881.45256 | IC34: 22543.28096 | ID34: 23225.50455 | IE34: 23928.79048 | IF34: 24598.49257 | IG34: 25339.36859 | IH34: 26102.82143 | II34: 26889.57047 | IJ34: 27700.3617 | IK34: 28524.28125 | IL34: 29383.05407 | IM34: 30267.89229 | IN34: 31179.60845 | IO34: 32119.04264 | IP34: 33087.06363 | IQ34: 34084.57013 | IR34: 35112.49206 | IS34: 36171.79197 | IT34: 37263.46653 | IU34: 38333.20891 | IV34: 39486.12641 | IW34: 40673.98198 | IX34: 41897.86584 | IY34: 43158.90594 | IZ34: 44446.58181 | JA34: 45783.02365 | JB34: 47159.86096 | JC34: 48578.33618 | JD34: =IF(JD2>=$E$18,OFFSET(JD30,0,-$E$18)) -> 50039.7322 | JE34: 51545.37388 | JF34: 53096.62968 | JG34: 54694.9134 | JH34: 56341.68595 | JI34: 58038.45733 | JJ34: 59731.44943 | JK34: 61526.31415 | JL34: 63375.37536 | JM34: 65280.30101 | JN34: 67242.81417 | JO34: 69253.00728 | JP34: 71333.64189 | JQ34: 73476.99774 | JR34: 75684.98707 | JS34: 77959.58262 | JT34: 80302.81981 | JU34: 82716.79899 | JV34: 85203.68778 | JW34: 87765.72357 | JX34: 90405.21608 | JY34: 93069.21094 | JZ34: 95864.2085 | KA34: 98743.40654 | KB34: 101709.3731 | KC34: 104764.7585 | KD34: 107900.6099 | KE34: 111140.6726 | KF34: 114478.2394 | KG34: 117916.2659 | KH34: 121457.7998 | KI34: 125105.9835 | KJ34: 128864.0576 | KK34: 132735.3642 | KL34: 136723.3503 | KM34: 140831.5716 | KN34: 145008.3571 | KO34: 149361.5291 | KP34: 153845.6467 | KQ34: 158464.6805 | KR34: 163222.7251 | KS34: 168112.3155 | KT34: 173158.7293 | KU34: 178356.8378
D35: Total Retirements | H35: =H33+H34 -> 2.682423964 | I35: =I33+I34 -> 3.00431484 | J35: 3.364832621 | K35: 3.768612536 | L35: 4.22084604 | M35: 4.727347565 | N35: 5.294629272 | O35: 5.929984785 | P35: 6.641582959 | Q35: 7.438572914 | R35: 8.331201664 | S35: 9.330945864 | T35: 10.45065937 | U35: 11.70473849 | V35: 13.10930711 | W35: 14.68242396 | X35: 16.44431484 | Y35: 18.41763262 | Z35: 20.62774854 | AA35: 23.10307836 | AB35: 25.87544776 | AC35: 28.98050149 | AD35: 32.45816167 | AE35: 36.35314107 | AF35: 40.715518 | AG35: 45.60138016 | AH35: 51.07354578 | AI35: 45.5144433 | AJ35: 49.92426298 | AK35: 54.7685888 | AL35: 60.09104101 | AM35: 65.93970742 | AN35: 72.36761053 | AO35: 79.43322446 | AP35: 87.20104711 | AQ35: 95.7422337 | AR35: 105.1352982 | AS35: 60.1277378 | AT35: 64.85280448 | AU35: 70.07017132 | AV35: 75.83667308 | AW35: 82.21589748 | AX35: 77.59106555 | AY35: 82.9631839 | AZ35: 88.79867735 | BA35: 95.14203221 | BB35: 102.0422284 | BC35: 109.5532071 | BD35: 117.7343889 | BE35: 126.6512465 | BF35: 136.3759391 | BG35: 146.9880147 | BH35: 103.2360358 | BI35: 109.2543515 | BJ35: 115.8037647 | BK35: 122.9422743 | BL35: 130.7346667 | BM35: 127.5653978 | BN35: 134.4367462 | BO35: 141.8164465 | BP35: 149.7503344 | BQ35: 158.2887796 | BR35: 167.4871549 | BS35: 177.4063552 | BT35: 188.1133717 | BU35: =BU33+BU34 -> 199.6819281 | BV35: 212.1931834 | BW35: 170.3973596 | BX35: 178.4305149 | BY35: 187.055213 | BZ35: 196.331266 | CA35: 206.3253282 | CB35: 205.4237792 | CC35: 214.630879 | CD35: 224.4164033 | CE35: 234.8282899 | CF35: 245.9190738 | CG35: 257.7463579 | CH35: 270.3733343 | CI35: 283.8693602 | CJ35: 298.3105962 | CK35: 313.7807115 | CL35: 275.0325136 | CM35: 286.2047235 | CN35: 298.0626479 | CO35: 310.668924 | CP35: 324.0931159 | CQ35: 326.7246005 | CR35: 339.5707249 | CS35: 353.1044446 | CT35: 367.3769725 | CU35: 382.4442169 | CV35: 398.3672553 | CW35: 415.2128585 | CX35: 433.0540702 | CY35: 451.9708475 | CZ35: 472.0507704 | DA35: 438.0506742 | DB35: 454.1134289 | DC35: 471.0086145 | DD35: 488.8032696 | DE35: 507.5714919 | DF35: 515.7073278 | DG35: 534.222934 | DH35: 553.5962199 | DI35: 573.8835011 | DJ35: 595.1459413 | DK35: 617.4500314 | DL35: 640.868118 | DM35: 665.4789874 | DN35: 691.3685122 | DO35: 718.630365 | DP35: 692.0276567 | DQ35: 715.7097209 | DR35: 740.4527952 | DS35: 766.3307757 | DT35: 793.4248232 | DU35: 810.1362591 | DV35: 837.4847332 | DW35: 865.9558731 | DX35: 895.6139439 | DY35: 926.5282974 | DZ35: 958.7738582 | EA35: 992.4316595 | EB35: 1027.589435 | EC35: 1064.342273 | ED35: 1102.793339 | EE35: 1087.71552 | EF35: 1123.26822 | EG35: =EG33+EG34 -> 1160.238049 | EH35: 1198.709588 | EI35: 1238.774999 | EJ35: 1268.846941 | EK35: 1309.956735 | EL35: 1352.602035 | EM35: 1396.859491 | EN35: 1442.811211 | EO35: 1490.545259 | EP35: 1540.156202 | EQ35: 1591.745714 | ER35: 1645.423241 | ES35: 1701.306735 | ET35: 1704.184318 | EU35: 1758.231082 | EV35: 1814.249797 | EW35: 1872.341688 | EX35: 1932.616063 | EY35: 1983.503236 | EZ35: 2046.052719 | FA35: 2110.780899 | FB35: 2177.78372 | FC35: 2247.163167 | FD35: 2319.027774 | FE35: 2393.493193 | FF35: 2470.682815 | FG35: 2550.728454 | FH35: 2633.771105 | FI35: 2664.622619 | FJ35: 2747.482532 | FK35: 2833.178791 | FL35: 2921.838551 | FM35: 3013.597832 | FN35: 3096.914458 | FO35: 3192.866278 | FP35: 3291.998865 | FQ35: 3394.438225 | FR35: 3500.317307 | FS35: 3609.776538 | FT35: 3722.96442 | FU35: 3840.038178 | FV35: 3961.164479 | FW35: 4086.520211 | FX35: 4160.954198 | FY35: 4288.704058 | FZ35: 4420.636963 | GA35: 4556.920468 | GB35: 4697.732206 | GC35: 4831.572864 | GD35: 4979.564436 | GE35: 5132.297967 | GF35: 5289.946301 | GG35: 5452.690625 | GH35: 5620.721055 | GI35: 5794.237273 | GJ35: 5973.449217 | GK35: 6158.577848 | GL35: 6349.855981 | GM35: 6492.190041 | GN35: 6689.876977 | GO35: 6893.845069 | GP35: 7104.324818 | GQ35: 7321.558687 | GR35: 7534.114138 | GS35: =GS33+GS34 -> 7763.181949 | GT35: 7999.424005 | GU35: 8243.08612 | GV35: 8494.424639 | GW35: 8753.70709 | GX35: 9021.212888 | GY35: 9297.234101 | GZ35: 9582.076279 | HA35: 9876.059365 | HB35: 10124.17953 | HC35: 10430.82615 | HD35: 10747.02271 | HE35: 11073.09779 | HF35: 11409.39485 | HG35: 11744.58539 | HH35: 12099.96733 | HI35: 12466.31295 | HJ35: 12843.98174 | HK35: 13233.34712 | HL35: 13634.79725 | HM35: 14048.73575 | HN35: 14475.58265 | HO35: 14915.77528 | HP35: 15369.76934 | HQ35: 15782.7008 | HR35: 16259.10306 | HS35: 16750.14793 | HT35: 17256.31677 | HU35: 17778.1104 | HV35: 18304.3624 | HW35: 18856.53766 | HX35: 19425.58039 | HY35: 20012.02719 | HZ35: 20616.43394 | IA35: 21239.37667 | IB35: 21881.45256 | IC35: 22543.28096 | ID35: 23225.50455 | IE35: 23928.79048 | IF35: 24598.49257 | IG35: 25339.36859 | IH35: 26102.82143 | II35: 26889.57047 | IJ35: 27700.3617 | IK35: 28524.28125 | IL35: 29383.05407 | IM35: 30267.89229 | IN35: 31179.60845 | IO35: 32119.04264 | IP35: 33087.06363 | IQ35: 34084.57013 | IR35: 35112.49206 | IS35: 36171.79197 | IT35: 37263.46653 | IU35: 38333.20891 | IV35: 39486.12641 | IW35: 40673.98198 | IX35: 41897.86584 | IY35: 43158.90594 | IZ35: 44446.58181 | JA35: 45783.02365 | JB35: 47159.86096 | JC35: 48578.33618 | JD35: 50039.7322 | JE35: =JE33+JE34 -> 51545.37388 | JF35: 53096.62968 | JG35: 54694.9134 | JH35: 56341.68595 | JI35: 58038.45733 | JJ35: 59731.44943 | JK35: 61526.31415 | JL35: 63375.37536 | JM35: 65280.30101 | JN35: 67242.81417 | JO35: 69253.00728 | JP35: 71333.64189 | JQ35: 73476.99774 | JR35: 75684.98707 | JS35: 77959.58262 | JT35: 80302.81981 | JU35: 82716.79899 | JV35: 85203.68778 | JW35: 87765.72357 | JX35: 90405.21608 | JY35: 93069.21094 | JZ35: 95864.2085 | KA35: 98743.40654 | KB35: 101709.3731 | KC35: 104764.7585 | KD35: 107900.6099 | KE35: 111140.6726 | KF35: 114478.2394 | KG35: 117916.2659 | KH35: 121457.7998 | KI35: 125105.9835 | KJ35: 128864.0576 | KK35: 132735.3642 | KL35: 136723.3503 | KM35: 140831.5716 | KN35: 145008.3571 | KO35: 149361.5291 | KP35: 153845.6467 | KQ35: 158464.6805 | KR35: 163222.7251 | KS35: 168112.3155 | KT35: 173158.7293 | KU35: 178356.8378
B37: Depreciation Expense - True Value
C38: Plant Balance | AO38: =AO39/AN39-1 -> 0.03
D39: Opening Balance | H39: =G42 -> 100 | I39: =H42 -> 112 | J39: 125.44 | K39: 140.4928 | L39: 157.351936 | M39: 176.2341683 | N39: 197.3822685 | O39: 221.0681407 | P39: 247.5963176 | Q39: 277.3078757 | R39: 310.5848208 | S39: 347.8549993 | T39: 389.5975993 | U39: 424.6613832 | V39: 462.8809077 | W39: 504.5401894 | X39: 549.9488064 | Y39: 599.444199 | Z39: 653.3941769 | AA39: 712.1996528 | AB39: 776.2976216 | AC39: 846.1644075 | AD39: 922.3192042 | AE39: 949.9887803 | AF39: 978.4884437 | AG39: 1007.843097 | AH39: 1038.07839 | AI39: 1069.220742 | AJ39: 1101.297364 | AK39: 1134.336285 | AL39: 1168.366373 | AM39: 1203.417365 | AN39: 1239.519885 | AO39: 1276.705482 | AP39: 1315.006647 | AQ39: 1354.456846 | AR39: 1395.090551 | AS39: 1436.943268 | AT39: 1480.051566 | AU39: 1524.453113 | AV39: 1570.186706 | AW39: 1617.292307 | AX39: 1665.811077 | AY39: 1715.785409 | AZ39: 1767.258971 | BA39: 1820.27674 | BB39: 1874.885043 | BC39: 1931.131594 | BD39: 1989.065542 | BE39: 2048.737508 | BF39: 2110.199633 | BG39: 2173.505622 | BH39: 2238.710791 | BI39: 2305.872114 | BJ39: 2375.048278 | BK39: 2446.299726 | BL39: 2519.688718 | BM39: 2595.27938 | BN39: 2673.137761 | BO39: 2753.331894 | BP39: 2835.931851 | BQ39: 2921.009806 | BR39: 3008.6401 | BS39: 3098.899303 | BT39: 3191.866282 | BU39: =BT42 -> 3287.622271 | BV39: 3386.250939 | BW39: 3487.838467 | BX39: 3592.473621 | BY39: 3700.24783 | BZ39: 3811.255265 | CA39: 3925.592923 | CB39: 4043.36071 | CC39: 4164.661532 | CD39: 4289.601378 | CE39: 4418.289419 | CF39: 4550.838102 | CG39: 4687.363245 | CH39: 4827.984142 | CI39: 4972.823666 | CJ39: 5122.008376 | CK39: 5275.668627 | CL39: 5433.938686 | CM39: 5596.956847 | CN39: 5764.865552 | CO39: 5937.811519 | CP39: 6115.945864 | CQ39: 6299.42424 | CR39: 6488.406968 | CS39: 6683.059177 | CT39: 6883.550952 | CU39: 7090.05748 | CV39: 7302.759205 | CW39: 7521.841981 | CX39: 7747.49724 | CY39: 7979.922158 | CZ39: 8219.319822 | DA39: 8465.899417 | DB39: 8719.8764 | DC39: 8981.472692 | DD39: 9250.916872 | DE39: 9528.444378 | DF39: 9814.29771 | DG39: 10108.72664 | DH39: 10411.98844 | DI39: 10724.34809 | DJ39: 11046.07854 | DK39: 11377.46089 | DL39: 11718.78472 | DM39: 12070.34826 | DN39: 12432.45871 | DO39: 12805.43247 | DP39: 13189.59544 | DQ39: 13585.28331 | DR39: 13992.84181 | DS39: 14412.62706 | DT39: 14845.00587 | DU39: 15290.35605 | DV39: 15749.06673 | DW39: 16221.53873 | DX39: 16708.18489 | DY39: 17209.43044 | DZ39: 17725.71335 | EA39: 18257.48475 | EB39: 18805.2093 | EC39: 19369.36558 | ED39: 19950.44654 | EE39: 20548.95994 | EF39: 21165.42874 | EG39: =EF42 -> 21800.3916 | EH39: 22454.40335 | EI39: 23128.03545 | EJ39: 23821.87651 | EK39: 24536.53281 | EL39: 25272.62879 | EM39: 26030.80766 | EN39: 26811.73189 | EO39: 27616.08384 | EP39: 28444.56636 | EQ39: 29297.90335 | ER39: 30176.84045 | ES39: 31082.14566 | ET39: 32014.61003 | EU39: 32975.04833 | EV39: 33964.29978 | EW39: 34983.22878 | EX39: 36032.72564 | EY39: 37113.70741 | EZ39: 38227.11863 | FA39: 39373.93219 | FB39: 40555.15015 | FC39: 41771.80466 | FD39: 43024.9588 | FE39: 44315.70756 | FF39: 45645.17879 | FG39: 47014.53415 | FH39: 48424.97018 | FI39: 49877.71928 | FJ39: 51374.05086 | FK39: 52915.27239 | FL39: 54502.73056 | FM39: 56137.81248 | FN39: 57821.94685 | FO39: 59556.60526 | FP39: 61343.30341 | FQ39: 63183.60252 | FR39: 65079.11059 | FS39: 67031.48391 | FT39: 69042.42843 | FU39: 71113.70128 | FV39: 73247.11232 | FW39: 75444.52569 | FX39: 77707.86146 | FY39: 80039.0973 | FZ39: 82440.27022 | GA39: 84913.47833 | GB39: 87460.88268 | GC39: 90084.70916 | GD39: 92787.25043 | GE39: 95570.86795 | GF39: 98437.99398 | GG39: 101391.1338 | GH39: 104432.8678 | GI39: 107565.8539 | GJ39: 110792.8295 | GK39: 114116.6144 | GL39: 117540.1128 | GM39: 121066.3162 | GN39: 124698.3057 | GO39: 128439.2548 | GP39: 132292.4325 | GQ39: 136261.2054 | GR39: 140349.0416 | GS39: =GR42 -> 144559.5129 | GT39: 148896.2982 | GU39: 153363.1872 | GV39: 157964.0828 | GW39: 162703.0053 | GX39: 167584.0954 | GY39: 172611.6183 | GZ39: 177789.9669 | HA39: 183123.6659 | HB39: 188617.3758 | HC39: 194275.8971 | HD39: 200104.174 | HE39: 206107.2992 | HF39: 212290.5182 | HG39: 218659.2338 | HH39: 225219.0108 | HI39: 231975.5811 | HJ39: 238934.8485 | HK39: 246102.894 | HL39: 253485.9808 | HM39: 261090.5602 | HN39: 268923.277 | HO39: 276990.9754 | HP39: 285300.7046 | HQ39: 293859.7258 | HR39: 302675.5175 | HS39: 311755.7831 | HT39: 321108.4565 | HU39: 330741.7102 | HV39: 340663.9616 | HW39: 350883.8804 | HX39: 361410.3968 | HY39: 372252.7087 | HZ39: 383420.29 | IA39: 394922.8987 | IB39: 406770.5856 | IC39: 418973.7032 | ID39: 431542.9143 | IE39: 444489.2017 | IF39: 457823.8778 | IG39: 471558.5941 | IH39: 485705.3519 | II39: 500276.5125 | IJ39: 515284.8079 | IK39: 530743.3521 | IL39: 546665.6527 | IM39: 563065.6222 | IN39: 579957.5909 | IO39: 597356.3186 | IP39: 615277.0082 | IQ39: 633735.3184 | IR39: 652747.378 | IS39: 672329.7993 | IT39: 692499.6933 | IU39: 713274.6841 | IV39: 734672.9246 | IW39: 756713.1124 | IX39: 779414.5058 | IY39: 802796.9409 | IZ39: 826880.8492 | JA39: 851687.2746 | JB39: 877237.8929 | JC39: 903555.0297 | JD39: 930661.6805 | JE39: =JD42 -> 958581.531 | JF39: 987338.9769 | JG39: 1016959.146 | JH39: 1047467.921 | JI39: 1078891.958 | JJ39: 1111258.717 | JK39: 1144596.478 | JL39: 1178934.373 | JM39: 1214302.404 | JN39: 1250731.476 | JO39: 1288253.42 | JP39: 1326901.023 | JQ39: 1366708.054 | JR39: 1407709.295 | JS39: 1449940.574 | JT39: 1493438.791 | JU39: 1538241.955 | JV39: 1584389.214 | JW39: 1631920.89 | JX39: 1680878.517 | JY39: 1731304.872 | JZ39: 1783244.019 | KA39: 1836741.339 | KB39: 1891843.579 | KC39: 1948598.887 | KD39: 2007056.853 | KE39: 2067268.559 | KF39: 2129286.616 | KG39: 2193165.214 | KH39: 2258960.171 | KI39: 2326728.976 | KJ39: 2396530.845 | KK39: 2468426.77 | KL39: 2542479.573 | KM39: 2618753.961 | KN39: 2697316.579 | KO39: 2778236.077 | KP39: 2861583.159 | KQ39: 2947430.654 | KR39: 3035853.574 | KS39: 3126929.181 | KT39: 3220737.056 | KU39: 3317359.168
D40: Add: Capital Expenditures | H40: =H30 -> 14.68242396 | I40: =I30 -> 16.44431484 | J40: 18.41763262 | K40: 20.62774854 | L40: 23.10307836 | M40: 25.87544776 | N40: 28.98050149 | O40: 32.45816167 | P40: 36.35314107 | Q40: 40.715518 | R40: 45.60138016 | S40: 51.07354578 | T40: 45.5144433 | U40: 49.92426298 | V40: 54.7685888 | W40: 60.09104101 | X40: 65.93970742 | Y40: 72.36761053 | Z40: 79.43322446 | AA40: 87.20104711 | AB40: 95.7422337 | AC40: 105.1352982 | AD40: 60.1277378 | AE40: 64.85280448 | AF40: 70.07017132 | AG40: 75.83667308 | AH40: 82.21589748 | AI40: 77.59106555 | AJ40: 82.9631839 | AK40: 88.79867735 | AL40: 95.14203221 | AM40: 102.0422284 | AN40: 109.5532071 | AO40: 117.7343889 | AP40: 126.6512465 | AQ40: 136.3759391 | AR40: 146.9880147 | AS40: 103.2360358 | AT40: 109.2543515 | AU40: 115.8037647 | AV40: 122.9422743 | AW40: 130.7346667 | AX40: 127.5653978 | AY40: 134.4367462 | AZ40: 141.8164465 | BA40: 149.7503344 | BB40: 158.2887796 | BC40: 167.4871549 | BD40: 177.4063552 | BE40: 188.1133717 | BF40: 199.6819281 | BG40: 212.1931834 | BH40: 170.3973596 | BI40: 178.4305149 | BJ40: 187.055213 | BK40: 196.331266 | BL40: 206.3253282 | BM40: 205.4237792 | BN40: 214.630879 | BO40: 224.4164033 | BP40: 234.8282899 | BQ40: 245.9190738 | BR40: 257.7463579 | BS40: 270.3733343 | BT40: 283.8693602 | BU40: =BU30 -> 298.3105962 | BV40: 313.7807115 | BW40: 275.0325136 | BX40: 286.2047235 | BY40: 298.0626479 | BZ40: 310.668924 | CA40: 324.0931159 | CB40: 326.7246005 | CC40: 339.5707249 | CD40: 353.1044446 | CE40: 367.3769725 | CF40: 382.4442169 | CG40: 398.3672553 | CH40: 415.2128585 | CI40: 433.0540702 | CJ40: 451.9708475 | CK40: 472.0507704 | CL40: 438.0506742 | CM40: 454.1134289 | CN40: 471.0086145 | CO40: 488.8032696 | CP40: 507.5714919 | CQ40: 515.7073278 | CR40: 534.222934 | CS40: 553.5962199 | CT40: 573.8835011 | CU40: 595.1459413 | CV40: 617.4500314 | CW40: 640.868118 | CX40: 665.4789874 | CY40: 691.3685122 | CZ40: 718.630365 | DA40: 692.0276567 | DB40: 715.7097209 | DC40: 740.4527952 | DD40: 766.3307757 | DE40: 793.4248232 | DF40: 810.1362591 | DG40: 837.4847332 | DH40: 865.9558731 | DI40: 895.6139439 | DJ40: 926.5282974 | DK40: 958.7738582 | DL40: 992.4316595 | DM40: 1027.589435 | DN40: 1064.342273 | DO40: 1102.793339 | DP40: 1087.71552 | DQ40: 1123.26822 | DR40: 1160.238049 | DS40: 1198.709588 | DT40: 1238.774999 | DU40: 1268.846941 | DV40: 1309.956735 | DW40: 1352.602035 | DX40: 1396.859491 | DY40: 1442.811211 | DZ40: 1490.545259 | EA40: 1540.156202 | EB40: 1591.745714 | EC40: 1645.423241 | ED40: 1701.306735 | EE40: 1704.184318 | EF40: 1758.231082 | EG40: =EG30 -> 1814.249797 | EH40: 1872.341688 | EI40: 1932.616063 | EJ40: 1983.503236 | EK40: 2046.052719 | EL40: 2110.780899 | EM40: 2177.78372 | EN40: 2247.163167 | EO40: 2319.027774 | EP40: 2393.493193 | EQ40: 2470.682815 | ER40: 2550.728454 | ES40: 2633.771105 | ET40: 2664.622619 | EU40: 2747.482532 | EV40: 2833.178791 | EW40: 2921.838551 | EX40: 3013.597832 | EY40: 3096.914458 | EZ40: 3192.866278 | FA40: 3291.998865 | FB40: 3394.438225 | FC40: 3500.317307 | FD40: 3609.776538 | FE40: 3722.96442 | FF40: 3840.038178 | FG40: 3961.164479 | FH40: 4086.520211 | FI40: 4160.954198 | FJ40: 4288.704058 | FK40: 4420.636963 | FL40: 4556.920468 | FM40: 4697.732206 | FN40: 4831.572864 | FO40: 4979.564436 | FP40: 5132.297967 | FQ40: 5289.946301 | FR40: 5452.690625 | FS40: 5620.721055 | FT40: 5794.237273 | FU40: 5973.449217 | FV40: 6158.577848 | FW40: 6349.855981 | FX40: 6492.190041 | FY40: 6689.876977 | FZ40: 6893.845069 | GA40: 7104.324818 | GB40: 7321.558687 | GC40: 7534.114138 | GD40: 7763.181949 | GE40: 7999.424005 | GF40: 8243.08612 | GG40: 8494.424639 | GH40: 8753.70709 | GI40: 9021.212888 | GJ40: 9297.234101 | GK40: 9582.076279 | GL40: 9876.059365 | GM40: 10124.17953 | GN40: 10430.82615 | GO40: 10747.02271 | GP40: 11073.09779 | GQ40: 11409.39485 | GR40: 11744.58539 | GS40: =GS30 -> 12099.96733 | GT40: 12466.31295 | GU40: 12843.98174 | GV40: 13233.34712 | GW40: 13634.79725 | GX40: 14048.73575 | GY40: 14475.58265 | GZ40: 14915.77528 | HA40: 15369.76934 | HB40: 15782.7008 | HC40: 16259.10306 | HD40: 16750.14793 | HE40: 17256.31677 | HF40: 17778.1104 | HG40: 18304.3624 | HH40: 18856.53766 | HI40: 19425.58039 | HJ40: 20012.02719 | HK40: 20616.43394 | HL40: 21239.37667 | HM40: 21881.45256 | HN40: 22543.28096 | HO40: 23225.50455 | HP40: 23928.79048 | HQ40: 24598.49257 | HR40: 25339.36859 | HS40: 26102.82143 | HT40: 26889.57047 | HU40: 27700.3617 | HV40: 28524.28125 | HW40: 29383.05407 | HX40: 30267.89229 | HY40: 31179.60845 | HZ40: 32119.04264 | IA40: 33087.06363 | IB40: 34084.57013 | IC40: 35112.49206 | ID40: 36171.79197 | IE40: 37263.46653 | IF40: 38333.20891 | IG40: 39486.12641 | IH40: 40673.98198 | II40: 41897.86584 | IJ40: 43158.90594 | IK40: 44446.58181 | IL40: 45783.02365 | IM40: 47159.86096 | IN40: 48578.33618 | IO40: 50039.7322 | IP40: 51545.37388 | IQ40: 53096.62968 | IR40: 54694.9134 | IS40: 56341.68595 | IT40: 58038.45733 | IU40: 59731.44943 | IV40: 61526.31415 | IW40: 63375.37536 | IX40: 65280.30101 | IY40: 67242.81417 | IZ40: 69253.00728 | JA40: 71333.64189 | JB40: 73476.99774 | JC40: 75684.98707 | JD40: 77959.58262 | JE40: =JE30 -> 80302.81981 | JF40: 82716.79899 | JG40: 85203.68778 | JH40: 87765.72357 | JI40: 90405.21608 | JJ40: 93069.21094 | JK40: 95864.2085 | JL40: 98743.40654 | JM40: 101709.3731 | JN40: 104764.7585 | JO40: 107900.6099 | JP40: 111140.6726 | JQ40: 114478.2394 | JR40: 117916.2659 | JS40: 121457.7998 | JT40: 125105.9835 | JU40: 128864.0576 | JV40: 132735.3642 | JW40: 136723.3503 | JX40: 140831.5716 | JY40: 145008.3571 | JZ40: 149361.5291 | KA40: 153845.6467 | KB40: 158464.6805 | KC40: 163222.7251 | KD40: 168112.3155 | KE40: 173158.7293 | KF40: 178356.8378 | KG40: 183711.2224 | KH40: 189226.605 | KI40: 194907.8528 | KJ40: 200759.983 | KK40: 206788.1673 | KL40: 212997.7375 | KM40: 219394.1904 | KN40: 225927.8545 | KO40: 232708.6114 | KP40: 239693.1415 | KQ40: 246887.6001 | KR40: 254298.3323 | KS40: 261920.1909 | KT40: 269780.841 | KU40: 277877.6129
D41: Less: Retirements | H41: =H35 -> 2.682423964 | I41: =I35 -> 3.00431484 | J41: 3.364832621 | K41: 3.768612536 | L41: 4.22084604 | M41: 4.727347565 | N41: 5.294629272 | O41: 5.929984785 | P41: 6.641582959 | Q41: 7.438572914 | R41: 8.331201664 | S41: 9.330945864 | T41: 10.45065937 | U41: 11.70473849 | V41: 13.10930711 | W41: 14.68242396 | X41: =X35 -> 16.44431484 | Y41: 18.41763262 | Z41: 20.62774854 | AA41: 23.10307836 | AB41: 25.87544776 | AC41: 28.98050149 | AD41: 32.45816167 | AE41: 36.35314107 | AF41: 40.715518 | AG41: 45.60138016 | AH41: 51.07354578 | AI41: 45.5144433 | AJ41: 49.92426298 | AK41: 54.7685888 | AL41: 60.09104101 | AM41: 65.93970742 | AN41: 72.36761053 | AO41: 79.43322446 | AP41: 87.20104711 | AQ41: 95.7422337 | AR41: 105.1352982 | AS41: 60.1277378 | AT41: 64.85280448 | AU41: 70.07017132 | AV41: 75.83667308 | AW41: 82.21589748 | AX41: 77.59106555 | AY41: 82.9631839 | AZ41: 88.79867735 | BA41: 95.14203221 | BB41: 102.0422284 | BC41: 109.5532071 | BD41: 117.7343889 | BE41: 126.6512465 | BF41: 136.3759391 | BG41: 146.9880147 | BH41: 103.2360358 | BI41: 109.2543515 | BJ41: 115.8037647 | BK41: 122.9422743 | BL41: 130.7346667 | BM41: 127.5653978 | BN41: 134.4367462 | BO41: 141.8164465 | BP41: 149.7503344 | BQ41: 158.2887796 | BR41: 167.4871549 | BS41: 177.4063552 | BT41: 188.1133717 | BU41: =BU35 -> 199.6819281 | BV41: 212.1931834 | BW41: 170.3973596 | BX41: 178.4305149 | BY41: 187.055213 | BZ41: 196.331266 | CA41: 206.3253282 | CB41: 205.4237792 | CC41: 214.630879 | CD41: 224.4164033 | CE41: 234.8282899 | CF41: 245.9190738 | CG41: 257.7463579 | CH41: 270.3733343 | CI41: 283.8693602 | CJ41: 298.3105962 | CK41: 313.7807115 | CL41: 275.0325136 | CM41: 286.2047235 | CN41: 298.0626479 | CO41: 310.668924 | CP41: 324.0931159 | CQ41: 326.7246005 | CR41: 339.5707249 | CS41: 353.1044446 | CT41: 367.3769725 | CU41: 382.4442169 | CV41: 398.3672553 | CW41: 415.2128585 | CX41: 433.0540702 | CY41: 451.9708475 | CZ41: 472.0507704 | DA41: 438.0506742 | DB41: 454.1134289 | DC41: 471.0086145 | DD41: 488.8032696 | DE41: 507.5714919 | DF41: 515.7073278 | DG41: 534.222934 | DH41: 553.5962199 | DI41: 573.8835011 | DJ41: 595.1459413 | DK41: 617.4500314 | DL41: 640.868118 | DM41: 665.4789874 | DN41: 691.3685122 | DO41: 718.630365 | DP41: 692.0276567 | DQ41: 715.7097209 | DR41: 740.4527952 | DS41: 766.3307757 | DT41: 793.4248232 | DU41: 810.1362591 | DV41: 837.4847332 | DW41: 865.9558731 | DX41: 895.6139439 | DY41: 926.5282974 | DZ41: 958.7738582 | EA41: 992.4316595 | EB41: 1027.589435 | EC41: 1064.342273 | ED41: 1102.793339 | EE41: 1087.71552 | EF41: 1123.26822 | EG41: =EG35 -> 1160.238049 | EH41: 1198.709588 | EI41: 1238.774999 | EJ41: 1268.846941 | EK41: 1309.956735 | EL41: 1352.602035 | EM41: 1396.859491 | EN41: 1442.811211 | EO41: 1490.545259 | EP41: 1540.156202 | EQ41: 1591.745714 | ER41: 1645.423241 | ES41: 1701.306735 | ET41: 1704.184318 | EU41: 1758.231082 | EV41: 1814.249797 | EW41: 1872.341688 | EX41: 1932.616063 | EY41: 1983.503236 | EZ41: 2046.052719 | FA41: 2110.780899 | FB41: 2177.78372 | FC41: 2247.163167 | FD41: 2319.027774 | FE41: 2393.493193 | FF41: 2470.682815 | FG41: 2550.728454 | FH41: 2633.771105 | FI41: 2664.622619 | FJ41: 2747.482532 | FK41: 2833.178791 | FL41: 2921.838551 | FM41: 3013.597832 | FN41: 3096.914458 | FO41: 3192.866278 | FP41: 3291.998865 | FQ41: 3394.438225 | FR41: 3500.317307 | FS41: 3609.776538 | FT41: 3722.96442 | FU41: 3840.038178 | FV41: 3961.164479 | FW41: 4086.520211 | FX41: 4160.954198 | FY41: 4288.704058 | FZ41: 4420.636963 | GA41: 4556.920468 | GB41: 4697.732206 | GC41: 4831.572864 | GD41: 4979.564436 | GE41: 5132.297967 | GF41: 5289.946301 | GG41: 5452.690625 | GH41: 5620.721055 | GI41: 5794.237273 | GJ41: 5973.449217 | GK41: 6158.577848 | GL41: 6349.855981 | GM41: 6492.190041 | GN41: 6689.876977 | GO41: 6893.845069 | GP41: 7104.324818 | GQ41: 7321.558687 | GR41: 7534.114138 | GS41: =GS35 -> 7763.181949 | GT41: 7999.424005 | GU41: 8243.08612 | GV41: 8494.424639 | GW41: 8753.70709 | GX41: 9021.212888 | GY41: 9297.234101 | GZ41: 9582.076279 | HA41: 9876.059365 | HB41: 10124.17953 | HC41: 10430.82615 | HD41: 10747.02271 | HE41: 11073.09779 | HF41: 11409.39485 | HG41: 11744.58539 | HH41: 12099.96733 | HI41: 12466.31295 | HJ41: 12843.98174 | HK41: 13233.34712 | HL41: 13634.79725 | HM41: 14048.73575 | HN41: 14475.58265 | HO41: 14915.77528 | HP41: 15369.76934 | HQ41: 15782.7008 | HR41: 16259.10306 | HS41: 16750.14793 | HT41: 17256.31677 | HU41: 17778.1104 | HV41: 18304.3624 | HW41: 18856.53766 | HX41: 19425.58039 | HY41: 20012.02719 | HZ41: 20616.43394 | IA41: 21239.37667 | IB41: 21881.45256 | IC41: 22543.28096 | ID41: 23225.50455 | IE41: 23928.79048 | IF41: 24598.49257 | IG41: 25339.36859 | IH41: 26102.82143 | II41: 26889.57047 | IJ41: 27700.3617 | IK41: 28524.28125 | IL41: 29383.05407 | IM41: 30267.89229 | IN41: 31179.60845 | IO41: 32119.04264 | IP41: 33087.06363 | IQ41: 34084.57013 | IR41: 35112.49206 | IS41: 36171.79197 | IT41: 37263.46653 | IU41: 38333.20891 | IV41: 39486.12641 | IW41: 40673.98198 | IX41: 41897.86584 | IY41: 43158.90594 | IZ41: 44446.58181 | JA41: 45783.02365 | JB41: 47159.86096 | JC41: 48578.33618 | JD41: 50039.7322 | JE41: =JE35 -> 51545.37388 | JF41: 53096.62968 | JG41: 54694.9134 | JH41: 56341.68595 | JI41: 58038.45733 | JJ41: 59731.44943 | JK41: 61526.31415 | JL41: 63375.37536 | JM41: 65280.30101 | JN41: 67242.81417 | JO41: 69253.00728 | JP41: 71333.64189 | JQ41: 73476.99774 | JR41: 75684.98707 | JS41: 77959.58262 | JT41: 80302.81981 | JU41: 82716.79899 | JV41: 85203.68778 | JW41: 87765.72357 | JX41: 90405.21608 | JY41: 93069.21094 | JZ41: 95864.2085 | KA41: 98743.40654 | KB41: 101709.3731 | KC41: 104764.7585 | KD41: 107900.6099 | KE41: 111140.6726 | KF41: 114478.2394 | KG41: 117916.2659 | KH41: 121457.7998 | KI41: 125105.9835 | KJ41: 128864.0576 | KK41: 132735.3642 | KL41: 136723.3503 | KM41: 140831.5716 | KN41: 145008.3571 | KO41: 149361.5291 | KP41: 153845.6467 | KQ41: 158464.6805 | KR41: 163222.7251 | KS41: 168112.3155 | KT41: 173158.7293 | KU41: 178356.8378
D42: Closing Balance | G42: =G27 -> 100 | H42: =H39+H40-H41 -> 112 | I42: =I39+I40-I41 -> 125.44 | J42: 140.4928 | K42: 157.351936 | L42: 176.2341683 | M42: 197.3822685 | N42: 221.0681407 | O42: 247.5963176 | P42: 277.3078757 | Q42: 310.5848208 | R42: 347.8549993 | S42: 389.5975993 | T42: 424.6613832 | U42: 462.8809077 | V42: 504.5401894 | W42: 549.9488064 | X42: 599.444199 | Y42: 653.3941769 | Z42: 712.1996528 | AA42: 776.2976216 | AB42: 846.1644075 | AC42: 922.3192042 | AD42: 949.9887803 | AE42: 978.4884437 | AF42: 1007.843097 | AG42: 1038.07839 | AH42: 1069.220742 | AI42: 1101.297364 | AJ42: 1134.336285 | AK42: 1168.366373 | AL42: 1203.417365 | AM42: 1239.519885 | AN42: 1276.705482 | AO42: 1315.006647 | AP42: 1354.456846 | AQ42: 1395.090551 | AR42: 1436.943268 | AS42: 1480.051566 | AT42: 1524.453113 | AU42: 1570.186706 | AV42: 1617.292307 | AW42: 1665.811077 | AX42: 1715.785409 | AY42: 1767.258971 | AZ42: 1820.27674 | BA42: 1874.885043 | BB42: 1931.131594 | BC42: 1989.065542 | BD42: 2048.737508 | BE42: 2110.199633 | BF42: 2173.505622 | BG42: 2238.710791 | BH42: 2305.872114 | BI42: 2375.048278 | BJ42: 2446.299726 | BK42: 2519.688718 | BL42: 2595.27938 | BM42: 2673.137761 | BN42: 2753.331894 | BO42: 2835.931851 | BP42: 2921.009806 | BQ42: 3008.6401 | BR42: 3098.899303 | BS42: 3191.866282 | BT42: 3287.622271 | BU42: =BU39+BU40-BU41 -> 3386.250939 | BV42: 3487.838467 | BW42: 3592.473621 | BX42: 3700.24783 | BY42: 3811.255265 | BZ42: 3925.592923 | CA42: 4043.36071 | CB42: 4164.661532 | CC42: 4289.601378 | CD42: 4418.289419 | CE42: 4550.838102 | CF42: 4687.363245 | CG42: 4827.984142 | CH42: 4972.823666 | CI42: 5122.008376 | CJ42: 5275.668627 | CK42: 5433.938686 | CL42: 5596.956847 | CM42: 5764.865552 | CN42: 5937.811519 | CO42: 6115.945864 | CP42: 6299.42424 | CQ42: 6488.406968 | CR42: 6683.059177 | CS42: 6883.550952 | CT42: 7090.05748 | CU42: 7302.759205 | CV42: 7521.841981 | CW42: 7747.49724 | CX42: 7979.922158 | CY42: 8219.319822 | CZ42: 8465.899417 | DA42: 8719.8764 | DB42: 8981.472692 | DC42: 9250.916872 | DD42: 9528.444378 | DE42: 9814.29771 | DF42: 10108.72664 | DG42: 10411.98844 | DH42: 10724.34809 | DI42: 11046.07854 | DJ42: 11377.46089 | DK42: 11718.78472 | DL42: 12070.34826 | DM42: 12432.45871 | DN42: 12805.43247 | DO42: 13189.59544 | DP42: 13585.28331 | DQ42: 13992.84181 | DR42: 14412.62706 | DS42: 14845.00587 | DT42: 15290.35605 | DU42: 15749.06673 | DV42: 16221.53873 | DW42: 16708.18489 | DX42: 17209.43044 | DY42: 17725.71335 | DZ42: 18257.48475 | EA42: 18805.2093 | EB42: 19369.36558 | EC42: 19950.44654 | ED42: 20548.95994 | EE42: 21165.42874 | EF42: 21800.3916 | EG42: =EG39+EG40-EG41 -> 22454.40335 | EH42: 23128.03545 | EI42: 23821.87651 | EJ42: 24536.53281 | EK42: 25272.62879 | EL42: 26030.80766 | EM42: 26811.73189 | EN42: 27616.08384 | EO42: 28444.56636 | EP42: 29297.90335 | EQ42: 30176.84045 | ER42: 31082.14566 | ES42: 32014.61003 | ET42: 32975.04833 | EU42: 33964.29978 | EV42: 34983.22878 | EW42: 36032.72564 | EX42: 37113.70741 | EY42: 38227.11863 | EZ42: 39373.93219 | FA42: 40555.15015 | FB42: 41771.80466 | FC42: 43024.9588 | FD42: 44315.70756 | FE42: 45645.17879 | FF42: 47014.53415 | FG42: 48424.97018 | FH42: 49877.71928 | FI42: 51374.05086 | FJ42: 52915.27239 | FK42: 54502.73056 | FL42: 56137.81248 | FM42: 57821.94685 | FN42: 59556.60526 | FO42: 61343.30341 | FP42: 63183.60252 | FQ42: 65079.11059 | FR42: 67031.48391 | FS42: 69042.42843 | FT42: 71113.70128 | FU42: 73247.11232 | FV42: 75444.52569 | FW42: 77707.86146 | FX42: 80039.0973 | FY42: 82440.27022 | FZ42: 84913.47833 | GA42: 87460.88268 | GB42: 90084.70916 | GC42: 92787.25043 | GD42: 95570.86795 | GE42: 98437.99398 | GF42: 101391.1338 | GG42: 104432.8678 | GH42: 107565.8539 | GI42: 110792.8295 | GJ42: 114116.6144 | GK42: 117540.1128 | GL42: 121066.3162 | GM42: 124698.3057 | GN42: 128439.2548 | GO42: 132292.4325 | GP42: 136261.2054 | GQ42: 140349.0416 | GR42: 144559.5129 | GS42: =GS39+GS40-GS41 -> 148896.2982 | GT42: 153363.1872 | GU42: 157964.0828 | GV42: 162703.0053 | GW42: 167584.0954 | GX42: 172611.6183 | GY42: 177789.9669 | GZ42: 183123.6659 | HA42: 188617.3758 | HB42: 194275.8971 | HC42: 200104.174 | HD42: 206107.2992 | HE42: 212290.5182 | HF42: 218659.2338 | HG42: 225219.0108 | HH42: 231975.5811 | HI42: 238934.8485 | HJ42: 246102.894 | HK42: 253485.9808 | HL42: 261090.5602 | HM42: 268923.277 | HN42: 276990.9754 | HO42: 285300.7046 | HP42: 293859.7258 | HQ42: 302675.5175 | HR42: 311755.7831 | HS42: 321108.4565 | HT42: 330741.7102 | HU42: 340663.9616 | HV42: 350883.8804 | HW42: 361410.3968 | HX42: 372252.7087 | HY42: 383420.29 | HZ42: 394922.8987 | IA42: 406770.5856 | IB42: 418973.7032 | IC42: 431542.9143 | ID42: 444489.2017 | IE42: 457823.8778 | IF42: 471558.5941 | IG42: 485705.3519 | IH42: 500276.5125 | II42: 515284.8079 | IJ42: 530743.3521 | IK42: 546665.6527 | IL42: 563065.6222 | IM42: 579957.5909 | IN42: 597356.3186 | IO42: 615277.0082 | IP42: 633735.3184 | IQ42: 652747.378 | IR42: 672329.7993 | IS42: 692499.6933 | IT42: 713274.6841 | IU42: 734672.9246 | IV42: 756713.1124 | IW42: 779414.5058 | IX42: 802796.9409 | IY42: 826880.8492 | IZ42: 851687.2746 | JA42: 877237.8929 | JB42: 903555.0297 | JC42: 930661.6805 | JD42: 958581.531 | JE42: =JE39+JE40-JE41 -> 987338.9769 | JF42: 1016959.146 | JG42: 1047467.921 | JH42: 1078891.958 | JI42: 1111258.717 | JJ42: 1144596.478 | JK42: 1178934.373 | JL42: 1214302.404 | JM42: 1250731.476 | JN42: 1288253.42 | JO42: 1326901.023 | JP42: 1366708.054 | JQ42: 1407709.295 | JR42: 1449940.574 | JS42: 1493438.791 | JT42: 1538241.955 | JU42: 1584389.214 | JV42: 1631920.89 | JW42: 1680878.517 | JX42: 1731304.872 | JY42: 1783244.019 | JZ42: 1836741.339 | KA42: 1891843.579 | KB42: 1948598.887 | KC42: 2007056.853 | KD42: 2067268.559 | KE42: 2129286.616 | KF42: 2193165.214 | KG42: 2258960.171 | KH42: 2326728.976 | KI42: 2396530.845 | KJ42: 2468426.77 | KK42: 2542479.573 | KL42: 2618753.961 | KM42: 2697316.579 | KN42: 2778236.077 | KO42: 2861583.159 | KP42: 2947430.654 | KQ42: 3035853.574 | KR42: 3126929.181 | KS42: 3220737.056 | KT42: 3317359.168 | KU42: 3416879.943
D44: Depreciation Rate | H44: =1/$E$18 -> 0.06666666667 | I44: =1/$E$18 -> 0.06666666667 | J44: 0.06666666667 | K44: 0.06666666667 | L44: 0.06666666667 | M44: 0.06666666667 | N44: 0.06666666667 | O44: 0.06666666667 | P44: 0.06666666667 | Q44: 0.06666666667 | R44: 0.06666666667 | S44: 0.06666666667 | T44: 0.06666666667 | U44: 0.06666666667 | V44: 0.06666666667 | W44: 0.06666666667 | X44: 0.06666666667 | Y44: 0.06666666667 | Z44: 0.06666666667 | AA44: 0.06666666667 | AB44: 0.06666666667 | AC44: 0.06666666667 | AD44: 0.06666666667 | AE44: 0.06666666667 | AF44: 0.06666666667 | AG44: 0.06666666667 | AH44: 0.06666666667 | AI44: 0.06666666667 | AJ44: 0.06666666667 | AK44: 0.06666666667 | AL44: 0.06666666667 | AM44: 0.06666666667 | AN44: 0.06666666667 | AO44: 0.06666666667 | AP44: 0.06666666667 | AQ44: 0.06666666667 | AR44: 0.06666666667 | AS44: 0.06666666667 | AT44: 0.06666666667 | AU44: 0.06666666667 | AV44: 0.06666666667 | AW44: 0.06666666667 | AX44: 0.06666666667 | AY44: 0.06666666667 | AZ44: 0.06666666667 | BA44: 0.06666666667 | BB44: 0.06666666667 | BC44: 0.06666666667 | BD44: 0.06666666667 | BE44: 0.06666666667 | BF44: 0.06666666667 | BG44: 0.06666666667 | BH44: 0.06666666667 | BI44: 0.06666666667 | BJ44: 0.06666666667 | BK44: 0.06666666667 | BL44: 0.06666666667 | BM44: 0.06666666667 | BN44: 0.06666666667 | BO44: 0.06666666667 | BP44: 0.06666666667 | BQ44: 0.06666666667 | BR44: 0.06666666667 | BS44: 0.06666666667 | BT44: 0.06666666667 | BU44: =1/$E$18 -> 0.06666666667 | BV44: 0.06666666667 | BW44: 0.06666666667 | BX44: 0.06666666667 | BY44: 0.06666666667 | BZ44: 0.06666666667 | CA44: 0.06666666667 | CB44: 0.06666666667 | CC44: 0.06666666667 | CD44: 0.06666666667 | CE44: 0.06666666667 | CF44: 0.06666666667 | CG44: 0.06666666667 | CH44: 0.06666666667 | CI44: 0.06666666667 | CJ44: 0.06666666667 | CK44: 0.06666666667 | CL44: 0.06666666667 | CM44: 0.06666666667 | CN44: 0.06666666667 | CO44: 0.06666666667 | CP44: 0.06666666667 | CQ44: 0.06666666667 | CR44: 0.06666666667 | CS44: 0.06666666667 | CT44: 0.06666666667 | CU44: 0.06666666667 | CV44: 0.06666666667 | CW44: 0.06666666667 | CX44: 0.06666666667 | CY44: 0.06666666667 | CZ44: 0.06666666667 | DA44: 0.06666666667 | DB44: 0.06666666667 | DC44: 0.06666666667 | DD44: 0.06666666667 | DE44: 0.06666666667 | DF44: 0.06666666667 | DG44: 0.06666666667 | DH44: 0.06666666667 | DI44: 0.06666666667 | DJ44: 0.06666666667 | DK44: 0.06666666667 | DL44: 0.06666666667 | DM44: 0.06666666667 | DN44: 0.06666666667 | DO44: 0.06666666667 | DP44: 0.06666666667 | DQ44: 0.06666666667 | DR44: 0.06666666667 | DS44: 0.06666666667 | DT44: 0.06666666667 | DU44: 0.06666666667 | DV44: 0.06666666667 | DW44: 0.06666666667 | DX44: 0.06666666667 | DY44: 0.06666666667 | DZ44: 0.06666666667 | EA44: 0.06666666667 | EB44: 0.06666666667 | EC44: 0.06666666667 | ED44: 0.06666666667 | EE44: 0.06666666667 | EF44: 0.06666666667 | EG44: =1/$E$18 -> 0.06666666667 | EH44: 0.06666666667 | EI44: 0.06666666667 | EJ44: 0.06666666667 | EK44: 0.06666666667 | EL44: 0.06666666667 | EM44: 0.06666666667 | EN44: 0.06666666667 | EO44: 0.06666666667 | EP44: 0.06666666667 | EQ44: 0.06666666667 | ER44: 0.06666666667 | ES44: 0.06666666667 | ET44: 0.06666666667 | EU44: 0.06666666667 | EV44: 0.06666666667 | EW44: 0.06666666667 | EX44: 0.06666666667 | EY44: 0.06666666667 | EZ44: 0.06666666667 | FA44: 0.06666666667 | FB44: 0.06666666667 | FC44: 0.06666666667 | FD44: 0.06666666667 | FE44: 0.06666666667 | FF44: 0.06666666667 | FG44: 0.06666666667 | FH44: 0.06666666667 | FI44: 0.06666666667 | FJ44: 0.06666666667 | FK44: 0.06666666667 | FL44: 0.06666666667 | FM44: 0.06666666667 | FN44: 0.06666666667 | FO44: 0.06666666667 | FP44: 0.06666666667 | FQ44: 0.06666666667 | FR44: 0.06666666667 | FS44: 0.06666666667 | FT44: 0.06666666667 | FU44: 0.06666666667 | FV44: 0.06666666667 | FW44: 0.06666666667 | FX44: 0.06666666667 | FY44: 0.06666666667 | FZ44: 0.06666666667 | GA44: 0.06666666667 | GB44: 0.06666666667 | GC44: 0.06666666667 | GD44: 0.06666666667 | GE44: 0.06666666667 | GF44: 0.06666666667 | GG44: 0.06666666667 | GH44: 0.06666666667 | GI44: 0.06666666667 | GJ44: 0.06666666667 | GK44: 0.06666666667 | GL44: 0.06666666667 | GM44: 0.06666666667 | GN44: 0.06666666667 | GO44: 0.06666666667 | GP44: 0.06666666667 | GQ44: 0.06666666667 | GR44: 0.06666666667 | GS44: =1/$E$18 -> 0.06666666667 | GT44: 0.06666666667 | GU44: 0.06666666667 | GV44: 0.06666666667 | GW44: 0.06666666667 | GX44: 0.06666666667 | GY44: 0.06666666667 | GZ44: 0.06666666667 | HA44: 0.06666666667 | HB44: 0.06666666667 | HC44: 0.06666666667 | HD44: 0.06666666667 | HE44: 0.06666666667 | HF44: 0.06666666667 | HG44: 0.06666666667 | HH44: 0.06666666667 | HI44: 0.06666666667 | HJ44: 0.06666666667 | HK44: 0.06666666667 | HL44: 0.06666666667 | HM44: 0.06666666667 | HN44: 0.06666666667 | HO44: 0.06666666667 | HP44: 0.06666666667 | HQ44: 0.06666666667 | HR44: 0.06666666667 | HS44: 0.06666666667 | HT44: 0.06666666667 | HU44: 0.06666666667 | HV44: 0.06666666667 | HW44: 0.06666666667 | HX44: 0.06666666667 | HY44: 0.06666666667 | HZ44: 0.06666666667 | IA44: 0.06666666667 | IB44: 0.06666666667 | IC44: 0.06666666667 | ID44: 0.06666666667 | IE44: 0.06666666667 | IF44: 0.06666666667 | IG44: 0.06666666667 | IH44: 0.06666666667 | II44: 0.06666666667 | IJ44: 0.06666666667 | IK44: 0.06666666667 | IL44: 0.06666666667 | IM44: 0.06666666667 | IN44: 0.06666666667 | IO44: 0.06666666667 | IP44: 0.06666666667 | IQ44: 0.06666666667 | IR44: 0.06666666667 | IS44: 0.06666666667 | IT44: 0.06666666667 | IU44: 0.06666666667 | IV44: 0.06666666667 | IW44: 0.06666666667 | IX44: 0.06666666667 | IY44: 0.06666666667 | IZ44: 0.06666666667 | JA44: 0.06666666667 | JB44: 0.06666666667 | JC44: 0.06666666667 | JD44: 0.06666666667 | JE44: =1/$E$18 -> 0.06666666667 | JF44: 0.06666666667 | JG44: 0.06666666667 | JH44: 0.06666666667 | JI44: 0.06666666667 | JJ44: 0.06666666667 | JK44: 0.06666666667 | JL44: 0.06666666667 | JM44: 0.06666666667 | JN44: 0.06666666667 | JO44: 0.06666666667 | JP44: 0.06666666667 | JQ44: 0.06666666667 | JR44: 0.06666666667 | JS44: 0.06666666667 | JT44: 0.06666666667 | JU44: 0.06666666667 | JV44: 0.06666666667 | JW44: 0.06666666667 | JX44: 0.06666666667 | JY44: 0.06666666667 | JZ44: 0.06666666667 | KA44: 0.06666666667 | KB44: 0.06666666667 | KC44: 0.06666666667 | KD44: 0.06666666667 | KE44: 0.06666666667 | KF44: 0.06666666667 | KG44: 0.06666666667 | KH44: 0.06666666667 | KI44: 0.06666666667 | KJ44: 0.06666666667 | KK44: 0.06666666667 | KL44: 0.06666666667 | KM44: 0.06666666667 | KN44: 0.06666666667 | KO44: 0.06666666667 | KP44: 0.06666666667 | KQ44: 0.06666666667 | KR44: 0.06666666667 | KS44: 0.06666666667 | KT44: 0.06666666667 | KU44: 0.06666666667
D45: Depreciation Expense | H45: =H44*H42 -> 7.466666667 | I45: =I44*I42 -> 8.362666667 | J45: 9.366186667 | K45: 10.49012907 | L45: 11.74894455 | M45: 13.1588179 | N45: 14.73787605 | O45: 16.50642118 | P45: 18.48719172 | Q45: 20.70565472 | R45: 23.19033329 | S45: 25.97317328 | T45: 28.31075888 | U45: 30.85872718 | V45: 33.63601262 | W45: 36.66325376 | X45: 39.9629466 | Y45: 43.55961179 | Z45: 47.47997685 | AA45: 51.75317477 | AB45: 56.4109605 | AC45: 61.48794695 | AD45: 63.33258535 | AE45: 65.23256291 | AF45: 67.1895398 | AG45: 69.205226 | AH45: 71.28138278 | AI45: 73.41982426 | AJ45: 75.62241899 | AK45: 77.89109156 | AL45: 80.2278243 | AM45: 82.63465903 | AN45: 85.1136988 | AO45: 87.66710977 | AP45: 90.29712306 | AQ45: 93.00603675 | AR45: 95.79621785 | AS45: 98.67010439 | AT45: 101.6302075 | AU45: 104.6791137 | AV45: 107.8194872 | AW45: 111.0540718 | AX45: 114.3856939 | AY45: 117.8172647 | AZ45: 121.3517827 | BA45: 124.9923362 | BB45: 128.7421063 | BC45: 132.6043694 | BD45: 136.5825005 | BE45: 140.6799755 | BF45: 144.9003748 | BG45: 149.2473861 | BH45: 153.7248076 | BI45: 158.3365519 | BJ45: 163.0866484 | BK45: 167.9792479 | BL45: 173.0186253 | BM45: 178.2091841 | BN45: 183.5554596 | BO45: 189.0621234 | BP45: 194.7339871 | BQ45: 200.5760067 | BR45: 206.5932869 | BS45: 212.7910855 | BT45: 219.1748181 | BU45: =BU44*BU42 -> 225.7500626 | BV45: 232.5225645 | BW45: 239.4982414 | BX45: 246.6831887 | BY45: 254.0836843 | BZ45: 261.7061948 | CA45: 269.5573807 | CB45: 277.6441021 | CC45: 285.9734252 | CD45: 294.5526279 | CE45: 303.3892068 | CF45: 312.490883 | CG45: 321.8656095 | CH45: 331.5215777 | CI45: 341.4672251 | CJ45: 351.7112418 | CK45: 362.2625791 | CL45: 373.1304565 | CM45: 384.3243702 | CN45: 395.8541013 | CO45: 407.7297243 | CP45: 419.961616 | CQ45: 432.5604645 | CR45: 445.5372784 | CS45: 458.9033968 | CT45: 472.6704987 | CU45: 486.8506137 | CV45: 501.4561321 | CW45: 516.499816 | CX45: 531.9948105 | CY45: 547.9546548 | CZ45: 564.3932945 | DA45: 581.3250933 | DB45: 598.7648461 | DC45: 616.7277915 | DD45: 635.2296252 | DE45: 654.286514 | DF45: 673.9151094 | DG45: 694.1325627 | DH45: 714.9565396 | DI45: 736.4052358 | DJ45: 758.4973928 | DK45: 781.2523146 | DL45: 804.6898841 | DM45: 828.8305806 | DN45: 853.695498 | DO45: 879.3063629 | DP45: 905.6855538 | DQ45: 932.8561204 | DR45: 960.841804 | DS45: 989.6670582 | DT45: 1019.35707 | DU45: 1049.937782 | DV45: 1081.435915 | DW45: 1113.878993 | DX45: 1147.295363 | DY45: 1181.714224 | DZ45: 1217.16565 | EA45: 1253.68062 | EB45: 1291.291038 | EC45: 1330.02977 | ED45: 1369.930663 | EE45: 1411.028583 | EF45: 1453.35944 | EG45: =EG44*EG42 -> 1496.960223 | EH45: 1541.86903 | EI45: 1588.125101 | EJ45: 1635.768854 | EK45: 1684.841919 | EL45: 1735.387177 | EM45: 1787.448792 | EN45: 1841.072256 | EO45: 1896.304424 | EP45: 1953.193557 | EQ45: 2011.789363 | ER45: 2072.143044 | ES45: 2134.307335 | ET45: 2198.336555 | EU45: 2264.286652 | EV45: 2332.215252 | EW45: 2402.181709 | EX45: 2474.247161 | EY45: 2548.474575 | EZ45: 2624.928813 | FA45: 2703.676677 | FB45: 2784.786977 | FC45: 2868.330587 | FD45: 2954.380504 | FE45: 3043.011919 | FF45: 3134.302277 | FG45: 3228.331345 | FH45: 3325.181286 | FI45: 3424.936724 | FJ45: 3527.684826 | FK45: 3633.515371 | FL45: 3742.520832 | FM45: 3854.796457 | FN45: 3970.44035 | FO45: 4089.553561 | FP45: 4212.240168 | FQ45: 4338.607373 | FR45: 4468.765594 | FS45: 4602.828562 | FT45: 4740.913419 | FU45: 4883.140821 | FV45: 5029.635046 | FW45: 5180.524097 | FX45: 5335.93982 | FY45: 5496.018015 | FZ45: 5660.898555 | GA45: 5830.725512 | GB45: 6005.647277 | GC45: 6185.816696 | GD45: 6371.391196 | GE45: 6562.532932 | GF45: 6759.40892 | GG45: 6962.191188 | GH45: 7171.056924 | GI45: 7386.188631 | GJ45: 7607.77429 | GK45: 7836.007519 | GL45: 8071.087744 | GM45: 8313.220377 | GN45: 8562.616988 | GO45: 8819.495498 | GP45: 9084.080363 | GQ45: 9356.602774 | GR45: 9637.300857 | GS45: =GS44*GS42 -> 9926.419882 | GT45: 10224.21248 | GU45: 10530.93885 | GV45: 10846.86702 | GW45: 11172.27303 | GX45: 11507.44122 | GY45: 11852.66446 | GZ45: 12208.24439 | HA45: 12574.49172 | HB45: 12951.72647 | HC45: 13340.27827 | HD45: 13740.48662 | HE45: 14152.70121 | HF45: 14577.28225 | HG45: 15014.60072 | HH45: 15465.03874 | HI45: 15928.9899 | HJ45: 16406.8596 | HK45: 16899.06539 | HL45: 17406.03735 | HM45: 17928.21847 | HN45: 18466.06502 | HO45: 19020.04697 | HP45: 19590.64838 | HQ45: 20178.36784 | HR45: 20783.71887 | HS45: 21407.23044 | HT45: 22049.44735 | HU45: 22710.93077 | HV45: 23392.25869 | HW45: 24094.02645 | HX45: 24816.84725 | HY45: 25561.35266 | HZ45: 26328.19324 | IA45: 27118.03904 | IB45: 27931.58021 | IC45: 28769.52762 | ID45: 29632.61345 | IE45: 30521.59185 | IF45: 31437.23961 | IG45: 32380.3568 | IH45: 33351.7675 | II45: 34352.32052 | IJ45: 35382.89014 | IK45: 36444.37684 | IL45: 37537.70815 | IM45: 38663.83939 | IN45: 39823.75458 | IO45: 41018.46721 | IP45: 42249.02123 | IQ45: 43516.49187 | IR45: 44821.98662 | IS45: 46166.64622 | IT45: 47551.64561 | IU45: 48978.19498 | IV45: 50447.54083 | IW45: 51960.96705 | IX45: 53519.79606 | IY45: 55125.38994 | IZ45: 56779.15164 | JA45: 58482.52619 | JB45: 60237.00198 | JC45: 62044.11204 | JD45: 63905.4354 | JE45: =JE44*JE42 -> 65822.59846 | JF45: 67797.27641 | JG45: 69831.19471 | JH45: 71926.13055 | JI45: 74083.91446 | JJ45: 76306.4319 | JK45: 78595.62485 | JL45: 80953.4936 | JM45: 83382.09841 | JN45: 85883.56136 | JO45: 88460.0682 | JP45: 91113.87025 | JQ45: 93847.28635 | JR45: 96662.70494 | JS45: 99562.58609 | JT45: 102549.4637 | JU45: 105625.9476 | JV45: 108794.726 | JW45: 112058.5678 | JX45: 115420.3248 | JY45: 118882.9346 | JZ45: 122449.4226 | KA45: 126122.9053 | KB45: 129906.5924 | KC45: 133803.7902 | KD45: 137817.9039 | KE45: 141952.441 | KF45: 146211.0143 | KG45: 150597.3447 | KH45: 155115.265 | KI45: 159768.723 | KJ45: 164561.7847 | KK45: 169498.6382 | KL45: 174583.5974 | KM45: 179821.1053 | KN45: 185215.7385 | KO45: 190772.2106 | KP45: 196495.3769 | KQ45: 202390.2382 | KR45: 208461.9454 | KS45: 214715.8037 | KT45: 221157.2779 | KU45: 227791.9962
C47: Accumulated Depreciation
D48: Opening Balance | H48: =G51 -> 39.86784168 | I48: =H51 -> 44.65208438 | J48: 50.01043621 | K48: 56.01179025 | L48: 62.73330678 | M48: 70.2614053 | N48: 78.69287563 | O48: 88.13612241 | P48: 98.7125588 | Q48: 110.5581676 | R48: 123.8252494 | S48: 138.684381 | T48: 155.3266084 | U48: 173.1867079 | V48: 192.3406966 | W48: 212.8674021 | X48: 234.8482319 | Y48: 258.3668637 | Z48: 283.5088429 | AA48: 310.3610712 | AB48: 339.0111676 | AC48: 369.5466803 | AD48: 402.0541258 | AE48: 432.9285494 | AF48: 461.8079713 | AG48: 488.2819931 | AH48: 511.8858389 | AI48: 532.0936759 | AJ48: 559.9990569 | AK48: 585.6972129 | AL48: 608.8197156 | AM48: 628.9564989 | AN48: 645.6514505 | AO48: 658.3975388 | AP48: 666.6314241 | AQ48: 669.7275001 | AR48: 666.9913031 | AS48: 657.6522228 | AT48: 696.1945894 | AU48: 732.9719924 | AV48: 767.5809349 | AW48: 799.563749 | AX48: 828.4019233 | AY48: 865.1965516 | AZ48: 900.0506325 | BA48: 932.6037378 | BB48: 962.4540418 | BC48: 989.1539197 | BD48: 1012.205082 | BE48: 1031.053194 | BF48: 1045.081923 | BG48: 1053.606358 | BH48: 1055.86573 | BI48: 1106.354502 | BJ48: 1155.436702 | BK48: 1202.719586 | BL48: 1247.756559 | BM48: 1290.040518 | BN48: 1340.684304 | BO48: 1389.803018 | BP48: 1437.048694 | BQ48: 1482.032347 | BR48: 1524.319574 | BS48: 1563.425706 | BT48: 1598.810436 | BU48: =BT51 -> 1629.871883 | BV48: 1655.940017 | BW48: 1676.269398 | BX48: 1745.37028 | BY48: 1813.622954 | BZ48: 1880.651425 | CA48: 1946.026354 | CB48: 2009.258407 | CC48: 2081.478729 | CD48: 2152.821276 | CE48: 2222.9575 | CF48: 2291.518417 | CG48: 2358.090226 | CH48: 2422.209478 | CI48: 2483.357721 | CJ48: 2540.955586 | CK48: 2594.356232 | CL48: 2642.838099 | CM48: 2740.936042 | CN48: 2839.055689 | CO48: 2936.847142 | CP48: 3033.907942 | CQ48: 3129.776443 | CR48: 3235.612306 | CS48: 3341.57886 | CT48: 3447.377812 | CU48: 3552.671338 | CV48: 3657.077735 | CW48: 3760.166612 | CX48: 3861.453569 | CY48: 3960.39431 | CZ48: 4056.378117 | DA48: 4148.720641 | DB48: 4291.99506 | DC48: 4436.646477 | DD48: 4582.365654 | DE48: 4728.79201 | DF48: 4875.507032 | DG48: 5033.714814 | DH48: 5193.624443 | DI48: 5354.984762 | DJ48: 5517.506497 | DK48: 5680.857949 | DL48: 5844.660232 | DM48: 6008.481998 | DN48: 6171.833591 | DO48: 6334.160577 | DP48: 6494.836575 | DQ48: 6708.494472 | DR48: 6925.640871 | DS48: 7146.02988 | DT48: 7369.366163 | DU48: 7595.298409 | DV48: 7835.099932 | DW48: 8079.051114 | DX48: 8326.974234 | DY48: 8578.655653 | DZ48: 8833.841579 | EA48: 9092.233372 | EB48: 9353.482332 | EC48: 9617.183935 | ED48: 9882.871431 | EE48: 10150.00875 | EF48: 10473.32182 | EG48: =EF51 -> 10803.41304 | EH48: 11140.13521 | EI48: 11483.29465 | EJ48: 11832.64475 | EK48: 12199.56667 | EL48: 12574.45185 | EM48: 12957.23699 | EN48: 13347.8263 | EO48: 13746.08734 | EP48: 14151.84651 | EQ48: 14564.88386 | ER48: 14984.92751 | ES48: 15411.64731 | ET48: 15844.64791 | EU48: 16338.80015 | EV48: 16844.85572 | EW48: 17362.82117 | EX48: 17892.6612 | EY48: 18434.29229 | EZ48: 18999.26363 | FA48: 19578.13973 | FB48: 20171.0355 | FC48: 20778.03876 | FD48: 21399.20618 | FE48: 22034.55891 | FF48: 22684.07764 | FG48: 23347.6971 | FH48: 24025.29999 | FI48: 24716.71017 | FJ48: 25477.02428 | FK48: 26257.22657 | FL48: 27057.56315 | FM48: 27878.24543 | FN48: 28719.44405 | FO48: 29592.96995 | FP48: 30489.65723 | FQ48: 31409.89853 | FR48: 32354.06768 | FS48: 33322.51597 | FT48: 34315.56799 | FU48: 35333.51699 | FV48: 36376.61963 | FW48: 37445.0902 | FX48: 38539.09409 | FY48: 39714.07971 | FZ48: 40921.39367 | GA48: 42161.65526 | GB48: 43435.4603 | GC48: 44743.37537 | GD48: 46097.61921 | GE48: 47489.44597 | GF48: 48919.68093 | GG48: 50389.14355 | GH48: 51898.64411 | GI48: 53448.97998 | GJ48: 55040.93134 | GK48: 56675.25641 | GL48: 58352.68609 | GM48: 60073.91785 | GN48: 61894.94818 | GO48: 63767.68819 | GP48: 65693.33862 | GQ48: 67673.09417 | GR48: 69708.13825 | GS48: =GR51 -> 71811.32497 | GT48: 73974.56291 | GU48: 76199.35138 | GV48: 78487.20411 | GW48: 80839.64649 | GX48: 83258.21243 | GY48: 85744.44077 | GZ48: 88299.87112 | HA48: 90926.03923 | HB48: 93624.47159 | HC48: 96452.01854 | HD48: 99361.47066 | HE48: 102354.9346 | HF48: 105434.538 | HG48: 108602.4254 | HH48: 111872.4407 | HI48: 115237.5121 | HJ48: 118700.1891 | HK48: 122263.0669 | HL48: 125928.7852 | HM48: 129700.0253 | HN48: 133579.508 | HO48: 137569.9904 | HP48: 141674.2621 | HQ48: 145895.1411 | HR48: 150290.8082 | HS48: 154815.424 | HT48: 159472.5065 | HU48: 164265.6371 | HV48: 169198.4574 | HW48: 174286.3537 | HX48: 179523.8425 | HY48: 184915.1094 | HZ48: 190464.4349 | IA48: 196176.1942 | IB48: 202054.8565 | IC48: 208104.9842 | ID48: 214331.2308 | IE48: 220738.3397 | IF48: 227331.1411 | IG48: 234169.8881 | IH48: 241210.8764 | II48: 248459.8224 | IJ48: 255922.5725 | IK48: 263605.1009 | IL48: 271525.1965 | IM48: 279679.8506 | IN48: 288075.7977 | IO48: 296719.9438 | IP48: 305619.3684 | IQ48: 314781.326 | IR48: 324213.2477 | IS48: 333922.7423 | IT48: 343917.5966 | IU48: 354205.7756 | IV48: 364850.7617 | IW48: 375812.1761 | IX48: 387099.1612 | IY48: 398721.0914 | IZ48: 410687.5754 | JA48: 423020.1452 | JB48: 435719.6478 | JC48: 448796.7888 | JD48: 462262.5647 | JE48: =JD51 -> 476128.2679 | JF48: 490405.4924 | JG48: 505106.1392 | JH48: 520242.4205 | JI48: 535826.8651 | JJ48: 551872.3222 | JK48: 568447.3047 | JL48: 585516.6154 | JM48: 603094.7336 | JN48: 621196.531 | JO48: 639837.2782 | JP48: 659044.3391 | JQ48: 678824.5675 | JR48: 699194.8561 | JS48: 720172.574 | JT48: 741775.5774 | JU48: 764022.2213 | JV48: 786931.3699 | JW48: 810522.4081 | JX48: 834815.2524 | JY48: 859830.3611 | JZ48: 885644.0847 | KA48: 912229.2988 | KB48: 939608.7976 | KC48: 967806.0169 | KD48: 996845.0487 | KE48: 1026762.343 | KF48: 1057574.111 | KG48: 1089306.886 | KH48: 1121987.965 | KI48: 1155645.43 | KJ48: 1190308.17 | KK48: 1226005.897 | KL48: 1262769.171 | KM48: 1300629.418 | KN48: 1339618.951 | KO48: 1379826.333 | KP48: 1421237.014 | KQ48: 1463886.745 | KR48: 1507812.302 | KS48: 1553051.523 | KT48: 1599655.011 | KU48: 1647653.559
D49: Add: Depreciation Expense | H49: =H45 -> 7.466666667 | I49: =I45 -> 8.362666667 | J49: 9.366186667 | K49: 10.49012907 | L49: 11.74894455 | M49: 13.1588179 | N49: 14.73787605 | O49: 16.50642118 | P49: 18.48719172 | Q49: 20.70565472 | R49: 23.19033329 | S49: 25.97317328 | T49: 28.31075888 | U49: 30.85872718 | V49: 33.63601262 | W49: 36.66325376 | X49: 39.9629466 | Y49: 43.55961179 | Z49: 47.47997685 | AA49: 51.75317477 | AB49: 56.4109605 | AC49: 61.48794695 | AD49: 63.33258535 | AE49: 65.23256291 | AF49: 67.1895398 | AG49: 69.205226 | AH49: 71.28138278 | AI49: 73.41982426 | AJ49: 75.62241899 | AK49: 77.89109156 | AL49: 80.2278243 | AM49: 82.63465903 | AN49: 85.1136988 | AO49: 87.66710977 | AP49: 90.29712306 | AQ49: 93.00603675 | AR49: 95.79621785 | AS49: 98.67010439 | AT49: 101.6302075 | AU49: 104.6791137 | AV49: 107.8194872 | AW49: 111.0540718 | AX49: 114.3856939 | AY49: 117.8172647 | AZ49: 121.3517827 | BA49: 124.9923362 | BB49: 128.7421063 | BC49: 132.6043694 | BD49: 136.5825005 | BE49: 140.6799755 | BF49: 144.9003748 | BG49: 149.2473861 | BH49: 153.7248076 | BI49: 158.3365519 | BJ49: 163.0866484 | BK49: 167.9792479 | BL49: 173.0186253 | BM49: 178.2091841 | BN49: 183.5554596 | BO49: 189.0621234 | BP49: 194.7339871 | BQ49: 200.5760067 | BR49: 206.5932869 | BS49: 212.7910855 | BT49: 219.1748181 | BU49: =BU45 -> 225.7500626 | BV49: 232.5225645 | BW49: 239.4982414 | BX49: 246.6831887 | BY49: 254.0836843 | BZ49: 261.7061948 | CA49: 269.5573807 | CB49: 277.6441021 | CC49: 285.9734252 | CD49: 294.5526279 | CE49: 303.3892068 | CF49: 312.490883 | CG49: 321.8656095 | CH49: 331.5215777 | CI49: 341.4672251 | CJ49: 351.7112418 | CK49: 362.2625791 | CL49: 373.1304565 | CM49: 384.3243702 | CN49: 395.8541013 | CO49: 407.7297243 | CP49: 419.961616 | CQ49: 432.5604645 | CR49: 445.5372784 | CS49: 458.9033968 | CT49: 472.6704987 | CU49: 486.8506137 | CV49: 501.4561321 | CW49: 516.499816 | CX49: 531.9948105 | CY49: 547.9546548 | CZ49: 564.3932945 | DA49: 581.3250933 | DB49: 598.7648461 | DC49: 616.7277915 | DD49: 635.2296252 | DE49: 654.286514 | DF49: 673.9151094 | DG49: 694.1325627 | DH49: 714.9565396 | DI49: 736.4052358 | DJ49: 758.4973928 | DK49: 781.2523146 | DL49: 804.6898841 | DM49: 828.8305806 | DN49: 853.695498 | DO49: 879.3063629 | DP49: 905.6855538 | DQ49: 932.8561204 | DR49: 960.841804 | DS49: 989.6670582 | DT49: 1019.35707 | DU49: 1049.937782 | DV49: 1081.435915 | DW49: 1113.878993 | DX49: 1147.295363 | DY49: 1181.714224 | DZ49: 1217.16565 | EA49: 1253.68062 | EB49: 1291.291038 | EC49: 1330.02977 | ED49: 1369.930663 | EE49: 1411.028583 | EF49: 1453.35944 | EG49: =EG45 -> 1496.960223 | EH49: 1541.86903 | EI49: 1588.125101 | EJ49: 1635.768854 | EK49: 1684.841919 | EL49: 1735.387177 | EM49: 1787.448792 | EN49: 1841.072256 | EO49: 1896.304424 | EP49: 1953.193557 | EQ49: 2011.789363 | ER49: 2072.143044 | ES49: 2134.307335 | ET49: 2198.336555 | EU49: 2264.286652 | EV49: 2332.215252 | EW49: 2402.181709 | EX49: 2474.247161 | EY49: 2548.474575 | EZ49: 2624.928813 | FA49: 2703.676677 | FB49: 2784.786977 | FC49: 2868.330587 | FD49: 2954.380504 | FE49: 3043.011919 | FF49: 3134.302277 | FG49: 3228.331345 | FH49: 3325.181286 | FI49: 3424.936724 | FJ49: 3527.684826 | FK49: 3633.515371 | FL49: 3742.520832 | FM49: 3854.796457 | FN49: 3970.44035 | FO49: 4089.553561 | FP49: 4212.240168 | FQ49: 4338.607373 | FR49: 4468.765594 | FS49: 4602.828562 | FT49: 4740.913419 | FU49: 4883.140821 | FV49: 5029.635046 | FW49: 5180.524097 | FX49: 5335.93982 | FY49: 5496.018015 | FZ49: 5660.898555 | GA49: 5830.725512 | GB49: 6005.647277 | GC49: 6185.816696 | GD49: 6371.391196 | GE49: 6562.532932 | GF49: 6759.40892 | GG49: 6962.191188 | GH49: 7171.056924 | GI49: 7386.188631 | GJ49: 7607.77429 | GK49: 7836.007519 | GL49: 8071.087744 | GM49: 8313.220377 | GN49: 8562.616988 | GO49: 8819.495498 | GP49: 9084.080363 | GQ49: 9356.602774 | GR49: 9637.300857 | GS49: =GS45 -> 9926.419882 | GT49: 10224.21248 | GU49: 10530.93885 | GV49: 10846.86702 | GW49: 11172.27303 | GX49: 11507.44122 | GY49: 11852.66446 | GZ49: 12208.24439 | HA49: 12574.49172 | HB49: 12951.72647 | HC49: 13340.27827 | HD49: 13740.48662 | HE49: 14152.70121 | HF49: 14577.28225 | HG49: 15014.60072 | HH49: 15465.03874 | HI49: 15928.9899 | HJ49: 16406.8596 | HK49: 16899.06539 | HL49: 17406.03735 | HM49: 17928.21847 | HN49: 18466.06502 | HO49: 19020.04697 | HP49: 19590.64838 | HQ49: 20178.36784 | HR49: 20783.71887 | HS49: 21407.23044 | HT49: 22049.44735 | HU49: 22710.93077 | HV49: 23392.25869 | HW49: 24094.02645 | HX49: 24816.84725 | HY49: 25561.35266 | HZ49: 26328.19324 | IA49: 27118.03904 | IB49: 27931.58021 | IC49: 28769.52762 | ID49: 29632.61345 | IE49: 30521.59185 | IF49: 31437.23961 | IG49: 32380.3568 | IH49: 33351.7675 | II49: 34352.32052 | IJ49: 35382.89014 | IK49: 36444.37684 | IL49: 37537.70815 | IM49: 38663.83939 | IN49: 39823.75458 | IO49: 41018.46721 | IP49: 42249.02123 | IQ49: 43516.49187 | IR49: 44821.98662 | IS49: 46166.64622 | IT49: 47551.64561 | IU49: 48978.19498 | IV49: 50447.54083 | IW49: 51960.96705 | IX49: 53519.79606 | IY49: 55125.38994 | IZ49: 56779.15164 | JA49: 58482.52619 | JB49: 60237.00198 | JC49: 62044.11204 | JD49: 63905.4354 | JE49: =JE45 -> 65822.59846 | JF49: 67797.27641 | JG49: 69831.19471 | JH49: 71926.13055 | JI49: 74083.91446 | JJ49: 76306.4319 | JK49: 78595.62485 | JL49: 80953.4936 | JM49: 83382.09841 | JN49: 85883.56136 | JO49: 88460.0682 | JP49: 91113.87025 | JQ49: 93847.28635 | JR49: 96662.70494 | JS49: 99562.58609 | JT49: 102549.4637 | JU49: 105625.9476 | JV49: 108794.726 | JW49: 112058.5678 | JX49: 115420.3248 | JY49: 118882.9346 | JZ49: 122449.4226 | KA49: 126122.9053 | KB49: 129906.5924 | KC49: 133803.7902 | KD49: 137817.9039 | KE49: 141952.441 | KF49: 146211.0143 | KG49: 150597.3447 | KH49: 155115.265 | KI49: 159768.723 | KJ49: 164561.7847 | KK49: 169498.6382 | KL49: 174583.5974 | KM49: 179821.1053 | KN49: 185215.7385 | KO49: 190772.2106 | KP49: 196495.3769 | KQ49: 202390.2382 | KR49: 208461.9454 | KS49: 214715.8037 | KT49: 221157.2779 | KU49: 227791.9962
D50: Less: Retirements | E50: Fixed | F50: Computed | H50: =H41 -> 2.682423964 | I50: =I41 -> 3.00431484 | J50: 3.364832621 | K50: 3.768612536 | L50: 4.22084604 | M50: 4.727347565 | N50: 5.294629272 | O50: 5.929984785 | P50: 6.641582959 | Q50: 7.438572914 | R50: 8.331201664 | S50: 9.330945864 | T50: 10.45065937 | U50: 11.70473849 | V50: 13.10930711 | W50: 14.68242396 | X50: 16.44431484 | Y50: 18.41763262 | Z50: 20.62774854 | AA50: 23.10307836 | AB50: 25.87544776 | AC50: 28.98050149 | AD50: 32.45816167 | AE50: 36.35314107 | AF50: 40.715518 | AG50: 45.60138016 | AH50: 51.07354578 | AI50: 45.5144433 | AJ50: 49.92426298 | AK50: 54.7685888 | AL50: 60.09104101 | AM50: 65.93970742 | AN50: 72.36761053 | AO50: 79.43322446 | AP50: 87.20104711 | AQ50: 95.7422337 | AR50: 105.1352982 | AS50: 60.1277378 | AT50: 64.85280448 | AU50: 70.07017132 | AV50: 75.83667308 | AW50: 82.21589748 | AX50: 77.59106555 | AY50: 82.9631839 | AZ50: 88.79867735 | BA50: 95.14203221 | BB50: 102.0422284 | BC50: 109.5532071 | BD50: 117.7343889 | BE50: 126.6512465 | BF50: 136.3759391 | BG50: 146.9880147 | BH50: 103.2360358 | BI50: 109.2543515 | BJ50: 115.8037647 | BK50: 122.9422743 | BL50: 130.7346667 | BM50: 127.5653978 | BN50: 134.4367462 | BO50: 141.8164465 | BP50: 149.7503344 | BQ50: 158.2887796 | BR50: 167.4871549 | BS50: 177.4063552 | BT50: 188.1133717 | BU50: =BU41 -> 199.6819281 | BV50: 212.1931834 | BW50: 170.3973596 | BX50: 178.4305149 | BY50: 187.055213 | BZ50: 196.331266 | CA50: 206.3253282 | CB50: 205.4237792 | CC50: 214.630879 | CD50: 224.4164033 | CE50: 234.8282899 | CF50: 245.9190738 | CG50: 257.7463579 | CH50: 270.3733343 | CI50: 283.8693602 | CJ50: 298.3105962 | CK50: 313.7807115 | CL50: 275.0325136 | CM50: 286.2047235 | CN50: 298.0626479 | CO50: 310.668924 | CP50: 324.0931159 | CQ50: 326.7246005 | CR50: 339.5707249 | CS50: 353.1044446 | CT50: 367.3769725 | CU50: 382.4442169 | CV50: 398.3672553 | CW50: 415.2128585 | CX50: 433.0540702 | CY50: 451.9708475 | CZ50: 472.0507704 | DA50: 438.0506742 | DB50: 454.1134289 | DC50: 471.0086145 | DD50: 488.8032696 | DE50: 507.5714919 | DF50: 515.7073278 | DG50: 534.222934 | DH50: 553.5962199 | DI50: 573.8835011 | DJ50: 595.1459413 | DK50: 617.4500314 | DL50: 640.868118 | DM50: 665.4789874 | DN50: 691.3685122 | DO50: 718.630365 | DP50: 692.0276567 | DQ50: 715.7097209 | DR50: 740.4527952 | DS50: 766.3307757 | DT50: 793.4248232 | DU50: 810.1362591 | DV50: 837.4847332 | DW50: 865.9558731 | DX50: 895.6139439 | DY50: 926.5282974 | DZ50: 958.7738582 | EA50: 992.4316595 | EB50: 1027.589435 | EC50: 1064.342273 | ED50: 1102.793339 | EE50: 1087.71552 | EF50: 1123.26822 | EG50: =EG41 -> 1160.238049 | EH50: 1198.709588 | EI50: 1238.774999 | EJ50: 1268.846941 | EK50: 1309.956735 | EL50: 1352.602035 | EM50: 1396.859491 | EN50: 1442.811211 | EO50: 1490.545259 | EP50: 1540.156202 | EQ50: 1591.745714 | ER50: 1645.423241 | ES50: 1701.306735 | ET50: 1704.184318 | EU50: 1758.231082 | EV50: 1814.249797 | EW50: 1872.341688 | EX50: 1932.616063 | EY50: 1983.503236 | EZ50: 2046.052719 | FA50: 2110.780899 | FB50: 2177.78372 | FC50: 2247.163167 | FD50: 2319.027774 | FE50: 2393.493193 | FF50: 2470.682815 | FG50: 2550.728454 | FH50: 2633.771105 | FI50: 2664.622619 | FJ50: 2747.482532 | FK50: 2833.178791 | FL50: 2921.838551 | FM50: 3013.597832 | FN50: 3096.914458 | FO50: 3192.866278 | FP50: 3291.998865 | FQ50: 3394.438225 | FR50: 3500.317307 | FS50: 3609.776538 | FT50: 3722.96442 | FU50: 3840.038178 | FV50: 3961.164479 | FW50: 4086.520211 | FX50: 4160.954198 | FY50: 4288.704058 | FZ50: 4420.636963 | GA50: 4556.920468 | GB50: 4697.732206 | GC50: 4831.572864 | GD50: 4979.564436 | GE50: 5132.297967 | GF50: 5289.946301 | GG50: 5452.690625 | GH50: 5620.721055 | GI50: 5794.237273 | GJ50: 5973.449217 | GK50: 6158.577848 | GL50: 6349.855981 | GM50: 6492.190041 | GN50: 6689.876977 | GO50: 6893.845069 | GP50: 7104.324818 | GQ50: 7321.558687 | GR50: 7534.114138 | GS50: =GS41 -> 7763.181949 | GT50: 7999.424005 | GU50: 8243.08612 | GV50: 8494.424639 | GW50: 8753.70709 | GX50: 9021.212888 | GY50: 9297.234101 | GZ50: 9582.076279 | HA50: 9876.059365 | HB50: 10124.17953 | HC50: 10430.82615 | HD50: 10747.02271 | HE50: 11073.09779 | HF50: 11409.39485 | HG50: 11744.58539 | HH50: 12099.96733 | HI50: 12466.31295 | HJ50: 12843.98174 | HK50: 13233.34712 | HL50: 13634.79725 | HM50: 14048.73575 | HN50: 14475.58265 | HO50: 14915.77528 | HP50: 15369.76934 | HQ50: 15782.7008 | HR50: 16259.10306 | HS50: 16750.14793 | HT50: 17256.31677 | HU50: 17778.1104 | HV50: 18304.3624 | HW50: 18856.53766 | HX50: 19425.58039 | HY50: 20012.02719 | HZ50: 20616.43394 | IA50: 21239.37667 | IB50: 21881.45256 | IC50: 22543.28096 | ID50: 23225.50455 | IE50: 23928.79048 | IF50: 24598.49257 | IG50: 25339.36859 | IH50: 26102.82143 | II50: 26889.57047 | IJ50: 27700.3617 | IK50: 28524.28125 | IL50: 29383.05407 | IM50: 30267.89229 | IN50: 31179.60845 | IO50: 32119.04264 | IP50: 33087.06363 | IQ50: 34084.57013 | IR50: 35112.49206 | IS50: 36171.79197 | IT50: 37263.46653 | IU50: 38333.20891 | IV50: 39486.12641 | IW50: 40673.98198 | IX50: 41897.86584 | IY50: 43158.90594 | IZ50: 44446.58181 | JA50: 45783.02365 | JB50: 47159.86096 | JC50: 48578.33618 | JD50: 50039.7322 | JE50: =JE41 -> 51545.37388 | JF50: 53096.62968 | JG50: 54694.9134 | JH50: 56341.68595 | JI50: 58038.45733 | JJ50: 59731.44943 | JK50: 61526.31415 | JL50: 63375.37536 | JM50: 65280.30101 | JN50: 67242.81417 | JO50: 69253.00728 | JP50: 71333.64189 | JQ50: 73476.99774 | JR50: 75684.98707 | JS50: 77959.58262 | JT50: 80302.81981 | JU50: 82716.79899 | JV50: 85203.68778 | JW50: 87765.72357 | JX50: 90405.21608 | JY50: 93069.21094 | JZ50: 95864.2085 | KA50: 98743.40654 | KB50: 101709.3731 | KC50: 104764.7585 | KD50: 107900.6099 | KE50: 111140.6726 | KF50: 114478.2394 | KG50: 117916.2659 | KH50: 121457.7998 | KI50: 125105.9835 | KJ50: 128864.0576 | KK50: 132735.3642 | KL50: 136723.3503 | KM50: 140831.5716 | KN50: 145008.3571 | KO50: 149361.5291 | KP50: 153845.6467 | KQ50: 158464.6805 | KR50: 163222.7251 | KS50: 168112.3155 | KT50: 173158.7293 | KU50: 178356.8378
D51: Closing Balance | E51: 0.3986784168 | F51: =L12 -> 0.3986847165 | G51: =E51*G42 -> 39.86784168 | H51: =H48+H49-H50 -> 44.65208438 | I51: =I48+I49-I50 -> 50.01043621 | J51: 56.01179025 | K51: 62.73330678 | L51: 70.2614053 | M51: 78.69287563 | N51: 88.13612241 | O51: 98.7125588 | P51: 110.5581676 | Q51: 123.8252494 | R51: 138.684381 | S51: 155.3266084 | T51: 173.1867079 | U51: 192.3406966 | V51: 212.8674021 | W51: 234.8482319 | X51: 258.3668637 | Y51: 283.5088429 | Z51: 310.3610712 | AA51: 339.0111676 | AB51: 369.5466803 | AC51: 402.0541258 | AD51: 432.9285494 | AE51: 461.8079713 | AF51: 488.2819931 | AG51: 511.8858389 | AH51: 532.0936759 | AI51: 559.9990569 | AJ51: 585.6972129 | AK51: 608.8197156 | AL51: 628.9564989 | AM51: 645.6514505 | AN51: 658.3975388 | AO51: 666.6314241 | AP51: 669.7275001 | AQ51: 666.9913031 | AR51: 657.6522228 | AS51: 696.1945894 | AT51: 732.9719924 | AU51: 767.5809349 | AV51: 799.563749 | AW51: 828.4019233 | AX51: 865.1965516 | AY51: 900.0506325 | AZ51: 932.6037378 | BA51: 962.4540418 | BB51: 989.1539197 | BC51: 1012.205082 | BD51: 1031.053194 | BE51: 1045.081923 | BF51: 1053.606358 | BG51: 1055.86573 | BH51: 1106.354502 | BI51: 1155.436702 | BJ51: 1202.719586 | BK51: 1247.756559 | BL51: 1290.040518 | BM51: 1340.684304 | BN51: 1389.803018 | BO51: 1437.048694 | BP51: 1482.032347 | BQ51: 1524.319574 | BR51: 1563.425706 | BS51: 1598.810436 | BT51: 1629.871883 | BU51: =BU48+BU49-BU50 -> 1655.940017 | BV51: 1676.269398 | BW51: 1745.37028 | BX51: 1813.622954 | BY51: 1880.651425 | BZ51: 1946.026354 | CA51: 2009.258407 | CB51: 2081.478729 | CC51: 2152.821276 | CD51: 2222.9575 | CE51: 2291.518417 | CF51: 2358.090226 | CG51: 2422.209478 | CH51: 2483.357721 | CI51: 2540.955586 | CJ51: 2594.356232 | CK51: 2642.838099 | CL51: 2740.936042 | CM51: 2839.055689 | CN51: 2936.847142 | CO51: 3033.907942 | CP51: 3129.776443 | CQ51: 3235.612306 | CR51: 3341.57886 | CS51: 3447.377812 | CT51: 3552.671338 | CU51: 3657.077735 | CV51: 3760.166612 | CW51: 3861.453569 | CX51: 3960.39431 | CY51: 4056.378117 | CZ51: 4148.720641 | DA51: 4291.99506 | DB51: 4436.646477 | DC51: 4582.365654 | DD51: 4728.79201 | DE51: 4875.507032 | DF51: 5033.714814 | DG51: 5193.624443 | DH51: 5354.984762 | DI51: 5517.506497 | DJ51: 5680.857949 | DK51: 5844.660232 | DL51: 6008.481998 | DM51: 6171.833591 | DN51: 6334.160577 | DO51: 6494.836575 | DP51: 6708.494472 | DQ51: 6925.640871 | DR51: 7146.02988 | DS51: 7369.366163 | DT51: 7595.298409 | DU51: 7835.099932 | DV51: 8079.051114 | DW51: 8326.974234 | DX51: 8578.655653 | DY51: 8833.841579 | DZ51: 9092.233372 | EA51: 9353.482332 | EB51: 9617.183935 | EC51: 9882.871431 | ED51: 10150.00875 | EE51: 10473.32182 | EF51: 10803.41304 | EG51: =EG48+EG49-EG50 -> 11140.13521 | EH51: 11483.29465 | EI51: 11832.64475 | EJ51: 12199.56667 | EK51: 12574.45185 | EL51: 12957.23699 | EM51: 13347.8263 | EN51: 13746.08734 | EO51: 14151.84651 | EP51: 14564.88386 | EQ51: 14984.92751 | ER51: 15411.64731 | ES51: 15844.64791 | ET51: 16338.80015 | EU51: 16844.85572 | EV51: 17362.82117 | EW51: 17892.6612 | EX51: 18434.29229 | EY51: 18999.26363 | EZ51: 19578.13973 | FA51: 20171.0355 | FB51: 20778.03876 | FC51: 21399.20618 | FD51: 22034.55891 | FE51: 22684.07764 | FF51: 23347.6971 | FG51: 24025.29999 | FH51: 24716.71017 | FI51: 25477.02428 | FJ51: 26257.22657 | FK51: 27057.56315 | FL51: 27878.24543 | FM51: 28719.44405 | FN51: 29592.96995 | FO51: 30489.65723 | FP51: 31409.89853 | FQ51: 32354.06768 | FR51: 33322.51597 | FS51: 34315.56799 | FT51: 35333.51699 | FU51: 36376.61963 | FV51: 37445.0902 | FW51: 38539.09409 | FX51: 39714.07971 | FY51: 40921.39367 | FZ51: 42161.65526 | GA51: 43435.4603 | GB51: 44743.37537 | GC51: 46097.61921 | GD51: 47489.44597 | GE51: 48919.68093 | GF51: 50389.14355 | GG51: 51898.64411 | GH51: 53448.97998 | GI51: 55040.93134 | GJ51: 56675.25641 | GK51: 58352.68609 | GL51: 60073.91785 | GM51: 61894.94818 | GN51: 63767.68819 | GO51: 65693.33862 | GP51: 67673.09417 | GQ51: 69708.13825 | GR51: 71811.32497 | GS51: =GS48+GS49-GS50 -> 73974.56291 | GT51: 76199.35138 | GU51: 78487.20411 | GV51: 80839.64649 | GW51: 83258.21243 | GX51: 85744.44077 | GY51: 88299.87112 | GZ51: 90926.03923 | HA51: 93624.47159 | HB51: 96452.01854 | HC51: 99361.47066 | HD51: 102354.9346 | HE51: 105434.538 | HF51: 108602.4254 | HG51: 111872.4407 | HH51: 115237.5121 | HI51: 118700.1891 | HJ51: 122263.0669 | HK51: 125928.7852 | HL51: 129700.0253 | HM51: 133579.508 | HN51: 137569.9904 | HO51: 141674.2621 | HP51: 145895.1411 | HQ51: 150290.8082 | HR51: 154815.424 | HS51: 159472.5065 | HT51: 164265.6371 | HU51: 169198.4574 | HV51: 174286.3537 | HW51: 179523.8425 | HX51: 184915.1094 | HY51: 190464.4349 | HZ51: 196176.1942 | IA51: 202054.8565 | IB51: 208104.9842 | IC51: 214331.2308 | ID51: 220738.3397 | IE51: 227331.1411 | IF51: 234169.8881 | IG51: 241210.8764 | IH51: 248459.8224 | II51: 255922.5725 | IJ51: 263605.1009 | IK51: 271525.1965 | IL51: 279679.8506 | IM51: 288075.7977 | IN51: 296719.9438 | IO51: 305619.3684 | IP51: 314781.326 | IQ51: 324213.2477 | IR51: 333922.7423 | IS51: 343917.5966 | IT51: 354205.7756 | IU51: 364850.7617 | IV51: 375812.1761 | IW51: 387099.1612 | IX51: 398721.0914 | IY51: 410687.5754 | IZ51: 423020.1452 | JA51: 435719.6478 | JB51: 448796.7888 | JC51: 462262.5647 | JD51: 476128.2679 | JE51: =JE48+JE49-JE50 -> 490405.4924 | JF51: 505106.1392 | JG51: 520242.4205 | JH51: 535826.8651 | JI51: 551872.3222 | JJ51: 568447.3047 | JK51: 585516.6154 | JL51: 603094.7336 | JM51: 621196.531 | JN51: 639837.2782 | JO51: 659044.3391 | JP51: 678824.5675 | JQ51: 699194.8561 | JR51: 720172.574 | JS51: 741775.5774 | JT51: 764022.2213 | JU51: 786931.3699 | JV51: 810522.4081 | JW51: 834815.2524 | JX51: 859830.3611 | JY51: 885644.0847 | JZ51: 912229.2988 | KA51: 939608.7976 | KB51: 967806.0169 | KC51: 996845.0487 | KD51: 1026762.343 | KE51: 1057574.111 | KF51: 1089306.886 | KG51: 1121987.965 | KH51: 1155645.43 | KI51: 1190308.17 | KJ51: 1226005.897 | KK51: 1262769.171 | KL51: 1300629.418 | KM51: 1339618.951 | KN51: 1379826.333 | KO51: 1421237.014 | KP51: 1463886.745 | KQ51: 1507812.302 | KR51: 1553051.523 | KS51: 1599655.011 | KT51: 1647653.559 | KU51: 1697088.718
E52: =E51-F51 -> -6.29973751e-06 | F52: Diff
D53: Net Plant | G53: =G42-G51 -> 60.13215832 | H53: =H42-H51 -> 67.34791562 | I53: =I42-I51 -> 75.42956379 | J53: 84.48100975 | K53: 94.61862922 | L53: 105.972763 | M53: 118.6893929 | N53: 132.9320183 | O53: 148.8837588 | P53: 166.7497082 | Q53: 186.7595715 | R53: 209.1706183 | S53: 234.2709908 | T53: 251.4746753 | U53: 270.5402111 | V53: 291.6727872 | W53: 315.1005745 | X53: 341.0773353 | Y53: 369.885334 | Z53: 401.8385816 | AA53: 437.286454 | AB53: 476.6177272 | AC53: 520.2650784 | AD53: 517.0602309 | AE53: 516.6804724 | AF53: 519.5611039 | AG53: 526.192551 | AH53: 537.1270657 | AI53: 541.298307 | AJ53: 548.6390719 | AK53: 559.5466577 | AL53: 574.4608656 | AM53: 593.8684349 | AN53: 618.3079432 | AO53: 648.3752224 | AP53: 684.7293458 | AQ53: 728.0992482 | AR53: 779.291045 | AS53: 783.8569765 | AT53: 791.4811204 | AU53: 802.6057713 | AV53: 817.7285584 | AW53: 837.4091534 | AX53: 850.5888573 | AY53: 867.2083387 | AZ53: 887.6730025 | BA53: 912.4310008 | BB53: 941.9776741 | BC53: 976.8604596 | BD53: 1017.684314 | BE53: 1065.11771 | BF53: 1119.899264 | BG53: 1182.845061 | BH53: 1199.517613 | BI53: 1219.611576 | BJ53: 1243.580141 | BK53: 1271.932159 | BL53: 1305.238862 | BM53: 1332.453457 | BN53: 1363.528876 | BO53: 1398.883156 | BP53: 1438.977459 | BQ53: 1484.320526 | BR53: 1535.473597 | BS53: 1593.055846 | BT53: 1657.750388 | BU53: =BU42-BU51 -> 1730.310922 | BV53: 1811.569069 | BW53: 1847.103341 | BX53: 1886.624876 | BY53: 1930.603839 | BZ53: 1979.566569 | CA53: 2034.102304 | CB53: 2083.182802 | CC53: 2136.780102 | CD53: 2195.331919 | CE53: 2259.319684 | CF53: 2329.273018 | CG53: 2405.774664 | CH53: 2489.465945 | CI53: 2581.05279 | CJ53: 2681.312396 | CK53: 2791.100587 | CL53: 2856.020805 | CM53: 2925.809863 | CN53: 3000.964377 | CO53: 3082.037922 | CP53: 3169.647798 | CQ53: 3252.794661 | CR53: 3341.480317 | CS53: 3436.17314 | CT53: 3537.386142 | CU53: 3645.68147 | CV53: 3761.675369 | CW53: 3886.043671 | CX53: 4019.527848 | CY53: 4162.941705 | CZ53: 4317.178776 | DA53: 4427.881339 | DB53: 4544.826214 | DC53: 4668.551218 | DD53: 4799.652368 | DE53: 4938.790678 | DF53: 5075.011827 | DG53: 5218.363998 | DH53: 5369.363331 | DI53: 5528.572039 | DJ53: 5696.602944 | DK53: 5874.124487 | DL53: 6061.866263 | DM53: 6260.625118 | DN53: 6471.271893 | DO53: 6694.758869 | DP53: 6876.788835 | DQ53: 7067.200935 | DR53: 7266.597181 | DS53: 7475.63971 | DT53: 7695.057639 | DU53: 7913.966798 | DV53: 8142.487618 | DW53: 8381.21066 | DX53: 8630.774788 | DY53: 8891.871775 | DZ53: 9165.251383 | EA53: 9451.726966 | EB53: 9752.181641 | EC53: 10067.57511 | ED53: 10398.95119 | EE53: 10692.10692 | EF53: 10996.97856 | EG53: =EG42-EG51 -> 11314.26814 | EH53: 11644.7408 | EI53: 11989.23176 | EJ53: 12336.96614 | EK53: 12698.17694 | EL53: 13073.57066 | EM53: 13463.90559 | EN53: 13869.9965 | EO53: 14292.71985 | EP53: 14733.01949 | EQ53: 15191.91294 | ER53: 15670.49835 | ES53: 16169.96212 | ET53: 16636.24818 | EU53: 17119.44406 | EV53: 17620.4076 | EW53: 18140.06444 | EX53: 18679.41511 | EY53: 19227.855 | EZ53: 19795.79246 | FA53: 20384.11465 | FB53: 20993.7659 | FC53: 21625.75262 | FD53: 22281.14865 | FE53: 22961.10115 | FF53: 23666.83705 | FG53: 24399.67019 | FH53: 25161.00911 | FI53: 25897.02659 | FJ53: 26658.04582 | FK53: 27445.16741 | FL53: 28259.56705 | FM53: 29102.5028 | FN53: 29963.63531 | FO53: 30853.64618 | FP53: 31773.70398 | FQ53: 32725.04291 | FR53: 33708.96794 | FS53: 34726.86044 | FT53: 35780.18429 | FU53: 36870.49268 | FV53: 37999.43549 | FW53: 39168.76737 | FX53: 40325.01759 | FY53: 41518.87656 | FZ53: 42751.82307 | GA53: 44025.42238 | GB53: 45341.33378 | GC53: 46689.63123 | GD53: 48081.42198 | GE53: 49518.31305 | GF53: 51001.99025 | GG53: 52534.2237 | GH53: 54116.87387 | GI53: 55751.89813 | GJ53: 57441.35794 | GK53: 59187.4267 | GL53: 60992.39832 | GM53: 62803.35747 | GN53: 64671.56663 | GO53: 66599.09384 | GP53: 68588.11127 | GQ53: 70640.90335 | GR53: 72748.18788 | GS53: =GS42-GS51 -> 74921.73533 | GT53: 77163.8358 | GU53: 79476.87869 | GV53: 81863.35879 | GW53: 84325.88301 | GX53: 86867.17754 | GY53: 89490.09573 | GZ53: 92197.62663 | HA53: 94992.90424 | HB53: 97823.87857 | HC53: 100742.7034 | HD53: 103752.3647 | HE53: 106855.9802 | HF53: 110056.8084 | HG53: 113346.5701 | HH53: 116738.069 | HI53: 120234.6595 | HJ53: 123839.8271 | HK53: 127557.1956 | HL53: 131390.5349 | HM53: 135343.769 | HN53: 139420.985 | HO53: 143626.4425 | HP53: 147964.5846 | HQ53: 152384.7094 | HR53: 156940.3591 | HS53: 161635.9501 | HT53: 166476.0732 | HU53: 171465.5041 | HV53: 176597.5267 | HW53: 181886.5543 | HX53: 187337.5993 | HY53: 192955.8551 | HZ53: 198746.7045 | IA53: 204715.7291 | IB53: 210868.719 | IC53: 217211.6835 | ID53: 223750.862 | IE53: 230492.7367 | IF53: 237388.706 | IG53: 244494.4756 | IH53: 251816.6901 | II53: 259362.2354 | IJ53: 267138.2512 | IK53: 275140.4561 | IL53: 283385.7716 | IM53: 291881.7932 | IN53: 300636.3748 | IO53: 309657.6398 | IP53: 318953.9924 | IQ53: 328534.1303 | IR53: 338407.057 | IS53: 348582.0968 | IT53: 359068.9085 | IU53: 369822.1629 | IV53: 380900.9363 | IW53: 392315.3446 | IX53: 404075.8495 | IY53: 416193.2737 | IZ53: 428667.1294 | JA53: 441518.2451 | JB53: 454758.2409 | JC53: 468399.1159 | JD53: 482453.2631 | JE53: =JE42-JE51 -> 496933.4845 | JF53: 511853.007 | JG53: 527225.5001 | JH53: 543065.0931 | JI53: 559386.3947 | JJ53: 576149.1738 | JK53: 593417.7574 | JL53: 611207.6704 | JM53: 629534.9451 | JN53: 648416.1422 | JO53: 667856.6839 | JP53: 687883.4862 | JQ53: 708514.4392 | JR53: 729768.0002 | JS53: 751663.214 | JT53: 774219.7338 | JU53: 797457.8439 | JV53: 821398.4821 | JW53: 846063.2646 | JX53: 871474.5113 | JY53: 897599.9339 | JZ53: 924512.0403 | KA53: 952234.7817 | KB53: 980792.8698 | KC53: 1010211.805 | KD53: 1040506.216 | KE53: 1071712.504 | KF53: 1103858.328 | KG53: 1136972.206 | KH53: 1171083.546 | KI53: 1206222.675 | KJ53: 1242420.874 | KK53: 1279710.403 | KL53: 1318124.543 | KM53: 1357697.628 | KN53: 1398409.744 | KO53: 1440346.145 | KP53: 1483543.909 | KQ53: 1528041.271 | KR53: 1573877.658 | KS53: 1621082.045 | KT53: 1669705.609 | KU53: 1719791.225
C55: Rate of Return | G55: =E22 -> 0.15 | H55: =G55 -> 0.15 | I55: =I56/H53 -> 0.168 | J55: =J56/I53 -> 0.1680002265 | K55: 0.1680004288 | L55: 0.1680006093 | M55: 0.1680007706 | N55: 0.1680009145 | O55: 0.168001043 | P55: 0.1680011578 | Q55: 0.1680012603 | R55: 0.1680013518 | S55: 0.1680014334 | T55: 0.163501466 | U55: 0.1660245866 | V55: 0.1682136896 | W55: 0.1700684476 | X55: 0.1715919708 | Y55: 0.1727904731 | Z55: 0.173672894 | AA55: 0.1742504943 | AB55: 0.1745364445 | AC55: 0.1745454192 | AD55: 0.1646990885 | AE55: 0.1706915258 | AF55: 0.175941493 | AG55: 0.1802149912 | AH55: 0.1832821095 | AI55: 0.1849374897 | AJ55: 0.1890177334 | AK55: 0.1920833456 | AL55: 0.1939891157 | AM55: 0.1946213343 | AN55: 0.1939089596 | AO55: 0.1918317628 | AP55: 0.1884239736 | AQ55: 0.1837726389 | AR55: 0.178010834 | AS55: 0.1713067818 | AT55: 0.1754181954 | AU55: 0.1789402879 | AV55: 0.1817538579 | AW55: 0.1837443424 | AX55: 0.1848088064 | AY55: 0.1874035879 | AZ55: 0.1893264841 | BA55: 0.1905105489 | BB55: 0.1909014522 | BC55: 0.1904609208 | BD55: 0.1891695292 | BE55: 0.1870285289 | BF55: 0.184060483 | BG55: 0.1803085949 | BH55: 0.1758347677 | BI55: 0.1785924965 | BJ55: 0.1809195606 | BK55: 0.1827555223 | BL55: 0.1840422626 | BM55: 0.1847263038 | BN55: 0.1863819766 | BO55: 0.1875982773 | BP55: 0.188342777 | BQ55: 0.1885878217 | BR55: 0.1883116404 | BS55: 0.1874993349 | BT55: 0.1861436856 | BU55: 0.1842457148 | BV55: =BV56/BU53 -> 0.1818149578 | BW55: 0.178869415 | BX55: 0.180691205 | BY55: 0.1822132172 | BZ55: 0.1834042908 | CA55: 0.1842339958 | CB55: 0.1846733873 | CC55: 0.1857320918 | CD55: 0.1865055352 | CE55: 0.186977173 | CF55: 0.1871321122 | CG55: 0.1869574752 | CH55: 0.1864427535 | CI55: 0.1855801367 | CJ55: 0.1843648045 | CK55: 0.1827951688 | CL55: 0.1808730516 | CM55: 0.1820644745 | CN55: 0.1830533595 | CO55: 0.1838231432 | CP55: 0.1843572727 | CQ55: 0.1846394382 | CR55: 0.1853173382 | CS55: 0.1858108285 | CT55: 0.1861110301 | CU55: 0.186209531 | CV55: 0.1860985032 | CW55: 0.1857708261 | CX55: 0.1852202106 | CY55: 0.1844413249 | CZ55: 0.1834299174 | DA55: 0.1821829337 | DB55: 0.1829569768 | DC55: 0.1835967092 | DD55: 0.1840929982 | DE55: 0.1844364864 | DF55: 0.1846176542 | DG55: 0.1850520984 | DH55: 0.1853676432 | DI55: 0.1855593017 | DJ55: 0.1856221394 | DK55: 0.1855513086 | DL55: 0.1853420875 | DM55: 0.1849899224 | DN55: 0.1844904739 | DO55: 0.1838396663 | DP55: 0.1830337408 | DQ55: 0.1835344654 | DR55: 0.1839471677 | DS55: 0.1842666258 | DT55: 0.1844873666 | DU55: 0.1846036745 | DV55: 0.1848822507 | DW55: 0.1850842917 | DX55: 0.1852068887 | DY55: 0.1852470639 | DZ55: 0.1852017776 | EA55: 0.1850679378 | EB55: 0.1848424107 | EC55: 0.1845220346 | ED55: 0.1841036346 | EE55: 0.1835840414 | EF55: 0.1839070582 | EG55: 0.1841728194 | EH55: =EH56/EG53 -> 0.1843782433 | EI55: 0.1845200394 | EJ55: 0.1845947026 | EK55: 0.1847733961 | EL55: 0.1849028751 | EM55: 0.1849813927 | EN55: 0.1850071148 | EO55: 0.18497812 | EP55: 0.1848923984 | EQ55: 0.1847478525 | ER55: 0.1845422978 | ES55: 0.1842734656 | ET55: 0.1839390054 | EU55: 0.1841470095 | EV55: 0.1843179487 | EW55: 0.1844499577 | EX55: 0.1845410169 | EY55: 0.1845889444 | EZ55: 0.184703594 | FA55: 0.1847866181 | FB55: 0.1848369444 | FC55: 0.1848534279 | FD55: 0.1848348471 | FE55: 0.1847799018 | FF55: 0.1846872101 | FG55: 0.1845553064 | FH55: 0.1843826388 | FI55: 0.1841675674 | FJ55: 0.1843013553 | FK55: 0.1844112222 | FL55: 0.1844960178 | FM55: 0.1845544841 | FN55: 0.1845852486 | FO55: 0.1846588185 | FP55: 0.1847120741 | FQ55: 0.1847443474 | FR55: 0.1847549166 | FS55: 0.1847430026 | FT55: 0.1847077665 | FU55: 0.1846483071 | FV55: 0.1845636571 | FW55: 0.1844527812 | FX55: 0.1843145723 | FY55: 0.1844005604 | FZ55: 0.1844711407 | GA55: 0.1845255942 | GB55: 0.1845631293 | GC55: 0.1845828764 | GD55: 0.1846300902 | GE55: 0.1846642588 | GF55: 0.1846849618 | GG55: 0.1846917413 | GH55: 0.1846840992 | GI55: 0.1846614954 | GJ55: 0.1846233453 | GK55: 0.1845690175 | GL55: 0.184497831 | GM55: 0.1844090528 | GN55: 0.1844642927 | GO55: 0.1845096206 | GP55: 0.1845445831 | GQ55: 0.1845686787 | GR55: 0.1845813539 | GS55: 0.1846116554 | GT55: =GT56/GS53 -> 0.184633581 | GU55: 0.1846468646 | GV55: 0.1846512142 | GW55: 0.1846463111 | GX55: 0.1846318079 | GY55: 0.1846073268 | GZ55: 0.1845724583 | HA55: 0.1845267583 | HB55: 0.1844697473 | HC55: 0.1845052232 | HD55: 0.1845343279 | HE55: 0.1845567734 | HF55: 0.1845722408 | HG55: 0.1845803767 | HH55: 0.1845998247 | HI55: 0.1846138955 | HJ55: 0.1846224197 | HK55: 0.1846252108 | HL55: 0.1846220645 | HM55: 0.1846127576 | HN55: 0.1845970467 | HO55: 0.1845746668 | HP55: 0.1845453305 | HQ55: 0.1845087259 | HR55: 0.1845315046 | HS55: 0.18455019 | HT55: 0.1845645988 | HU55: 0.1845745272 | HV55: 0.1845797494 | HW55: 0.1845922318 | HX55: 0.1846012623 | HY55: 0.1846067328 | HZ55: 0.184608524 | IA55: 0.1846065049 | IB55: 0.1846005321 | IC55: 0.1845904488 | ID55: 0.1845760845 | IE55: 0.1845572532 | IF55: 0.1845337534 | IG55: 0.1845483775 | IH55: 0.1845603727 | II55: 0.184569622 | IJ55: 0.1845759949 | IK55: 0.1845793468 | IL55: 0.1845873585 | IM55: 0.1845931545 | IN55: 0.1845966654 | IO55: 0.184597815 | IP55: 0.1845965192 | IQ55: 0.1845926858 | IR55: 0.1845862142 | IS55: 0.1845769944 | IT55: 0.1845649068 | IU55: 0.1845498212 | IV55: 0.1845592092 | IW55: 0.1845669092 | IX55: 0.1845728463 | IY55: 0.1845769369 | IZ55: 0.1845790884 | JA55: 0.1845842307 | JB55: 0.1845879507 | JC55: 0.1845902041 | JD55: 0.184590942 | JE55: 0.1845901103 | JF55: =JF56/JE53 -> 0.1845876499 | JG55: 0.1845834962 | JH55: 0.1845775785 | JI55: 0.1845698196 | JJ55: 0.184560136 | JK55: 0.1845661624 | JL55: 0.184571105 | JM55: 0.1845749159 | JN55: 0.1845775415 | JO55: 0.1845789225 | JP55: 0.1845822231 | JQ55: 0.1845846108 | JR55: 0.1845860571 | JS55: 0.1845865307 | JT55: 0.1845859969 | JU55: 0.1845844177 | JV55: 0.1845817517 | JW55: 0.1845779533 | JX55: 0.1845729732 | JY55: 0.1845667573 | JZ55: 0.1845706256 | KA55: 0.1845737982 | KB55: 0.1845762443 | KC55: 0.1845779297 | KD55: 0.184578816 | KE55: 0.1845809346 | KF55: 0.1845824671 | KG55: 0.1845833954 | KH55: 0.1845836994 | KI55: 0.1845833567 | KJ55: 0.1845823432 | KK55: 0.184580632 | KL55: 0.184578194 | KM55: 0.1845749973 | KN55: 0.1845710075 | KO55: 0.1845734905 | KP55: 0.1845755269 | KQ55: 0.184577097 | KR55: 0.1845781788 | KS55: 0.1845787477 | KT55: 0.1845801075 | KU55: 0.1845810912
C56: Return | H56: =H55*H53 -> 10.10218734 | I56: =H56*(1+I26) -> 11.31444982 | J56: =I56*(1+J26) -> 12.6721838 | K56: 14.19284586 | L56: 15.89598736 | M56: 17.80350585 | N56: 19.93992655 | O56: 22.33271773 | P56: 25.01264386 | Q56: 28.01416112 | R56: 31.37586046 | S56: 35.14096372 | T56: 38.30365045 | U56: 41.75097899 | V56: 45.5085671 | W56: 49.60433814 | X56: 54.06872857 | Y56: 58.93491414 | Z56: 64.23905641 | AA56: 70.02057149 | AB56: 76.32242293 | AC56: 83.19144099 | AD56: 85.68718422 | AE56: 88.25779975 | AF56: 90.90553374 | AG56: 93.63269975 | AH56: 96.44168074 | AI56: 99.33493116 | AJ56: 102.3149791 | AK56: 105.3844285 | AL56: 108.5459613 | AM56: 111.8023402 | AN56: 115.1564104 | AO56: 118.6111027 | AP56: 122.1694358 | AQ56: 125.8345188 | AR56: 129.6095544 | AS56: 133.497841 | AT56: 137.5027763 | AU56: 141.6278596 | AV56: 145.8766953 | AW56: 150.2529962 | AX56: 154.7605861 | AY56: 159.4034037 | AZ56: 164.1855058 | BA56: 169.111071 | BB56: 174.1844031 | BC56: 179.4099352 | BD56: 184.7922332 | BE56: 190.3360002 | BF56: 196.0460802 | BG56: 201.9274626 | BH56: 207.9852865 | BI56: 214.2248451 | BJ56: 220.6515905 | BK56: 227.2711382 | BL56: 234.0892723 | BM56: 241.1119505 | BN56: 248.345309 | BO56: 255.7956683 | BP56: 263.4695383 | BQ56: 271.3736245 | BR56: 279.5148332 | BS56: 287.9002782 | BT56: 296.5372866 | BU56: 305.4334052 | BV56: =BU56*(1+BV26) -> 314.5964073 | BW56: 324.0342995 | BX56: 333.7553285 | BY56: 343.7679884 | BZ56: 354.081028 | CA56: 364.7034589 | CB56: 375.6445626 | CC56: 386.9138995 | CD56: 398.5213165 | CE56: 410.476956 | CF56: 422.7912647 | CG56: 435.4750026 | CH56: 448.5392527 | CI56: 461.9954303 | CJ56: 475.8552932 | CK56: 490.130952 | CL56: 504.8348805 | CM56: 519.9799269 | CN56: 535.5793247 | CO56: 551.6467045 | CP56: 568.1961056 | CQ56: 585.2419888 | CR56: 602.7992485 | CS56: 620.8832259 | CT56: 639.5097227 | CU56: 658.6950144 | CV56: 678.4558648 | CW56: 698.8095407 | CX56: 719.773827 | CY56: 741.3670418 | CZ56: 763.608053 | DA56: 786.5162946 | DB56: 810.1117835 | DC56: 834.415137 | DD56: 859.4475911 | DE56: 885.2310188 | DF56: 911.7879494 | DG56: 939.1415878 | DH56: 967.3158355 | DI56: 996.3353105 | DJ56: 1026.22537 | DK56: 1057.012131 | DL56: 1088.722495 | DM56: 1121.38417 | DN56: 1155.025695 | DO56: 1189.676466 | DP56: 1225.36676 | DQ56: 1262.127762 | DR56: 1299.991595 | DS56: 1338.991343 | DT56: 1379.161083 | DU56: 1420.535916 | DV56: 1463.151993 | DW56: 1507.046553 | DX56: 1552.25795 | DY56: 1598.825688 | DZ56: 1646.790459 | EA56: 1696.194173 | EB56: 1747.079998 | EC56: 1799.492398 | ED56: 1853.47717 | EE56: 1909.081485 | EF56: 1966.353929 | EG56: 2025.344547 | EH56: =EG56*(1+EH26) -> 2086.104884 | EI56: 2148.68803 | EJ56: 2213.148671 | EK56: 2279.543131 | EL56: 2347.929425 | EM56: 2418.367308 | EN56: 2490.918327 | EO56: 2565.645877 | EP56: 2642.615253 | EQ56: 2721.893711 | ER56: 2803.550522 | ES56: 2887.657038 | ET56: 2974.286749 | EU56: 3063.515352 | EV56: 3155.420812 | EW56: 3250.083436 | EX56: 3347.58594 | EY56: 3448.013518 | EZ56: 3551.453923 | FA56: 3657.997541 | FB56: 3767.737467 | FC56: 3880.769591 | FD56: 3997.192679 | FE56: 4117.108459 | FF56: 4240.621713 | FG56: 4367.840365 | FH56: 4498.875575 | FI56: 4633.841843 | FJ56: 4772.857098 | FK56: 4916.042811 | FL56: 5063.524095 | FM56: 5215.429818 | FN56: 5371.892713 | FO56: 5533.049494 | FP56: 5699.040979 | FQ56: 5870.012208 | FR56: 6046.112575 | FS56: 6227.495952 | FT56: 6414.32083 | FU56: 6606.750455 | FV56: 6804.952969 | FW56: 7009.101558 | FX56: 7219.374605 | FY56: 7435.955843 | FZ56: 7659.034518 | GA56: 7888.805554 | GB56: 8125.46972 | GC56: 8369.233812 | GD56: 8620.310826 | GE56: 8878.920151 | GF56: 9145.287756 | GG56: 9419.646388 | GH56: 9702.23578 | GI56: 9993.302853 | GJ56: 10293.10194 | GK56: 10601.895 | GL56: 10919.95185 | GM56: 11247.5504 | GN56: 11584.97691 | GO56: 11932.52622 | GP56: 12290.50201 | GQ56: 12659.21707 | GR56: 13038.99358 | GS56: 13430.16339 | GT56: =GS56*(1+GT26) -> 13833.06829 | GU56: 14248.06034 | GV56: 14675.50215 | GW56: 15115.76721 | GX56: 15569.24023 | GY56: 16036.31744 | GZ56: 16517.40696 | HA56: 17012.92917 | HB56: 17523.31704 | HC56: 18049.01655 | HD56: 18590.48705 | HE56: 19148.20166 | HF56: 19722.64771 | HG56: 20314.32714 | HH56: 20923.75696 | HI56: 21551.46967 | HJ56: 22198.01376 | HK56: 22863.95417 | HL56: 23549.8728 | HM56: 24256.36898 | HN56: 24984.06005 | HO56: 25733.58185 | HP56: 26505.58931 | HQ56: 27300.75698 | HR56: 28119.77969 | HS56: 28963.37308 | HT56: 29832.27428 | HU56: 30727.24251 | HV56: 31649.05978 | HW56: 32598.53157 | HX56: 33576.48752 | HY56: 34583.78215 | HZ56: 35621.29561 | IA56: 36689.93448 | IB56: 37790.63251 | IC56: 38924.35149 | ID56: 40092.08203 | IE56: 41294.8445 | IF56: 42533.68983 | IG56: 43809.70053 | IH56: 45123.99154 | II56: 46477.71129 | IJ56: 47872.04263 | IK56: 49308.2039 | IL56: 50787.45002 | IM56: 52311.07352 | IN56: 53880.40573 | IO56: 55496.8179 | IP56: 57161.72244 | IQ56: 58876.57411 | IR56: 60642.87133 | IS56: 62462.15747 | IT56: 64336.0222 | IU56: 66266.10286 | IV56: 68254.08595 | IW56: 70301.70853 | IX56: 72410.75978 | IY56: 74583.08258 | IZ56: 76820.57505 | JA56: 79125.19231 | JB56: 81498.94808 | JC56: 83943.91652 | JD56: 86462.23401 | JE56: 89056.10103 | JF56: =JE56*(1+JF26) -> 91727.78406 | JG56: 94479.61759 | JH56: 97314.00611 | JI56: 100233.4263 | JJ56: 103240.4291 | JK56: 106337.642 | JL56: 109527.7712 | JM56: 112813.6044 | JN56: 116198.0125 | JO56: 119683.9529 | JP56: 123274.4714 | JQ56: 126972.7056 | JR56: 130781.8868 | JS56: 134705.3434 | JT56: 138746.5037 | JU56: 142908.8988 | JV56: 147196.1657 | JW56: 151612.0507 | JX56: 156160.4122 | JY56: 160845.2246 | JZ56: 165670.5813 | KA56: 170640.6988 | KB56: 175759.9197 | KC56: 181032.7173 | KD56: 186463.6988 | KE56: 192057.6098 | KF56: 197819.3381 | KG56: 203753.9182 | KH56: 209866.5358 | KI56: 216162.5319 | KJ56: 222647.4078 | KK56: 229326.8301 | KL56: 236206.635 | KM56: 243292.834 | KN56: 250591.619 | KO56: 258109.3676 | KP56: 265852.6486 | KQ56: 273828.2281 | KR56: 282043.0749 | KS56: 290504.3672 | KT56: 299219.4982 | KU56: 308196.0831
C57: EBITDA | H57: =H56+H45 -> 17.56885401 | I57: =I56+I45 -> 19.67711649 | J57: 22.03837047 | K57: 24.68297493 | L57: 27.64493192 | M57: 30.96232375 | N57: 34.6778026 | O57: 38.83913891 | P57: 43.49983558 | Q57: 48.71981585 | R57: 54.56619375 | S57: 61.114137 | T57: 66.61440933 | U57: 72.60970617 | V57: 79.14457972 | W57: 86.2675919 | X57: 94.03167517 | Y57: 102.4945259 | Z57: 111.7190333 | AA57: 121.7737463 | AB57: 132.7333834 | AC57: 144.6793879 | AD57: 149.0197696 | AE57: 153.4903627 | AF57: 158.0950735 | AG57: 162.8379257 | AH57: 167.7230635 | AI57: 172.7547554 | AJ57: 177.9373981 | AK57: 183.27552 | AL57: 188.7737856 | AM57: 194.4369992 | AN57: 200.2701092 | AO57: 206.2782125 | AP57: 212.4665588 | AQ57: 218.8405556 | AR57: 225.4057723 | AS57: 232.1679454 | AT57: 239.1329838 | AU57: 246.3069733 | AV57: 253.6961825 | AW57: 261.307068 | AX57: 269.14628 | AY57: 277.2206684 | AZ57: 285.5372885 | BA57: 294.1034071 | BB57: 302.9265093 | BC57: 312.0143046 | BD57: 321.3747338 | BE57: 331.0159758 | BF57: 340.946455 | BG57: 351.1748487 | BH57: 361.7100941 | BI57: 372.561397 | BJ57: 383.7382389 | BK57: 395.2503861 | BL57: 407.1078976 | BM57: 419.3211346 | BN57: 431.9007686 | BO57: 444.8577917 | BP57: 458.2035254 | BQ57: 471.9496312 | BR57: 486.1081201 | BS57: 500.6913637 | BT57: 515.7121046 | BU57: =BU56+BU45 -> 531.1834678 | BV57: 547.1189718 | BW57: 563.5325409 | BX57: 580.4385172 | BY57: 597.8516727 | BZ57: 615.7872229 | CA57: 634.2608396 | CB57: 653.2886647 | CC57: 672.8873247 | CD57: 693.0739444 | CE57: 713.8661628 | CF57: 735.2821476 | CG57: 757.3406121 | CH57: 780.0608304 | CI57: 803.4626553 | CJ57: 827.566535 | CK57: 852.393531 | CL57: 877.965337 | CM57: 904.3042971 | CN57: 931.433426 | CO57: 959.3764288 | CP57: 988.1577216 | CQ57: 1017.802453 | CR57: 1048.336527 | CS57: 1079.786623 | CT57: 1112.180221 | CU57: 1145.545628 | CV57: 1179.911997 | CW57: 1215.309357 | CX57: 1251.768637 | CY57: 1289.321697 | CZ57: 1328.001347 | DA57: 1367.841388 | DB57: 1408.87663 | DC57: 1451.142928 | DD57: 1494.677216 | DE57: 1539.517533 | DF57: 1585.703059 | DG57: 1633.274151 | DH57: 1682.272375 | DI57: 1732.740546 | DJ57: 1784.722763 | DK57: 1838.264446 | DL57: 1893.412379 | DM57: 1950.21475 | DN57: 2008.721193 | DO57: 2068.982829 | DP57: 2131.052313 | DQ57: 2194.983883 | DR57: 2260.833399 | DS57: 2328.658401 | DT57: 2398.518153 | DU57: 2470.473698 | DV57: 2544.587909 | DW57: 2620.925546 | DX57: 2699.553313 | DY57: 2780.539912 | DZ57: 2863.956109 | EA57: 2949.874793 | EB57: 3038.371036 | EC57: 3129.522167 | ED57: 3223.407832 | EE57: 3320.110067 | EF57: 3419.713369 | EG57: =EG56+EG45 -> 3522.304771 | EH57: 3627.973914 | EI57: 3736.813131 | EJ57: 3848.917525 | EK57: 3964.385051 | EL57: 4083.316602 | EM57: 4205.8161 | EN57: 4331.990583 | EO57: 4461.950301 | EP57: 4595.80881 | EQ57: 4733.683074 | ER57: 4875.693566 | ES57: 5021.964373 | ET57: 5172.623305 | EU57: 5327.802004 | EV57: 5487.636064 | EW57: 5652.265146 | EX57: 5821.8331 | EY57: 5996.488093 | EZ57: 6176.382736 | FA57: 6361.674218 | FB57: 6552.524445 | FC57: 6749.100178 | FD57: 6951.573183 | FE57: 7160.120379 | FF57: 7374.92399 | FG57: 7596.17171 | FH57: 7824.056861 | FI57: 8058.778567 | FJ57: 8300.541924 | FK57: 8549.558182 | FL57: 8806.044927 | FM57: 9070.226275 | FN57: 9342.333063 | FO57: 9622.603055 | FP57: 9911.281147 | FQ57: 10208.61958 | FR57: 10514.87817 | FS57: 10830.32451 | FT57: 11155.23425 | FU57: 11489.89128 | FV57: 11834.58801 | FW57: 12189.62566 | FX57: 12555.31442 | FY57: 12931.97386 | FZ57: 13319.93307 | GA57: 13719.53107 | GB57: 14131.117 | GC57: 14555.05051 | GD57: 14991.70202 | GE57: 15441.45308 | GF57: 15904.69668 | GG57: 16381.83758 | GH57: 16873.2927 | GI57: 17379.49148 | GJ57: 17900.87623 | GK57: 18437.90252 | GL57: 18991.03959 | GM57: 19560.77078 | GN57: 20147.5939 | GO57: 20752.02172 | GP57: 21374.58237 | GQ57: 22015.81984 | GR57: 22676.29444 | GS57: =GS56+GS45 -> 23356.58327 | GT57: 24057.28077 | GU57: 24778.99919 | GV57: 25522.36917 | GW57: 26288.04024 | GX57: 27076.68145 | GY57: 27888.98189 | GZ57: 28725.65135 | HA57: 29587.42089 | HB57: 30475.04352 | HC57: 31389.29482 | HD57: 32330.97367 | HE57: 33300.90288 | HF57: 34299.92996 | HG57: 35328.92786 | HH57: 36388.7957 | HI57: 37480.45957 | HJ57: 38604.87336 | HK57: 39763.01956 | HL57: 40955.91014 | HM57: 42184.58745 | HN57: 43450.12507 | HO57: 44753.62882 | HP57: 46096.23769 | HQ57: 47479.12482 | HR57: 48903.49856 | HS57: 50370.60352 | HT57: 51881.72163 | HU57: 53438.17328 | HV57: 55041.31847 | HW57: 56692.55803 | HX57: 58393.33477 | HY57: 60145.13481 | HZ57: 61949.48886 | IA57: 63807.97352 | IB57: 65722.21273 | IC57: 67693.87911 | ID57: 69724.69548 | IE57: 71816.43635 | IF57: 73970.92944 | IG57: 76190.05732 | IH57: 78475.75904 | II57: 80830.03181 | IJ57: 83254.93277 | IK57: 85752.58075 | IL57: 88325.15817 | IM57: 90974.91292 | IN57: 93704.1603 | IO57: 96515.28511 | IP57: 99410.74367 | IQ57: 102393.066 | IR57: 105464.858 | IS57: 108628.8037 | IT57: 111887.6678 | IU57: 115244.2978 | IV57: 118701.6268 | IW57: 122262.6756 | IX57: 125930.5558 | IY57: 129708.4725 | IZ57: 133599.7267 | JA57: 137607.7185 | JB57: 141735.9501 | JC57: 145988.0286 | JD57: 150367.6694 | JE57: =JE56+JE45 -> 154878.6995 | JF57: 159525.0605 | JG57: 164310.8123 | JH57: 169240.1367 | JI57: 174317.3408 | JJ57: 179546.861 | JK57: 184933.2668 | JL57: 190481.2648 | JM57: 196195.7028 | JN57: 202081.5738 | JO57: 208144.0211 | JP57: 214388.3417 | JQ57: 220819.9919 | JR57: 227444.5917 | JS57: 234267.9295 | JT57: 241295.9673 | JU57: 248534.8464 | JV57: 255990.8917 | JW57: 263670.6185 | JX57: 271580.7371 | JY57: 279728.1592 | JZ57: 288120.0039 | KA57: 296763.6041 | KB57: 305666.5122 | KC57: 314836.5075 | KD57: 324281.6028 | KE57: 334010.0509 | KF57: 344030.3524 | KG57: 354351.263 | KH57: 364981.8008 | KI57: 375931.2549 | KJ57: 387209.1925 | KK57: 398825.4683 | KL57: 410790.2323 | KM57: 423113.9393 | KN57: 435807.3575 | KO57: 448881.5782 | KP57: 462348.0256 | KQ57: 476218.4663 | KR57: 490505.0203 | KS57: 505220.1709 | KT57: 520376.776 | KU57: 535988.0793
C58: Free Cash Flow | H58: =H57-H40 -> 2.886430045 | I58: =I57-I40 -> 3.232801651 | J58: 3.620737849 | K58: 4.055226391 | L58: 4.541853558 | M58: 5.086875984 | N58: 5.697301103 | O58: 6.380977235 | P58: 7.146694503 | Q58: 8.004297844 | R58: 8.964813585 | S58: 10.04059121 | T58: 21.09996603 | U58: 22.68544319 | V58: 24.37599092 | W58: 26.17655089 | X58: 28.09196775 | Y58: 30.1269154 | Z58: 32.28580881 | AA58: 34.57269915 | AB58: 36.99114972 | AC58: 39.54408976 | AD58: 88.89203177 | AE58: 88.63755818 | AF58: 88.02490222 | AG58: 87.00125267 | AH58: 85.50716604 | AI58: 95.16368987 | AJ58: 94.97421419 | AK58: 94.47684268 | AL58: 93.63175342 | AM58: 92.39477085 | AN58: 90.71690208 | AO58: =AO57-AO40 -> 88.54382353 | AP58: 85.81531232 | AQ58: 82.46461651 | AR58: 78.41775755 | AS58: 128.9319096 | AT58: 129.8786323 | AU58: 130.5032086 | AV58: 130.7539082 | AW58: 130.5724013 | AX58: 141.5808822 | AY58: 142.7839223 | AZ58: 143.720842 | BA58: 144.3530727 | BB58: 144.6377297 | BC58: 144.5271497 | BD58: 143.9683786 | BE58: 142.902604 | BF58: 141.264527 | BG58: 138.9816653 | BH58: 191.3127346 | BI58: 194.1308821 | BJ58: 196.6830258 | BK58: 198.91912 | BL58: 200.7825694 | BM58: 213.8973553 | BN58: 217.2698896 | BO58: 220.4413884 | BP58: 223.3752355 | BQ58: 226.0305574 | BR58: 228.3617622 | BS58: 230.3180294 | BT58: 231.8427444 | BU58: =BU57-BU40 -> 232.8728716 | BV58: 233.3382602 | BW58: 288.5000274 | BX58: 294.2337936 | BY58: 299.7890248 | BZ58: 305.1182989 | CA58: 310.1677236 | CB58: 326.5640642 | CC58: 333.3165997 | CD58: 339.9694998 | CE58: 346.4891902 | CF58: 352.8379308 | CG58: 358.9733568 | CH58: 364.8479719 | CI58: 370.4085851 | CJ58: 375.5956875 | CK58: 380.3427607 | CL58: 439.9146628 | CM58: 450.1908682 | CN58: 460.4248115 | CO58: 470.5731592 | CP58: 480.5862298 | CQ58: 502.0951255 | CR58: 514.1135929 | CS58: 526.1904028 | CT58: 538.2967203 | CU58: 550.3996868 | CV58: 562.4619655 | CW58: 574.4412388 | CX58: 586.2896501 | CY58: 597.9531844 | CZ58: 609.3709825 | DA58: 675.8137312 | DB58: 693.1669086 | DC58: 710.6901332 | DD58: 728.3464406 | DE58: 746.0927096 | DF58: 775.5667997 | DG58: 795.7894173 | DH58: 816.3165019 | DI58: 837.1266024 | DJ58: 858.1944653 | DK58: 879.4905874 | DL58: 900.9807194 | DM58: 922.6253151 | DN58: 944.3789193 | DO58: 966.1894895 | DP58: 1043.336793 | DQ58: 1071.715663 | DR58: 1100.59535 | DS58: 1129.948814 | DT58: 1159.743154 | DU58: 1201.626757 | DV58: 1234.631174 | DW58: 1268.323511 | DX58: 1302.693822 | DY58: 1337.728701 | DZ58: 1373.41085 | EA58: 1409.71859 | EB58: 1446.625322 | EC58: 1484.098927 | ED58: 1522.101097 | EE58: 1615.925749 | EF58: 1661.482287 | EG58: =EG57-EG40 -> 1708.054973 | EH58: 1755.632226 | EI58: 1804.197068 | EJ58: 1865.414289 | EK58: 1918.332331 | EL58: 1972.535703 | EM58: 2028.03238 | EN58: 2084.827416 | EO58: 2142.922527 | EP58: 2202.315617 | EQ58: 2263.00026 | ER58: 2324.965112 | ES58: 2388.193268 | ET58: 2508.000685 | EU58: 2580.319471 | EV58: 2654.457273 | EW58: 2730.426594 | EX58: 2808.235268 | EY58: 2899.573635 | EZ58: 2983.516458 | FA58: 3069.675353 | FB58: 3158.08622 | FC58: 3248.782871 | FD58: 3341.796645 | FE58: 3437.155959 | FF58: 3534.885812 | FG58: 3635.007231 | FH58: 3737.53665 | FI58: 3897.824369 | FJ58: 4011.837866 | FK58: 4128.921219 | FL58: 4249.124459 | FM58: 4372.494069 | FN58: 4510.760199 | FO58: 4643.038619 | FP58: 4778.98318 | FQ58: 4918.673281 | FR58: 5062.187544 | FS58: 5209.603458 | FT58: 5360.996976 | FU58: 5516.44206 | FV58: 5676.010166 | FW58: 5839.769674 | FX58: 6063.124383 | FY58: 6242.09688 | FZ58: 6426.088004 | GA58: 6615.206248 | GB58: 6809.558311 | GC58: 7020.936369 | GD58: 7228.520074 | GE58: 7442.029078 | GF58: 7661.610556 | GG58: 7887.412937 | GH58: 8119.585613 | GI58: 8358.278596 | GJ58: 8603.642128 | GK58: 8855.826237 | GL58: 9114.980227 | GM58: 9436.591253 | GN58: 9716.767756 | GO58: 10004.99901 | GP58: 10301.48458 | GQ58: 10606.42499 | GR58: 10931.70905 | GS58: =GS57-GS40 -> 11256.61594 | GT58: 11590.96782 | GU58: 11935.01746 | GV58: 12289.02204 | GW58: 12653.24299 | GX58: 13027.9457 | GY58: 13413.39924 | GZ58: 13809.87607 | HA58: 14217.65155 | HB58: 14692.34272 | HC58: 15130.19176 | HD58: 15580.82573 | HE58: 16044.58611 | HF58: 16521.81957 | HG58: 17024.56546 | HH58: 17532.25804 | HI58: 18054.87918 | HJ58: 18592.84617 | HK58: 19146.58561 | HL58: 19716.53347 | HM58: 20303.13489 | HN58: 20906.84411 | HO58: 21528.12428 | HP58: 22167.44721 | HQ58: 22880.63225 | HR58: 23564.12998 | HS58: 24267.78209 | HT58: 24992.15116 | HU58: 25737.81157 | HV58: 26517.03723 | HW58: 27309.50396 | HX58: 28125.44248 | HY58: 28965.52636 | HZ58: 29830.44621 | IA58: 30720.90989 | IB58: 31637.6426 | IC58: 32581.38705 | ID58: 33552.90351 | IE58: 34552.96982 | IF58: 35637.72053 | IG58: 36703.93091 | IH58: 37801.77706 | II58: 38932.16597 | IJ58: 40096.02683 | IK58: 41305.99894 | IL58: 42542.13452 | IM58: 43815.05196 | IN58: 45125.82412 | IO58: 46475.55291 | IP58: 47865.36979 | IQ58: 49296.4363 | IR58: 50769.94456 | IS58: 52287.11774 | IT58: 53849.21047 | IU58: 55512.84841 | IV58: 57175.31263 | IW58: 58887.30022 | IX58: 60650.25483 | IY58: 62465.65835 | IZ58: 64346.71941 | JA58: 66274.07661 | JB58: 68258.95231 | JC58: 70303.04148 | JD58: 72408.08679 | JE58: =JE57-JE40 -> 74575.87968 | JF58: 76808.26149 | JG58: 79107.12451 | JH58: 81474.41309 | JI58: 83912.12468 | JJ58: 86477.65004 | JK58: 89069.05831 | JL58: 91737.85828 | JM58: 94486.32963 | JN58: 97316.81539 | JO58: 100243.4112 | JP58: 103247.6691 | JQ58: 106341.7526 | JR58: 109528.3258 | JS58: 112810.1296 | JT58: 116189.9838 | JU58: 119670.7887 | JV58: 123255.5275 | JW58: 126947.2682 | JX58: 130749.1655 | JY58: 134719.8021 | JZ58: 138758.4749 | KA58: 142917.9573 | KB58: 147201.8317 | KC58: 151613.7825 | KD58: 156169.2873 | KE58: 160851.3215 | KF58: 165673.5146 | KG58: 170640.0406 | KH58: 175755.1959 | KI58: 181023.402 | KJ58: 186449.2095 | KK58: 192037.301 | KL58: 197792.4949 | KM58: 203719.7489 | KN58: 209879.503 | KO58: 216172.9668 | KP58: 222654.8841 | KQ58: 229330.8662 | KR58: 236206.6881 | KS58: 243299.98 | KT58: 250595.935 | KU58: 258110.4665
C60: Growth Rates
D61: EBITDA | I61: =I57/H57-1 -> 0.12 | J61: =J57/I57-1 -> 0.12 | K61: 0.12 | L61: 0.12 | M61: 0.12 | N61: 0.12 | O61: 0.12 | P61: 0.12 | Q61: 0.12 | R61: 0.12 | S61: 0.12 | T61: 0.09 | U61: 0.09 | V61: 0.09 | W61: 0.09 | X61: 0.09 | Y61: 0.09 | Z61: 0.09 | AA61: 0.09 | AB61: 0.09 | AC61: 0.09 | AD61: 0.03 | AE61: 0.03 | AF61: 0.03 | AG61: 0.03 | AH61: 0.03 | AI61: 0.03 | AJ61: 0.03 | AK61: 0.03 | AL61: 0.03 | AM61: 0.03 | AN61: 0.03 | AO61: =AO57/AN57-1 -> 0.03 | AP61: 0.03 | AQ61: 0.03 | AR61: 0.03 | AS61: 0.03 | AT61: 0.03 | AU61: 0.03 | AV61: 0.03 | AW61: 0.03 | AX61: 0.03 | AY61: 0.03 | AZ61: 0.03 | BA61: 0.03 | BB61: 0.03 | BC61: 0.03 | BD61: 0.03 | BE61: 0.03 | BF61: 0.03 | BG61: 0.03 | BH61: 0.03 | BI61: 0.03 | BJ61: 0.03 | BK61: 0.03 | BL61: 0.03 | BM61: 0.03 | BN61: 0.03 | BO61: 0.03 | BP61: 0.03 | BQ61: 0.03 | BR61: 0.03 | BS61: 0.03 | BT61: 0.03 | BU61: 0.03 | BV61: =BV57/BU57-1 -> 0.03 | BW61: 0.03 | BX61: 0.03 | BY61: 0.03 | BZ61: 0.03 | CA61: 0.03 | CB61: 0.03 | CC61: 0.03 | CD61: 0.03 | CE61: 0.03 | CF61: 0.03 | CG61: 0.03 | CH61: 0.03 | CI61: 0.03 | CJ61: 0.03 | CK61: 0.03 | CL61: 0.03 | CM61: 0.03 | CN61: 0.03 | CO61: 0.03 | CP61: 0.03 | CQ61: 0.03 | CR61: 0.03 | CS61: 0.03 | CT61: 0.03 | CU61: 0.03 | CV61: 0.03 | CW61: 0.03 | CX61: 0.03 | CY61: 0.03 | CZ61: 0.03 | DA61: 0.03 | DB61: 0.03 | DC61: 0.03 | DD61: 0.03 | DE61: 0.03 | DF61: 0.03 | DG61: 0.03 | DH61: 0.03 | DI61: 0.03 | DJ61: 0.03 | DK61: 0.03 | DL61: 0.03 | DM61: 0.03 | DN61: 0.03 | DO61: 0.03 | DP61: 0.03 | DQ61: 0.03 | DR61: 0.03 | DS61: 0.03 | DT61: 0.03 | DU61: 0.03 | DV61: 0.03 | DW61: 0.03 | DX61: 0.03 | DY61: 0.03 | DZ61: 0.03 | EA61: 0.03 | EB61: 0.03 | EC61: 0.03 | ED61: 0.03 | EE61: 0.03 | EF61: 0.03 | EG61: 0.03 | EH61: =EH57/EG57-1 -> 0.03 | EI61: 0.03 | EJ61: 0.03 | EK61: 0.03 | EL61: 0.03 | EM61: 0.03 | EN61: 0.03 | EO61: 0.03 | EP61: 0.03 | EQ61: 0.03 | ER61: 0.03 | ES61: 0.03 | ET61: 0.03 | EU61: 0.03 | EV61: 0.03 | EW61: 0.03 | EX61: 0.03 | EY61: 0.03 | EZ61: 0.03 | FA61: 0.03 | FB61: 0.03 | FC61: 0.03 | FD61: 0.03 | FE61: 0.03 | FF61: 0.03 | FG61: 0.03 | FH61: 0.03 | FI61: 0.03 | FJ61: 0.03 | FK61: 0.03 | FL61: 0.03 | FM61: 0.03 | FN61: 0.03 | FO61: 0.03 | FP61: 0.03 | FQ61: 0.03 | FR61: 0.03 | FS61: 0.03 | FT61: 0.03 | FU61: 0.03 | FV61: 0.03 | FW61: 0.03 | FX61: 0.03 | FY61: 0.03 | FZ61: 0.03 | GA61: 0.03 | GB61: 0.03 | GC61: 0.03 | GD61: 0.03 | GE61: 0.03 | GF61: 0.03 | GG61: 0.03 | GH61: 0.03 | GI61: 0.03 | GJ61: 0.03 | GK61: 0.03 | GL61: 0.03 | GM61: 0.03 | GN61: 0.03 | GO61: 0.03 | GP61: 0.03 | GQ61: 0.03 | GR61: 0.03 | GS61: 0.03 | GT61: =GT57/GS57-1 -> 0.03 | GU61: 0.03 | GV61: 0.03 | GW61: 0.03 | GX61: 0.03 | GY61: 0.03 | GZ61: 0.03 | HA61: 0.03 | HB61: 0.03 | HC61: 0.03 | HD61: 0.03 | HE61: 0.03 | HF61: 0.03 | HG61: 0.03 | HH61: 0.03 | HI61: 0.03 | HJ61: 0.03 | HK61: 0.03 | HL61: 0.03 | HM61: 0.03 | HN61: 0.03 | HO61: 0.03 | HP61: 0.03 | HQ61: 0.03 | HR61: 0.03 | HS61: 0.03 | HT61: 0.03 | HU61: 0.03 | HV61: 0.03 | HW61: 0.03 | HX61: 0.03 | HY61: 0.03 | HZ61: 0.03 | IA61: 0.03 | IB61: 0.03 | IC61: 0.03 | ID61: 0.03 | IE61: 0.03 | IF61: 0.03 | IG61: 0.03 | IH61: 0.03 | II61: 0.03 | IJ61: 0.03 | IK61: 0.03 | IL61: 0.03 | IM61: 0.03 | IN61: 0.03 | IO61: 0.03 | IP61: 0.03 | IQ61: 0.03 | IR61: 0.03 | IS61: 0.03 | IT61: 0.03 | IU61: 0.03 | IV61: 0.03 | IW61: 0.03 | IX61: 0.03 | IY61: 0.03 | IZ61: 0.03 | JA61: 0.03 | JB61: 0.03 | JC61: 0.03 | JD61: 0.03 | JE61: 0.03 | JF61: =JF57/JE57-1 -> 0.03 | JG61: 0.03 | JH61: 0.03 | JI61: 0.03 | JJ61: 0.03 | JK61: 0.03 | JL61: 0.03 | JM61: 0.03 | JN61: 0.03 | JO61: 0.03 | JP61: 0.03 | JQ61: 0.03 | JR61: 0.03 | JS61: 0.03 | JT61: 0.03 | JU61: 0.03 | JV61: 0.03 | JW61: 0.03 | JX61: 0.03 | JY61: 0.03 | JZ61: 0.03 | KA61: 0.03 | KB61: 0.03 | KC61: 0.03 | KD61: 0.03 | KE61: 0.03 | KF61: 0.03 | KG61: 0.03 | KH61: 0.03 | KI61: 0.03 | KJ61: 0.03 | KK61: 0.03 | KL61: 0.03 | KM61: 0.03 | KN61: 0.03 | KO61: 0.03 | KP61: 0.03 | KQ61: 0.03 | KR61: 0.03 | KS61: 0.03 | KT61: 0.03 | KU61: 0.03
D62: Return | I62: =I56/H56-1 -> 0.12 | J62: =J56/I56-1 -> 0.12 | K62: 0.12 | L62: 0.12 | M62: 0.12 | N62: 0.12 | O62: 0.12 | P62: 0.12 | Q62: 0.12 | R62: 0.12 | S62: 0.12 | T62: 0.09 | U62: 0.09 | V62: 0.09 | W62: 0.09 | X62: 0.09 | Y62: 0.09 | Z62: 0.09 | AA62: 0.09 | AB62: 0.09 | AC62: 0.09 | AD62: 0.03 | AE62: 0.03 | AF62: 0.03 | AG62: 0.03 | AH62: 0.03 | AI62: 0.03 | AJ62: 0.03 | AK62: 0.03 | AL62: 0.03 | AM62: 0.03 | AN62: 0.03 | AO62: 0.03 | AP62: 0.03 | AQ62: 0.03 | AR62: 0.03 | AS62: 0.03 | AT62: 0.03 | AU62: 0.03 | AV62: 0.03 | AW62: 0.03 | AX62: 0.03 | AY62: 0.03 | AZ62: 0.03 | BA62: 0.03 | BB62: 0.03 | BC62: 0.03 | BD62: 0.03 | BE62: 0.03 | BF62: 0.03 | BG62: 0.03 | BH62: 0.03 | BI62: 0.03 | BJ62: 0.03 | BK62: 0.03 | BL62: 0.03 | BM62: 0.03 | BN62: 0.03 | BO62: 0.03 | BP62: 0.03 | BQ62: 0.03 | BR62: 0.03 | BS62: 0.03 | BT62: 0.03 | BU62: 0.03 | BV62: =BV56/BU56-1 -> 0.03 | BW62: 0.03 | BX62: 0.03 | BY62: 0.03 | BZ62: 0.03 | CA62: 0.03 | CB62: 0.03 | CC62: 0.03 | CD62: 0.03 | CE62: 0.03 | CF62: 0.03 | CG62: 0.03 | CH62: 0.03 | CI62: 0.03 | CJ62: 0.03 | CK62: 0.03 | CL62: 0.03 | CM62: 0.03 | CN62: 0.03 | CO62: 0.03 | CP62: 0.03 | CQ62: 0.03 | CR62: 0.03 | CS62: 0.03 | CT62: 0.03 | CU62: 0.03 | CV62: 0.03 | CW62: 0.03 | CX62: 0.03 | CY62: 0.03 | CZ62: 0.03 | DA62: 0.03 | DB62: 0.03 | DC62: 0.03 | DD62: 0.03 | DE62: 0.03 | DF62: 0.03 | DG62: 0.03 | DH62: 0.03 | DI62: 0.03 | DJ62: 0.03 | DK62: 0.03 | DL62: 0.03 | DM62: 0.03 | DN62: 0.03 | DO62: 0.03 | DP62: 0.03 | DQ62: 0.03 | DR62: 0.03 | DS62: 0.03 | DT62: 0.03 | DU62: 0.03 | DV62: 0.03 | DW62: 0.03 | DX62: 0.03 | DY62: 0.03 | DZ62: 0.03 | EA62: 0.03 | EB62: 0.03 | EC62: 0.03 | ED62: 0.03 | EE62: 0.03 | EF62: 0.03 | EG62: 0.03 | EH62: =EH56/EG56-1 -> 0.03 | EI62: 0.03 | EJ62: 0.03 | EK62: 0.03 | EL62: 0.03 | EM62: 0.03 | EN62: 0.03 | EO62: 0.03 | EP62: 0.03 | EQ62: 0.03 | ER62: 0.03 | ES62: 0.03 | ET62: 0.03 | EU62: 0.03 | EV62: 0.03 | EW62: 0.03 | EX62: 0.03 | EY62: 0.03 | EZ62: 0.03 | FA62: 0.03 | FB62: 0.03 | FC62: 0.03 | FD62: 0.03 | FE62: 0.03 | FF62: 0.03 | FG62: 0.03 | FH62: 0.03 | FI62: 0.03 | FJ62: 0.03 | FK62: 0.03 | FL62: 0.03 | FM62: 0.03 | FN62: 0.03 | FO62: 0.03 | FP62: 0.03 | FQ62: 0.03 | FR62: 0.03 | FS62: 0.03 | FT62: 0.03 | FU62: 0.03 | FV62: 0.03 | FW62: 0.03 | FX62: 0.03 | FY62: 0.03 | FZ62: 0.03 | GA62: 0.03 | GB62: 0.03 | GC62: 0.03 | GD62: 0.03 | GE62: 0.03 | GF62: 0.03 | GG62: 0.03 | GH62: 0.03 | GI62: 0.03 | GJ62: 0.03 | GK62: 0.03 | GL62: 0.03 | GM62: 0.03 | GN62: 0.03 | GO62: 0.03 | GP62: 0.03 | GQ62: 0.03 | GR62: 0.03 | GS62: 0.03 | GT62: =GT56/GS56-1 -> 0.03 | GU62: 0.03 | GV62: 0.03 | GW62: 0.03 | GX62: 0.03 | GY62: 0.03 | GZ62: 0.03 | HA62: 0.03 | HB62: 0.03 | HC62: 0.03 | HD62: 0.03 | HE62: 0.03 | HF62: 0.03 | HG62: 0.03 | HH62: 0.03 | HI62: 0.03 | HJ62: 0.03 | HK62: 0.03 | HL62: 0.03 | HM62: 0.03 | HN62: 0.03 | HO62: 0.03 | HP62: 0.03 | HQ62: 0.03 | HR62: 0.03 | HS62: 0.03 | HT62: 0.03 | HU62: 0.03 | HV62: 0.03 | HW62: 0.03 | HX62: 0.03 | HY62: 0.03 | HZ62: 0.03 | IA62: 0.03 | IB62: 0.03 | IC62: 0.03 | ID62: 0.03 | IE62: 0.03 | IF62: 0.03 | IG62: 0.03 | IH62: 0.03 | II62: 0.03 | IJ62: 0.03 | IK62: 0.03 | IL62: 0.03 | IM62: 0.03 | IN62: 0.03 | IO62: 0.03 | IP62: 0.03 | IQ62: 0.03 | IR62: 0.03 | IS62: 0.03 | IT62: 0.03 | IU62: 0.03 | IV62: 0.03 | IW62: 0.03 | IX62: 0.03 | IY62: 0.03 | IZ62: 0.03 | JA62: 0.03 | JB62: 0.03 | JC62: 0.03 | JD62: 0.03 | JE62: 0.03 | JF62: =JF56/JE56-1 -> 0.03 | JG62: 0.03 | JH62: 0.03 | JI62: 0.03 | JJ62: 0.03 | JK62: 0.03 | JL62: 0.03 | JM62: 0.03 | JN62: 0.03 | JO62: 0.03 | JP62: 0.03 | JQ62: 0.03 | JR62: 0.03 | JS62: 0.03 | JT62: 0.03 | JU62: 0.03 | JV62: 0.03 | JW62: 0.03 | JX62: 0.03 | JY62: 0.03 | JZ62: 0.03 | KA62: 0.03 | KB62: 0.03 | KC62: 0.03 | KD62: 0.03 | KE62: 0.03 | KF62: 0.03 | KG62: 0.03 | KH62: 0.03 | KI62: 0.03 | KJ62: 0.03 | KK62: 0.03 | KL62: 0.03 | KM62: 0.03 | KN62: 0.03 | KO62: 0.03 | KP62: 0.03 | KQ62: 0.03 | KR62: 0.03 | KS62: 0.03 | KT62: 0.03 | KU62: 0.03
D63: Plant - Gross | I63: =I42/H42-1 -> 0.12 | J63: =J42/I42-1 -> 0.12 | K63: 0.12 | L63: 0.12 | M63: 0.12 | N63: 0.12 | O63: 0.12 | P63: 0.12 | Q63: 0.12 | R63: 0.12 | S63: 0.12 | T63: 0.09 | U63: 0.09 | V63: 0.09 | W63: 0.09 | X63: 0.09 | Y63: 0.09 | Z63: 0.09 | AA63: 0.09 | AB63: 0.09 | AC63: 0.09 | AD63: 0.03 | AE63: 0.03 | AF63: 0.03 | AG63: 0.03 | AH63: 0.03 | AI63: 0.03 | AJ63: 0.03 | AK63: 0.03 | AL63: 0.03 | AM63: 0.03 | AN63: 0.03 | AO63: 0.03 | AP63: 0.03 | AQ63: 0.03 | AR63: 0.03 | AS63: 0.03 | AT63: 0.03 | AU63: 0.03 | AV63: 0.03 | AW63: 0.03 | AX63: 0.03 | AY63: 0.03 | AZ63: 0.03 | BA63: 0.03 | BB63: 0.03 | BC63: 0.03 | BD63: 0.03 | BE63: 0.03 | BF63: 0.03 | BG63: 0.03 | BH63: 0.03 | BI63: 0.03 | BJ63: 0.03 | BK63: 0.03 | BL63: 0.03 | BM63: 0.03 | BN63: 0.03 | BO63: 0.03 | BP63: 0.03 | BQ63: 0.03 | BR63: 0.03 | BS63: 0.03 | BT63: 0.03 | BU63: 0.03 | BV63: =BV42/BU42-1 -> 0.03 | BW63: 0.03 | BX63: 0.03 | BY63: 0.03 | BZ63: 0.03 | CA63: 0.03 | CB63: 0.03 | CC63: 0.03 | CD63: 0.03 | CE63: 0.03 | CF63: 0.03 | CG63: 0.03 | CH63: 0.03 | CI63: 0.03 | CJ63: 0.03 | CK63: 0.03 | CL63: 0.03 | CM63: 0.03 | CN63: 0.03 | CO63: 0.03 | CP63: 0.03 | CQ63: 0.03 | CR63: 0.03 | CS63: 0.03 | CT63: 0.03 | CU63: 0.03 | CV63: 0.03 | CW63: 0.03 | CX63: 0.03 | CY63: 0.03 | CZ63: 0.03 | DA63: 0.03 | DB63: 0.03 | DC63: 0.03 | DD63: 0.03 | DE63: 0.03 | DF63: 0.03 | DG63: 0.03 | DH63: 0.03 | DI63: 0.03 | DJ63: 0.03 | DK63: 0.03 | DL63: 0.03 | DM63: 0.03 | DN63: 0.03 | DO63: 0.03 | DP63: 0.03 | DQ63: 0.03 | DR63: 0.03 | DS63: 0.03 | DT63: 0.03 | DU63: 0.03 | DV63: 0.03 | DW63: 0.03 | DX63: 0.03 | DY63: 0.03 | DZ63: 0.03 | EA63: 0.03 | EB63: 0.03 | EC63: 0.03 | ED63: 0.03 | EE63: 0.03 | EF63: 0.03 | EG63: 0.03 | EH63: =EH42/EG42-1 -> 0.03 | EI63: 0.03 | EJ63: 0.03 | EK63: 0.03 | EL63: 0.03 | EM63: 0.03 | EN63: 0.03 | EO63: 0.03 | EP63: 0.03 | EQ63: 0.03 | ER63: 0.03 | ES63: 0.03 | ET63: 0.03 | EU63: 0.03 | EV63: 0.03 | EW63: 0.03 | EX63: 0.03 | EY63: 0.03 | EZ63: 0.03 | FA63: 0.03 | FB63: 0.03 | FC63: 0.03 | FD63: 0.03 | FE63: 0.03 | FF63: 0.03 | FG63: 0.03 | FH63: 0.03 | FI63: 0.03 | FJ63: 0.03 | FK63: 0.03 | FL63: 0.03 | FM63: 0.03 | FN63: 0.03 | FO63: 0.03 | FP63: 0.03 | FQ63: 0.03 | FR63: 0.03 | FS63: 0.03 | FT63: 0.03 | FU63: 0.03 | FV63: 0.03 | FW63: 0.03 | FX63: 0.03 | FY63: 0.03 | FZ63: 0.03 | GA63: 0.03 | GB63: 0.03 | GC63: 0.03 | GD63: 0.03 | GE63: 0.03 | GF63: 0.03 | GG63: 0.03 | GH63: 0.03 | GI63: 0.03 | GJ63: 0.03 | GK63: 0.03 | GL63: 0.03 | GM63: 0.03 | GN63: 0.03 | GO63: 0.03 | GP63: 0.03 | GQ63: 0.03 | GR63: 0.03 | GS63: 0.03 | GT63: =GT42/GS42-1 -> 0.03 | GU63: 0.03 | GV63: 0.03 | GW63: 0.03 | GX63: 0.03 | GY63: 0.03 | GZ63: 0.03 | HA63: 0.03 | HB63: 0.03 | HC63: 0.03 | HD63: 0.03 | HE63: 0.03 | HF63: 0.03 | HG63: 0.03 | HH63: 0.03 | HI63: 0.03 | HJ63: 0.03 | HK63: 0.03 | HL63: 0.03 | HM63: 0.03 | HN63: 0.03 | HO63: 0.03 | HP63: 0.03 | HQ63: 0.03 | HR63: 0.03 | HS63: 0.03 | HT63: 0.03 | HU63: 0.03 | HV63: 0.03 | HW63: 0.03 | HX63: 0.03 | HY63: 0.03 | HZ63: 0.03 | IA63: 0.03 | IB63: 0.03 | IC63: 0.03 | ID63: 0.03 | IE63: 0.03 | IF63: 0.03 | IG63: 0.03 | IH63: 0.03 | II63: 0.03 | IJ63: 0.03 | IK63: 0.03 | IL63: 0.03 | IM63: 0.03 | IN63: 0.03 | IO63: 0.03 | IP63: 0.03 | IQ63: 0.03 | IR63: 0.03 | IS63: 0.03 | IT63: 0.03 | IU63: 0.03 | IV63: 0.03 | IW63: 0.03 | IX63: 0.03 | IY63: 0.03 | IZ63: 0.03 | JA63: 0.03 | JB63: 0.03 | JC63: 0.03 | JD63: 0.03 | JE63: 0.03 | JF63: =JF42/JE42-1 -> 0.03 | JG63: 0.03 | JH63: 0.03 | JI63: 0.03 | JJ63: 0.03 | JK63: 0.03 | JL63: 0.03 | JM63: 0.03 | JN63: 0.03 | JO63: 0.03 | JP63: 0.03 | JQ63: 0.03 | JR63: 0.03 | JS63: 0.03 | JT63: 0.03 | JU63: 0.03 | JV63: 0.03 | JW63: 0.03 | JX63: 0.03 | JY63: 0.03 | JZ63: 0.03 | KA63: 0.03 | KB63: 0.03 | KC63: 0.03 | KD63: 0.03 | KE63: 0.03 | KF63: 0.03 | KG63: 0.03 | KH63: 0.03 | KI63: 0.03 | KJ63: 0.03 | KK63: 0.03 | KL63: 0.03 | KM63: 0.03 | KN63: 0.03 | KO63: 0.03 | KP63: 0.03 | KQ63: 0.03 | KR63: 0.03 | KS63: 0.03 | KT63: 0.03 | KU63: 0.03
D64: Plant - Net | I64: =I53/H53-1 -> 0.1199984899 | J64: =J53/I53-1 -> 0.1199986517 | K64: 0.1199987962 | L64: 0.1199989251 | M64: 0.1199990403 | N64: 0.1199991431 | O64: 0.1199992349 | P64: 0.1199993169 | Q64: 0.1199993901 | R64: 0.1199994554 | S64: 0.1199995138 | T64: 0.07343497528 | U64: 0.07581493357 | V64: 0.07811251456 | W64: 0.08032215644 | X64: 0.08243958571 | Y64: 0.08446177965 | Z64: 0.08638690064 | AA64: 0.08821420829 | AB64: 0.08994395515 | AC64: 0.09157727196 | AD64: -0.0061600282 | AE64: -0.0007344568541 | AF64: 0.005575266856 | AG64: 0.01276355568 | AH64: 0.02078044375 | AI64: 0.007765837092 | AJ64: 0.01356140378 | AK64: 0.01988116842 | AL64: 0.02665409166 | AM64: 0.03378397117 | AN64: 0.04115306834 | AO64: 0.04862832425 | AP64: 0.05606957544 | AQ64: 0.06333875216 | AR64: 0.07030881708 | AS64: 0.00585908368 | AT64: 0.009726447766 | AU64: 0.01405548492 | AV64: 0.01884211109 | AW64: 0.02406739342 | AX64: 0.01573866713 | AY64: 0.01953879512 | AZ64: 0.02359832451 | BA64: 0.02789089921 | BB64: 0.03238236464 | BC64: 0.03703143548 | BD64: 0.04179087631 | BE64: 0.04660914543 | BF64: 0.05143239356 | BG64: 0.05620666015 | BH64: 0.01409529656 | BI64: 0.0167517032 | BJ64: 0.01965262145 | BK64: 0.02279870613 | BL64: 0.0261859115 | BM64: 0.02085027957 | BN64: 0.02332195488 | BO64: 0.02592851573 | BP64: 0.02866165246 | BQ64: 0.03151061668 | BR64: 0.03446228097 | BS64: 0.03750129528 | BT64: 0.04061034164 | BU64: 0.04377048204 | BV64: =BV53/BU53-1 -> 0.0469615871 | BW64: 0.01961519037 | BX64: 0.02139649363 | BY64: 0.02331092109 | BZ64: 0.0253613549 | CA64: 0.0275493313 | CB64: 0.02412882496 | CC64: 0.0257285629 | CD64: 0.02740189158 | CE64: 0.02914719418 | CF64: 0.03096212296 | CG64: 0.03284357187 | CH64: 0.03478766404 | CI64: 0.03678975618 | CJ64: 0.03884446147 | CK64: 0.04094569191 | CL64: 0.02325971984 | CM64: 0.02443576695 | CN64: 0.02568673863 | CO64: 0.02701583061 | CP64: 0.02842595648 | CQ64: 0.02623220893 | CR64: 0.02726444943 | CS64: 0.02833858475 | CT64: 0.02945515207 | CU64: 0.03061450553 | CV64: 0.03181679483 | CW64: 0.03306194441 | CX64: 0.03434963377 | CY64: 0.03567927946 | CZ64: 0.03705001931 | DA64: 0.02564233939 | DB64: 0.02641102276 | DC64: 0.02722326398 | DD64: 0.02808176335 | DE64: 0.02898924725 | DF64: 0.02758188361 | DG64: 0.02824666728 | DH64: 0.02893614428 | DI64: 0.02965131959 | DJ64: 0.03039318351 | DK64: 0.03116270263 | DL64: 0.0319608098 | DM64: 0.03278839322 | DN64: 0.03364628476 | DO64: 0.03453524746 | DP64: 0.02718992121 | DQ64: 0.02768910087 | DR64: 0.0282143167 | DS64: 0.02876759564 | DT64: 0.0293510573 | DU64: 0.02844802063 | DV64: 0.02887563538 | DW64: 0.0293181953 | DX64: 0.02977662036 | DY64: 0.03025185958 | DZ64: 0.03074488875 | EA64: 0.03125670758 | EB64: 0.03178833634 | EC64: 0.03234081181 | ED64: 0.03291518256 | EE64: 0.02819089449 | EF64: 0.02851371058 | EG64: 0.02885243182 | EH64: =EH53/EG53-1 -> 0.02920848738 | EI64: 0.02958339461 | EJ64: 0.02900389192 | EK64: 0.02927873805 | EL64: 0.02956280446 | EM64: 0.02985679568 | EN64: 0.03016144969 | EO64: 0.03047753835 | EP64: 0.03080586767 | EQ64: 0.03114727784 | ER64: 0.03150264302 | ES64: 0.03187287084 | ET64: 0.02883655881 | EU64: 0.02904476267 | EV64: 0.02926283922 | EW64: 0.02949176056 | EX64: 0.02973256645 | EY64: 0.02936065607 | EZ64: 0.02953722429 | FA64: 0.02971955726 | FB64: 0.02990815437 | FC64: 0.03010354233 | FD64: 0.03030627629 | FE64: 0.03051694107 | FF64: 0.03073615227 | FG64: 0.03096455736 | FH64: 0.03120283673 | FI64: 0.02925230344 | FJ64: 0.0293863556 | FK64: 0.02952660511 | FL64: 0.02967369898 | FM64: 0.02982833205 | FN64: 0.02958963768 | FO64: 0.02970303389 | FP64: 0.02982006709 | FQ64: 0.02994107732 | FR64: 0.03006642446 | FS64: 0.03019648941 | FT64: 0.03033167527 | FU64: 0.0304724086 | FV64: 0.03061914068 | FW64: 0.03077234883 | FX64: 0.02951969895 | FY64: 0.029605913 | FZ64: 0.02969604711 | GA64: 0.02979052622 | GB64: 0.02988980772 | GC64: 0.02973660742 | GD64: 0.02980941841 | GE64: 0.02988453781 | GF64: 0.02996219193 | GG64: 0.03004262076 | GH64: 0.03012607886 | GI64: 0.0302128364 | GJ64: 0.03030318011 | GK64: 0.03039741439 | GL64: 0.0304958624 | GM64: 0.02969155501 | GN64: 0.02974696312 | GO64: 0.02980486351 | GP64: 0.02986553291 | GQ64: 0.02992926964 | GR64: 0.02983093972 | GS64: 0.02987768514 | GT64: =GT53/GS53-1 -> 0.02992590152 | GU64: 0.02997573744 | GV64: 0.03002735064 | GW64: 0.03008090867 | GX64: 0.03013658963 | GY64: 0.03019458289 | GZ64: 0.03025508993 | HA64: 0.03031832511 | HB64: 0.02980195573 | HC64: 0.02983754922 | HD64: 0.02987473254 | HE64: 0.02991368499 | HF64: 0.0299546 | HG64: 0.02989148722 | HH64: 0.02992149578 | HI64: 0.02995244408 | HJ64: 0.02998442885 | HK64: 0.03001755286 | HL64: 0.03005192538 | HM64: 0.03008766264 | HN64: 0.0301248884 | HO64: 0.03016373448 | HP64: 0.03020434134 | HQ64: 0.02987285606 | HR64: 0.02989571417 | HS64: 0.02991958867 | HT64: 0.02994459533 | HU64: 0.0299708591 | HV64: 0.02993035001 | HW64: 0.0299496132 | HX64: 0.02996947775 | HY64: 0.02999000632 | HZ64: 0.0300112655 | IA64: 0.03003332611 | IB64: 0.03005626359 | IC64: 0.03008015825 | ID64: 0.03010509574 | IE64: 0.0301311674 | IF64: 0.02991838007 | IG64: 0.02993305678 | IH64: 0.02994838418 | II64: 0.02996443688 | IJ64: 0.02998129542 | IK64: 0.02995529442 | IL64: 0.02996765948 | IM64: 0.02998040979 | IN64: 0.02999358579 | IO64: 0.03000723047 | IP64: 0.03002138961 | IQ64: 0.03003611192 | IR64: 0.03005144935 | IS64: 0.03006745729 | IT64: 0.03008419486 | IU64: 0.02994760671 | IV64: 0.02995702917 | IW64: 0.0299668686 | IX64: 0.02997717299 | IY64: 0.02998799418 | IZ64: 0.02997130523 | JA64: 0.02997924221 | JB64: 0.02998742615 | JC64: 0.02999588311 | JD64: 0.03000464079 | JE64: 0.0300137287 | JF64: =JF53/JE53-1 -> 0.03002317823 | JG64: 0.03003302289 | JH64: 0.0300432984 | JI64: 0.03005404291 | JJ64: 0.02996636886 | JK64: 0.02997241762 | JL64: 0.02997873373 | JM64: 0.02998534805 | JN64: 0.0299922939 | JO64: 0.02998158193 | JP64: 0.02998667651 | JQ64: 0.02999192947 | JR64: 0.02999735758 | JS64: 0.03000297868 | JT64: 0.03000881173 | JU64: 0.03001487697 | JV64: 0.03002119594 | JW64: 0.03002779165 | JX64: 0.03003468868 | JY64: 0.02997841268 | JZ64: 0.02998229549 | KA64: 0.02998634979 | KB64: 0.0299905954 | KC64: 0.02999505373 | KD64: 0.02998817815 | KE64: 0.02999144822 | KF64: 0.02999481989 | KG64: 0.02999830396 | KH64: 0.03000191187 | KI64: 0.03000565583 | KJ64: 0.03000954885 | KK64: 0.03001360478 | KL64: 0.03001783843 | KM64: 0.03002226559 | KN64: 0.0299861436 | KO64: 0.02998863597 | KP64: 0.02999123837 | KQ64: 0.02999396352 | KR64: 0.02999682518 | KS64: 0.02999241201 | KT64: 0.02999451096 | KU64: 0.02999667511
D65: Depreciation | I65: =I45/H45-1 -> 0.12 | J65: =J45/I45-1 -> 0.12 | K65: 0.12 | L65: 0.12 | M65: 0.12 | N65: 0.12 | O65: 0.12 | P65: 0.12 | Q65: 0.12 | R65: 0.12 | S65: 0.12 | T65: 0.09 | U65: 0.09 | V65: 0.09 | W65: 0.09 | X65: 0.09 | Y65: 0.09 | Z65: 0.09 | AA65: 0.09 | AB65: 0.09 | AC65: 0.09 | AD65: 0.03 | AE65: 0.03 | AF65: 0.03 | AG65: 0.03 | AH65: 0.03 | AI65: 0.03 | AJ65: 0.03 | AK65: 0.03 | AL65: 0.03 | AM65: 0.03 | AN65: 0.03 | AO65: 0.03 | AP65: 0.03 | AQ65: 0.03 | AR65: 0.03 | AS65: 0.03 | AT65: 0.03 | AU65: 0.03 | AV65: 0.03 | AW65: 0.03 | AX65: 0.03 | AY65: 0.03 | AZ65: 0.03 | BA65: 0.03 | BB65: 0.03 | BC65: 0.03 | BD65: 0.03 | BE65: 0.03 | BF65: 0.03 | BG65: 0.03 | BH65: 0.03 | BI65: 0.03 | BJ65: 0.03 | BK65: 0.03 | BL65: 0.03 | BM65: 0.03 | BN65: 0.03 | BO65: 0.03 | BP65: 0.03 | BQ65: 0.03 | BR65: 0.03 | BS65: 0.03 | BT65: 0.03 | BU65: 0.03 | BV65: =BV45/BU45-1 -> 0.03 | BW65: 0.03 | BX65: 0.03 | BY65: 0.03 | BZ65: 0.03 | CA65: 0.03 | CB65: 0.03 | CC65: 0.03 | CD65: 0.03 | CE65: 0.03 | CF65: 0.03 | CG65: 0.03 | CH65: 0.03 | CI65: 0.03 | CJ65: 0.03 | CK65: 0.03 | CL65: 0.03 | CM65: 0.03 | CN65: 0.03 | CO65: 0.03 | CP65: 0.03 | CQ65: 0.03 | CR65: 0.03 | CS65: 0.03 | CT65: 0.03 | CU65: 0.03 | CV65: 0.03 | CW65: 0.03 | CX65: 0.03 | CY65: 0.03 | CZ65: 0.03 | DA65: 0.03 | DB65: 0.03 | DC65: 0.03 | DD65: 0.03 | DE65: 0.03 | DF65: 0.03 | DG65: 0.03 | DH65: 0.03 | DI65: 0.03 | DJ65: 0.03 | DK65: 0.03 | DL65: 0.03 | DM65: 0.03 | DN65: 0.03 | DO65: 0.03 | DP65: 0.03 | DQ65: 0.03 | DR65: 0.03 | DS65: 0.03 | DT65: 0.03 | DU65: 0.03 | DV65: 0.03 | DW65: 0.03 | DX65: 0.03 | DY65: 0.03 | DZ65: 0.03 | EA65: 0.03 | EB65: 0.03 | EC65: 0.03 | ED65: 0.03 | EE65: 0.03 | EF65: 0.03 | EG65: 0.03 | EH65: =EH45/EG45-1 -> 0.03 | EI65: 0.03 | EJ65: 0.03 | EK65: 0.03 | EL65: 0.03 | EM65: 0.03 | EN65: 0.03 | EO65: 0.03 | EP65: 0.03 | EQ65: 0.03 | ER65: 0.03 | ES65: 0.03 | ET65: 0.03 | EU65: 0.03 | EV65: 0.03 | EW65: 0.03 | EX65: 0.03 | EY65: 0.03 | EZ65: 0.03 | FA65: 0.03 | FB65: 0.03 | FC65: 0.03 | FD65: 0.03 | FE65: 0.03 | FF65: 0.03 | FG65: 0.03 | FH65: 0.03 | FI65: 0.03 | FJ65: 0.03 | FK65: 0.03 | FL65: 0.03 | FM65: 0.03 | FN65: 0.03 | FO65: 0.03 | FP65: 0.03 | FQ65: 0.03 | FR65: 0.03 | FS65: 0.03 | FT65: 0.03 | FU65: 0.03 | FV65: 0.03 | FW65: 0.03 | FX65: 0.03 | FY65: 0.03 | FZ65: 0.03 | GA65: 0.03 | GB65: 0.03 | GC65: 0.03 | GD65: 0.03 | GE65: 0.03 | GF65: 0.03 | GG65: 0.03 | GH65: 0.03 | GI65: 0.03 | GJ65: 0.03 | GK65: 0.03 | GL65: 0.03 | GM65: 0.03 | GN65: 0.03 | GO65: 0.03 | GP65: 0.03 | GQ65: 0.03 | GR65: 0.03 | GS65: 0.03 | GT65: =GT45/GS45-1 -> 0.03 | GU65: 0.03 | GV65: 0.03 | GW65: 0.03 | GX65: 0.03 | GY65: 0.03 | GZ65: 0.03 | HA65: 0.03 | HB65: 0.03 | HC65: 0.03 | HD65: 0.03 | HE65: 0.03 | HF65: 0.03 | HG65: 0.03 | HH65: 0.03 | HI65: 0.03 | HJ65: 0.03 | HK65: 0.03 | HL65: 0.03 | HM65: 0.03 | HN65: 0.03 | HO65: 0.03 | HP65: 0.03 | HQ65: 0.03 | HR65: 0.03 | HS65: 0.03 | HT65: 0.03 | HU65: 0.03 | HV65: 0.03 | HW65: 0.03 | HX65: 0.03 | HY65: 0.03 | HZ65: 0.03 | IA65: 0.03 | IB65: 0.03 | IC65: 0.03 | ID65: 0.03 | IE65: 0.03 | IF65: 0.03 | IG65: 0.03 | IH65: 0.03 | II65: 0.03 | IJ65: 0.03 | IK65: 0.03 | IL65: 0.03 | IM65: 0.03 | IN65: 0.03 | IO65: 0.03 | IP65: 0.03 | IQ65: 0.03 | IR65: 0.03 | IS65: 0.03 | IT65: 0.03 | IU65: 0.03 | IV65: 0.03 | IW65: 0.03 | IX65: 0.03 | IY65: 0.03 | IZ65: 0.03 | JA65: 0.03 | JB65: 0.03 | JC65: 0.03 | JD65: 0.03 | JE65: 0.03 | JF65: =JF45/JE45-1 -> 0.03 | JG65: 0.03 | JH65: 0.03 | JI65: 0.03 | JJ65: 0.03 | JK65: 0.03 | JL65: 0.03 | JM65: 0.03 | JN65: 0.03 | JO65: 0.03 | JP65: 0.03 | JQ65: 0.03 | JR65: 0.03 | JS65: 0.03 | JT65: 0.03 | JU65: 0.03 | JV65: 0.03 | JW65: 0.03 | JX65: 0.03 | JY65: 0.03 | JZ65: 0.03 | KA65: 0.03 | KB65: 0.03 | KC65: 0.03 | KD65: 0.03 | KE65: 0.03 | KF65: 0.03 | KG65: 0.03 | KH65: 0.03 | KI65: 0.03 | KJ65: 0.03 | KK65: 0.03 | KL65: 0.03 | KM65: 0.03 | KN65: 0.03 | KO65: 0.03 | KP65: 0.03 | KQ65: 0.03 | KR65: 0.03 | KS65: 0.03 | KT65: 0.03 | KU65: 0.03
D66: Capital Expenditure | I66: =I40/H40-1 -> 0.12 | J66: =J40/I40-1 -> 0.12 | K66: 0.12 | L66: 0.12 | M66: 0.12 | N66: 0.12 | O66: 0.12 | P66: 0.12 | Q66: 0.12 | R66: 0.12 | S66: 0.12 | T66: -0.1088450468 | U66: 0.09688835803 | V66: 0.09703349702 | W66: 0.09718074398 | X66: 0.09733008967 | Y66: 0.09748152311 | Z66: 0.0976350314 | AA66: 0.09779059972 | AB66: 0.09794821133 | AC66: 0.09810784753 | AD66: -0.4280918127 | AE66: 0.07858380936 | AF66: 0.08044936334 | AG66: 0.08229609906 | AH66: 0.08411793593 | AI66: -0.056252283 | AJ66: 0.06923630069 | AK66: 0.07033834981 | AL66: 0.07143524039 | AM66: 0.07252521294 | AN66: 0.0736065731 | AO66: 0.07467770265 | AP66: 0.07573706946 | AQ66: 0.07678323618 | AR66: 0.07781486748 | AS66: -0.2976567781 | AT66: 0.05829665559 | AU66: 0.05994647493 | AV66: 0.06164315625 | AW66: 0.06338253046 | AX66: -0.02424199285 | AY66: 0.05386529914 | AZ66: 0.05489347614 | BA66: 0.05594476616 | BB66: 0.05701787075 | BC66: 0.05811135382 | BD66: 0.05922364771 | BE66: 0.06035306102 | BF66: 0.0614977884 | BG66: 0.06265592194 | BH66: -0.1969706244 | BI66: 0.0471436609 | BJ66: 0.0483364527 | BK66: 0.04958991979 | BL66: 0.05090407859 | BM66: -0.004369550832 | BN66: 0.04482002907 | BO66: 0.04559234137 | BP66: 0.04639539039 | BQ66: 0.04722933459 | BR66: 0.04809421214 | BS66: 0.04898993123 | BT66: 0.04991626111 | BU66: 0.05087282394 | BV66: =BV40/BU40-1 -> 0.0518590876 | BW66: -0.1234881449 | BX66: 0.04062141531 | BY66: 0.0414316167 | BZ66: 0.0422940484 | CA66: 0.04321060427 | CB66: 0.008119532602 | CC66: 0.03931789762 | CD66: 0.03985537824 | CE66: 0.04042013092 | CF66: 0.04101303425 | CG66: 0.04163493052 | CH66: 0.0422866163 | CI66: 0.04296883228 | CJ66: 0.0436822526 | CK66: 0.04442747357 | CL66: -0.07202635466 | CM66: 0.03666871374 | CN66: 0.03720476975 | CO66: 0.03777989299 | CP66: 0.03839626997 | CQ66: 0.01602894573 | CR66: 0.03590332193 | CS66: 0.03626442206 | CT66: 0.03664635055 | CU66: 0.03705009845 | CV66: 0.0374766735 | CW66: 0.0379270959 | CX66: 0.03840239321 | CY66: 0.03890359469 | CZ66: 0.03943172467 | DA66: -0.03701862551 | DB66: 0.0342212685 | DC66: 0.03457138223 | DD66: 0.03494885919 | DE66: 0.03535555186 | DF66: 0.0210624061 | DG66: 0.03375786955 | DH66: 0.03399601067 | DI66: 0.03424893999 | DJ66: 0.03451749909 | DK66: 0.03480256448 | DL66: 0.035105047 | DM66: 0.03542589091 | DN66: 0.03576607249 | DO66: 0.0361265982 | DP66: -0.01367238866 | DQ66: 0.03268566045 | DR66: 0.03291273503 | DS66: 0.03315831447 | DT66: 0.03342378526 | DU66: 0.02427554733 | DV66: 0.03239933303 | DW66: 0.03255473929 | DX66: 0.03272023437 | DY66: 0.03289645108 | DZ66: 0.03308405691 | EA66: 0.03328375511 | EB66: 0.03349628558 | EC66: 0.03372242571 | ED66: 0.03396299098 | EE66: 0.001691395612 | EF66: 0.03171415411 | EG66: 0.03186083771 | EH66: =EH40/EG40-1 -> 0.03201978615 | EI66: 0.03219197395 | EJ66: 0.02633072032 | EK66: 0.03153485325 | EL66: 0.03163563622 | EM66: 0.03174314376 | EN66: 0.03185782231 | EO66: 0.03198014633 | EP66: 0.03211061966 | EQ66: 0.032249777 | ER66: 0.03239818529 | ES66: 0.03255644518 | ET66: 0.01171381742 | EU66: 0.03109630329 | EV66: 0.0311908293 | EW66: 0.031293387 | EX66: 0.03140463757 | EY66: 0.02764689608 | EZ66: 0.03098303858 | FA66: 0.03104814848 | FB66: 0.03111767795 | FC66: 0.03119193071 | FD66: 0.03127123101 | FE66: 0.03135592482 | FF66: 0.03144638125 | FG66: 0.03154299382 | FH66: 0.03164618195 | FI66: 0.01821451581 | FJ66: 0.03070205881 | FK66: 0.03076288376 | FL66: 0.03082892955 | FM66: 0.03090063547 | FN66: 0.02849048253 | FO66: 0.03063010255 | FP66: 0.0306720664 | FQ66: 0.03071690977 | FR66: 0.03076483483 | FS66: 0.03081605802 | FT66: 0.03087081098 | FU66: 0.03092934163 | FV66: 0.03099191522 | FW66: 0.03105881546 | FX66: 0.022415321 | FY66: 0.03044996134 | FZ66: 0.0304890647 | GA66: 0.03053154612 | GB66: 0.03057769377 | GC66: 0.0290314482 | GD66: 0.0304040802 | GE66: 0.03043108586 | GF66: 0.03045995743 | GG66: 0.03049082772 | GH66: 0.03052383912 | GI66: 0.03055914432 | GJ66: 0.03059690709 | GK66: 0.030637303 | GL66: 0.0306805203 | GM66: 0.02512339714 | GN66: 0.03028854037 | GO66: 0.03031366477 | GP66: 0.03034096854 | GQ66: 0.03037063921 | GR66: 0.02937846757 | GS66: 0.03025921616 | GT66: =GT40/GS40-1 -> 0.03027657909 | GU66: 0.03029514697 | GV66: 0.0303150063 | GW66: 0.03033624992 | GX66: 0.03035897751 | GY66: 0.03038329612 | GZ66: 0.03040932067 | HA66: 0.03043717456 | HB66: 0.02686647091 | HC66: 0.03018509092 | HD66: 0.03020122775 | HE66: 0.03021876802 | HF66: 0.03023783315 | HG66: 0.02960112134 | HH66: 0.03016632026 | HI66: 0.0301774768 | HJ66: 0.03018940976 | HK66: 0.03020217518 | HL66: 0.03021583325 | HM66: 0.03023044865 | HN66: 0.03024609088 | HO66: 0.03026283464 | HP66: 0.03028076021 | HQ66: 0.02798729404 | HR66: 0.03011875665 | HS66: 0.03012911856 | HT66: 0.03014038316 | HU66: 0.03015262885 | HV66: 0.02974399941 | HW66: 0.03010672964 | HX66: 0.03011389551 | HY66: 0.03012156098 | HZ66: 0.03012976222 | IA66: 0.03013853812 | IB66: 0.03014793049 | IC66: 0.03015798427 | ID66: 0.03016874778 | IE66: 0.030180273 | IF66: 0.02870753787 | IG66: 0.03007620637 | IH66: 0.03008285904 | II66: 0.03009009191 | IJ66: 0.03009795545 | IK66: 0.02983569303 | IL66: 0.0300684954 | IM66: 0.03007309692 | IN66: 0.03007801962 | IO66: 0.03008328682 | IP66: 0.03008892358 | IQ66: 0.03009495684 | IR66: 0.03010141559 | IS66: 0.03010833101 | IT66: 0.03011573664 | IU66: 0.02917017747 | IV66: 0.03004890614 | IW66: 0.03005317697 | IX66: 0.03005782051 | IY66: 0.03006286926 | IZ66: 0.02989454176 | JA66: 0.03004396035 | JB66: 0.03004691472 | JC66: 0.03005007546 | JD66: 0.03005345757 | JE66: 0.03005707716 | JF66: =JF40/JE40-1 -> 0.0300609516 | JG66: 0.03006509954 | JH66: 0.03006954106 | JI66: 0.03007429777 | JJ66: 0.02946726946 | JK66: 0.03003138777 | JL66: 0.03003412935 | JM66: 0.03003711029 | JN66: 0.03004035148 | JO66: 0.02993231208 | JP66: 0.03002821473 | JQ66: 0.03003011137 | JR66: 0.03003214056 | JS66: 0.03003431193 | JT66: 0.03003663587 | JU66: 0.03003912351 | JV66: 0.03004178687 | JW66: 0.03004463886 | JX66: 0.03004769337 | JY66: 0.02965801973 | JZ66: 0.03002014528 | KA66: 0.03002190512 | KB66: 0.03002381866 | KC66: 0.0300258993 | KD66: 0.0299565544 | KE66: 0.03001810924 | KF66: 0.03001932676 | KG66: 0.0300206294 | KH66: 0.03002202334 | KI66: 0.03002351526 | KJ66: 0.03002511231 | KK66: 0.03002682221 | KL66: 0.03002865326 | KM66: 0.0300306144 | KN66: 0.02978047906 | KO66: 0.03001292994 | KP66: 0.03001405957 | KQ66: 0.03001528787 | KR66: 0.03001662345 | KS66: 0.02997211421 | KT66: 0.03001162334 | KU66: 0.03001240488
D67: Cash Flow | I67: =I58/H58-1 -> 0.12 | J67: =J58/I58-1 -> 0.12 | K67: 0.12 | L67: 0.12 | M67: 0.12 | N67: 0.12 | O67: 0.12 | P67: 0.12 | Q67: 0.12 | R67: 0.12 | S67: 0.12 | T67: 1.101466495 | U67: 0.07514121868 | V67: 0.07452125657 | W67: 0.07386612404 | X67: 0.07317300393 | Y67: 0.07243877219 | Z67: 0.07165995519 | AA67: 0.07083267916 | AB67: 0.06995261094 | AC67: 0.06901488765 | AD67: 1.247922061 | AE67: -0.002862726752 | AF67: -0.006911922711 | AG67: -0.01162909049 | AH67: -0.01717316233 | AI67: 0.112932334 | AJ67: -0.00199105019 | AK67: -0.005236911007 | AL67: -0.008944935474 | AM67: -0.01321114399 | AN67: -0.01815978058 | AO67: -0.0239545057 | AP67: -0.03081537603 | AQ67: -0.03904543044 | AR67: -0.04907388322 | AS67: 0.6441672604 | AT67: 0.007342811722 | AU67: 0.004808922468 | AV67: 0.001921022788 | AW67: -0.001388157112 | AX67: 0.08430940067 | AY67: 0.008497193036 | AZ67: 0.006561801352 | BA67: 0.00439901902 | BB67: 0.001971949723 | BC67: -0.0007645307992 | BD67: -0.003866201751 | BE67: -0.007402837875 | BF67: -0.01146289158 | BG67: -0.01616019036 | BH67: 0.3765321789 | BI67: 0.01473057971 | BJ67: 0.01314651094 | BK67: 0.01136902458 | BL67: 0.009367874668 | BM67: 0.06531834899 | BN67: 0.01576706863 | BO67: 0.01459704684 | BP67: 0.01330896675 | BQ67: 0.01188727067 | BR67: 0.01031367111 | BS67: 0.008566527235 | BT67: 0.006620041703 | BU67: 0.004443214978 | BV67: =BV58/BU58-1 -> 0.001998466753 | BW67: 0.2364025817 | BX67: 0.0198744046 | BY67: 0.01888032997 | BZ67: 0.01777674859 | CA67: 0.01654907218 | CB67: 0.05286282007 | CC67: 0.02067752177 | CD67: 0.01995970217 | CE67: 0.01917728048 | CF67: 0.01832305511 | CG67: 0.01738879383 | CH67: 0.01636504488 | CI67: 0.01524090488 | CJ67: 0.01400373151 | CK67: 0.01263878508 | CL67: 0.1566268858 | CM67: 0.02335954266 | CN67: 0.02273245433 | CO67: 0.0220412703 | CP67: 0.02127845663 | CQ67: 0.044755539 | CR67: 0.02393663427 | CS67: 0.02349054765 | CT67: 0.02300748451 | CU67: 0.02248381975 | CV67: 0.02191548978 | CW67: 0.02129792606 | CX67: 0.02062597606 | CY67: 0.01989380901 | CZ67: 0.01909480269 | DA67: 0.1090349733 | DB67: 0.02567745606 | DC67: 0.02527994967 | DD67: 0.02484388983 | DE67: 0.02436514825 | DF67: 0.03950459476 | DG67: 0.02607463035 | DH67: 0.0257946187 | DI67: 0.02549268631 | DJ67: 0.02516687778 | DK67: 0.02481503078 | DL67: 0.0244347493 | DM67: 0.02402337275 | DN67: 0.02357793995 | DO67: 0.02309514717 | DP67: 0.07984697085 | DQ67: 0.02720010397 | DR67: 0.02694715417 | DS67: 0.02667053234 | DT67: 0.02636786714 | DU67: 0.03611455117 | DV67: 0.02746644592 | DW67: 0.02728939459 | DX67: 0.02709900943 | DY67: 0.02689417796 | DZ67: 0.02667368138 | EA67: 0.02643618251 | EB67: 0.02618021216 | EC67: 0.02590415356 | ED67: 0.02560622453 | EE67: 0.06164153775 | EF67: 0.02819222229 | EG67: 0.02803080495 | EH67: =EH58/EG58-1 -> 0.02785463777 | EI67: 0.02766230982 | EJ67: 0.03393045138 | EK67: 0.02836798378 | EL67: 0.02825546498 | EM67: 0.02813468799 | EN67: 0.02800499478 | EO67: 0.02786566895 | EP67: 0.02771592974 | EQ67: 0.02755492542 | ER67: 0.02738172581 | ES67: 0.02719531385 | ET67: 0.05016655015 | EU67: 0.02883523375 | EV67: 0.02873202418 | EW67: 0.02861953076 | EX67: 0.02849689267 | EY67: 0.03252518332 | EZ67: 0.02895005723 | FA67: 0.02887830418 | FB67: 0.0288013734 | FC67: 0.02871886488 | FD67: 0.02863034494 | FE67: 0.02853534307 | FF67: 0.02843334839 | FG67: 0.02832380578 | FH67: 0.02820611156 | FI67: 0.04288592563 | FJ67: 0.02925054741 | FK67: 0.02918446787 | FL67: 0.02911250508 | FM67: 0.02903412473 | FN67: 0.03162179954 | FO67: 0.02932508352 | FP67: 0.02927922246 | FQ67: 0.02923008841 | FR67: 0.02917743364 | FS67: 0.02912099031 | FT67: 0.02906046868 | FU67: 0.02899555513 | FV67: 0.02892591001 | FW67: 0.0288511653 | FX67: 0.03824717789 | FY67: 0.0295181965 | FZ67: 0.02947585198 | GA67: 0.02942976246 | GB67: 0.0293795924 | GC67: 0.03104137574 | GD67: 0.02956638456 | GE67: 0.02953702862 | GF67: 0.02950559256 | GG67: 0.02947192106 | GH67: 0.02943584647 | GI67: 0.02939718776 | GJ67: 0.02935574941 | GK67: 0.02931132013 | GL67: 0.02926367148 | GM67: 0.03528378758 | GN67: 0.0296904354 | GO67: 0.02966328487 | GP67: 0.02963374343 | GQ67: 0.02960159876 | GR67: 0.03066858615 | GS67: 0.02972150865 | GT67: =GT58/GS58-1 -> 0.02970269947 | GU67: 0.02968256365 | GV67: 0.02966100299 | GW67: 0.02963791164 | GX67: 0.0296131754 | GY67: 0.02958667114 | GZ67: 0.02955826595 | HA67: 0.02952781637 | HB67: 0.0333874525 | HC67: 0.02980117299 | HD67: 0.02978375802 | HE67: 0.02976481371 | HF67: 0.02974420504 | HG67: 0.03042920871 | HH67: 0.02982117685 | HI67: 0.02980911769 | HJ67: 0.02979621051 | HK67: 0.02978239291 | HL67: 0.02976759763 | HM67: 0.02975175222 | HN67: 0.0297347786 | HO67: 0.02971659256 | HP67: 0.02969710332 | HQ67: 0.03217262813 | HR67: 0.02987232719 | HS67: 0.02986115411 | HT67: 0.02984900159 | HU67: 0.02983578348 | HV67: 0.03027552105 | HW67: 0.02988519131 | HX67: 0.02987745666 | HY67: 0.02986917914 | HZ67: 0.02986031895 | IA67: 0.02985083321 | IB67: 0.02984067576 | IC67: 0.02982979687 | ID67: 0.02981814294 | IE67: 0.02980565624 | IF67: 0.03139384891 | IG67: 0.0299180297 | IH67: 0.02991086016 | II67: 0.02990306285 | IJ67: 0.02989458269 | IK67: 0.03017685814 | IL67: 0.02992629675 | IM67: 0.02992133451 | IN67: 0.02991602442 | IO67: 0.02991034102 | IP67: 0.02990425693 | IQ67: 0.02989774266 | IR67: 0.02989076643 | IS67: 0.02988329404 | IT67: 0.02987528864 | IU67: 0.0308943793 | IV67: 0.02994737733 | IW67: 0.0299427763 | IX67: 0.02993777272 | IY67: 0.02993233129 | IZ67: 0.03011352332 | JA67: 0.02995268778 | JB67: 0.02994950367 | JC67: 0.02994609653 | JD67: 0.02994245007 | JE67: 0.02993854676 | JF67: =JF58/JE58-1 -> 0.02993436771 | JG67: 0.02992989262 | JH67: 0.0299250996 | JI67: 0.02991996509 | JJ67: 0.03057395304 | JK67: 0.02996621977 | JL67: 0.0299632669 | JM67: 0.02996005579 | JN67: 0.02995656383 | JO67: 0.03007286828 | JP67: 0.02996963006 | JQ67: 0.0299675867 | JR67: 0.02996540028 | JS67: 0.02996306038 | JT67: 0.02996055574 | JU67: 0.02995787429 | JV67: 0.029955003 | JW67: 0.02995192787 | JX67: 0.02994863381 | JY67: 0.03036835126 | JZ67: 0.02997831622 | KA67: 0.02997642102 | KB67: 0.02997436014 | KC67: 0.02997211907 | KD67: 0.03004677219 | KE67: 0.02998050586 | KF67: 0.02997919446 | KG67: 0.02997779129 | KH67: 0.02997628965 | KI67: 0.02997468233 | KJ67: 0.02997296159 | KK67: 0.02997111907 | KL67: 0.02996914581 | KM67: 0.02996703213 | KN67: 0.03023641115 | KO67: 0.02998608137 | KP67: 0.02998486498 | KQ67: 0.02998354226 | KR67: 0.02998210392 | KS67: 0.03003002163 | KT67: 0.02998748711 | KU67: 0.02998664544
B69: Capital Asset Ratios and Returns
C70: Accumulated Depreciation to Gross Plant | H70: =H51/H42 -> 0.3986793248 | I70: =I51/I42 -> 0.3986801356 | J70: 0.3986808595 | K70: 0.3986815058 | L70: 0.3986820829 | M70: 0.3986825981 | N70: 0.3986830582 | O70: 0.3986834689 | P70: 0.3986838357 | Q70: 0.3986841631 | R70: 0.3986844555 | S70: 0.3986847165 | T70: 0.4078230675 | U70: 0.4155295529 | V70: 0.4219037583 | W70: 0.4270365336 | X70: 0.4310106998 | Y70: 0.4339016981 | Z70: 0.4357781837 | AA70: 0.4367025715 | AB70: 0.4367315347 | AC70: 0.4359164636 | AD70: 0.4557196447 | AE70: 0.4719605778 | AF70: 0.4844821526 | AG70: 0.4931090406 | AH70: 0.4976462345 | AI70: 0.5084903272 | AJ70: 0.5163347243 | AK70: 0.5210863044 | AL70: 0.5226420338 | AM70: 0.520888336 | AN70: 0.5157004086 | AO70: 0.5069414865 | AP70: 0.4944620437 | AQ70: 0.4780989324 | AR70: 0.4576744521 | AS70: 0.4703853605 | AT70: 0.4808097975 | AU70: 0.4888469198 | AV70: 0.494384191 | AW70: 0.4972964431 | AX70: 0.5042568535 | AY70: 0.5092918735 | AZ70: 0.512341732 | BA70: 0.5133402955 | BB70: 0.5122146636 | BC70: 0.5088847305 | BD70: 0.5032627116 | BE70: 0.4952526322 | BF70: 0.4847497737 | BG70: 0.471640077 | BH70: 0.4797987254 | BI70: 0.4864897748 | BJ70: 0.4916484978 | BK70: 0.4952026615 | BL70: 0.4970719253 | BM70: 0.5015395479 | BN70: 0.5047713356 | BO70: 0.5067289237 | BP70: 0.5073698637 | BQ70: 0.5066473634 | BR70: 0.504510006 | BS70: 0.500901446 | BT70: 0.4957600808 | BU70: =BU51/BU42 -> 0.4890186956 | BV70: 0.4806040802 | BW70: 0.4858408062 | BX70: 0.4901355362 | BY70: 0.4934467241 | BZ70: 0.4957280065 | CA70: 0.4969278159 | CB70: 0.4997954128 | CC70: 0.5018697744 | CD70: 0.5031262757 | CE70: 0.5035376706 | CF70: 0.5030739252 | CG70: 0.5017020368 | CH70: 0.4993858395 | CI70: 0.4960857928 | CJ70: 0.4917587542 | CK70: 0.4863577327 | CL70: 0.4897189879 | CM70: 0.4924756116 | CN70: 0.4946009372 | CO70: 0.4960652056 | CP70: 0.4968353175 | CQ70: 0.4986759189 | CR70: 0.5000073726 | CS70: 0.500813873 | CT70: 0.5010779318 | CU70: 0.5007802712 | CV70: 0.4998997083 | CW70: 0.4984130293 | CX70: 0.4962948549 | CY70: 0.4935174935 | CZ70: 0.4900507834 | DA70: 0.4922082451 | DB70: 0.493977617 | DC70: 0.4953417826 | DD70: 0.4962816408 | DE70: 0.4967759463 | DF70: 0.4979573583 | DG70: 0.4988119678 | DH70: 0.4993296297 | DI70: 0.499499119 | DJ70: 0.499308062 | DK70: 0.4987428621 | DL70: 0.4977886195 | DM70: 0.496429044 | DN70: 0.4946463614 | DO70: 0.492421212 | DP70: 0.4938060046 | DQ70: 0.4949416971 | DR70: 0.4958173031 | DS70: 0.4964205623 | DT70: 0.4967378382 | DU70: 0.4974961416 | DV70: 0.4980446829 | DW70: 0.4983769504 | DX70: 0.4984857391 | DY70: 0.4983631069 | DZ70: 0.4980003266 | EA70: 0.4973878346 | EB70: 0.4965151748 | EC70: 0.4953709387 | ED70: 0.4939427 | EE70: 0.4948315457 | EF70: 0.4955605035 | EG70: =EG51/EG42 -> 0.4961225216 | EH70: 0.4965097307 | EI70: 0.4967133781 | EJ70: 0.4972001042 | EK70: 0.497552192 | EL70: 0.4977654618 | EM70: 0.4978352892 | EN70: 0.4977565762 | EO70: 0.4975237214 | EP70: 0.497130586 | EQ70: 0.4965704589 | ER70: 0.4958360173 | ES70: 0.4949192852 | ET70: 0.4954898014 | EU70: 0.4959576917 | EV70: 0.4963184298 | EW70: 0.4965669646 | EX70: 0.496697678 | EY70: 0.497010089 | EZ70: 0.4972360808 | FA70: 0.4973729706 | FB70: 0.4974177901 | FC70: 0.4973672672 | FD70: 0.4972178066 | FE70: 0.496965468 | FF70: 0.4966059437 | FG70: 0.4961345335 | FH70: 0.4955461181 | FI70: 0.4959123108 | FJ70: 0.4962126317 | FK70: 0.4964441758 | FL70: 0.4966037008 | FM70: 0.4966876008 | FN70: 0.4968881255 | FO70: 0.497033181 | FP70: 0.4971210454 | FQ70: 0.4971498133 | FR70: 0.4971173846 | FS70: 0.4970214515 | FT70: 0.4968594849 | FU70: 0.49662872 | FV70: 0.4963261398 | FW70: 0.4959484583 | FX70: 0.4961835034 | FY70: 0.496376268 | FZ70: 0.4965248873 | GA70: 0.4966272804 | GB70: 0.4966811326 | GC70: 0.4968098418 | GD70: 0.4969029474 | GE70: 0.4969593442 | GF70: 0.4969778092 | GG70: 0.4969569945 | GH70: 0.4968954187 | GI70: 0.4967914585 | GJ70: 0.4966433392 | GK70: 0.4964491245 | GL70: 0.4962067051 | GM70: 0.4963575717 | GN70: 0.4964812999 | GO70: 0.496576693 | GP70: 0.4966424152 | GQ70: 0.4966769809 | GR70: 0.4967595944 | GS70: =GS51/GS42 -> 0.4968193554 | GT70: 0.4968555543 | GU70: 0.4968674063 | GV70: 0.4968540461 | GW70: 0.496814523 | GX70: 0.4967477949 | GY70: 0.4966527228 | GZ70: 0.4965280637 | HA70: 0.496372464 | HB70: 0.4964692994 | HC70: 0.4965487159 | HD70: 0.4966099451 | HE70: 0.4966521297 | HF70: 0.4966743161 | HG70: 0.4967273426 | HH70: 0.4967657008 | HI70: 0.4967889356 | HJ70: 0.4967965429 | HK70: 0.4967879675 | HL70: 0.4967625991 | HM70: 0.4967197689 | HN70: 0.4966587457 | HO70: 0.4965787318 | HP70: 0.4964788583 | HQ70: 0.4965410133 | HR70: 0.4965919877 | HS70: 0.4966312884 | HT70: 0.496658365 | HU70: 0.4966726056 | HV70: 0.4967066413 | HW70: 0.496731262 | HX70: 0.4967461755 | HY70: 0.4967510584 | HZ70: 0.4967455542 | IA70: 0.4967292711 | IB70: 0.4967017801 | IC70: 0.4966626116 | ID70: 0.4966112537 | IE70: 0.4965471487 | IF70: 0.4965870436 | IG70: 0.4966197622 | IH70: 0.4966449878 | II70: 0.4966623673 | IJ70: 0.4966715078 | IK70: 0.496693354 | IL70: 0.4967091571 | IM70: 0.4967187295 | IN70: 0.4967218636 | IO70: 0.4967183307 | IP70: 0.4967078792 | IQ70: 0.4966902337 | IR70: 0.496665093 | IS70: 0.4966321283 | IT70: 0.4965909817 | IU70: 0.4966165888 | IV70: 0.4966375896 | IW70: 0.4966537809 | IX70: 0.4966649361 | IY70: 0.4966708031 | IZ70: 0.4966848253 | JA70: 0.4966949687 | JB70: 0.4967011129 | JC70: 0.4967031246 | JD70: 0.4967008569 | JE70: =JE51/JE42 -> 0.4966941485 | JF70: 0.4966828226 | JG70: 0.4966666857 | JH70: 0.4966455269 | JI70: 0.4966191165 | JJ70: 0.4966355527 | JK70: 0.4966490323 | JL70: 0.4966594249 | JM70: 0.496666585 | JN70: 0.4966703508 | JO70: 0.4966793511 | JP70: 0.4966858618 | JQ70: 0.4966898055 | JR70: 0.4966910967 | JS70: 0.4966896412 | JT70: 0.4966853353 | JU70: 0.4966780656 | JV70: 0.496667708 | JW70: 0.496654127 | JX70: 0.4966371751 | JY70: 0.4966477249 | JZ70: 0.4966563769 | KA70: 0.4966630476 | KB70: 0.4966676434 | KC70: 0.4966700605 | KD70: 0.4966758374 | KE70: 0.4966800164 | KF70: 0.4966825477 | KG70: 0.4966833765 | KH70: 0.4966824422 | KI70: 0.4966796785 | KJ70: 0.4966750123 | KK70: 0.4966683641 | KL70: 0.496659647 | KM70: 0.4966487663 | KN70: 0.4966555378 | KO70: 0.4966610912 | KP70: 0.4966653728 | KQ70: 0.4966683227 | KR70: 0.4966698741 | KS70: 0.4966735821 | KT70: 0.4966762645 | KU70: 0.4966778892
C71: Net Plant Depreciation Rate | H71: =H45/G53 -> 0.1241709407 | I71: =I45/H53 -> 0.1241711282 | J71: =J45/I53 -> 0.1241712957 | K71: 0.1241714451 | L71: 0.1241715786 | M71: 0.1241716978 | N71: 0.1241718042 | O71: 0.1241718992 | P71: 0.124171984 | Q71: 0.1241720597 | R71: 0.1241721273 | S71: 0.1241721877 | T71: 0.1208461994 | U71: 0.1227110728 | V71: 0.1243290692 | W71: 0.1256999465 | X71: 0.1268260036 | Y71: 0.1277118333 | Z71: 0.1283640428 | AA71: 0.1287909552 | AB71: 0.129002305 | AC71: 0.1290089383 | AD71: 0.1217313788 | AE71: 0.1261604723 | AF71: 0.1300407958 | AG71: 0.1331993975 | AH71: 0.1354663471 | AI71: 0.1366898616 | AJ71: 0.1397056263 | AK71: 0.1419714627 | AL71: 0.1433800438 | AM71: 0.1438473253 | AN71: 0.1433207993 | AO71: 0.1417855144 | AP71: 0.1392667701 | AQ71: 0.1358289043 | AR71: 0.1315702744 | AS71: 0.1266152165 | AT71: 0.1296540193 | AU71: 0.1322572466 | AV71: 0.1343367952 | AW71: 0.1358079899 | AX71: 0.13659475 | AY71: 0.1385125889 | AZ71: 0.1399338282 | BA71: 0.1408089869 | BB71: 0.1410979089 | BC71: 0.1407723061 | BD71: 0.1398178206 | BE71: 0.1382353777 | BF71: 0.1360416538 | BG71: 0.1332685813 | BH71: 0.1299619136 | BI71: 0.1320001892 | BJ71: 0.1337201545 | BK71: 0.1350771393 | BL71: 0.1360281868 | BM71: 0.1365337712 | BN71: 0.1377575019 | BO71: 0.1386564866 | BP71: 0.1392067566 | BQ71: 0.1393878726 | BR71: 0.1391837432 | BS71: 0.1385833569 | BT71: 0.1375813777 | BU71: 0.1361785611 | BV71: =BV45/BU53 -> 0.134381955 | BW71: 0.1322048635 | BX71: 0.1335513738 | BY71: 0.1346763141 | BZ71: 0.1355566531 | CA71: 0.1361698995 | CB71: 0.1364946599 | CC71: 0.137277163 | CD71: 0.1378488257 | CE71: 0.1381974198 | CF71: 0.1383119375 | CG71: 0.1381828609 | CH71: 0.1378024229 | CI71: 0.1371648509 | CJ71: 0.1362665821 | CK71: 0.1351064425 | CL71: 0.1336857791 | CM71: 0.1345663762 | CN71: 0.1352972748 | CO71: 0.1358662327 | CP71: 0.1362610152 | CQ71: 0.1364695676 | CR71: 0.1369706129 | CS71: 0.1373353584 | CT71: 0.1375572416 | CU71: 0.1376300449 | CV71: 0.1375479828 | CW71: 0.1373057921 | CX71: 0.1368988245 | CY71: 0.1363231393 | CZ71: 0.135575594 | DA71: 0.1346539311 | DB71: 0.1352260371 | DC71: 0.1356988722 | DD71: 0.1360656862 | DE71: 0.1363195631 | DF71: 0.1364534667 | DG71: 0.1367745704 | DH71: 0.137007794 | DI71: 0.1371494515 | DJ71: 0.1371958957 | DK71: 0.1371435437 | DL71: 0.1369889055 | DM71: 0.1367286154 | DN71: 0.136359466 | DO71: 0.1358784451 | DP71: 0.1352827744 | DQ71: 0.1356528669 | DR71: 0.1359579009 | DS71: 0.1361940168 | DT71: 0.1363571693 | DU71: 0.1364431342 | DV71: 0.1366490337 | DW71: 0.136798365 | DX71: 0.1368889781 | DY71: 0.1369186722 | DZ71: 0.1368852005 | EA71: 0.1367862776 | EB71: 0.1366195874 | EC71: 0.1363827929 | ED71: 0.1360735477 | EE71: 0.1356895092 | EF71: 0.1359282554 | EG71: 0.1361246832 | EH71: =EH45/EG53 -> 0.1362765149 | EI71: 0.1363813183 | EJ71: 0.1364365029 | EK71: 0.1365685778 | EL71: 0.1366642775 | EM71: 0.1367223109 | EN71: 0.1367413225 | EO71: 0.136719892 | EP71: 0.136656534 | EQ71: 0.1365496981 | ER71: 0.1363977698 | ES71: 0.1361990722 | ET71: 0.135951868 | EU71: 0.1361056067 | EV71: 0.1362319502 | EW71: 0.1363295199 | EX71: 0.1363968231 | EY71: 0.1364322469 | EZ71: 0.1365169861 | FA71: 0.1365783503 | FB71: 0.1366155472 | FC71: 0.1366277304 | FD71: 0.136613997 | FE71: 0.1365733862 | FF71: 0.1365048765 | FG71: 0.1364073846 | FH71: 0.1362797636 | FI71: 0.1361208014 | FJ71: 0.1362196858 | FK71: 0.13630089 | FL71: 0.1363635636 | FM71: 0.1364067769 | FN71: 0.1364295153 | FO71: 0.1364838918 | FP71: 0.1365232538 | FQ71: 0.1365471075 | FR71: 0.1365549193 | FS71: 0.1365461135 | FT71: 0.13652007 | FU71: 0.1364761227 | FV71: 0.1364135567 | FW71: 0.1363316068 | FX71: 0.1362294547 | FY71: 0.1362930097 | FZ71: 0.1363451766 | GA71: 0.1363854239 | GB71: 0.1364131666 | GC71: 0.136427762 | GD71: 0.1364626584 | GE71: 0.1364879128 | GF71: 0.1365032147 | GG71: 0.1365082255 | GH71: 0.1365025771 | GI71: 0.1364858704 | GJ71: 0.1364576731 | GK71: 0.1364175187 | GL71: 0.1363649037 | GM71: 0.1362992866 | GN71: 0.1363401151 | GO71: 0.1363736176 | GP71: 0.1363994589 | GQ71: 0.1364172682 | GR71: 0.1364266367 | GS71: 0.1364490329 | GT71: =GT45/GS53 -> 0.1364652385 | GU71: 0.1364750565 | GV71: 0.1364782714 | GW71: 0.1364746474 | GX71: 0.1364639279 | GY71: 0.1364458337 | GZ71: 0.1364200618 | HA71: 0.1363862844 | HB71: 0.1363441467 | HC71: 0.1363703675 | HD71: 0.1363918791 | HE71: 0.1364084689 | HF71: 0.1364199011 | HG71: 0.1364259144 | HH71: 0.1364402887 | HI71: 0.1364506886 | HJ71: 0.136456989 | HK71: 0.1364590519 | HL71: 0.1364567265 | HM71: 0.1364498476 | HN71: 0.1364382354 | HO71: 0.1364216942 | HP71: 0.1364000113 | HQ71: 0.1363729563 | HR71: 0.1363897924 | HS71: 0.136403603 | HT71: 0.1364142528 | HU71: 0.136421591 | HV71: 0.1364254508 | HW71: 0.1364346767 | HX71: 0.1364413513 | HY71: 0.1364453946 | HZ71: 0.1364467185 | IA71: 0.1364452261 | IB71: 0.1364408115 | IC71: 0.1364333589 | ID71: 0.136422742 | IE71: 0.1364088236 | IF71: 0.1363914545 | IG71: 0.1364022634 | IH71: 0.1364111292 | II71: 0.1364179654 | IJ71: 0.1364226758 | IK71: 0.1364251532 | IL71: 0.1364310748 | IM71: 0.1364353587 | IN71: 0.1364379537 | IO71: 0.1364388033 | IP71: 0.1364378455 | IQ71: 0.1364350123 | IR71: 0.136430229 | IS71: 0.1364234145 | IT71: 0.1364144804 | IU71: 0.1364033304 | IV71: 0.1364102693 | IW71: 0.1364159604 | IX71: 0.1364203486 | IY71: 0.136423372 | IZ71: 0.1364249622 | JA71: 0.136428763 | JB71: 0.1364315125 | JC71: 0.136433178 | JD71: 0.1364337234 | JE71: 0.1364331086 | JF71: =JF45/JE53 -> 0.1364312902 | JG71: 0.1364282201 | JH71: 0.1364238462 | JI71: 0.1364181116 | JJ71: 0.1364109542 | JK71: 0.1364154084 | JL71: 0.1364190616 | JM71: 0.1364218783 | JN71: 0.1364238189 | JO71: 0.1364248396 | JP71: 0.1364272792 | JQ71: 0.1364290439 | JR71: 0.1364301129 | JS71: 0.1364304629 | JT71: 0.1364300684 | JU71: 0.1364289012 | JV71: 0.1364269307 | JW71: 0.1364241233 | JX71: 0.1364204424 | JY71: 0.1364158481 | JZ71: 0.1364187073 | KA71: 0.1364210522 | KB71: 0.1364228601 | KC71: 0.1364241058 | KD71: 0.1364247609 | KE71: 0.1364263268 | KF71: 0.1364274595 | KG71: 0.1364281456 | KH71: 0.1364283703 | KI71: 0.136428117 | KJ71: 0.1364273679 | KK71: 0.1364261031 | KL71: 0.1364243011 | KM71: 0.1364219385 | KN71: 0.1364189895 | KO71: 0.1364208247 | KP71: 0.1364223299 | KQ71: 0.1364234904 | KR71: 0.1364242899 | KS71: 0.1364247104 | KT71: 0.1364257155 | KU71: 0.1364264425
C72: Capital Expenditures to Depreciation | H72: =H40/H45 -> 1.966396067 | I72: =I40/I45 -> 1.966396067 | J72: 1.966396067 | K72: 1.966396067 | L72: 1.966396067 | M72: 1.966396067 | N72: 1.966396067 | O72: 1.966396067 | P72: 1.966396067 | Q72: 1.966396067 | R72: 1.966396067 | S72: 1.966396067 | T72: 1.607673023 | U72: 1.617832864 | V72: 1.628272335 | W72: 1.63899913 | X72: 1.650021158 | Y72: 1.661346544 | Z72: 1.672983639 | AA72: 1.684941021 | AB72: 1.697227504 | AC72: 1.709852148 | AD72: 0.9493965462 | AE72: 0.9941783917 | AF72: 1.042873214 | AG72: 1.095822924 | AH72: 1.153399307 | AI72: 1.056813556 | AJ72: 1.097071279 | AK72: 1.140036371 | AL72: 1.185898197 | AM72: 1.234859919 | AN72: 1.28713954 | AO72: 1.342971032 | AP72: 1.402605556 | AQ72: 1.466312767 | AR72: 1.534382233 | AS72: 1.04627472 | AT72: 1.075018482 | AU72: 1.106273836 | AV72: 1.14026024 | AW72: 1.177216329 | AX72: 1.115221611 | AY72: 1.141061511 | AZ72: 1.168639169 | BA72: 1.19807613 | BB72: 1.229502796 | BC72: 1.263059095 | BD72: 1.298895206 | BE72: 1.337172338 | BF72: 1.378063572 | BG72: 1.421754772 | BH72: 1.108457133 | BI72: 1.126906661 | BJ72: 1.146968283 | BK72: 1.168782862 | BL72: 1.192503569 | BM72: 1.152711519 | BN72: 1.169297168 | BO72: 1.186998217 | BP72: 1.205892682 | BQ72: 1.226064263 | BR72: 1.247602775 | BS72: 1.27060461 | BT72: 1.295173244 | BU72: =BU40/BU45 -> 1.321419772 | BV72: 1.349463491 | BW72: 1.148369658 | BX72: 1.160211708 | BY72: 1.173088499 | BZ72: 1.187090448 | CA72: 1.202315867 | CB72: 1.176774864 | CC72: 1.187420561 | CD72: 1.198782191 | CE72: 1.210909829 | CF72: 1.223857199 | CG72: 1.23768195 | CH72: 1.252445953 | CI72: 1.268215625 | CJ72: 1.285062272 | CK72: 1.303062468 | CL72: 1.173987989 | CM72: 1.18158895 | CN72: 1.189854073 | CO72: 1.19884139 | CP72: 1.208614008 | CQ72: 1.19222021 | CR72: 1.199053278 | CS72: 1.206345875 | CT72: 1.214130145 | CU72: 1.222440569 | CV72: 1.231314151 | CW72: 1.240790603 | CX72: 1.250912555 | CY72: 1.261725776 | CZ72: 1.273279417 | DA72: 1.190431421 | DB72: 1.195310188 | DC72: 1.200615256 | DD72: 1.206383873 | DE72: 1.212656545 | DF72: 1.202133989 | DG72: 1.206519876 | DH72: 1.211200717 | DI72: 1.216197143 | DJ72: 1.221531288 | DK72: 1.227226903 | DL72: 1.233309476 | DM72: 1.239806372 | DN72: 1.246746968 | DO72: 1.25416281 | DP72: 1.200985834 | DQ72: 1.204117329 | DR72: 1.20752245 | DS72: 1.211225106 | DT72: 1.215251295 | DU72: 1.208497267 | DV72: 1.211312401 | DW72: 1.214316855 | DX72: 1.217523871 | DY72: 1.220947655 | DZ72: 1.224603453 | EA72: 1.228507626 | EB72: 1.232677736 | EC72: 1.23713264 | ED72: 1.241892588 | EE72: 1.20776031 | EF72: 1.209770298 | EG72: =EG40/EG45 -> 1.211955915 | EH72: 1.214332509 | EI72: 1.216916767 | EJ72: 1.212581613 | EK72: 1.21438854 | EL72: 1.216316985 | EM72: 1.218375446 | EN72: 1.220573044 | EO72: 1.222919561 | EP72: 1.225425501 | EQ72: 1.228102136 | ER72: 1.23096157 | ES72: 1.234016799 | ET72: 1.212108588 | EU72: 1.213398723 | EV72: 1.214801588 | EW72: 1.216327033 | EX72: 1.21798577 | EY72: 1.2152032 | EZ72: 1.216362997 | FA72: 1.217600792 | FB72: 1.218922041 | FC72: 1.220332595 | FD72: 1.221838735 | FE72: 1.223447202 | FF72: 1.225165233 | FG72: 1.227000594 | FH72: 1.228961629 | FI72: 1.214899583 | FJ72: 1.215727671 | FK72: 1.216628117 | FL72: 1.217607242 | FM72: 1.218671922 | FN72: 1.216885896 | FO72: 1.217630326 | FP72: 1.21842482 | FQ72: 1.219272879 | FR72: 1.22017826 | FS72: 1.221144994 | FT72: 1.222177408 | FU72: 1.223280146 | FV72: 1.224458195 | FW72: 1.225716909 | FX72: 1.216691016 | FY72: 1.217222534 | FZ72: 1.217800496 | GA72: 1.218428959 | GB72: 1.219112337 | GC72: 1.217965955 | GD72: 1.218443776 | GE72: 1.218953731 | GF72: 1.219498068 | GG72: 1.220079198 | GH72: 1.220699708 | GI72: 1.221362375 | GJ72: 1.222070181 | GK72: 1.222826325 | GL72: 1.223634246 | GM72: 1.217840869 | GN72: 1.21818203 | GO72: 1.218553002 | GP72: 1.218956389 | GQ72: 1.219395023 | GR72: 1.218659204 | GS72: =GS40/GS45 -> 1.218965899 | GT72: 1.21929322 | GU72: 1.219642609 | GV72: 1.220015614 | GW72: 1.220413895 | GX72: 1.220839236 | GY72: 1.22129355 | GZ72: 1.22177889 | HA72: 1.222297464 | HB72: 1.218578916 | HC72: 1.218797894 | HD72: 1.219036007 | HE72: 1.219294925 | HF72: 1.219576468 | HG72: 1.219104173 | HH72: 1.21930103 | HI72: 1.219511124 | HJ72: 1.219735384 | HK72: 1.219974802 | HL72: 1.220230443 | HM72: 1.220503454 | HN72: 1.22079506 | HO72: 1.221106582 | HP72: 1.221439434 | HQ72: 1.21905264 | HR72: 1.219193194 | HS72: 1.219346029 | HT72: 1.219512219 | HU72: 1.21969293 | HV72: 1.219389783 | HW72: 1.219516137 | HX72: 1.219650989 | HY72: 1.219794933 | HZ72: 1.219948606 | IA72: 1.220112693 | IB72: 1.220287927 | IC72: 1.220475099 | ID72: 1.220675052 | IE72: 1.220888698 | IF72: 1.219356705 | IG72: 1.219446921 | IH72: 1.219545021 | II72: 1.219651692 | IJ72: 1.219767683 | IK72: 1.219573104 | IL72: 1.219654207 | IM72: 1.219740763 | IN72: 1.219833155 | IO72: 1.219931792 | IP72: 1.220037113 | IQ72: 1.220149589 | IR72: 1.220269727 | IS72: 1.22039807 | IT72: 1.220535201 | IU72: 1.219551873 | IV72: 1.21960978 | IW72: 1.219672746 | IX72: 1.219741214 | IY72: 1.219815665 | IZ72: 1.219690772 | JA72: 1.219742828 | JB72: 1.219798385 | JC72: 1.219857688 | JD72: 1.219920999 | JE72: =JE40/JE45 -> 1.219988601 | JF72: 1.220060795 | JG72: 1.220137907 | JH72: 1.220220286 | JI72: 1.220308305 | JJ72: 1.219677144 | JK72: 1.219714312 | JL72: 1.219754728 | JM72: 1.219798675 | JN72: 1.219846462 | JO72: 1.219766298 | JP72: 1.219799711 | JQ72: 1.219835371 | JR72: 1.219873435 | JS72: 1.219914072 | JT72: 1.219957463 | JU72: 1.220003802 | JV72: 1.220053297 | JW72: 1.220106173 | JX72: 1.220162669 | JY72: 1.219757551 | JZ72: 1.219781408 | KA72: 1.219807349 | KB72: 1.219835557 | KC72: 1.219866229 | KD72: 1.219814775 | KE72: 1.219836222 | KF72: 1.219859111 | KG72: 1.219883543 | KH72: 1.219909626 | KI72: 1.219937477 | KJ72: 1.21996722 | KK72: 1.219998989 | KL72: 1.220032928 | KM72: 1.220069191 | KN72: 1.219809161 | KO72: 1.219824474 | KP72: 1.219841124 | KQ72: 1.21985923 | KR72: 1.219878917 | KS72: 1.219845891 | KT72: 1.219859657 | KU72: 1.219874348
C73: Retirements as Percent of Depreciation | H73: =H50/H45 -> 0.3592532095 | I73: =I50/I45 -> 0.3592532095 | J73: 0.3592532095 | K73: 0.3592532095 | L73: 0.3592532095 | M73: 0.3592532095 | N73: 0.3592532095 | O73: 0.3592532095 | P73: 0.3592532095 | Q73: 0.3592532095 | R73: 0.3592532095 | S73: 0.3592532095 | T73: 0.3691409125 | U73: 0.3793007542 | V73: 0.3897402245 | W73: 0.4004670197 | X73: 0.4114890477 | Y73: 0.4228144344 | Z73: 0.4344515289 | AA73: 0.4464089104 | AB73: 0.4586953942 | AC73: 0.4713200381 | AD73: 0.5125033424 | AE73: 0.5572851878 | AF73: 0.60598001 | AG73: 0.6589297197 | AH73: 0.7165061029 | AI73: 0.619920352 | AJ73: 0.6601780748 | AK73: 0.703143167 | AL73: 0.7490049933 | AM73: 0.797966715 | AN73: 0.8502463357 | AO73: 0.9060778286 | AP73: 0.9657123523 | AQ73: 1.029419563 | AR73: 1.09748903 | AS73: 0.609381516 | AT73: 0.6381252785 | AU73: 0.669380632 | AV73: 0.7033670357 | AW73: 0.7403231252 | AX73: 0.678328407 | AY73: 0.7041683074 | AZ73: 0.7317459651 | BA73: 0.7611829263 | BB73: 0.7926095923 | BC73: 0.8261658915 | BD73: 0.8620020022 | BE73: 0.9002791337 | BF73: 0.941170368 | BG73: 0.9848615684 | BH73: 0.6715639292 | BI73: 0.6900134566 | BJ73: 0.7100750786 | BK73: 0.7318896579 | BL73: 0.7556103655 | BM73: 0.715818315 | BN73: 0.7324039637 | BO73: 0.7501050128 | BP73: 0.768999478 | BQ73: 0.7891710591 | BR73: 0.8107095706 | BS73: 0.8337114064 | BT73: 0.8582800406 | BU73: =BU50/BU45 -> 0.8845265679 | BV73: 0.9125702869 | BW73: 0.7114764541 | BX73: 0.7233185036 | BY73: 0.7361952954 | BZ73: 0.7501972438 | CA73: 0.7654226633 | CB73: 0.7398816603 | CC73: 0.7505273571 | CD73: 0.7618889869 | CE73: 0.7740166252 | CF73: 0.7869639955 | CG73: 0.8007887464 | CH73: 0.8155527496 | CI73: 0.8313224209 | CJ73: 0.848169068 | CK73: 0.8661692641 | CL73: 0.737094785 | CM73: 0.744695746 | CN73: 0.7529608686 | CO73: 0.7619481865 | CP73: 0.7717208039 | CQ73: 0.755327006 | CR73: 0.7621600736 | CS73: 0.7694526715 | CT73: 0.777236941 | CU73: 0.7855473653 | CV73: 0.7944209469 | CW73: 0.8038973987 | CX73: 0.8140193507 | CY73: 0.8248325724 | CZ73: 0.8363862133 | DA73: 0.7535382168 | DB73: 0.7584169844 | DC73: 0.7637220521 | DD73: 0.7694906694 | DE73: 0.7757633407 | DF73: 0.7652407856 | DG73: 0.7696266717 | DH73: 0.7743075128 | DI73: 0.7793039392 | DJ73: 0.7846380843 | DK73: 0.7903336987 | DL73: 0.7964162725 | DM73: 0.8029131683 | DN73: 0.8098537638 | DO73: 0.8172696063 | DP73: 0.7640926299 | DQ73: 0.7672241252 | DR73: 0.7706292463 | DS73: 0.7743319022 | DT73: 0.7783580912 | DU73: 0.7716040635 | DV73: 0.7744191969 | DW73: 0.7774236507 | DX73: 0.7806306667 | DY73: 0.7840544515 | DZ73: 0.7877102496 | EA73: 0.7916144222 | EB73: 0.7957845324 | EC73: 0.8002394366 | ED73: 0.8049993837 | EE73: 0.7708671061 | EF73: 0.7728770937 | EG73: =EG50/EG45 -> 0.7750627114 | EH73: 0.7774393053 | EI73: 0.7800235629 | EJ73: 0.7756884095 | EK73: 0.7774953365 | EL73: 0.779423781 | EM73: 0.7814822426 | EN73: 0.7836798397 | EO73: 0.7860263574 | EP73: 0.7885322973 | EQ73: 0.7912089323 | ER73: 0.7940683658 | ES73: 0.7971235947 | ET73: 0.7752153845 | EU73: 0.7765055191 | EV73: 0.7779083839 | EW73: 0.7794338292 | EX73: 0.7810925657 | EY73: 0.7783099957 | EZ73: 0.7794697934 | FA73: 0.7807075886 | FB73: 0.7820288367 | FC73: 0.7834393907 | FD73: 0.7849455311 | FE73: 0.7865539986 | FF73: 0.7882720288 | FG73: 0.7901073903 | FH73: 0.7920684255 | FI73: 0.778006379 | FJ73: 0.7788344673 | FK73: 0.7797349129 | FL73: 0.7807140381 | FM73: 0.781778718 | FN73: 0.7799926922 | FO73: 0.7807371222 | FP73: 0.7815316158 | FQ73: 0.7823796747 | FR73: 0.7832850556 | FS73: 0.7842517899 | FT73: 0.7852842039 | FU73: 0.7863869421 | FV73: 0.7875649908 | FW73: 0.7888237047 | FX73: 0.7797978122 | FY73: 0.7803293305 | FZ73: 0.7809072923 | GA73: 0.7815357555 | GB73: 0.782219133 | GC73: 0.781072751 | GD73: 0.7815505723 | GE73: 0.7820605275 | GF73: 0.7826048643 | GG73: 0.7831859938 | GH73: 0.7838065037 | GI73: 0.784469171 | GJ73: 0.7851769767 | GK73: 0.7859331214 | GL73: 0.7867410419 | GM73: 0.7809476649 | GN73: 0.7812888264 | GO73: 0.781659798 | GP73: 0.7820631846 | GQ73: 0.7825018186 | GR73: 0.7817659997 | GS73: =GS50/GS45 -> 0.782072695 | GT73: 0.7824000158 | GU73: 0.7827494049 | GV73: 0.7831224098 | GW73: 0.7835206915 | GX73: 0.7839460324 | GY73: 0.784400346 | GZ73: 0.7848856865 | HA73: 0.7854042599 | HB73: 0.7816857117 | HC73: 0.7819046902 | HD73: 0.7821428028 | HE73: 0.7824017213 | HF73: 0.7826832638 | HG73: 0.7822109696 | HH73: 0.7824078257 | HI73: 0.7826179205 | HJ73: 0.78284218 | HK73: 0.7830815977 | HL73: 0.7833372395 | HM73: 0.7836102497 | HN73: 0.7839018563 | HO73: 0.7842133778 | HP73: 0.7845462304 | HQ73: 0.7821594358 | HR73: 0.7822999898 | HS73: 0.7824528252 | HT73: 0.7826190151 | HU73: 0.7827997266 | HV73: 0.7824965789 | HW73: 0.7826229333 | HX73: 0.7827577851 | HY73: 0.7829017288 | HZ73: 0.7830554019 | IA73: 0.7832194887 | IB73: 0.7833947235 | IC73: 0.7835818947 | ID73: 0.7837818485 | IE73: 0.7839954939 | IF73: 0.7824635013 | IG73: 0.7825537175 | IH73: 0.7826518168 | II73: 0.7827584878 | IJ73: 0.7828744796 | IK73: 0.7826799006 | IL73: 0.7827610027 | IM73: 0.782847559 | IN73: 0.7829399509 | IO73: 0.7830385878 | IP73: 0.7831439089 | IQ73: 0.7832563855 | IR73: 0.7833765235 | IS73: 0.7835048663 | IT73: 0.7836419971 | IU73: 0.7826586694 | IV73: 0.7827165757 | IW73: 0.7827795419 | IX73: 0.78284801 | IY73: 0.7829224607 | IZ73: 0.7827975678 | JA73: 0.7828496242 | JB73: 0.7829051814 | JC73: 0.7829644842 | JD73: 0.7830277955 | JE73: =JE50/JE45 -> 0.7830953971 | JF73: 0.7831675915 | JG73: 0.7832447036 | JH73: 0.7833270819 | JI73: 0.783415101 | JJ73: 0.7827839403 | JK73: 0.7828211082 | JL73: 0.7828615238 | JM73: 0.7829054708 | JN73: 0.7829532579 | JO73: 0.782873094 | JP73: 0.7829065069 | JQ73: 0.782942167 | JR73: 0.7829802312 | JS73: 0.7830208683 | JT73: 0.7830642592 | JU73: 0.7831105981 | JV73: 0.7831600934 | JW73: 0.7832129689 | JX73: 0.783269465 | JY73: 0.782864347 | JZ73: 0.7828882036 | KA73: 0.7829141449 | KB73: 0.7829423528 | KC73: 0.7829730255 | KD73: 0.7829215713 | KE73: 0.7829430178 | KF73: 0.7829659066 | KG73: 0.7829903386 | KH73: 0.7830164221 | KI73: 0.783044273 | KJ73: 0.7830740162 | KK73: 0.7831057853 | KL73: 0.7831397241 | KM73: 0.7831759868 | KN73: 0.7829159569 | KO73: 0.7829312696 | KP73: 0.7829479203 | KQ73: 0.7829660259 | KR73: 0.7829857136 | KS73: 0.7829526871 | KT73: 0.7829664528 | KU73: 0.7829811442
C74: Retirements as Percent of Gross Plant | H74: =H50/H42 -> 0.02395021397 | I74: =I50/I42 -> 0.02395021397 | J74: 0.02395021397 | K74: 0.02395021397 | L74: 0.02395021397 | M74: 0.02395021397 | N74: 0.02395021397 | O74: 0.02395021397 | P74: 0.02395021397 | Q74: 0.02395021397 | R74: 0.02395021397 | S74: 0.02395021397 | T74: 0.02460939417 | U74: 0.02528671694 | V74: 0.02598268163 | W74: 0.02669780131 | X74: 0.02743260318 | Y74: 0.02818762896 | Z74: 0.02896343526 | AA74: 0.02976059403 | AB74: 0.03057969295 | AC74: 0.03142133587 | AD74: 0.03416688949 | AE74: 0.03715234585 | AF74: 0.04039866734 | AG74: 0.04392864798 | AH74: 0.04776707353 | AI74: 0.04132802347 | AJ74: 0.04401187165 | AK74: 0.04687621114 | AL74: 0.04993366622 | AM74: 0.053197781 | AN74: 0.05668308905 | AO74: 0.06040518857 | AP74: 0.06438082348 | AQ74: 0.06862797086 | AR74: 0.0731659353 | AS74: 0.0406254344 | AT74: 0.04254168524 | AU74: 0.04462537547 | AV74: 0.04689113571 | AW74: 0.04935487501 | AX74: 0.0452218938 | AY74: 0.04694455382 | AZ74: 0.04878306434 | BA74: 0.05074552842 | BB74: 0.05284063949 | BC74: 0.0550777261 | BD74: 0.05746680015 | BE74: 0.06001860891 | BF74: 0.0627446912 | BG74: 0.06565743789 | BH74: 0.04477092862 | BI74: 0.04600089711 | BJ74: 0.04733833858 | BK74: 0.04879264386 | BL74: 0.05037402437 | BM74: 0.047721221 | BN74: 0.04882693091 | BO74: 0.05000700086 | BP74: 0.05126663187 | BQ74: 0.05261140394 | BR74: 0.05404730471 | BS74: 0.05558076043 | BT74: 0.05721866937 | BU74: =BU50/BU42 -> 0.05896843786 | BV74: 0.06083801912 | BW74: 0.0474317636 | BX74: 0.04822123358 | BY74: 0.04907968636 | BZ74: 0.05001314958 | CA74: 0.05102817755 | CB74: 0.04932544402 | CC74: 0.05003515714 | CD74: 0.05079259913 | CE74: 0.05160110834 | CF74: 0.05246426636 | CG74: 0.05338591643 | CH74: 0.0543701833 | CI74: 0.05542149473 | CJ74: 0.05654460454 | CK74: 0.05774461761 | CL74: 0.04913965233 | CM74: 0.04964638307 | CN74: 0.05019739124 | CO74: 0.05079654576 | CP74: 0.05144805359 | CQ74: 0.05035513373 | CR74: 0.05081067158 | CS74: 0.05129684477 | CT74: 0.05181579607 | CU74: 0.05236982435 | CV74: 0.05296139646 | CW74: 0.05359315991 | CX74: 0.05426795671 | CY74: 0.05498883816 | CZ74: 0.05575908089 | DA74: 0.05023588112 | DB74: 0.05056113229 | DC74: 0.05091480347 | DD74: 0.05129937796 | DE74: 0.05171755605 | DF74: 0.05101605237 | DG74: 0.05130844478 | DH74: 0.05162050085 | DI74: 0.05195359595 | DJ74: 0.05230920562 | DK74: 0.05268891324 | DL74: 0.05309441816 | DM74: 0.05352754455 | DN74: 0.05399025092 | DO74: 0.05448464042 | DP74: 0.05093950866 | DQ74: 0.05114827501 | DR74: 0.05137528309 | DS74: 0.05162212682 | DT74: 0.05189053941 | DU74: 0.0514402709 | DV74: 0.05162794646 | DW74: 0.05182824338 | DX74: 0.05204204444 | DY74: 0.05227029676 | DZ74: 0.05251401664 | EA74: 0.05277429482 | EB74: 0.05305230216 | EC74: 0.05334929577 | ED74: 0.05366662558 | EE74: 0.0513911404 | EF74: 0.05152513958 | EG74: =EG50/EG42 -> 0.05167084743 | EH74: 0.05182928702 | EI74: 0.05200157086 | EJ74: 0.05171256063 | EK74: 0.05183302243 | EL74: 0.0519615854 | EM74: 0.05209881617 | EN74: 0.05224532265 | EO74: 0.05240175716 | EP74: 0.05256881982 | EQ74: 0.05274726216 | ER74: 0.05293789105 | ES74: 0.05314157298 | ET74: 0.05168102564 | EU74: 0.05176703461 | EV74: 0.05186055893 | EW74: 0.05196225528 | EX74: 0.05207283771 | EY74: 0.05188733305 | EZ74: 0.0519646529 | FA74: 0.05204717257 | FB74: 0.05213525578 | FC74: 0.05222929271 | FD74: 0.05232970208 | FE74: 0.05243693324 | FF74: 0.05255146858 | FG74: 0.05267382602 | FH74: 0.0528045617 | FI74: 0.05186709193 | FJ74: 0.05192229782 | FK74: 0.05198232752 | FL74: 0.05204760254 | FM74: 0.0521185812 | FN74: 0.05199951281 | FO74: 0.05204914148 | FP74: 0.05210210772 | FQ74: 0.05215864498 | FR74: 0.05221900371 | FS74: 0.05228345266 | FT74: 0.05235228026 | FU74: 0.05242579614 | FV74: 0.05250433272 | FW74: 0.05258824698 | FX74: 0.05198652081 | FY74: 0.05202195537 | FZ74: 0.05206048615 | GA74: 0.0521023837 | GB74: 0.0521479422 | GC74: 0.05207151673 | GD74: 0.05210337149 | GE74: 0.0521373685 | GF74: 0.05217365762 | GG74: 0.05221239959 | GH74: 0.05225376692 | GI74: 0.05229794474 | GJ74: 0.05234513178 | GK74: 0.05239554142 | GL74: 0.05244940279 | GM74: 0.05206317766 | GN74: 0.05208592176 | GO74: 0.0521106532 | GP74: 0.05213754564 | GQ74: 0.05216678791 | GR74: 0.05211773331 | GS74: =GS50/GS42 -> 0.05213817967 | GT74: 0.05216000106 | GU74: 0.05218329366 | GV74: 0.05220816065 | GW74: 0.05223471277 | GX74: 0.05226306883 | GY74: 0.0522933564 | GZ74: 0.05232571243 | HA74: 0.05236028399 | HB74: 0.05211238078 | HC74: 0.05212697935 | HD74: 0.05214285352 | HE74: 0.05216011476 | HF74: 0.05217888425 | HG74: 0.05214739797 | HH74: 0.05216052171 | HI74: 0.05217452803 | HJ74: 0.05218947867 | HK74: 0.05220543984 | HL74: 0.05222248264 | HM74: 0.05224068331 | HN74: 0.05226012375 | HO74: 0.05228089186 | HP74: 0.05230308203 | HQ74: 0.05214396239 | HR74: 0.05215333265 | HS74: 0.05216352168 | HT74: 0.05217460101 | HU74: 0.05218664844 | HV74: 0.05216643859 | HW74: 0.05217486222 | HX74: 0.05218385234 | HY74: 0.05219344859 | HZ74: 0.05220369346 | IA74: 0.05221463258 | IB74: 0.0522263149 | IC74: 0.05223879298 | ID74: 0.05225212323 | IE74: 0.05226636626 | IF74: 0.05216423342 | IG74: 0.05217024784 | IH74: 0.05217678778 | II74: 0.05218389919 | IJ74: 0.05219163197 | IK74: 0.05217866004 | IL74: 0.05218406685 | IM74: 0.05218983726 | IN74: 0.05219599673 | IO74: 0.05220257252 | IP74: 0.05220959393 | IQ74: 0.05221709236 | IR74: 0.05222510157 | IS74: 0.05223365775 | IT74: 0.05224279981 | IU74: 0.05217724462 | IV74: 0.05218110505 | IW74: 0.05218530279 | IX74: 0.05218986733 | IY74: 0.05219483071 | IZ74: 0.05218650452 | JA74: 0.05218997495 | JB74: 0.05219367876 | JC74: 0.05219763228 | JD74: 0.05220185303 | JE74: =JE50/JE42 -> 0.05220635981 | JF74: 0.05221117277 | JG74: 0.05221631357 | JH74: 0.05222180546 | JI74: 0.0522276734 | JJ74: 0.05218559602 | JK74: 0.05218807388 | JL74: 0.05219076825 | JM74: 0.05219369806 | JN74: 0.05219688386 | JO74: 0.0521915396 | JP74: 0.05219376713 | JQ74: 0.05219614447 | JR74: 0.05219868208 | JS74: 0.05220139122 | JT74: 0.05220428395 | JU74: 0.05220737321 | JV74: 0.05221067289 | JW74: 0.05221419793 | JX74: 0.05221796433 | JY74: 0.05219095646 | JZ74: 0.05219254691 | KA74: 0.05219427632 | KB74: 0.05219615685 | KC74: 0.0521982017 | KD74: 0.05219477142 | KE74: 0.05219620119 | KF74: 0.05219772711 | KG74: 0.05219935591 | KH74: 0.0522010948 | KI74: 0.05220295153 | KJ74: 0.05220493441 | KK74: 0.05220705235 | KL74: 0.05220931494 | KM74: 0.05221173245 | KN74: 0.05219439713 | KO74: 0.05219541797 | KP74: 0.05219652802 | KQ74: 0.05219773506 | KR74: 0.05219904757 | KS74: 0.0521968458 | KT74: 0.05219776352 | KU74: 0.05219874295
C75: Retirements as Percent of Net Plant | H75: =H41/H53 -> 0.03982935388 | I75: =I41/I53 -> 0.03982940758 | J75: 0.03982945553 | K75: 0.03982949834 | L75: 0.03982953657 | M75: 0.03982957069 | N75: 0.03982960117 | O75: 0.03982962837 | P75: 0.03982965267 | Q75: 0.03982967436 | R75: 0.03982969372 | S75: 0.03982971101 | T75: 0.04155750219 | U75: 0.04326432084 | V75: 0.04494525264 | W75: 0.04659599237 | X75: 0.048212863 | Y75: 0.04979281665 | Z75: 0.05133341963 | AA75: 0.05283282423 | AB75: 0.05428973009 | AC75: 0.05570333797 | AD75: 0.06277443079 | AE75: 0.07035903816 | AF75: 0.07836521575 | AG75: 0.0866629147 | AH75: 0.09508652429 | AI75: 0.08408384565 | AJ75: 0.09099655043 | AK75: 0.09788028942 | AL75: 0.1046042378 | AM75: 0.1110342014 | AN75: 0.1170413729 | AO75: 0.1225111968 | AP75: 0.1273511171 | AQ75: 0.1314961304 | AR75: 0.1349114671 | AS75: 0.07670753671 | AT75: 0.08193853626 | AU75: 0.08730334844 | AV75: 0.09274064394 | AW75: 0.09817888561 | AX75: 0.09122041146 | AY75: 0.09566695821 | AZ75: 0.1000353476 | BA75: 0.1042731255 | BB75: 0.1083276506 | BC75: 0.1121482664 | BD75: 0.1156885168 | BE75: 0.1189082157 | BF75: 0.1217751842 | BG75: 0.1242664991 | BH75: 0.08606462691 | BI75: 0.08958126801 | BJ75: 0.09312127214 | BK75: 0.09665788652 | BL75: 0.1001614881 | BM75: 0.09573722608 | BN75: 0.09859471882 | BO75: 0.1013783359 | BP75: 0.1040671857 | BQ75: 0.106640565 | BR75: 0.1090784988 | BS75: 0.1113622951 | BT75: 0.1134750883 | BU75: =BU41/BU53 -> 0.1154023393 | BV75: 0.1171322623 | BW75: 0.09225112411 | BX75: 0.09457657279 | BY75: 0.09688948567 | BZ75: 0.09917891581 | CA75: 0.1014331127 | CB75: 0.09861053913 | CC75: 0.1004459368 | CD75: 0.1022243613 | CE75: 0.1039376108 | CF75: 0.1055776081 | CG75: 0.1071365335 | CH75: 0.1086069624 | CI75: 0.1099820048 | CJ75: 0.1112554422 | CK75: 0.1124218572 | CL75: 0.09629919821 | CM75: 0.09782068449 | CN75: 0.09932228794 | CO75: 0.1007998382 | CP75: 0.1022489363 | CQ75: 0.1004442747 | CR75: 0.1016228416 | CS75: 0.1027609583 | CT75: 0.1038554904 | CU75: 0.1049033548 | CV75: 0.1059015508 | CW75: 0.1068471931 | CX75: 0.1077375469 | CY75: 0.108570064 | CZ75: 0.1093424189 | DA75: 0.0989300843 | DB75: 0.09991876643 | DC75: 0.1008896749 | DD75: 0.1018413902 | DE75: 0.1027724245 | DF75: 0.1016169706 | DG75: 0.1023736432 | DH75: 0.1031027676 | DI75: 0.1038032058 | DJ75: 0.1044738324 | DK75: 0.1051135421 | DL75: 0.1057212565 | DM75: 0.1062959329 | DN75: 0.106836573 | DO75: 0.1073422328 | DP75: 0.1006323843 | DQ75: 0.1012720209 | DR75: 0.101898148 | DS75: 0.1025103945 | DT75: 0.1031083665 | DU75: 0.1023679123 | DV75: 0.1028536699 | DW75: 0.1033210962 | DX75: 0.1037698197 | DY75: 0.1041994668 | DZ75: 0.104609663 | EA75: 0.1050000347 | EB75: 0.1053702108 | EC75: 0.1057198244 | ED75: 0.1060485158 | EE75: 0.1017306999 | EF75: 0.1021433491 | EG75: =EG41/EG53 -> 0.1025464516 | EH75: 0.1029399974 | EI75: 0.1033239681 | EJ75: 0.1028491872 | EK75: 0.1031610082 | EL75: 0.1034607966 | EM75: 0.1037484615 | EN75: 0.1040239059 | EO75: 0.1042870268 | EP75: 0.1045377157 | EQ75: 0.1047758581 | ER75: 0.1050013346 | ES75: 0.1052140211 | ET75: 0.1024380197 | EU75: 0.1027037488 | EV75: 0.1029629869 | EW75: 0.1032158234 | EX75: 0.1034623435 | EY75: 0.1031578008 | EZ75: 0.1033579597 | FA75: 0.1035502858 | FB75: 0.1037347816 | FC75: 0.1039114433 | FD75: 0.1040802613 | FE75: 0.1042412198 | FF75: 0.1043942969 | FG75: 0.1045394645 | FH75: 0.1046766882 | FI75: 0.1028929947 | FJ75: 0.1030639136 | FK75: 0.1032305159 | FL75: 0.1033928986 | FM75: 0.1035511569 | FN75: 0.1033557653 | FO75: 0.1034842449 | FP75: 0.103607652 | FQ75: 0.103726013 | FR75: 0.1038393496 | FS75: 0.1039476789 | FT75: 0.104051013 | FU75: 0.104149359 | FV75: 0.1042427191 | FW75: 0.1043310904 | FX75: 0.103185428 | FY75: 0.1032952819 | FZ75: 0.103402303 | GA75: 0.1035065701 | GB75: 0.1036081609 | GC75: 0.1034827806 | GD75: 0.1035652489 | GE75: 0.1036444428 | GF75: 0.1037203896 | GG75: 0.1037931131 | GH75: 0.1038626338 | GI75: 0.1039289686 | GJ75: 0.103992131 | GK75: 0.1040521305 | GL75: 0.1041089735 | GM75: 0.1033732957 | GN75: 0.1034438676 | GO75: 0.1035125956 | GP75: 0.1035795371 | GQ75: 0.1036447489 | GR75: 0.103564286 | GS75: =GS41/GS53 -> 0.1036172202 | GT75: 0.103668045 | GU75: 0.1037167822 | GV75: 0.1037634512 | GW75: 0.1038080691 | GX75: 0.1038506504 | GY75: 0.1038912075 | GZ75: 0.1039297499 | HA75: 0.1039662851 | HB75: 0.1034939493 | HC75: 0.1035392718 | HD75: 0.1035834002 | HE75: 0.1036263742 | HF75: 0.103668233 | HG75: 0.1036165927 | HH75: 0.1036505695 | HI75: 0.1036831893 | HJ75: 0.1037144676 | HK75: 0.1037444188 | HL75: 0.1037730553 | HM75: 0.1038003881 | HN75: 0.1038264265 | HO75: 0.1038511782 | HP75: 0.1038746493 | HQ75: 0.1035714204 | HR75: 0.1036005216 | HS75: 0.1036288519 | HT75: 0.1036564381 | HU75: 0.1036833064 | HV75: 0.1036501629 | HW75: 0.1036719714 | HX75: 0.1036929076 | HY75: 0.1037129823 | HZ75: 0.1037322052 | IA75: 0.1037505851 | IB75: 0.1037681296 | IC75: 0.1037848453 | ID75: 0.1038007377 | IE75: 0.1038158114 | IF75: 0.1036211579 | IG75: 0.103639841 | IH75: 0.1036580277 | II75: 0.1036757353 | IJ75: 0.1036929814 | IK75: 0.1036717088 | IL75: 0.1036857069 | IM75: 0.1036991446 | IN75: 0.1037120291 | IO75: 0.1037243669 | IP75: 0.1037361639 | IQ75: 0.1037474253 | IR75: 0.1037581555 | IS75: 0.1037683585 | IT75: 0.1037780372 | IU75: 0.1036530872 | IV75: 0.103665081 | IW75: 0.1036767553 | IX75: 0.1036881216 | IY75: 0.1036991914 | IZ75: 0.1036855377 | JA75: 0.1036945226 | JB75: 0.1037031476 | JC75: 0.1037114173 | JD75: 0.1037193362 | JE75: =JE41/JE53 -> 0.1037269081 | JF75: 0.1037341365 | JG75: 0.1037410243 | JH75: 0.103747574 | JI75: 0.1037537879 | JJ75: 0.1036735834 | JK75: 0.1036812825 | JL75: 0.1036887762 | JM75: 0.103696072 | JN75: 0.1037031773 | JO75: 0.1036944137 | JP75: 0.1037001808 | JQ75: 0.1037057167 | JR75: 0.1037110247 | JS75: 0.1037161074 | JT75: 0.1037209674 | JU75: 0.1037256071 | JV75: 0.1037300283 | JW75: 0.1037342327 | JX75: 0.1037382217 | JY75: 0.10368674 | JZ75: 0.103691682 | KA75: 0.1036964921 | KB75: 0.1037011751 | KC75: 0.1037057357 | KD75: 0.1037001108 | KE75: 0.1037038125 | KF75: 0.1037073657 | KG75: 0.1037107726 | KH75: 0.103714035 | KI75: 0.1037171545 | KJ75: 0.1037201325 | KK75: 0.1037229704 | KL75: 0.1037256692 | KM75: 0.1037282298 | KN75: 0.103695185 | KO75: 0.1036983572 | KP75: 0.1037014447 | KQ75: 0.1037044506 | KR75: 0.1037073779 | KS75: 0.1037037675 | KT75: 0.1037061434 | KU75: 0.1037084241
C77: Rate of Return on Net Plant | H77: =H56/H53 -> 0.15 | I77: =I56/I53 -> 0.1500002022 | J77: =J56/J53 -> 0.1500003828 | K77: =K56/K53 -> 0.150000544 | L77: 0.150000688 | M77: 0.1500008165 | N77: 0.1500009313 | O77: 0.1500010338 | P77: 0.1500011252 | Q77: 0.1500012069 | R77: 0.1500012799 | S77: 0.150001345 | T77: 0.1523161345 | U77: 0.1543244859 | V77: 0.1560260987 | W77: 0.1574238264 | X77: 0.1585233698 | Y77: 0.1593329303 | Z77: 0.1598628388 | AA77: 0.1601251785 | AB77: 0.1601334121 | AC77: 0.1599020277 | AD77: 0.165719928 | AE77: 0.1708169835 | AF77: 0.1749660108 | AG77: 0.1779437956 | AH77: 0.1795509608 | AI77: 0.1835123625 | AJ77: 0.1864886851 | AK77: 0.1883389473 | AL77: 0.1889527517 | AM77: 0.1882611258 | AN77: 0.1862444299 | AO77: 0.1829358967 | AP77: 0.1784200378 | AQ77: 0.1728260524 | AR77: 0.1663172639 | AS77: 0.1703089276 | AT77: 0.1737284349 | AU77: 0.1764600562 | AV77: 0.1783925654 | AW77: 0.1794260256 | AX77: 0.181945231 | AY77: 0.1838121205 | AZ77: 0.184961698 | BA77: 0.1853412157 | BB77: 0.1849135153 | BC77: 0.1836597371 | BD77: 0.1815810961 | BE77: 0.1786994981 | BF77: 0.1750568882 | BG77: 0.1707133667 | BH77: 0.1733907733 | BI77: 0.1756500589 | BJ77: 0.177432546 | BK77: 0.1786818083 | BL77: 0.179345926 | BM77: 0.1809533753 | BN77: 0.1821342498 | BO77: 0.182857065 | BP77: 0.1830949725 | BQ77: 0.1828268354 | BR77: 0.1820381892 | BS77: 0.1807220249 | BT77: 0.1788793347 | BU77: 0.1765193766 | BV77: 0.1736596262 | BW77: =BW56/BW53 -> 0.1754283544 | BX77: 0.1769060362 | BY77: 0.1780624183 | BZ77: 0.1788679571 | CA77: 0.1792945508 | CB77: 0.1803224192 | CC77: 0.1810733351 | CD77: 0.1815312359 | CE77: 0.1816816623 | CF77: 0.1815121119 | CG77: 0.181012382 | CH77: 0.18017489 | CI77: 0.1789949559 | CJ77: 0.1774710377 | CK77: 0.1756049045 | CL77: 0.1767616257 | CM77: 0.1777217082 | CN77: 0.1784690711 | CO77: 0.1789876434 | CP77: 0.1792615905 | CQ77: 0.1799197459 | CR77: 0.1803988626 | CS77: 0.1806903205 | CT77: 0.1807859524 | CU77: 0.1806781585 | CV77: 0.1803600253 | CW77: 0.1798254471 | CX77: 0.1790692475 | CY77: 0.1780872984 | CZ77: 0.1768766346 | DA77: 0.1776281328 | DB77: 0.1782492323 | DC77: 0.1787310662 | DD77: 0.1790645499 | DE77: 0.1792404409 | DF77: 0.1796622314 | DG77: 0.1799685856 | DH77: 0.1801546619 | DI77: 0.1802156693 | DJ77: 0.1801469016 | DK77: 0.1799437743 | DL77: 0.1796018664 | DM77: 0.1791169649 | DN77: 0.178485113 | DO77: 0.177702661 | DP77: 0.1781888013 | DQ77: 0.1785894832 | DR77: 0.1788996367 | DS77: 0.1791139481 | DT77: 0.1792268685 | DU77: 0.1794973308 | DV77: 0.1796934871 | DW77: 0.1798125133 | DX77: 0.1798515183 | DY77: 0.1798075511 | DZ77: 0.1796776095 | EA77: 0.1794586512 | EB77: 0.1791476064 | EC77: 0.1787413928 | ED77: 0.1782369334 | EE77: 0.1785505419 | EF77: 0.1788085626 | EG77: 0.1790080032 | EH77: 0.1791456693 | EI77: =EI56/EI53 -> 0.1792181579 | EJ77: 0.1793916467 | EK77: 0.1795173545 | EL77: 0.1795935851 | EM77: 0.1796185581 | EN77: 0.1795904078 | EO77: 0.1795071829 | EP77: 0.1793668471 | EQ77: 0.1791672795 | ER77: 0.1789062773 | ES77: 0.1785815586 | ET77: 0.1787835043 | EU77: 0.1789494647 | EV77: 0.1790776288 | EW77: 0.1791660359 | EX77: 0.1792125674 | EY77: 0.1793238777 | EZ77: 0.1794044836 | FA77: 0.1794533441 | FB77: 0.1794693475 | FC77: 0.1794513079 | FD77: 0.1793979629 | FE77: 0.179307971 | FF77: 0.1791799091 | FG77: 0.1790122707 | FH77: 0.1788034635 | FI77: 0.1789333547 | FJ77: 0.1790400216 | FK77: 0.1791223474 | FL77: 0.1791791108 | FM77: 0.1792089792 | FN77: 0.1792804063 | FO77: 0.1793321107 | FP77: 0.1793634441 | FQ77: 0.1793737055 | FR77: 0.1793621384 | FS77: 0.1793279287 | FT77: 0.179270201 | FU77: 0.1791880166 | FV77: 0.1790803701 | FW77: 0.1789461867 | FX77: 0.1790296703 | FY77: 0.1790981948 | FZ77: 0.1791510623 | GA77: 0.1791875041 | GB77: 0.1792066762 | GC77: 0.1792525148 | GD77: 0.1792856881 | GE77: 0.1793057882 | GF77: 0.1793123702 | GG77: 0.1793049506 | GH77: 0.1792830052 | GI77: 0.1792459663 | GJ77: 0.1791932208 | GK77: 0.1791241077 | GL77: 0.1790379153 | GM77: 0.1790915463 | GN77: 0.179135554 | GO77: 0.1791694982 | GP77: 0.1791928919 | GQ77: 0.179205198 | GR77: 0.1792346168 | GS77: 0.1792559039 | GT77: 0.1792688005 | GU77: =GU56/GU53 -> 0.1792730235 | GV77: 0.1792682632 | GW77: 0.1792541824 | GX77: 0.1792304144 | GY77: 0.1791965614 | GZ77: 0.1791521926 | HA77: 0.1790968421 | HB77: 0.1791312847 | HC77: 0.1791595416 | HD77: 0.1791813334 | HE77: 0.1791963503 | HF77: 0.1792042492 | HG77: 0.1792231307 | HH77: 0.1792367917 | HI77: 0.1792450676 | HJ77: 0.1792477774 | HK77: 0.1792447228 | HL77: 0.179235687 | HM77: 0.1792204337 | HN77: 0.1791987057 | HO77: 0.1791702238 | HP77: 0.1791346853 | HQ77: 0.1791568006 | HR77: 0.1791749417 | HS77: 0.1791889309 | HT77: 0.1791985701 | HU77: 0.1792036402 | HV77: 0.179215759 | HW77: 0.1792245265 | HX77: 0.1792298377 | HY77: 0.1792315767 | HZ77: 0.1792296164 | IA77: 0.1792238175 | IB77: 0.179214028 | IC77: 0.179200082 | ID77: 0.1791817993 | IE77: 0.1791589839 | IF77: 0.179173182 | IG77: 0.1791848279 | IH77: 0.1791938077 | II77: 0.179199995 | IJ77: 0.1792032493 | IK77: 0.1792110277 | IL77: 0.1792166548 | IM77: 0.1792200635 | IN77: 0.1792211796 | IO77: 0.1792199215 | IP77: 0.1792161998 | IQ77: 0.1792099167 | IR77: 0.1792009654 | IS77: 0.1791892299 | IT77: 0.1791745837 | IU77: 0.1791836983 | IV77: 0.179191174 | IW77: 0.1791969381 | IX77: 0.1792009096 | IY77: 0.1792029984 | IZ77: 0.179207991 | JA77: 0.1792116027 | JB77: 0.1792137904 | JC77: 0.1792145068 | JD77: 0.1792136993 | JE77: 0.1792113106 | JF77: 0.1792072779 | JG77: =JG56/JG53 -> 0.1792015325 | JH77: 0.1791939997 | JI77: 0.179184598 | JJ77: 0.1791904489 | JK77: 0.1791952476 | JL77: 0.1791989475 | JM77: 0.1792014966 | JN77: 0.1792028374 | JO77: 0.1792060419 | JP77: 0.17920836 | JQ77: 0.1792097642 | JR77: 0.179210224 | JS77: 0.1792097057 | JT77: 0.1792081726 | JU77: 0.1792055842 | JV77: 0.1792018965 | JW77: 0.1791970613 | JX77: 0.1791910265 | JY77: 0.1791947821 | JZ77: 0.1791978623 | KA77: 0.1792002372 | KB77: 0.1792018734 | KC77: 0.179202734 | KD77: 0.1792047908 | KE77: 0.1792062787 | KF77: 0.17920718 | KG77: 0.1792074751 | KH77: 0.1792071425 | KI77: 0.1792061584 | KJ77: 0.1792044971 | KK77: 0.1792021301 | KL77: 0.1791990265 | KM77: 0.1791951529 | KN77: 0.1791975636 | KO77: 0.1791995407 | KP77: 0.1792010651 | KQ77: 0.1792021153 | KR77: 0.1792026677 | KS77: 0.1792039879 | KT77: 0.1792049429 | KU77: 0.1792055214
A79: Terminal Value from Theoretical Model
C80: WACC | E80: =E23 -> 0.12
C81: Valuation Period | H81: =H5 -> FALSE | I81: =I5 -> FALSE | J81: FALSE | K81: FALSE | L81: FALSE | M81: FALSE | N81: FALSE | O81: FALSE | P81: FALSE | Q81: FALSE | R81: FALSE | S81: FALSE | T81: FALSE | U81: FALSE | V81: FALSE | W81: FALSE | X81: FALSE | Y81: FALSE | Z81: FALSE | AA81: FALSE | AB81: FALSE | AC81: FALSE | AD81: TRUE | AE81: TRUE | AF81: TRUE | AG81: TRUE | AH81: TRUE | AI81: TRUE | AJ81: TRUE | AK81: TRUE | AL81: TRUE | AM81: TRUE | AN81: TRUE | AO81: TRUE | AP81: TRUE | AQ81: TRUE | AR81: TRUE | AS81: TRUE | AT81: TRUE | AU81: TRUE | AV81: TRUE | AW81: TRUE | AX81: TRUE | AY81: TRUE | AZ81: TRUE | BA81: TRUE | BB81: TRUE | BC81: TRUE | BD81: TRUE | BE81: TRUE | BF81: TRUE | BG81: TRUE | BH81: TRUE | BI81: TRUE | BJ81: TRUE | BK81: TRUE | BL81: TRUE | BM81: TRUE | BN81: TRUE | BO81: TRUE | BP81: TRUE | BQ81: TRUE | BR81: TRUE | BS81: TRUE | BT81: TRUE | BU81: =BU5 -> TRUE | BV81: TRUE | BW81: TRUE | BX81: TRUE | BY81: TRUE | BZ81: TRUE | CA81: TRUE | CB81: TRUE | CC81: TRUE | CD81: TRUE | CE81: TRUE | CF81: TRUE | CG81: TRUE | CH81: TRUE | CI81: TRUE | CJ81: TRUE | CK81: TRUE | CL81: TRUE | CM81: TRUE | CN81: TRUE | CO81: TRUE | CP81: TRUE | CQ81: TRUE | CR81: TRUE | CS81: TRUE | CT81: TRUE | CU81: TRUE | CV81: TRUE | CW81: TRUE | CX81: TRUE | CY81: TRUE | CZ81: TRUE | DA81: TRUE | DB81: TRUE | DC81: TRUE | DD81: TRUE | DE81: TRUE | DF81: TRUE | DG81: TRUE | DH81: TRUE | DI81: TRUE | DJ81: TRUE | DK81: TRUE | DL81: TRUE | DM81: TRUE | DN81: TRUE | DO81: TRUE | DP81: TRUE | DQ81: TRUE | DR81: TRUE | DS81: TRUE | DT81: TRUE | DU81: TRUE | DV81: TRUE | DW81: TRUE | DX81: TRUE | DY81: TRUE | DZ81: TRUE | EA81: TRUE | EB81: TRUE | EC81: TRUE | ED81: TRUE | EE81: TRUE | EF81: TRUE | EG81: =EG5 -> TRUE | EH81: TRUE | EI81: TRUE | EJ81: TRUE | EK81: TRUE | EL81: TRUE | EM81: TRUE | EN81: TRUE | EO81: TRUE | EP81: TRUE | EQ81: TRUE | ER81: TRUE | ES81: TRUE | ET81: TRUE | EU81: TRUE | EV81: TRUE | EW81: TRUE | EX81: TRUE | EY81: TRUE | EZ81: TRUE | FA81: TRUE | FB81: TRUE | FC81: TRUE | FD81: TRUE | FE81: TRUE | FF81: TRUE | FG81: TRUE | FH81: TRUE | FI81: TRUE | FJ81: TRUE | FK81: TRUE | FL81: TRUE | FM81: TRUE | FN81: TRUE | FO81: TRUE | FP81: TRUE | FQ81: TRUE | FR81: TRUE | FS81: TRUE | FT81: TRUE | FU81: TRUE | FV81: TRUE | FW81: TRUE | FX81: TRUE | FY81: TRUE | FZ81: TRUE | GA81: TRUE | GB81: TRUE | GC81: TRUE | GD81: TRUE | GE81: TRUE | GF81: TRUE | GG81: TRUE | GH81: TRUE | GI81: TRUE | GJ81: TRUE | GK81: TRUE | GL81: TRUE | GM81: TRUE | GN81: TRUE | GO81: TRUE | GP81: TRUE | GQ81: TRUE | GR81: TRUE | GS81: =GS5 -> TRUE | GT81: TRUE | GU81: TRUE | GV81: TRUE | GW81: TRUE | GX81: TRUE | GY81: TRUE | GZ81: TRUE | HA81: TRUE | HB81: TRUE | HC81: TRUE | HD81: TRUE | HE81: TRUE | HF81: TRUE | HG81: TRUE | HH81: TRUE | HI81: TRUE | HJ81: TRUE | HK81: TRUE | HL81: TRUE | HM81: TRUE | HN81: TRUE | HO81: TRUE | HP81: TRUE | HQ81: TRUE | HR81: TRUE | HS81: TRUE | HT81: TRUE | HU81: TRUE | HV81: TRUE | HW81: TRUE | HX81: TRUE | HY81: TRUE | HZ81: TRUE | IA81: TRUE | IB81: TRUE | IC81: TRUE | ID81: TRUE | IE81: TRUE | IF81: TRUE | IG81: TRUE | IH81: TRUE | II81: TRUE | IJ81: TRUE | IK81: TRUE | IL81: TRUE | IM81: TRUE | IN81: TRUE | IO81: TRUE | IP81: TRUE | IQ81: TRUE | IR81: TRUE | IS81: TRUE | IT81: TRUE | IU81: TRUE | IV81: TRUE | IW81: TRUE | IX81: TRUE | IY81: TRUE | IZ81: TRUE | JA81: TRUE | JB81: TRUE | JC81: TRUE | JD81: TRUE | JE81: =JE5 -> TRUE | JF81: TRUE | JG81: TRUE | JH81: TRUE | JI81: TRUE | JJ81: TRUE | JK81: TRUE | JL81: TRUE | JM81: TRUE | JN81: TRUE | JO81: TRUE | JP81: TRUE | JQ81: TRUE | JR81: TRUE | JS81: TRUE | JT81: TRUE | JU81: TRUE | JV81: TRUE | JW81: TRUE | JX81: TRUE | JY81: TRUE | JZ81: TRUE | KA81: TRUE | KB81: TRUE | KC81: TRUE | KD81: TRUE | KE81: TRUE | KF81: TRUE | KG81: TRUE | KH81: TRUE | KI81: TRUE | KJ81: TRUE | KK81: TRUE | KL81: TRUE | KM81: TRUE | KN81: TRUE | KO81: TRUE | KP81: TRUE | KQ81: TRUE | KR81: TRUE | KS81: TRUE | KT81: TRUE | KU81: TRUE
C82: Free Cash Flow | E82: =NPV($E$23,H82:KU82) -> 844.5955851 | H82: =IF(H81,H58) -> FALSE | I82: =IF(I81,I58) -> FALSE | J82: FALSE | K82: FALSE | L82: FALSE | M82: FALSE | N82: FALSE | O82: FALSE | P82: FALSE | Q82: FALSE | R82: FALSE | S82: FALSE | T82: FALSE | U82: FALSE | V82: FALSE | W82: FALSE | X82: FALSE | Y82: FALSE | Z82: FALSE | AA82: FALSE | AB82: FALSE | AC82: FALSE | AD82: 88.89203177 | AE82: 88.63755818 | AF82: 88.02490222 | AG82: 87.00125267 | AH82: 85.50716604 | AI82: 95.16368987 | AJ82: 94.97421419 | AK82: 94.47684268 | AL82: 93.63175342 | AM82: 92.39477085 | AN82: 90.71690208 | AO82: 88.54382353 | AP82: 85.81531232 | AQ82: 82.46461651 | AR82: 78.41775755 | AS82: 128.9319096 | AT82: 129.8786323 | AU82: 130.5032086 | AV82: 130.7539082 | AW82: 130.5724013 | AX82: 141.5808822 | AY82: 142.7839223 | AZ82: 143.720842 | BA82: 144.3530727 | BB82: 144.6377297 | BC82: 144.5271497 | BD82: 143.9683786 | BE82: 142.902604 | BF82: 141.264527 | BG82: 138.9816653 | BH82: 191.3127346 | BI82: 194.1308821 | BJ82: 196.6830258 | BK82: 198.91912 | BL82: 200.7825694 | BM82: 213.8973553 | BN82: 217.2698896 | BO82: 220.4413884 | BP82: 223.3752355 | BQ82: 226.0305574 | BR82: 228.3617622 | BS82: 230.3180294 | BT82: 231.8427444 | BU82: =IF(BU81,BU58) -> 232.8728716 | BV82: 233.3382602 | BW82: 288.5000274 | BX82: 294.2337936 | BY82: 299.7890248 | BZ82: 305.1182989 | CA82: 310.1677236 | CB82: 326.5640642 | CC82: 333.3165997 | CD82: 339.9694998 | CE82: 346.4891902 | CF82: 352.8379308 | CG82: 358.9733568 | CH82: 364.8479719 | CI82: 370.4085851 | CJ82: 375.5956875 | CK82: 380.3427607 | CL82: 439.9146628 | CM82: 450.1908682 | CN82: 460.4248115 | CO82: 470.5731592 | CP82: 480.5862298 | CQ82: 502.0951255 | CR82: 514.1135929 | CS82: 526.1904028 | CT82: 538.2967203 | CU82: 550.3996868 | CV82: 562.4619655 | CW82: 574.4412388 | CX82: 586.2896501 | CY82: 597.9531844 | CZ82: 609.3709825 | DA82: 675.8137312 | DB82: 693.1669086 | DC82: 710.6901332 | DD82: 728.3464406 | DE82: 746.0927096 | DF82: 775.5667997 | DG82: 795.7894173 | DH82: 816.3165019 | DI82: 837.1266024 | DJ82: 858.1944653 | DK82: 879.4905874 | DL82: 900.9807194 | DM82: 922.6253151 | DN82: 944.3789193 | DO82: 966.1894895 | DP82: 1043.336793 | DQ82: 1071.715663 | DR82: 1100.59535 | DS82: 1129.948814 | DT82: 1159.743154 | DU82: 1201.626757 | DV82: 1234.631174 | DW82: 1268.323511 | DX82: 1302.693822 | DY82: 1337.728701 | DZ82: 1373.41085 | EA82: 1409.71859 | EB82: 1446.625322 | EC82: 1484.098927 | ED82: 1522.101097 | EE82: 1615.925749 | EF82: 1661.482287 | EG82: =IF(EG81,EG58) -> 1708.054973 | EH82: 1755.632226 | EI82: 1804.197068 | EJ82: 1865.414289 | EK82: 1918.332331 | EL82: 1972.535703 | EM82: 2028.03238 | EN82: 2084.827416 | EO82: 2142.922527 | EP82: 2202.315617 | EQ82: 2263.00026 | ER82: 2324.965112 | ES82: 2388.193268 | ET82: 2508.000685 | EU82: 2580.319471 | EV82: 2654.457273 | EW82: 2730.426594 | EX82: 2808.235268 | EY82: 2899.573635 | EZ82: 2983.516458 | FA82: 3069.675353 | FB82: 3158.08622 | FC82: 3248.782871 | FD82: 3341.796645 | FE82: 3437.155959 | FF82: 3534.885812 | FG82: 3635.007231 | FH82: 3737.53665 | FI82: 3897.824369 | FJ82: 4011.837866 | FK82: 4128.921219 | FL82: 4249.124459 | FM82: 4372.494069 | FN82: 4510.760199 | FO82: 4643.038619 | FP82: 4778.98318 | FQ82: 4918.673281 | FR82: 5062.187544 | FS82: 5209.603458 | FT82: 5360.996976 | FU82: 5516.44206 | FV82: 5676.010166 | FW82: 5839.769674 | FX82: 6063.124383 | FY82: 6242.09688 | FZ82: 6426.088004 | GA82: 6615.206248 | GB82: 6809.558311 | GC82: 7020.936369 | GD82: 7228.520074 | GE82: 7442.029078 | GF82: 7661.610556 | GG82: 7887.412937 | GH82: 8119.585613 | GI82: 8358.278596 | GJ82: 8603.642128 | GK82: 8855.826237 | GL82: 9114.980227 | GM82: 9436.591253 | GN82: 9716.767756 | GO82: 10004.99901 | GP82: 10301.48458 | GQ82: 10606.42499 | GR82: 10931.70905 | GS82: =IF(GS81,GS58) -> 11256.61594 | GT82: 11590.96782 | GU82: 11935.01746 | GV82: 12289.02204 | GW82: 12653.24299 | GX82: 13027.9457 | GY82: 13413.39924 | GZ82: 13809.87607 | HA82: 14217.65155 | HB82: 14692.34272 | HC82: 15130.19176 | HD82: 15580.82573 | HE82: 16044.58611 | HF82: 16521.81957 | HG82: 17024.56546 | HH82: 17532.25804 | HI82: 18054.87918 | HJ82: 18592.84617 | HK82: 19146.58561 | HL82: 19716.53347 | HM82: 20303.13489 | HN82: 20906.84411 | HO82: 21528.12428 | HP82: 22167.44721 | HQ82: 22880.63225 | HR82: 23564.12998 | HS82: 24267.78209 | HT82: 24992.15116 | HU82: 25737.81157 | HV82: 26517.03723 | HW82: 27309.50396 | HX82: 28125.44248 | HY82: 28965.52636 | HZ82: 29830.44621 | IA82: 30720.90989 | IB82: 31637.6426 | IC82: 32581.38705 | ID82: 33552.90351 | IE82: 34552.96982 | IF82: 35637.72053 | IG82: 36703.93091 | IH82: 37801.77706 | II82: 38932.16597 | IJ82: 40096.02683 | IK82: 41305.99894 | IL82: 42542.13452 | IM82: 43815.05196 | IN82: 45125.82412 | IO82: 46475.55291 | IP82: 47865.36979 | IQ82: 49296.4363 | IR82: 50769.94456 | IS82: 52287.11774 | IT82: 53849.21047 | IU82: 55512.84841 | IV82: 57175.31263 | IW82: 58887.30022 | IX82: 60650.25483 | IY82: 62465.65835 | IZ82: 64346.71941 | JA82: 66274.07661 | JB82: 68258.95231 | JC82: 70303.04148 | JD82: 72408.08679 | JE82: =IF(JE81,JE58) -> 74575.87968 | JF82: 76808.26149 | JG82: 79107.12451 | JH82: 81474.41309 | JI82: 83912.12468 | JJ82: 86477.65004 | JK82: 89069.05831 | JL82: 91737.85828 | JM82: 94486.32963 | JN82: 97316.81539 | JO82: 100243.4112 | JP82: 103247.6691 | JQ82: 106341.7526 | JR82: 109528.3258 | JS82: 112810.1296 | JT82: 116189.9838 | JU82: 119670.7887 | JV82: 123255.5275 | JW82: 126947.2682 | JX82: 130749.1655 | JY82: 134719.8021 | JZ82: 138758.4749 | KA82: 142917.9573 | KB82: 147201.8317 | KC82: 151613.7825 | KD82: 156169.2873 | KE82: 160851.3215 | KF82: 165673.5146 | KG82: 170640.0406 | KH82: 175755.1959 | KI82: 181023.402 | KJ82: 186449.2095 | KK82: 192037.301 | KL82: 197792.4949 | KM82: 203719.7489 | KN82: 209879.503 | KO82: 216172.9668 | KP82: 222654.8841 | KQ82: 229330.8662 | KR82: 236206.6881 | KS82: 243299.98 | KT82: 250595.935 | KU82: 258110.4665
C84: EBITDA | E84: =NPV($E$23,H84:KU84) -> 1655.775217 | H84: =IF(H81,H57) -> FALSE | I84: =IF(I81,I57) -> FALSE | J84: FALSE | K84: FALSE | L84: FALSE | M84: FALSE | N84: FALSE | O84: FALSE | P84: FALSE | Q84: FALSE | R84: FALSE | S84: FALSE | T84: FALSE | U84: FALSE | V84: FALSE | W84: FALSE | X84: FALSE | Y84: FALSE | Z84: FALSE | AA84: FALSE | AB84: FALSE | AC84: FALSE | AD84: 149.0197696 | AE84: 153.4903627 | AF84: 158.0950735 | AG84: 162.8379257 | AH84: 167.7230635 | AI84: 172.7547554 | AJ84: 177.9373981 | AK84: 183.27552 | AL84: 188.7737856 | AM84: 194.4369992 | AN84: 200.2701092 | AO84: 206.2782125 | AP84: 212.4665588 | AQ84: 218.8405556 | AR84: 225.4057723 | AS84: 232.1679454 | AT84: 239.1329838 | AU84: 246.3069733 | AV84: 253.6961825 | AW84: 261.307068 | AX84: 269.14628 | AY84: 277.2206684 | AZ84: 285.5372885 | BA84: 294.1034071 | BB84: 302.9265093 | BC84: 312.0143046 | BD84: 321.3747338 | BE84: 331.0159758 | BF84: 340.946455 | BG84: 351.1748487 | BH84: 361.7100941 | BI84: 372.561397 | BJ84: 383.7382389 | BK84: 395.2503861 | BL84: 407.1078976 | BM84: 419.3211346 | BN84: 431.9007686 | BO84: 444.8577917 | BP84: 458.2035254 | BQ84: 471.9496312 | BR84: 486.1081201 | BS84: 500.6913637 | BT84: 515.7121046 | BU84: =IF(BU81,BU57) -> 531.1834678 | BV84: 547.1189718 | BW84: 563.5325409 | BX84: 580.4385172 | BY84: 597.8516727 | BZ84: 615.7872229 | CA84: 634.2608396 | CB84: 653.2886647 | CC84: 672.8873247 | CD84: 693.0739444 | CE84: 713.8661628 | CF84: 735.2821476 | CG84: 757.3406121 | CH84: 780.0608304 | CI84: 803.4626553 | CJ84: 827.566535 | CK84: 852.393531 | CL84: 877.965337 | CM84: 904.3042971 | CN84: 931.433426 | CO84: 959.3764288 | CP84: 988.1577216 | CQ84: 1017.802453 | CR84: 1048.336527 | CS84: 1079.786623 | CT84: 1112.180221 | CU84: 1145.545628 | CV84: 1179.911997 | CW84: 1215.309357 | CX84: 1251.768637 | CY84: 1289.321697 | CZ84: 1328.001347 | DA84: 1367.841388 | DB84: 1408.87663 | DC84: 1451.142928 | DD84: 1494.677216 | DE84: 1539.517533 | DF84: 1585.703059 | DG84: 1633.274151 | DH84: 1682.272375 | DI84: 1732.740546 | DJ84: 1784.722763 | DK84: 1838.264446 | DL84: 1893.412379 | DM84: 1950.21475 | DN84: 2008.721193 | DO84: 2068.982829 | DP84: 2131.052313 | DQ84: 2194.983883 | DR84: 2260.833399 | DS84: 2328.658401 | DT84: 2398.518153 | DU84: 2470.473698 | DV84: 2544.587909 | DW84: 2620.925546 | DX84: 2699.553313 | DY84: 2780.539912 | DZ84: 2863.956109 | EA84: 2949.874793 | EB84: 3038.371036 | EC84: 3129.522167 | ED84: 3223.407832 | EE84: 3320.110067 | EF84: 3419.713369 | EG84: =IF(EG81,EG57) -> 3522.304771 | EH84: 3627.973914 | EI84: 3736.813131 | EJ84: 3848.917525 | EK84: 3964.385051 | EL84: 4083.316602 | EM84: 4205.8161 | EN84: 4331.990583 | EO84: 4461.950301 | EP84: 4595.80881 | EQ84: 4733.683074 | ER84: 4875.693566 | ES84: 5021.964373 | ET84: 5172.623305 | EU84: 5327.802004 | EV84: 5487.636064 | EW84: 5652.265146 | EX84: 5821.8331 | EY84: 5996.488093 | EZ84: 6176.382736 | FA84: 6361.674218 | FB84: 6552.524445 | FC84: 6749.100178 | FD84: 6951.573183 | FE84: 7160.120379 | FF84: 7374.92399 | FG84: 7596.17171 | FH84: 7824.056861 | FI84: 8058.778567 | FJ84: 8300.541924 | FK84: 8549.558182 | FL84: 8806.044927 | FM84: 9070.226275 | FN84: 9342.333063 | FO84: 9622.603055 | FP84: 9911.281147 | FQ84: 10208.61958 | FR84: 10514.87817 | FS84: 10830.32451 | FT84: 11155.23425 | FU84: 11489.89128 | FV84: 11834.58801 | FW84: 12189.62566 | FX84: 12555.31442 | FY84: 12931.97386 | FZ84: 13319.93307 | GA84: 13719.53107 | GB84: 14131.117 | GC84: 14555.05051 | GD84: 14991.70202 | GE84: 15441.45308 | GF84: 15904.69668 | GG84: 16381.83758 | GH84: 16873.2927 | GI84: 17379.49148 | GJ84: 17900.87623 | GK84: 18437.90252 | GL84: 18991.03959 | GM84: 19560.77078 | GN84: 20147.5939 | GO84: 20752.02172 | GP84: 21374.58237 | GQ84: 22015.81984 | GR84: 22676.29444 | GS84: =IF(GS81,GS57) -> 23356.58327 | GT84: 24057.28077 | GU84: 24778.99919 | GV84: 25522.36917 | GW84: 26288.04024 | GX84: 27076.68145 | GY84: 27888.98189 | GZ84: 28725.65135 | HA84: 29587.42089 | HB84: 30475.04352 | HC84: 31389.29482 | HD84: 32330.97367 | HE84: 33300.90288 | HF84: 34299.92996 | HG84: 35328.92786 | HH84: 36388.7957 | HI84: 37480.45957 | HJ84: 38604.87336 | HK84: 39763.01956 | HL84: 40955.91014 | HM84: 42184.58745 | HN84: 43450.12507 | HO84: 44753.62882 | HP84: 46096.23769 | HQ84: 47479.12482 | HR84: 48903.49856 | HS84: 50370.60352 | HT84: 51881.72163 | HU84: 53438.17328 | HV84: 55041.31847 | HW84: 56692.55803 | HX84: 58393.33477 | HY84: 60145.13481 | HZ84: 61949.48886 | IA84: 63807.97352 | IB84: 65722.21273 | IC84: 67693.87911 | ID84: 69724.69548 | IE84: 71816.43635 | IF84: 73970.92944 | IG84: 76190.05732 | IH84: 78475.75904 | II84: 80830.03181 | IJ84: 83254.93277 | IK84: 85752.58075 | IL84: 88325.15817 | IM84: 90974.91292 | IN84: 93704.1603 | IO84: 96515.28511 | IP84: 99410.74367 | IQ84: 102393.066 | IR84: 105464.858 | IS84: 108628.8037 | IT84: 111887.6678 | IU84: 115244.2978 | IV84: 118701.6268 | IW84: 122262.6756 | IX84: 125930.5558 | IY84: 129708.4725 | IZ84: 133599.7267 | JA84: 137607.7185 | JB84: 141735.9501 | JC84: 145988.0286 | JD84: 150367.6694 | JE84: =IF(JE81,JE57) -> 154878.6995 | JF84: 159525.0605 | JG84: 164310.8123 | JH84: 169240.1367 | JI84: 174317.3408 | JJ84: 179546.861 | JK84: 184933.2668 | JL84: 190481.2648 | JM84: 196195.7028 | JN84: 202081.5738 | JO84: 208144.0211 | JP84: 214388.3417 | JQ84: 220819.9919 | JR84: 227444.5917 | JS84: 234267.9295 | JT84: 241295.9673 | JU84: 248534.8464 | JV84: 255990.8917 | JW84: 263670.6185 | JX84: 271580.7371 | JY84: 279728.1592 | JZ84: 288120.0039 | KA84: 296763.6041 | KB84: 305666.5122 | KC84: 314836.5075 | KD84: 324281.6028 | KE84: 334010.0509 | KF84: 344030.3524 | KG84: 354351.263 | KH84: 364981.8008 | KI84: 375931.2549 | KJ84: 387209.1925 | KK84: 398825.4683 | KL84: 410790.2323 | KM84: 423113.9393 | KN84: 435807.3575 | KO84: 448881.5782 | KP84: 462348.0256 | KQ84: 476218.4663 | KR84: 490505.0203 | KS84: 505220.1709 | KT84: 520376.776 | KU84: 535988.0793
C85: Capital Expenditures | E85: =NPV($E$23,H85:KU85) -> 811.1796322 | H85: =IF(H81,H40) -> FALSE | I85: =IF(I81,I40) -> FALSE | J85: FALSE | K85: FALSE | L85: FALSE | M85: FALSE | N85: FALSE | O85: FALSE | P85: FALSE | Q85: FALSE | R85: FALSE | S85: FALSE | T85: FALSE | U85: FALSE | V85: FALSE | W85: FALSE | X85: FALSE | Y85: FALSE | Z85: FALSE | AA85: FALSE | AB85: FALSE | AC85: FALSE | AD85: 60.1277378 | AE85: 64.85280448 | AF85: 70.07017132 | AG85: 75.83667308 | AH85: 82.21589748 | AI85: 77.59106555 | AJ85: 82.9631839 | AK85: 88.79867735 | AL85: 95.14203221 | AM85: 102.0422284 | AN85: 109.5532071 | AO85: 117.7343889 | AP85: 126.6512465 | AQ85: 136.3759391 | AR85: 146.9880147 | AS85: 103.2360358 | AT85: 109.2543515 | AU85: 115.8037647 | AV85: 122.9422743 | AW85: 130.7346667 | AX85: 127.5653978 | AY85: 134.4367462 | AZ85: 141.8164465 | BA85: 149.7503344 | BB85: 158.2887796 | BC85: 167.4871549 | BD85: 177.4063552 | BE85: 188.1133717 | BF85: 199.6819281 | BG85: 212.1931834 | BH85: 170.3973596 | BI85: 178.4305149 | BJ85: 187.055213 | BK85: 196.331266 | BL85: 206.3253282 | BM85: 205.4237792 | BN85: 214.630879 | BO85: 224.4164033 | BP85: 234.8282899 | BQ85: 245.9190738 | BR85: 257.7463579 | BS85: 270.3733343 | BT85: 283.8693602 | BU85: =IF(BU81,BU40) -> 298.3105962 | BV85: 313.7807115 | BW85: 275.0325136 | BX85: 286.2047235 | BY85: 298.0626479 | BZ85: 310.668924 | CA85: 324.0931159 | CB85: 326.7246005 | CC85: 339.5707249 | CD85: 353.1044446 | CE85: 367.3769725 | CF85: 382.4442169 | CG85: 398.3672553 | CH85: 415.2128585 | CI85: 433.0540702 | CJ85: 451.9708475 | CK85: 472.0507704 | CL85: 438.0506742 | CM85: 454.1134289 | CN85: 471.0086145 | CO85: 488.8032696 | CP85: 507.5714919 | CQ85: 515.7073278 | CR85: 534.222934 | CS85: 553.5962199 | CT85: 573.8835011 | CU85: 595.1459413 | CV85: 617.4500314 | CW85: 640.868118 | CX85: 665.4789874 | CY85: 691.3685122 | CZ85: 718.630365 | DA85: 692.0276567 | DB85: 715.7097209 | DC85: 740.4527952 | DD85: 766.3307757 | DE85: 793.4248232 | DF85: 810.1362591 | DG85: 837.4847332 | DH85: 865.9558731 | DI85: 895.6139439 | DJ85: 926.5282974 | DK85: 958.7738582 | DL85: 992.4316595 | DM85: 1027.589435 | DN85: 1064.342273 | DO85: 1102.793339 | DP85: 1087.71552 | DQ85: 1123.26822 | DR85: 1160.238049 | DS85: 1198.709588 | DT85: 1238.774999 | DU85: 1268.846941 | DV85: 1309.956735 | DW85: 1352.602035 | DX85: 1396.859491 | DY85: 1442.811211 | DZ85: 1490.545259 | EA85: 1540.156202 | EB85: 1591.745714 | EC85: 1645.423241 | ED85: 1701.306735 | EE85: 1704.184318 | EF85: 1758.231082 | EG85: =IF(EG81,EG40) -> 1814.249797 | EH85: 1872.341688 | EI85: 1932.616063 | EJ85: 1983.503236 | EK85: 2046.052719 | EL85: 2110.780899 | EM85: 2177.78372 | EN85: 2247.163167 | EO85: 2319.027774 | EP85: 2393.493193 | EQ85: 2470.682815 | ER85: 2550.728454 | ES85: 2633.771105 | ET85: 2664.622619 | EU85: 2747.482532 | EV85: 2833.178791 | EW85: 2921.838551 | EX85: 3013.597832 | EY85: 3096.914458 | EZ85: 3192.866278 | FA85: 3291.998865 | FB85: 3394.438225 | FC85: 3500.317307 | FD85: 3609.776538 | FE85: 3722.96442 | FF85: 3840.038178 | FG85: 3961.164479 | FH85: 4086.520211 | FI85: 4160.954198 | FJ85: 4288.704058 | FK85: 4420.636963 | FL85: 4556.920468 | FM85: 4697.732206 | FN85: 4831.572864 | FO85: 4979.564436 | FP85: 5132.297967 | FQ85: 5289.946301 | FR85: 5452.690625 | FS85: 5620.721055 | FT85: 5794.237273 | FU85: 5973.449217 | FV85: 6158.577848 | FW85: 6349.855981 | FX85: 6492.190041 | FY85: 6689.876977 | FZ85: 6893.845069 | GA85: 7104.324818 | GB85: 7321.558687 | GC85: 7534.114138 | GD85: 7763.181949 | GE85: 7999.424005 | GF85: 8243.08612 | GG85: 8494.424639 | GH85: 8753.70709 | GI85: 9021.212888 | GJ85: 9297.234101 | GK85: 9582.076279 | GL85: 9876.059365 | GM85: 10124.17953 | GN85: 10430.82615 | GO85: 10747.02271 | GP85: 11073.09779 | GQ85: 11409.39485 | GR85: 11744.58539 | GS85: =IF(GS81,GS40) -> 12099.96733 | GT85: 12466.31295 | GU85: 12843.98174 | GV85: 13233.34712 | GW85: 13634.79725 | GX85: 14048.73575 | GY85: 14475.58265 | GZ85: 14915.77528 | HA85: 15369.76934 | HB85: 15782.7008 | HC85: 16259.10306 | HD85: 16750.14793 | HE85: 17256.31677 | HF85: 17778.1104 | HG85: 18304.3624 | HH85: 18856.53766 | HI85: 19425.58039 | HJ85: 20012.02719 | HK85: 20616.43394 | HL85: 21239.37667 | HM85: 21881.45256 | HN85: 22543.28096 | HO85: 23225.50455 | HP85: 23928.79048 | HQ85: 24598.49257 | HR85: 25339.36859 | HS85: 26102.82143 | HT85: 26889.57047 | HU85: 27700.3617 | HV85: 28524.28125 | HW85: 29383.05407 | HX85: 30267.89229 | HY85: 31179.60845 | HZ85: 32119.04264 | IA85: 33087.06363 | IB85: 34084.57013 | IC85: 35112.49206 | ID85: 36171.79197 | IE85: 37263.46653 | IF85: 38333.20891 | IG85: 39486.12641 | IH85: 40673.98198 | II85: 41897.86584 | IJ85: 43158.90594 | IK85: 44446.58181 | IL85: 45783.02365 | IM85: 47159.86096 | IN85: 48578.33618 | IO85: 50039.7322 | IP85: 51545.37388 | IQ85: 53096.62968 | IR85: 54694.9134 | IS85: 56341.68595 | IT85: 58038.45733 | IU85: 59731.44943 | IV85: 61526.31415 | IW85: 63375.37536 | IX85: 65280.30101 | IY85: 67242.81417 | IZ85: 69253.00728 | JA85: 71333.64189 | JB85: 73476.99774 | JC85: 75684.98707 | JD85: 77959.58262 | JE85: =IF(JE81,JE40) -> 80302.81981 | JF85: 82716.79899 | JG85: 85203.68778 | JH85: 87765.72357 | JI85: 90405.21608 | JJ85: 93069.21094 | JK85: 95864.2085 | JL85: 98743.40654 | JM85: 101709.3731 | JN85: 104764.7585 | JO85: 107900.6099 | JP85: 111140.6726 | JQ85: 114478.2394 | JR85: 117916.2659 | JS85: 121457.7998 | JT85: 125105.9835 | JU85: 128864.0576 | JV85: 132735.3642 | JW85: 136723.3503 | JX85: 140831.5716 | JY85: 145008.3571 | JZ85: 149361.5291 | KA85: 153845.6467 | KB85: 158464.6805 | KC85: 163222.7251 | KD85: 168112.3155 | KE85: 173158.7293 | KF85: 178356.8378 | KG85: 183711.2224 | KH85: 189226.605 | KI85: 194907.8528 | KJ85: 200759.983 | KK85: 206788.1673 | KL85: 212997.7375 | KM85: 219394.1904 | KN85: 225927.8545 | KO85: 232708.6114 | KP85: 239693.1415 | KQ85: 246887.6001 | KR85: 254298.3323 | KS85: 261920.1909 | KT85: 269780.841 | KU85: 277877.6129
C86: Net Cash Flow | E86: =E84-E85 -> 844.5955851
A88: No Stable Value Adjustment
C89: Terminal Growth | E89: =F15 -> 0.03
C90: WACC | E90: =E23 -> 0.12
C91: Cap Exp to Depreciation | E91: =M14 -> 1.709852148
C93: Free Cash Flow | E93: =NPV($E$23,H93:KU93) -> 404.0715522 | H93: =IF(H6,H58*H6*(1+$E$89)/($E$90-$E$89)) -> FALSE | I93: =IF(I6,I58*I6*(1+$E$89)/($E$90-$E$89)) -> FALSE | J93: FALSE | K93: FALSE | L93: FALSE | M93: FALSE | N93: FALSE | O93: FALSE | P93: FALSE | Q93: FALSE | R93: FALSE | S93: FALSE | T93: FALSE | U93: FALSE | V93: FALSE | W93: FALSE | X93: FALSE | Y93: FALSE | Z93: FALSE | AA93: FALSE | AB93: FALSE | AC93: 452.5601384 | AD93: FALSE | AE93: FALSE | AF93: FALSE | AG93: FALSE | AH93: FALSE | AI93: FALSE | AJ93: FALSE | AK93: FALSE | AL93: FALSE | AM93: FALSE | AN93: FALSE | AO93: FALSE | AP93: FALSE | AQ93: FALSE | AR93: FALSE | AS93: FALSE | AT93: FALSE | AU93: FALSE | AV93: FALSE | AW93: FALSE | AX93: FALSE | AY93: FALSE | AZ93: FALSE | BA93: FALSE | BB93: FALSE | BC93: FALSE | BD93: FALSE | BE93: FALSE | BF93: FALSE | BG93: FALSE | BH93: FALSE | BI93: FALSE | BJ93: FALSE | BK93: FALSE | BL93: FALSE | BM93: FALSE | BN93: FALSE | BO93: FALSE | BP93: FALSE | BQ93: FALSE | BR93: FALSE | BS93: FALSE | BT93: FALSE | BU93: =IF(BU6,BU58*BU6*(1+$E$89)/($E$90-$E$89)) -> FALSE | BV93: FALSE | BW93: FALSE | BX93: FALSE | BY93: FALSE | BZ93: FALSE | CA93: FALSE | CB93: FALSE | CC93: FALSE | CD93: FALSE | CE93: FALSE | CF93: FALSE | CG93: FALSE | CH93: FALSE | CI93: FALSE | CJ93: FALSE | CK93: FALSE | CL93: FALSE | CM93: FALSE | CN93: FALSE | CO93: FALSE | CP93: FALSE | CQ93: FALSE | CR93: FALSE | CS93: FALSE | CT93: FALSE | CU93: FALSE | CV93: FALSE | CW93: FALSE | CX93: FALSE | CY93: FALSE | CZ93: FALSE | DA93: FALSE | DB93: FALSE | DC93: FALSE | DD93: FALSE | DE93: FALSE | DF93: FALSE | DG93: FALSE | DH93: FALSE | DI93: FALSE | DJ93: FALSE | DK93: FALSE | DL93: FALSE | DM93: FALSE | DN93: FALSE | DO93: FALSE | DP93: FALSE | DQ93: FALSE | DR93: FALSE | DS93: FALSE | DT93: FALSE | DU93: FALSE | DV93: FALSE | DW93: FALSE | DX93: FALSE | DY93: FALSE | DZ93: FALSE | EA93: FALSE | EB93: FALSE | EC93: FALSE | ED93: FALSE | EE93: FALSE | EF93: FALSE | EG93: =IF(EG6,EG58*EG6*(1+$E$89)/($E$90-$E$89)) -> FALSE | EH93: FALSE | EI93: FALSE | EJ93: FALSE | EK93: FALSE | EL93: FALSE | EM93: FALSE | EN93: FALSE | EO93: FALSE | EP93: FALSE | EQ93: FALSE | ER93: FALSE | ES93: FALSE | ET93: FALSE | EU93: FALSE | EV93: FALSE | EW93: FALSE | EX93: FALSE | EY93: FALSE | EZ93: FALSE | FA93: FALSE | FB93: FALSE | FC93: FALSE | FD93: FALSE | FE93: FALSE | FF93: FALSE | FG93: FALSE | FH93: FALSE | FI93: FALSE | FJ93: FALSE | FK93: FALSE | FL93: FALSE | FM93: FALSE | FN93: FALSE | FO93: FALSE | FP93: FALSE | FQ93: FALSE | FR93: FALSE | FS93: FALSE | FT93: FALSE | FU93: FALSE | FV93: FALSE | FW93: FALSE | FX93: FALSE | FY93: FALSE | FZ93: FALSE | GA93: FALSE | GB93: FALSE | GC93: FALSE | GD93: FALSE | GE93: FALSE | GF93: FALSE | GG93: FALSE | GH93: FALSE | GI93: FALSE | GJ93: FALSE | GK93: FALSE | GL93: FALSE | GM93: FALSE | GN93: FALSE | GO93: FALSE | GP93: FALSE | GQ93: FALSE | GR93: FALSE | GS93: =IF(GS6,GS58*GS6*(1+$E$89)/($E$90-$E$89)) -> FALSE | GT93: FALSE | GU93: FALSE | GV93: FALSE | GW93: FALSE | GX93: FALSE | GY93: FALSE | GZ93: FALSE | HA93: FALSE | HB93: FALSE | HC93: FALSE | HD93: FALSE | HE93: FALSE | HF93: FALSE | HG93: FALSE | HH93: FALSE | HI93: FALSE | HJ93: FALSE | HK93: FALSE | HL93: FALSE | HM93: FALSE | HN93: FALSE | HO93: FALSE | HP93: FALSE | HQ93: FALSE | HR93: FALSE | HS93: FALSE | HT93: FALSE | HU93: FALSE | HV93: FALSE | HW93: FALSE | HX93: FALSE | HY93: FALSE | HZ93: FALSE | IA93: FALSE | IB93: FALSE | IC93: FALSE | ID93: FALSE | IE93: FALSE | IF93: FALSE | IG93: FALSE | IH93: FALSE | II93: FALSE | IJ93: FALSE | IK93: FALSE | IL93: FALSE | IM93: FALSE | IN93: FALSE | IO93: FALSE | IP93: FALSE | IQ93: FALSE | IR93: FALSE | IS93: FALSE | IT93: FALSE | IU93: FALSE | IV93: FALSE | IW93: FALSE | IX93: FALSE | IY93: FALSE | IZ93: FALSE | JA93: FALSE | JB93: FALSE | JC93: FALSE | JD93: FALSE | JE93: =IF(JE6,JE58*JE6*(1+$E$89)/($E$90-$E$89)) -> FALSE | JF93: FALSE | JG93: FALSE | JH93: FALSE | JI93: FALSE | JJ93: FALSE | JK93: FALSE | JL93: FALSE | JM93: FALSE | JN93: FALSE | JO93: FALSE | JP93: FALSE | JQ93: FALSE | JR93: FALSE | JS93: FALSE | JT93: FALSE | JU93: FALSE | JV93: FALSE | JW93: FALSE | JX93: FALSE | JY93: FALSE | JZ93: FALSE | KA93: FALSE | KB93: FALSE | KC93: FALSE | KD93: FALSE | KE93: FALSE | KF93: FALSE | KG93: FALSE | KH93: FALSE | KI93: FALSE | KJ93: FALSE | KK93: FALSE | KL93: FALSE | KM93: FALSE | KN93: FALSE | KO93: FALSE | KP93: FALSE | KQ93: FALSE | KR93: FALSE | KS93: FALSE | KT93: FALSE | KU93: FALSE
C94: EBITDA | E94: =SUM(H94:KU94) -> 1655.775217 | H94: =IF(H6,H57*(1+$E$89)/($E$90-$E$89)) -> FALSE | I94: =IF(I6,I57*(1+$E$89)/($E$90-$E$89)) -> FALSE | J94: FALSE | K94: FALSE | L94: FALSE | M94: FALSE | N94: FALSE | O94: FALSE | P94: FALSE | Q94: FALSE | R94: FALSE | S94: FALSE | T94: FALSE | U94: FALSE | V94: =IF(V6,V57*(1+$E$89)/($E$90-$E$89)) -> FALSE | W94: FALSE | X94: FALSE | Y94: FALSE | Z94: FALSE | AA94: FALSE | AB94: FALSE | AC94: 1655.775217 | AD94: FALSE | AE94: FALSE | AF94: FALSE | AG94: FALSE | AH94: FALSE | AI94: FALSE | AJ94: FALSE | AK94: FALSE | AL94: FALSE | AM94: FALSE | AN94: FALSE | AO94: FALSE | AP94: FALSE | AQ94: FALSE | AR94: FALSE | AS94: FALSE | AT94: FALSE | AU94: FALSE | AV94: FALSE | AW94: FALSE | AX94: FALSE | AY94: FALSE | AZ94: FALSE | BA94: FALSE | BB94: FALSE | BC94: FALSE | BD94: FALSE | BE94: FALSE | BF94: FALSE | BG94: FALSE | BH94: FALSE | BI94: FALSE | BJ94: FALSE | BK94: FALSE | BL94: FALSE | BM94: FALSE | BN94: FALSE | BO94: FALSE | BP94: FALSE | BQ94: FALSE | BR94: FALSE | BS94: FALSE | BT94: FALSE | BU94: =IF(BU6,BU57*(1+$E$89)/($E$90-$E$89)) -> FALSE | BV94: FALSE | BW94: FALSE | BX94: FALSE | BY94: FALSE | BZ94: FALSE | CA94: FALSE | CB94: FALSE | CC94: FALSE | CD94: FALSE | CE94: FALSE | CF94: FALSE | CG94: FALSE | CH94: FALSE | CI94: FALSE | CJ94: FALSE | CK94: FALSE | CL94: FALSE | CM94: FALSE | CN94: FALSE | CO94: FALSE | CP94: FALSE | CQ94: FALSE | CR94: FALSE | CS94: FALSE | CT94: FALSE | CU94: FALSE | CV94: FALSE | CW94: FALSE | CX94: FALSE | CY94: FALSE | CZ94: FALSE | DA94: FALSE | DB94: FALSE | DC94: FALSE | DD94: FALSE | DE94: FALSE | DF94: FALSE | DG94: FALSE | DH94: FALSE | DI94: FALSE | DJ94: FALSE | DK94: FALSE | DL94: FALSE | DM94: FALSE | DN94: FALSE | DO94: FALSE | DP94: FALSE | DQ94: FALSE | DR94: FALSE | DS94: FALSE | DT94: FALSE | DU94: FALSE | DV94: FALSE | DW94: FALSE | DX94: FALSE | DY94: FALSE | DZ94: FALSE | EA94: FALSE | EB94: FALSE | EC94: FALSE | ED94: FALSE | EE94: FALSE | EF94: FALSE | EG94: =IF(EG6,EG57*(1+$E$89)/($E$90-$E$89)) -> FALSE | EH94: FALSE | EI94: FALSE | EJ94: FALSE | EK94: FALSE | EL94: FALSE | EM94: FALSE | EN94: FALSE | EO94: FALSE | EP94: FALSE | EQ94: FALSE | ER94: FALSE | ES94: FALSE | ET94: FALSE | EU94: FALSE | EV94: FALSE | EW94: FALSE | EX94: FALSE | EY94: FALSE | EZ94: FALSE | FA94: FALSE | FB94: FALSE | FC94: FALSE | FD94: FALSE | FE94: FALSE | FF94: FALSE | FG94: FALSE | FH94: FALSE | FI94: FALSE | FJ94: FALSE | FK94: FALSE | FL94: FALSE | FM94: FALSE | FN94: FALSE | FO94: FALSE | FP94: FALSE | FQ94: FALSE | FR94: FALSE | FS94: FALSE | FT94: FALSE | FU94: FALSE | FV94: FALSE | FW94: FALSE | FX94: FALSE | FY94: FALSE | FZ94: FALSE | GA94: FALSE | GB94: FALSE | GC94: FALSE | GD94: FALSE | GE94: FALSE | GF94: FALSE | GG94: FALSE | GH94: FALSE | GI94: FALSE | GJ94: FALSE | GK94: FALSE | GL94: FALSE | GM94: FALSE | GN94: FALSE | GO94: FALSE | GP94: FALSE | GQ94: FALSE | GR94: FALSE | GS94: =IF(GS6,GS57*(1+$E$89)/($E$90-$E$89)) -> FALSE | GT94: FALSE | GU94: FALSE | GV94: FALSE | GW94: FALSE | GX94: FALSE | GY94: FALSE | GZ94: FALSE | HA94: FALSE | HB94: FALSE | HC94: FALSE | HD94: FALSE | HE94: FALSE | HF94: FALSE | HG94: FALSE | HH94: FALSE | HI94: FALSE | HJ94: FALSE | HK94: FALSE | HL94: FALSE | HM94: FALSE | HN94: FALSE | HO94: FALSE | HP94: FALSE | HQ94: FALSE | HR94: FALSE | HS94: FALSE | HT94: FALSE | HU94: FALSE | HV94: FALSE | HW94: FALSE | HX94: FALSE | HY94: FALSE | HZ94: FALSE | IA94: FALSE | IB94: FALSE | IC94: FALSE | ID94: FALSE | IE94: FALSE | IF94: FALSE | IG94: FALSE | IH94: FALSE | II94: FALSE | IJ94: FALSE | IK94: FALSE | IL94: FALSE | IM94: FALSE | IN94: FALSE | IO94: FALSE | IP94: FALSE | IQ94: FALSE | IR94: FALSE | IS94: FALSE | IT94: FALSE | IU94: FALSE | IV94: FALSE | IW94: FALSE | IX94: FALSE | IY94: FALSE | IZ94: FALSE | JA94: FALSE | JB94: FALSE | JC94: FALSE | JD94: FALSE | JE94: =IF(JE6,JE57*(1+$E$89)/($E$90-$E$89)) -> FALSE | JF94: FALSE | JG94: FALSE | JH94: FALSE | JI94: FALSE | JJ94: FALSE | JK94: FALSE | JL94: FALSE | JM94: FALSE | JN94: FALSE | JO94: FALSE | JP94: FALSE | JQ94: FALSE | JR94: FALSE | JS94: FALSE | JT94: FALSE | JU94: FALSE | JV94: FALSE | JW94: FALSE | JX94: FALSE | JY94: FALSE | JZ94: FALSE | KA94: FALSE | KB94: FALSE | KC94: FALSE | KD94: FALSE | KE94: FALSE | KF94: FALSE | KG94: FALSE | KH94: FALSE | KI94: FALSE | KJ94: FALSE | KK94: FALSE | KL94: FALSE | KM94: FALSE | KN94: FALSE | KO94: FALSE | KP94: FALSE | KQ94: FALSE | KR94: FALSE | KS94: FALSE | KT94: FALSE | KU94: FALSE
C95: Capital Expenditures | E95: =SUM(H95:KU95) -> 1203.215079 | H95: =IF(H6,H30*(1+$E$89)/($E$90-$E$89)) -> FALSE | I95: =IF(I6,I30*(1+$E$89)/($E$90-$E$89)) -> FALSE | J95: FALSE | K95: FALSE | L95: FALSE | M95: FALSE | N95: FALSE | O95: FALSE | P95: FALSE | Q95: FALSE | R95: FALSE | S95: FALSE | T95: FALSE | U95: FALSE | V95: =IF(V6,V30*(1+$E$89)/($E$90-$E$89)) -> FALSE | W95: FALSE | X95: FALSE | Y95: FALSE | Z95: FALSE | AA95: FALSE | AB95: FALSE | AC95: 1203.215079 | AD95: FALSE | AE95: FALSE | AF95: FALSE | AG95: FALSE | AH95: FALSE | AI95: FALSE | AJ95: FALSE | AK95: FALSE | AL95: FALSE | AM95: FALSE | AN95: FALSE | AO95: FALSE | AP95: FALSE | AQ95: FALSE | AR95: FALSE | AS95: FALSE | AT95: FALSE | AU95: FALSE | AV95: FALSE | AW95: FALSE | AX95: FALSE | AY95: FALSE | AZ95: FALSE | BA95: FALSE | BB95: FALSE | BC95: FALSE | BD95: FALSE | BE95: FALSE | BF95: FALSE | BG95: FALSE | BH95: FALSE | BI95: FALSE | BJ95: FALSE | BK95: FALSE | BL95: FALSE | BM95: FALSE | BN95: FALSE | BO95: FALSE | BP95: FALSE | BQ95: FALSE | BR95: FALSE | BS95: FALSE | BT95: FALSE | BU95: =IF(BU6,BU30*(1+$E$89)/($E$90-$E$89)) -> FALSE | BV95: FALSE | BW95: FALSE | BX95: FALSE | BY95: FALSE | BZ95: FALSE | CA95: FALSE | CB95: FALSE | CC95: FALSE | CD95: FALSE | CE95: FALSE | CF95: FALSE | CG95: FALSE | CH95: FALSE | CI95: FALSE | CJ95: FALSE | CK95: FALSE | CL95: FALSE | CM95: FALSE | CN95: FALSE | CO95: FALSE | CP95: FALSE | CQ95: FALSE | CR95: FALSE | CS95: FALSE | CT95: FALSE | CU95: FALSE | CV95: FALSE | CW95: FALSE | CX95: FALSE | CY95: FALSE | CZ95: FALSE | DA95: FALSE | DB95: FALSE | DC95: FALSE | DD95: FALSE | DE95: FALSE | DF95: FALSE | DG95: FALSE | DH95: FALSE | DI95: FALSE | DJ95: FALSE | DK95: FALSE | DL95: FALSE | DM95: FALSE | DN95: FALSE | DO95: FALSE | DP95: FALSE | DQ95: FALSE | DR95: FALSE | DS95: FALSE | DT95: FALSE | DU95: FALSE | DV95: FALSE | DW95: FALSE | DX95: FALSE | DY95: FALSE | DZ95: FALSE | EA95: FALSE | EB95: FALSE | EC95: FALSE | ED95: FALSE | EE95: FALSE | EF95: FALSE | EG95: =IF(EG6,EG30*(1+$E$89)/($E$90-$E$89)) -> FALSE | EH95: FALSE | EI95: FALSE | EJ95: FALSE | EK95: FALSE | EL95: FALSE | EM95: FALSE | EN95: FALSE | EO95: FALSE | EP95: FALSE | EQ95: FALSE | ER95: FALSE | ES95: FALSE | ET95: FALSE | EU95: FALSE | EV95: FALSE | EW95: FALSE | EX95: FALSE | EY95: FALSE | EZ95: FALSE | FA95: FALSE | FB95: FALSE | FC95: FALSE | FD95: FALSE | FE95: FALSE | FF95: FALSE | FG95: FALSE | FH95: FALSE | FI95: FALSE | FJ95: FALSE | FK95: FALSE | FL95: FALSE | FM95: FALSE | FN95: FALSE | FO95: FALSE | FP95: FALSE | FQ95: FALSE | FR95: FALSE | FS95: FALSE | FT95: FALSE | FU95: FALSE | FV95: FALSE | FW95: FALSE | FX95: FALSE | FY95: FALSE | FZ95: FALSE | GA95: FALSE | GB95: FALSE | GC95: FALSE | GD95: FALSE | GE95: FALSE | GF95: FALSE | GG95: FALSE | GH95: FALSE | GI95: FALSE | GJ95: FALSE | GK95: FALSE | GL95: FALSE | GM95: FALSE | GN95: FALSE | GO95: FALSE | GP95: FALSE | GQ95: FALSE | GR95: FALSE | GS95: =IF(GS6,GS30*(1+$E$89)/($E$90-$E$89)) -> FALSE | GT95: FALSE | GU95: FALSE | GV95: FALSE | GW95: FALSE | GX95: FALSE | GY95: FALSE | GZ95: FALSE | HA95: FALSE | HB95: FALSE | HC95: FALSE | HD95: FALSE | HE95: FALSE | HF95: FALSE | HG95: FALSE | HH95: FALSE | HI95: FALSE | HJ95: FALSE | HK95: FALSE | HL95: FALSE | HM95: FALSE | HN95: FALSE | HO95: FALSE | HP95: FALSE | HQ95: FALSE | HR95: FALSE | HS95: FALSE | HT95: FALSE | HU95: FALSE | HV95: FALSE | HW95: FALSE | HX95: FALSE | HY95: FALSE | HZ95: FALSE | IA95: FALSE | IB95: FALSE | IC95: FALSE | ID95: FALSE | IE95: FALSE | IF95: FALSE | IG95: FALSE | IH95: FALSE | II95: FALSE | IJ95: FALSE | IK95: FALSE | IL95: FALSE | IM95: FALSE | IN95: FALSE | IO95: FALSE | IP95: FALSE | IQ95: FALSE | IR95: FALSE | IS95: FALSE | IT95: FALSE | IU95: FALSE | IV95: FALSE | IW95: FALSE | IX95: FALSE | IY95: FALSE | IZ95: FALSE | JA95: FALSE | JB95: FALSE | JC95: FALSE | JD95: FALSE | JE95: =IF(JE6,JE30*(1+$E$89)/($E$90-$E$89)) -> FALSE | JF95: FALSE | JG95: FALSE | JH95: FALSE | JI95: FALSE | JJ95: FALSE | JK95: FALSE | JL95: FALSE | JM95: FALSE | JN95: FALSE | JO95: FALSE | JP95: FALSE | JQ95: FALSE | JR95: FALSE | JS95: FALSE | JT95: FALSE | JU95: FALSE | JV95: FALSE | JW95: FALSE | JX95: FALSE | JY95: FALSE | JZ95: FALSE | KA95: FALSE | KB95: FALSE | KC95: FALSE | KD95: FALSE | KE95: FALSE | KF95: FALSE | KG95: FALSE | KH95: FALSE | KI95: FALSE | KJ95: FALSE | KK95: FALSE | KL95: FALSE | KM95: FALSE | KN95: FALSE | KO95: FALSE | KP95: FALSE | KQ95: FALSE | KR95: FALSE | KS95: FALSE | KT95: FALSE | KU95: FALSE
C96: Net Value | E96: =E94-E95 -> 452.5601384
A98: Simple Cap Exp to Depreciation without Historic Growth
C99: Life | E99: =E18 -> 15
C100: Growth | E100: =E89 -> 0.03
C102: Stable Cap Exp to Depreciation | E102: =cap_exp_depreciation_simple(E99,E100,3) -> 1.219901657 | F102: =show_formulaR(E102) -> < ---- =cap_exp_depreciation_simple(E99,E100,3)
C103: Stable Capital Expenditure | E103: =SUM(H103:KU103) -> 858.4391759 | H103: =IF(H6,H45*$E$102*(1+$E$100)/($E$90-$E$89)) -> FALSE | I103: =IF(I6,I45*$E$102*(1+$E$100)/($E$90-$E$89)) -> FALSE | J103: FALSE | K103: FALSE | L103: FALSE | M103: FALSE | N103: FALSE | O103: FALSE | P103: FALSE | Q103: FALSE | R103: FALSE | S103: FALSE | T103: FALSE | U103: FALSE | V103: FALSE | W103: FALSE | X103: FALSE | Y103: FALSE | Z103: FALSE | AA103: FALSE | AB103: FALSE | AC103: 858.4391759 | AD103: FALSE | AE103: FALSE | AF103: FALSE | AG103: FALSE | AH103: FALSE | AI103: FALSE | AJ103: FALSE | AK103: FALSE | AL103: FALSE | AM103: FALSE | AN103: FALSE | AO103: FALSE | AP103: FALSE | AQ103: FALSE | AR103: FALSE | AS103: FALSE | AT103: FALSE | AU103: FALSE | AV103: FALSE | AW103: FALSE | AX103: FALSE | AY103: FALSE | AZ103: FALSE | BA103: FALSE | BB103: FALSE | BC103: FALSE | BD103: FALSE | BE103: FALSE | BF103: FALSE | BG103: FALSE | BH103: FALSE | BI103: FALSE | BJ103: FALSE | BK103: FALSE | BL103: FALSE | BM103: FALSE | BN103: FALSE | BO103: FALSE | BP103: FALSE | BQ103: FALSE | BR103: FALSE | BS103: FALSE | BT103: FALSE | BU103: =IF(BU6,BU45*$E$102*(1+$E$100)/($E$90-$E$89)) -> FALSE | BV103: FALSE | BW103: FALSE | BX103: FALSE | BY103: FALSE | BZ103: FALSE | CA103: FALSE | CB103: FALSE | CC103: FALSE | CD103: FALSE | CE103: FALSE | CF103: FALSE | CG103: FALSE | CH103: FALSE | CI103: FALSE | CJ103: FALSE | CK103: FALSE | CL103: FALSE | CM103: FALSE | CN103: FALSE | CO103: FALSE | CP103: FALSE | CQ103: FALSE | CR103: FALSE | CS103: FALSE | CT103: FALSE | CU103: FALSE | CV103: FALSE | CW103: FALSE | CX103: FALSE | CY103: FALSE | CZ103: FALSE | DA103: FALSE | DB103: FALSE | DC103: FALSE | DD103: FALSE | DE103: FALSE | DF103: FALSE | DG103: FALSE | DH103: FALSE | DI103: FALSE | DJ103: FALSE | DK103: FALSE | DL103: FALSE | DM103: FALSE | DN103: FALSE | DO103: FALSE | DP103: FALSE | DQ103: FALSE | DR103: FALSE | DS103: FALSE | DT103: FALSE | DU103: FALSE | DV103: FALSE | DW103: FALSE | DX103: FALSE | DY103: FALSE | DZ103: FALSE | EA103: FALSE | EB103: FALSE | EC103: FALSE | ED103: FALSE | EE103: FALSE | EF103: FALSE | EG103: =IF(EG6,EG45*$E$102*(1+$E$100)/($E$90-$E$89)) -> FALSE | EH103: FALSE | EI103: FALSE | EJ103: FALSE | EK103: FALSE | EL103: FALSE | EM103: FALSE | EN103: FALSE | EO103: FALSE | EP103: FALSE | EQ103: FALSE | ER103: FALSE | ES103: FALSE | ET103: FALSE | EU103: FALSE | EV103: FALSE | EW103: FALSE | EX103: FALSE | EY103: FALSE | EZ103: FALSE | FA103: FALSE | FB103: FALSE | FC103: FALSE | FD103: FALSE | FE103: FALSE | FF103: FALSE | FG103: FALSE | FH103: FALSE | FI103: FALSE | FJ103: FALSE | FK103: FALSE | FL103: FALSE | FM103: FALSE | FN103: FALSE | FO103: FALSE | FP103: FALSE | FQ103: FALSE | FR103: FALSE | FS103: FALSE | FT103: FALSE | FU103: FALSE | FV103: FALSE | FW103: FALSE | FX103: FALSE | FY103: FALSE | FZ103: FALSE | GA103: FALSE | GB103: FALSE | GC103: FALSE | GD103: FALSE | GE103: FALSE | GF103: FALSE | GG103: FALSE | GH103: FALSE | GI103: FALSE | GJ103: FALSE | GK103: FALSE | GL103: FALSE | GM103: FALSE | GN103: FALSE | GO103: FALSE | GP103: FALSE | GQ103: FALSE | GR103: FALSE | GS103: =IF(GS6,GS45*$E$102*(1+$E$100)/($E$90-$E$89)) -> FALSE | GT103: FALSE | GU103: FALSE | GV103: FALSE | GW103: FALSE | GX103: FALSE | GY103: FALSE | GZ103: FALSE | HA103: FALSE | HB103: FALSE | HC103: FALSE | HD103: FALSE | HE103: FALSE | HF103: FALSE | HG103: FALSE | HH103: FALSE | HI103: FALSE | HJ103: FALSE | HK103: FALSE | HL103: FALSE | HM103: FALSE | HN103: FALSE | HO103: FALSE | HP103: FALSE | HQ103: FALSE | HR103: FALSE | HS103: FALSE | HT103: FALSE | HU103: FALSE | HV103: FALSE | HW103: FALSE | HX103: FALSE | HY103: FALSE | HZ103: FALSE | IA103: FALSE | IB103: FALSE | IC103: FALSE | ID103: FALSE | IE103: FALSE | IF103: FALSE | IG103: FALSE | IH103: FALSE | II103: FALSE | IJ103: FALSE | IK103: FALSE | IL103: FALSE | IM103: FALSE | IN103: FALSE | IO103: FALSE | IP103: FALSE | IQ103: FALSE | IR103: FALSE | IS103: FALSE | IT103: FALSE | IU103: FALSE | IV103: FALSE | IW103: FALSE | IX103: FALSE | IY103: FALSE | IZ103: FALSE | JA103: FALSE | JB103: FALSE | JC103: FALSE | JD103: FALSE | JE103: =IF(JE6,JE45*$E$102*(1+$E$100)/($E$90-$E$89)) -> FALSE | JF103: FALSE | JG103: FALSE | JH103: FALSE | JI103: FALSE | JJ103: FALSE | JK103: FALSE | JL103: FALSE | JM103: FALSE | JN103: FALSE | JO103: FALSE | JP103: FALSE | JQ103: FALSE | JR103: FALSE | JS103: FALSE | JT103: FALSE | JU103: FALSE | JV103: FALSE | JW103: FALSE | JX103: FALSE | JY103: FALSE | JZ103: FALSE | KA103: FALSE | KB103: FALSE | KC103: FALSE | KD103: FALSE | KE103: FALSE | KF103: FALSE | KG103: FALSE | KH103: FALSE | KI103: FALSE | KJ103: FALSE | KK103: FALSE | KL103: FALSE | KM103: FALSE | KN103: FALSE | KO103: FALSE | KP103: FALSE | KQ103: FALSE | KR103: FALSE | KS103: FALSE | KT103: FALSE | KU103: FALSE
C104: Net Value | E104: =E84-E103 -> 797.3360415 | F104: =E104/E86-1 -> -0.05595523406
A106: Simple Cap Exp to Depreciation without Historic Growth
C107: Accumulated Depreciation in History | E107: =M12 -> 0.4359164636
C108: Life of Plant | E108: =E99 -> 15
C109: Implied Growth Rate | E109: =Growth_Find(E107,E108,3) -> 0.08345701467 | F109: =show_formulaR(E109) -> < ---- =Growth_Find(E107,E108,3)
C110: WACC | E110: =E23 -> 0.12
C112: Adjusted Stable Capital Exp to Depreciation | E112: =stable_capexp(E109,E100,E108,E110,3) -> 1.151269019 | F112: =show_formulaR(E112) -> < ---- =stable_capexp(E109,E100,E108,E110,3)
C113: Stable Capital Expenditure Value | E113: =SUM(H113:KU113) -> 810.1427049 | H113: =IF(H6,H45*$E$112*(1+$E$100)/($E$110-$E$100)) -> FALSE | I113: FALSE | J113: FALSE | K113: FALSE | L113: FALSE | M113: FALSE | N113: FALSE | O113: FALSE | P113: FALSE | Q113: FALSE | R113: FALSE | S113: FALSE | T113: FALSE | U113: FALSE | V113: FALSE | W113: FALSE | X113: FALSE | Y113: FALSE | Z113: FALSE | AA113: FALSE | AB113: FALSE | AC113: 810.1427049 | AD113: FALSE | AE113: FALSE | AF113: FALSE | AG113: FALSE | AH113: FALSE | AI113: FALSE | AJ113: FALSE | AK113: FALSE | AL113: FALSE | AM113: FALSE | AN113: FALSE | AO113: FALSE | AP113: FALSE | AQ113: FALSE | AR113: FALSE | AS113: FALSE | AT113: FALSE | AU113: FALSE | AV113: FALSE | AW113: FALSE | AX113: FALSE | AY113: FALSE | AZ113: FALSE | BA113: FALSE | BB113: FALSE | BC113: FALSE | BD113: FALSE | BE113: FALSE | BF113: FALSE | BG113: FALSE | BH113: FALSE | BI113: FALSE | BJ113: FALSE | BK113: FALSE | BL113: FALSE | BM113: FALSE | BN113: FALSE | BO113: FALSE | BP113: FALSE | BQ113: FALSE | BR113: FALSE | BS113: FALSE | BT113: =IF(BT6,BT45*$E$112*(1+$E$100)/($E$110-$E$100)) -> FALSE | BU113: FALSE | BV113: FALSE | BW113: FALSE | BX113: FALSE | BY113: FALSE | BZ113: FALSE | CA113: FALSE | CB113: FALSE | CC113: FALSE | CD113: FALSE | CE113: FALSE | CF113: FALSE | CG113: FALSE | CH113: FALSE | CI113: FALSE | CJ113: FALSE | CK113: FALSE | CL113: FALSE | CM113: FALSE | CN113: FALSE | CO113: FALSE | CP113: FALSE | CQ113: FALSE | CR113: FALSE | CS113: FALSE | CT113: FALSE | CU113: FALSE | CV113: FALSE | CW113: FALSE | CX113: FALSE | CY113: FALSE | CZ113: FALSE | DA113: FALSE | DB113: FALSE | DC113: FALSE | DD113: FALSE | DE113: FALSE | DF113: FALSE | DG113: FALSE | DH113: FALSE | DI113: FALSE | DJ113: FALSE | DK113: FALSE | DL113: FALSE | DM113: FALSE | DN113: FALSE | DO113: FALSE | DP113: FALSE | DQ113: FALSE | DR113: FALSE | DS113: FALSE | DT113: FALSE | DU113: FALSE | DV113: FALSE | DW113: FALSE | DX113: FALSE | DY113: FALSE | DZ113: FALSE | EA113: FALSE | EB113: FALSE | EC113: FALSE | ED113: FALSE | EE113: FALSE | EF113: =IF(EF6,EF45*$E$112*(1+$E$100)/($E$110-$E$100)) -> FALSE | EG113: FALSE | EH113: FALSE | EI113: FALSE | EJ113: FALSE | EK113: FALSE | EL113: FALSE | EM113: FALSE | EN113: FALSE | EO113: FALSE | EP113: FALSE | EQ113: FALSE | ER113: FALSE | ES113: FALSE | ET113: FALSE | EU113: FALSE | EV113: FALSE | EW113: FALSE | EX113: FALSE | EY113: FALSE | EZ113: FALSE | FA113: FALSE | FB113: FALSE | FC113: FALSE | FD113: FALSE | FE113: FALSE | FF113: FALSE | FG113: FALSE | FH113: FALSE | FI113: FALSE | FJ113: FALSE | FK113: FALSE | FL113: FALSE | FM113: FALSE | FN113: FALSE | FO113: FALSE | FP113: FALSE | FQ113: FALSE | FR113: FALSE | FS113: FALSE | FT113: FALSE | FU113: FALSE | FV113: FALSE | FW113: FALSE | FX113: FALSE | FY113: FALSE | FZ113: FALSE | GA113: FALSE | GB113: FALSE | GC113: FALSE | GD113: FALSE | GE113: FALSE | GF113: FALSE | GG113: FALSE | GH113: FALSE | GI113: FALSE | GJ113: FALSE | GK113: FALSE | GL113: FALSE | GM113: FALSE | GN113: FALSE | GO113: FALSE | GP113: FALSE | GQ113: FALSE | GR113: =IF(GR6,GR45*$E$112*(1+$E$100)/($E$110-$E$100)) -> FALSE | GS113: FALSE | GT113: FALSE | GU113: FALSE | GV113: FALSE | GW113: FALSE | GX113: FALSE | GY113: FALSE | GZ113: FALSE | HA113: FALSE | HB113: FALSE | HC113: FALSE | HD113: FALSE | HE113: FALSE | HF113: FALSE | HG113: FALSE | HH113: FALSE | HI113: FALSE | HJ113: FALSE | HK113: FALSE | HL113: FALSE | HM113: FALSE | HN113: FALSE | HO113: FALSE | HP113: FALSE | HQ113: FALSE | HR113: FALSE | HS113: FALSE | HT113: FALSE | HU113: FALSE | HV113: FALSE | HW113: FALSE | HX113: FALSE | HY113: FALSE | HZ113: FALSE | IA113: FALSE | IB113: FALSE | IC113: FALSE | ID113: FALSE | IE113: FALSE | IF113: FALSE | IG113: FALSE | IH113: FALSE | II113: FALSE | IJ113: FALSE | IK113: FALSE | IL113: FALSE | IM113: FALSE | IN113: FALSE | IO113: FALSE | IP113: FALSE | IQ113: FALSE | IR113: FALSE | IS113: FALSE | IT113: FALSE | IU113: FALSE | IV113: FALSE | IW113: FALSE | IX113: FALSE | IY113: FALSE | IZ113: FALSE | JA113: FALSE | JB113: FALSE | JC113: FALSE | JD113: =IF(JD6,JD45*$E$112*(1+$E$100)/($E$110-$E$100)) -> FALSE | JE113: FALSE | JF113: FALSE | JG113: FALSE | JH113: FALSE | JI113: FALSE | JJ113: FALSE | JK113: FALSE | JL113: FALSE | JM113: FALSE | JN113: FALSE | JO113: FALSE | JP113: FALSE | JQ113: FALSE | JR113: FALSE | JS113: FALSE | JT113: FALSE | JU113: FALSE | JV113: FALSE | JW113: FALSE | JX113: FALSE | JY113: FALSE | JZ113: FALSE | KA113: FALSE | KB113: FALSE | KC113: FALSE | KD113: FALSE | KE113: FALSE | KF113: FALSE | KG113: FALSE | KH113: FALSE | KI113: FALSE | KJ113: FALSE | KK113: FALSE | KL113: FALSE | KM113: FALSE | KN113: FALSE | KO113: FALSE | KP113: FALSE | KQ113: FALSE | KR113: FALSE | KS113: FALSE | KT113: FALSE | KU113: FALSE
C114: Net Value | E114: =E84-E113 -> 845.6325125 | F114: =E114/E86-1 -> 0.001227720527
A116: Depreciation Method Using Functions
C117: Parameters
D118: Life | E118: =E18 -> 15
D119: Accumulated Depreciation From History | E119: =INDEX(70:70,MATCH(E13,2:2)) -> 0.3986847165 | F119: =show_formulaR(E119) -> < ---- =INDEX(70:70,MATCH(E13,2:2))
D120: Implied Historic Growth | E120: =Growth_Find(E119,E118,3) -> 0.1200022504 | F120: =show_formulaR(E120) -> < ---- =Growth_Find(E119,E118,3)
D121: Computed Growth | E121: =E21 -> 0.12 | F121: < ---- =E21
D123: Base Retirements | E123: =find_base(E120,E118) -> 0.02682375351 | F123: < ---- =find_base(E120,E118)
C125: Existing Deprecation
